Workbook

Sheet 表紙
V17: d

Sheet Menu
C3: スマートランキングを確認したい | H3: 各種計算機能を利用したい
D5: 予算計画 | I5: 借入可能額を計算したい
D7: 支払計画 | I7: FCFを計算したい
D9: 資金調達 | I9: 金利上昇リスクによる返済額の影響を知りたい
D11: フラット35の優遇を入力したい | I11: 住宅ローンを比較したい
D13: キャンペーンを確認したい
D15: 団信を確認したい
D17: スマートランキングを確認したい

Sheet AA
C2: 年収 | E2: 年齢 | G2: 借入期間 | I2: 返済タイプ | K2: 他の借入金月返済額計
A4: お客様 1 | C4: 1000 | D4: 万円 | F4: 才 | G4: 35 | H4: 年 | I4: 元利均等 | L4: 円
A6: お客様 2 | D6: 万円 | F6: 才 | H6: 年 | L6: 円
B8: 合計 | C8: =C4+C6 -> 1000 | D8: 万円 | E8: 契約種類 | F8: 連帯債務 | H8: =_xlfn.XLOOKUP(F8,table!AA1:AA6,table!V1:V6) -> 3
Q9: フラット35
B10: 北陸銀行 | D10: みずほ銀行 | E10: =table!D19 -> 三井住友銀行 | F10: =table!D20 -> 三菱UFJ銀行 | G10: =table!D21 -> りそな銀行 | H10: =table!D23 -> 三井住友信託銀行 | I10: =table!D24 -> auじぶん銀行 | J10: =table!D25 -> PayPay銀行 | K10: =table!D26 -> SBI新生銀行 | L10: =table!D27 -> イオン銀行 | M10: =table!D28 -> 住信SBIネット銀行 | N10: =table!D35 -> 横浜銀行 | O10: =table!T36 -> 北洋銀行 | P10: =table!D33 -> 北陸銀行 | Q10: =table!D40 -> SBIアルヒ | R10: 住信SBIネット銀行 | S10: 住信SBIネット銀行
Q11: 買取型 | R11: 保証型（9割） | S11: 保証型（8割）
B12: 審査金利 | D12: =IF($C4="","",_xlfn.XLOOKUP(D10,table!$D18:$D$43,table!$H$18:$H$43)) -> 0.035 | E12: =IF($C4="","",_xlfn.XLOOKUP(E10,table!$D18:$D$43,table!$H$18:$H$43)) -> 0.04 | F12: =IF($C4="","",_xlfn.XLOOKUP(F10,table!$D18:$D$43,table!$H$18:$H$43)) -> 0.031 | G12: =IF($C4="","",_xlfn.XLOOKUP(G10,table!$D18:$D$43,table!$H$18:$H$43)) -> 0.031 | H12: =IF($C4="","",_xlfn.XLOOKUP(H10,table!$D18:$D$43,table!$H$18:$H$43)) -> 0.0325 | I12: =IF($C4="","",_xlfn.XLOOKUP(I10,table!$D18:$D$43,table!$H$18:$H$43)) -> 0.031 | J12: =IF($C4="","",_xlfn.XLOOKUP(J10,table!$D18:$D$43,table!$H$18:$H$43)) -> 0.031 | K12: =IF($C4="","",_xlfn.XLOOKUP(K10,table!$D18:$D$43,table!$H$18:$H$43)) -> 0.03 | L12: =IF($C4="","",_xlfn.XLOOKUP(L10,table!$D18:$D$43,table!$H$18:$H$43)) -> 0.04 | M12: =IF($C4="","",_xlfn.XLOOKUP(M10,table!$D18:$D$43,table!$H$18:$H$43)) -> 0.0325 | N12: =IF($C4="","",_xlfn.XLOOKUP(N10,table!$D18:$D$43,table!$H$18:$H$43)) -> 0.04 | O12: =IF($C4="","",_xlfn.XLOOKUP(O10,table!$D18:$D$43,table!$H$18:$H$43)) -> 0 | P12: =IF($C4="","",_xlfn.XLOOKUP(P10,table!$D18:$D$43,table!$H$18:$H$43)) -> 0.02825 | Q12: =IF($C4="","",IF(E4<=20,当月!M469,IF(E4<=35,当月!P463,当月!Q491))) -> 0.0155 | R12: =IF(C4="","",IF(G4>35,"",金利手数料一覧!D39)) -> 0.0193 | S12: =IF(C4="","",IF(G4>35,"",金利手数料一覧!D38)) -> 0.0187
B13: 返済負担率 | D13: =IF(D12="","",HLOOKUP($C4,table!$I$17:$L$43,2,TRUE)) -> 0.4 | E13: =IF(E12="","",HLOOKUP($C4,table!$I$17:$L$43,3,TRUE)) -> 0.35 | F13: =IF(F12="","",HLOOKUP($C4,table!$I$17:$L$43,4,TRUE)) -> 0.35 | G13: =IF(G12="","",HLOOKUP($C4,table!$I$17:$L$43,5,TRUE)) -> 0.35 | H13: =IF(H12="","",HLOOKUP($C4,table!$I$17:$L$43,7,TRUE)) -> 0.35 | I13: =IF(I12="","",HLOOKUP($C4,table!$I$17:$L$43,8,TRUE)) -> 0.35 | J13: =IF(J12="","",HLOOKUP($C4,table!$I$17:$L$43,9,TRUE)) -> 0.35 | K13: =IF(K12="","",HLOOKUP($C4,table!$I$17:$L$43,10,TRUE)) -> 0.35 | L13: =IF(L12="","",HLOOKUP($C4,table!$I$17:$L$43,11,TRUE)) -> 0.45 | M13: =IF(M12="","",HLOOKUP($C4,table!$I$17:$L$43,12,TRUE)) -> 0.35 | N13: =IF(N12="","",HLOOKUP($C4,table!$I$17:$L$43,19,TRUE)) -> 0.35 | O13: =IF(O12="","",HLOOKUP($C4,table!$I$17:$L$43,2,TRUE)) -> 0.4 | P13: =IF(P12="","",HLOOKUP($C4,table!$I$17:$L$43,17,TRUE)) -> 0.35 | Q13: =IF(Q12="","",HLOOKUP($C4,table!$I$17:$L$43,24,TRUE)) -> 0.35 | R13: =IF(R12="","",HLOOKUP($C4,table!$I$17:$L$43,25,TRUE)) -> 0.35 | S13: =IF(S12="","",HLOOKUP($C4,table!$I$17:$L$43,25,TRUE)) -> 0.35
B14: 借入期間 | D14: =IF(G4="","",IF($H8=3,MIN(みずほ!$AF3-$E6,$G6,みずほ!$AJ3),MIN(みずほ!$AF3-$E4,$G4,みずほ!$AJ3))) -> 35 | E14: =IF(D14="","",IF($H8=3,MIN(三井住友!$AF3-$E6,$G6,三井住友!$AJ3),MIN(三井住友!AF3-$E4,$G4,三井住友!AJ3))) -> 35 | F14: =IF(E14="","",IF($H8=3,MIN(三菱!$AF3-$E6,$G6,三菱!$AJ3),MIN(三菱!$AF3-$E4,$G4,三菱!$AJ3))) -> 35 | G14: =IF(F14="","",IF($H8=3,MIN(りそな保証!$AF3-$E6,$G6,りそな保証!$AJ3),MIN(りそな保証!AH3-$E4,$G4,りそな保証!AL3))) -> 40 | H14: =IF(G14="","",IF($H8=3,MIN(三井住友信!$AF3-$E6,$G6,三井住友信!$AJ3),MIN(三井住友信!$AF3-$E4,$G4,三井住友信!$AJ3))) -> 40 | I14: =IF(H14="","",IF($H8=3,MIN(じぶん!$AF3-$E6,$G6,じぶん!$AJ3),MIN(じぶん!$AF3-$E4,$G4,じぶん!$AJ3))) -> 35 | J14: =IF(I14="","",IF($H8=3,MIN(PayPay!$AF3-$E6,$G6,PayPay!$AJ3),MIN(PayPay!$AF3-$E4,$G4,PayPay!$AJ3))) -> 35 | K14: =IF(J14="","",IF($H8=3,MIN(SBI新生!$AF3-$E6,$G6,SBI新生!$AJ3),MIN(SBI新生!$AF3-$E4,$G4,SBI新生!$AJ3))) -> 35 | L14: =IF(K14="","",IF($H8=3,MIN(イオン定率!$AF3-$E6,$G6,イオン定率!$AJ3),MIN(イオン定率!$AF3-$E4,$G4,イオン定率!$AJ3))) -> 35 | M14: =IF(L14="","",IF($H8=3,MIN(住信SBIネット!$AF3-$E6,$G6,住信SBIネット!$AJ3),MIN(住信SBIネット!$AF3-$E4,$G4,住信SBIネット!$AJ3))) -> 50 | N14: =IF(M14="","",IF($H8=3,MIN(横浜!$AF3-$E6,$G6,横浜!$AJ3),MIN(横浜!$AF3-$E4,$G4,横浜!$AJ3))) -> 35 | O14: =IF(N14="","",IF($H8=3,MIN(三菱!$AF3-$E6,$G6,三菱!$AJ3),MIN(三菱!$AF3-$E4,$G4,三菱!$AJ3))) -> 35 | P14: =IF(O14="","",IF($H8=3,MIN(北陸!$AF3-$E6,$G6,北陸!$AJ3),MIN(北陸!$AF3-$E4,$G4,北陸!$AJ3))) -> 40 | Q14: =IF(P14="","",IF($H8=3,MIN(79-$E6,$G6,50),MIN(79-$E4,$G4,50))) -> 50 | R14: =IF(Q14="","",IF($H8=3,MIN(79-$E6,$G6,50),MIN(79-$E4,$G4,50))) -> 50 | S14: =IF(R14="","",IF($H8=3,MIN(79-$E6,$G6,50),MIN(79-$E4,$G4,50))) -> 50
D15: =INT(($C4+IF(OR($H8=2,$H8=3,$H8=4),$C6,0))*D13/12*10000)-$K4-(IF(OR($H8=2,$H8=3,$H8=4),$K6,0)) -> 333333 | E15: =INT(($C4+IF(OR($H8=2,$H8=3,$H8=4),$C6,0))*E13/12*10000)-$K4-(IF(OR($H8=2,$H8=3,$H8=4),$K6,0)) -> 291666 | F15: 291666 | G15: 291666 | H15: 291666 | I15: 291666 | J15: 291666 | K15: 291666 | L15: 375000 | M15: 291666 | N15: 291666 | O15: 333333 | P15: 291666 | Q15: 291666 | R15: 291666 | S15: 291666
B16: =A4 -> お客様 1 | D16: =IFERROR(IF($I4="元利均等",INT(PV(D12/12,D14*12,-D15,,))/10000,D15/(1/D14/12+D12/12)/10000),"") -> 8065.3412 | E16: =IFERROR(IF($I4="元利均等",INT(PV(E12/12,E14*12,-E15,,))/10000,E15/(1/E14/12+E12/12)/10000),"") -> 6587.2321 | F16: =IFERROR(IF($I4="元利均等",INT(PV(F12/12,F14*12,-F15,,))/10000,F15/(1/F14/12+F12/12)/10000),"") -> 7469.9442 | G16: 8017.8348 | H16: 7829.0931 | I16: 7469.9442 | J16: 7469.9442 | K16: 7578.6892 | L16: 8469.3178 | M16: 8643.9606 | N16: 6587.2321 | O16: =IFERROR(IF($I4="元利均等",INT(PV(O12/12,O14*12,-O15,,))/10000,O15/(1/O14/12+O12/12)/10000),"") -> 13999.986 | P16: 8381.8609 | Q16: =IFERROR(IF($I4="元利均等",MIN(8000,INT(PV(Q12/12,Q14*12,-Q15,,))/10000),MIN(Q15/(1/Q14/12+Q12/12)/10000,8000)),"") -> 8000 | R16: =IFERROR(IF($I4="元利均等",MIN(8000,INT(PV(R12/12,R14*12,-R15,,))/10000),MIN(8000,R15/(1/R14/12+R12/12)/10000)),"") -> 8000 | S16: =IFERROR(IF($I4="元利均等",MIN(8000,INT(PV(S12/12,S14*12,-S15,,))/10000),MIN(8000,S15/(1/S14/12+S12/12)/10000)),"") -> 8000
B18: 審査金利 | D18: =IF(OR($C6="",$H8=1,$H8=2,$H8=3,$H8=4),"",D12) ->  | E18: =IF(OR($C6="",$H8=1,$H8=2,$H8=3,$H8=4),"",E12) ->  | O18: =IF(OR($C6="",$H8=1,$H8=2,$H8=3,$H8=4),"",O12) ->  | Q18: =IF(OR($C6="",$H8=1,$H8=2,$H8=3,$H8=4),"",IF(E6<=20,当月!P463,IF(E6<=35,当月!M469,当月!Q491))) ->  | R18: =IF(OR($C6="",$H8=1,$H8=2,$H8=3,$H8=4),"",IF(G6>35,"",R12)) ->  | S18: =IF(OR($C6="",$H8=1,$H8=2,$H8=3,$H8=4),"",IF(G6>35,"",S12)) -> 
B19: 返済負担率 | D19: =IF(OR(D18="",$H8=2,$H8=3,$H8=4),"",HLOOKUP($C6,table!$I$17:$L$43,2,TRUE)) ->  | E19: =IF(OR(E18="",$H8=2,$H8=3,$H8=4),"",HLOOKUP($C6,table!$I$17:$L$43,3,TRUE)) ->  | F19: =IF(OR(F18="",$H8=2,$H8=3,$H8=4),"",HLOOKUP($C6,table!$I$17:$L$43,4,TRUE)) ->  | G19: =IF(OR(G18="",$H8=2,$H8=3,$H8=4),"",HLOOKUP($C6,table!$I$17:$L$43,5,TRUE)) ->  | H19: =IF(OR(H18="",$H8=2,$H8=3,$H8=4),"",HLOOKUP($C6,table!$I$17:$L$43,7,TRUE)) ->  | I19: =IF(OR(I18="",$H8=2,$H8=3,$H8=4),"",HLOOKUP($C6,table!$I$17:$L$43,8,TRUE)) ->  | J19: =IF(OR(J18="",$H8=2,$H8=3,$H8=4),"",HLOOKUP($C6,table!$I$17:$L$43,9,TRUE)) ->  | K19: =IF(OR(K18="",$H8=2,$H8=3,$H8=4),"",HLOOKUP($C6,table!$I$17:$L$43,10,TRUE)) ->  | L19: =IF(OR(L18="",$H8=2,$H8=3,$H8=4),"",HLOOKUP($C6,table!$I$17:$L$43,11,TRUE)) ->  | M19: =IF(OR(M18="",$H8=2,$H8=3,$H8=4),"",HLOOKUP($C6,table!$I$17:$L$43,12,TRUE)) ->  | N19: =IF(OR(N18="",$H8=2,$H8=3,$H8=4),"",HLOOKUP($C6,table!$I$17:$L$43,19,TRUE)) ->  | O19: =IF(OR(O18="",$H8=2,$H8=3,$H8=4),"",HLOOKUP($C6,table!$I$17:$L$43,2,TRUE)) ->  | P19: =IF(OR(P18="",$H8=2,$H8=3,$H8=4),"",HLOOKUP($C6,table!$I$17:$L$43,17,TRUE)) ->  | Q19: =IF(OR(Q18="",$H8=2,$H8=3,$H8=4),"",HLOOKUP($C6,table!$I$17:$L$43,24,TRUE)) ->  | R19: =IF(OR(R18="",$H8=2,$H8=3,$H8=4),"",HLOOKUP($C6,table!$I$17:$L$43,25,TRUE)) ->  | S19: =IF(OR(S18="",$H8=2,$H8=3,$H8=4),"",HLOOKUP($C6,table!$I$17:$L$43,25,TRUE)) -> 
B20: 借入期間 | D20: =IF(OR(D19="",$H8=2,$H8=3,$H8=4),"",MIN(みずほ!$AF3-$E6,$G6,みずほ!$AJ3)) ->  | E20: =IF(OR(E19="",$H8=2,$H8=3,$H8=4),"",MIN(三井住友!$AF3-$E6,$G6,三井住友!$AJ3)) ->  | F20: =IF(OR(F19="",$H8=2,$H8=3,$H8=4),"",MIN(三菱!$AF3-$E6,$G6,三菱!$AJ3)) ->  | G20: =IF(OR(G19="",$H8=2,$H8=3,$H8=4),"",MIN(りそな保証!$AF3-$E6,$G6,りそな保証!$AJ3)) ->  | H20: =IF(OR(H19="",$H8=2,$H8=3,$H8=4),"",MIN(三井住友信!$AF3-$E6,$G6,三井住友信!$AJ3)) ->  | I20: =IF(OR(I19="",$H8=2,$H8=3,$H8=4),"",MIN(じぶん!$AF3-$E6,$G6,じぶん!$AJ3)) ->  | J20: =IF(OR(J19="",$H8=2,$H8=3,$H8=4),"",MIN(PayPay!$AF3-$E6,$G6,PayPay!$AJ3)) ->  | K20: =IF(OR(K19="",$H8=2,$H8=3,$H8=4),"",MIN(SBI新生!$AF3-$E6,$G6,SBI新生!$AJ3)) ->  | L20: =IF(OR(L19="",$H8=2,$H8=3,$H8=4),"",MIN(イオン定率!$AF3-$E6,$G6,イオン定率!$AJ3)) ->  | M20: =IF(OR(M19="",$H8=2,$H8=3,$H8=4),"",MIN(住信SBIネット!$AF3-$E6,$G6,住信SBIネット!$AJ3)) ->  | N20: =IF(OR(N19="",$H8=2,$H8=3,$H8=4),"",MIN(横浜!$AF3-$E6,$G6,横浜!$AJ3)) ->  | O20: =IF(OR(O19="",$H8=2,$H8=3,$H8=4),"",MIN(横浜!$AF3-$E6,$G6,横浜!$AJ3)) ->  | P20: =IF(OR(P19="",$H8=2,$H8=3,$H8=4),"",MIN(北陸!$AF3-$E6,$G6,北陸!$AJ3)) ->  | Q20: =IF(OR(Q19="",$H8=2,$H8=3,$H8=4),"",MIN(79-$E6,$G6,50)) ->  | R20: =IF(OR(R19="",$H8=2,$H8=3,$H8=4),"",MIN(79-$E6,$G6,35)) ->  | S20: =IF(OR(S19="",$H8=2,$H8=3,$H8=4),"",MIN(79-$E6,$G6,35)) -> 
D21: =INT($C6*D13/12*10000)-$K6 -> 0 | E21: =INT($C6*E13/12*10000)-$K6 -> 0 | F21: 0 | G21: 0 | H21: 0 | I21: 0 | J21: 0 | K21: 0 | L21: 0 | M21: 0 | N21: 0 | O21: 0 | P21: 0 | Q21: 0 | R21: 0 | S21: 0
B22: =A6 -> お客様 2 | D22: =IF(D18="","",IF($I6="元利均等",INT(PV(D18/12,D20*12,-D21,,))/10000,(#REF!-$K6)/(1/D20/12+D18/12)/10000)) ->  | E22: =IF(E18="","",IF($I6="元利均等",INT(PV(E18/12,E20*12,-E21,,))/10000,(#REF!-$K6)/(1/E20/12+E18/12)/10000)) ->  | F22: =IF(F18="","",IF($I6="元利均等",INT(PV(F18/12,F20*12,-F21,,))/10000,(#REF!-$K6)/(1/F20/12+F18/12)/10000)) ->  | G22: =IF(G18="","",IF($I6="元利均等",INT(PV(G18/12,G20*12,-G21,,))/10000,(#REF!-$K6)/(1/G20/12+G18/12)/10000)) ->  | H22: =IF(H18="","",IF($I6="元利均等",INT(PV(H18/12,H20*12,-H21,,))/10000,(#REF!-$K6)/(1/H20/12+H18/12)/10000)) ->  | I22: =IF(I18="","",IF($I6="元利均等",INT(PV(I18/12,I20*12,-I21,,))/10000,(#REF!-$K6)/(1/I20/12+I18/12)/10000)) ->  | J22: =IF(J18="","",IF($I6="元利均等",INT(PV(J18/12,J20*12,-J21,,))/10000,(#REF!-$K6)/(1/J20/12+J18/12)/10000)) ->  | K22: =IF(K18="","",IF($I6="元利均等",INT(PV(K18/12,K20*12,-K21,,))/10000,(#REF!-$K6)/(1/K20/12+K18/12)/10000)) ->  | L22: =IF(L18="","",IF($I6="元利均等",INT(PV(L18/12,L20*12,-L21,,))/10000,(#REF!-$K6)/(1/L20/12+L18/12)/10000)) ->  | M22: =IF(M18="","",IF($I6="元利均等",INT(PV(M18/12,M20*12,-M21,,))/10000,(#REF!-$K6)/(1/M20/12+M18/12)/10000)) ->  | N22: =IF(N18="","",IF($I6="元利均等",INT(PV(N18/12,N20*12,-N21,,))/10000,(#REF!-$K6)/(1/N20/12+N18/12)/10000)) ->  | P22: =IF(P18="","",IF($I6="元利均等",INT(PV(P18/12,P20*12,-P21,,))/10000,(#REF!-$K6)/(1/P20/12+P18/12)/10000)) ->  | Q22: =IF(Q18="","",IF($I6="元利均等",MIN(8000,INT(PV(Q18/12,Q20*12,-Q21,,))/10000),MIN(8000,(79-$K6)/(1/Q20/12+Q18/12)/10000))) ->  | R22: =IF(R18="","",IF($I6="元利均等",MIN(8000,INT(PV(R18/12,R20*12,-R21,,))/10000),MIN(8000,(79-$K6)/(1/R20/12+R18/12)/10000))) -> 
B24: 合計 | D24: =IF(D16="",0,D16)+IF(D22="",0,D22) -> 8065.3412 | E24: 6587.2321 | F24: 7469.9442 | G24: 8017.8348 | H24: 7829.0931 | I24: 7469.9442 | J24: 7469.9442 | K24: 7578.6892 | L24: 8469.3178 | M24: 8643.9606 | N24: 6587.2321 | O24: 13999.986 | P24: 8381.8609 | Q24: =MIN(IF(Q16="",0,Q16),8000)+MIN(IF(P22="",0,P22),8000) -> 8000 | R24: =MIN(IF(R16="",0,R16),8000)+MIN(IF(Q22="",0,Q22),8000) -> 8000 | S24: =MIN(IF(S16="",0,S16),8000)+MIN(IF(R22="",0,R22),8000) -> 8000

Sheet FCF
C1: =IF(AA!C4="","「AA」の年収をご入力ください","") ->  | D1: =IF(D2=0,"「AA」で年収を入力してください","") ->  | I1: 昨年度残高 | J1: 今年度残高
C2: 月の収入 | D2: =INT((AA!C4+IF(AA!H8=5,AA!C6,0))/12*10000) -> 833333 | E2: 円 | F2: 1年間の貯蓄額増加額 | G2: =J2-I2 -> 0 | H2: 円 貯金 | K2: 円
C3: 月の支出 | D3: =D2-D4 -> 480333 | E3: 円 | F3: 1年間の資産運用投資額 | G3: =J3-I3 -> 0 | H3: 円 投資 | K3: 円
C4: 収支（余剰金） | D4: =223000+130000 -> 353000 | E4: 円 | F4: 月平均の余剰資金額 | G4: =INT(SUM(G2:G3)/12) -> 0 | H4: 円
C5: 現在 | F5: 住宅購入後
C6: 家賃 | D6: 15000 | E6: 円 | F6: 住宅ローン返済額 | G6: =IFERROR(INT(PMT(J8/12,J7*12,-J6*10000,,)),0) -> 114867 | H6: 円 | I6: 借入金額 | J6: 3500 | K6: 万円
C7: 更新料 | E7: 円 | F7: 固定資産税等 | G7: 12000 | H7: 円 | I7: 借入期間 | J7: 35 | K7: 年
C8: 駐車場代 | E8: 円 | F8: 修繕積立金 | G8: 12000 | H8: 円 | I8: 金 利 | J8: =IF(J7="","",IF(J7>35,当月!D491,IF(J7>20,table!S41,当月!D469))) -> 0.0194
C9: 火災保険 | D9: =900 -> 900 | E9: 円 | F9: 火災保険 | G9: =500000/60 -> 8333.333333 | H9: 円 | I9: 返済タイプ | J9: 元利均等
C10: 光熱費 | D10: 24000 | E10: 円 | F10: 光熱費 | G10: 15000 | H10: 円
C11: 教育積立金 | E11: 円 | F11: 教育費積立 | H11: 円
C12: 年金保険 | D12: 180000 | E12: 円 | F12: 年金保険 | G12: 150000 | H12: 円
C13: iDeCoまたはNISA | D13: 33000 | E13: 円 | F13: iDeCoまたはNISA | G13: 33000 | H13: 円
C14: その他投資積立 | D14: =10000+30000 -> 40000 | E14: 円 | F14: その他投資積立 | G14: 10000 | H14: 円
C15: その他剰余金 | D15: =D4-SUM(D12:D14) -> 100000 | E15: 円 | F15: その他剰余金 | G15: =G16-SUM(G6:G14) -> 37699.66667 | H15: 円 | I15: FCF | J15: =SUM(G12:G15) -> 230699.6667 | K15: 対月収比 | L15: =IFERROR(J15/D2,0) -> 0.2768397107
C16: 合計 | D16: =SUM(D6:D15) -> 392900 | E16: 円 | F16: 合計 | G16: =D16 -> 392900 | H16: 円 | I16: FALSE
I17: FALSE | J17: =J15*35*12 -> 96893860
D18: =SUM(D6:D9) -> 15900

Sheet PMT
D1: =IF(FCF!J15=0,"「FCF」の計算を行ってください","") -> 
B2: 借入金額 | D2: 6000 | E2: 万円
B3: 借入期間 | D3: 30 | E3: 年
B5: 金融機関名 | D5: みずほ銀行 | F5: =IF(D5="","",D5) -> みずほ銀行
B6: 金利タイプ | D6: 変動金利 | F6: 全期間固定
B7: 固定期間 | E7: 年後 | F7: =D3 -> 30
B8: MIX比率 | D8: 5 | E8: ： | F8: =10-D8 -> 5
B10: 当初金利 | D10: =IFERROR(_xlfn.XLOOKUP(D5,table!D18:D41,table!N18:N41),"") -> 0.00375 | F10: =IFERROR(VLOOKUP(F5,table!O17:S42,IF(D3<=20,2,IF(D3<=25,3,IF(D3<=30,4,5))),FALSE),"") -> 0.0213
B11: 毎月返済額 | D11: =IFERROR(INT(PMT(D10/12,D3*12,-D2*10000,,)),0) -> 176243 | F11: =IFERROR(INT(PMT(F10/12,D3*12,-D2*10000,,)),0) -> 225692
B12: FCF | D12: =FCF!J15 -> 230699.6667
B14: 金利上昇時期 | D14: 2 | E14: 年後
B15: 金利上昇幅 | D15: 0.02
B16: 金利上昇直前残高 | D16: =INT(FV(D10/12,IF(D14>D7,D14,D7)*12,D11,-D2*10000,)) -> 56206553
B17: 上昇後毎月返済額 | D17: =IFERROR(INT(PMT((D10+D15)/12,(D3-IF(D14>D7,D14,D7))*12,-D16,,)),"") -> 229181
B19: =IF(FCF!J15="","「FCF」の入力が必要です","") -> 
C30: 当初毎月返済額 | D30: =D11 -> 176243 | H30: =MIN(D30,D31,D35,D35+E35) -> 114867 | I30: =MAX(D30,D31,D35,D35+E35) -> 345566.6667
C31: 金利上昇後毎月返済額 | D31: =D17 -> 229181 | H31: =INT(H30/10000-2)*10000 -> 90000 | I31: =INT(I30/10000+2)*10000 -> 360000
C32: ="MIX "&TEXT(D8,0)&"： "&TEXT(F8,0) -> MIX 5： 5 | D32: =IF(OR(D5=table!D25,D5=table!D30),0,INT((D31*D8/10+D33*F8/10))) -> 227436 | H32: =D8 -> 5 | I32: =F8 -> 5
C33: 全期間固定金利 | D33: =F11 -> 225692
C35: 当初毎月返済額 | D35: =FCF!G6 -> 114867 | E35: =FCF!J15 -> 230699.6667
C36: 金利上昇後毎月返済額 | D36: =D35 -> 114867 | E36: =FCF!J15 -> 230699.6667

Sheet 予算計画
L1: （単位：万円）
B2: 項目 | E2: 概要 | F2: 金額 | G2: 備考 | K2: 項目 | L2: 合計
B3: 不動産 | C3: 土地関係費用 | D3: 土地売買価格 | F3: 1500 | G3: マンションの場合はここに入力してください | I3: 不動産 | J3: =F3 -> 1500 | K3: 土地売買価格 | L3: =F3 -> 1500
D4: 内 手付金 | F4: 50 | I4: 建物 | J4: =F21+F40+F47 -> 3000 | K4: 工事費用 | L4: =F21+F40+F47 -> 3000
D5: 契約印紙税(土地） | F5: =IFERROR(VLOOKUP(F3*10000,table!B2:D11,3,TRUE)/10000,0) -> 1 | I5: 諸費用 | J5: =F17-J3+F59+F66+F73 -> 355.568185 | K5: 残債 | L5: =F49 -> 0
D6: 仲介手数料 | E6: （売買価格×3％+6万円）＋消費税（10%） | F6: 56 | G6: =IF(F3="","","法定上限額は"&TEXT(H6,"0.0")&"万円です") -> 法定上限額は56.1万円です | H6: =IF(F3<200,F3*5%,IF(F3<400,(F3*4%+2),(F3*3%+6)))*1.1 -> 56.1 | K6: 諸費用 | L6: =F17-F3+F59+F66+F73 -> 355.568185
D7: 所有権移転登記 | E7: 売買の場合は土地価格×1.5%+50,000円で計算 | F7: =IF(F3="","",IF(O13=TRUE,0,F3/2*1.5%+12)) -> 0 | K7: 合計 | L7: =SUM(L3:L6) -> 4855.568185
D8: 固定資産税精算金 | E8: 所有権移転日より発生（年始は高く年末だと安い） | G8: 現在の所有者が法人か個人により異なる
D9: 都市計画法申請 | E9: 市街化調整区域内の時のみ | K9: 住宅ローン | L9: 4000
D10: 水路占用許可申請 | G10: 橋をかける場合など | K10: 借入期間 | L10: 35
D11: 農地除外・転用手続き | E11: 青地→白地が除外 白地（農地）→宅地が転用 | G11: 必要時は各15万 | K11: 自己資金 | L11: =L7-L9 -> 855.568185
D12: 上水道加入金・下水受益者負担金 | E12: すでに引き込みがされている場合も必要 | G12: それぞれ約4万・約10万
D13: 給排水管引き込み工事 | E13: 【予算】上水道60万 下水は基本的に公費のため0円 | G13: 必要時は約60万 | K13: 新築 | O13: TRUE
D14: 給水管・下水管 長距離追加費用 | E14: 【予算】11m以上のとき20000円／mで加算する | G14: 必要時は2万／m | K14: マンション | O14: FALSE
D15: 造成工事費用 | E15: 【予算】境界CBは2段（400）で14000／m | G15: 概算予算 70万（50m）
D16: 予備費
D17: 小 計 | F17: =SUM(F3:F16)-F4 -> 1557
B18: 建物 | C18: 建物本体 | D18: 基本本体工事 | E18: 標準仕様書による 平屋の場合は+15% | F18: =3000/1.1 -> 2727.272727 | G18: 消費税別の金額で入力してください
D19: 本体割増・内装工事 | E19: 【予算】目安は坪数×15万円
D20: 消費税 | E20: 0.1 | F20: =IFERROR((F18+F19)*0.1,0) -> 272.7272727
D21: 小 計 | F21: =SUM(F18:F20) -> 3000
C22: 付帯工事 | D22: 仮設工事 | E22: 仮設仮囲い・水道・電気・仮設電気代含む
D23: 電気外線引き込み | E23: 防護管必要時は＋10万円 ※金額は目安
D24: 屋外給排水工事 | E24: 【予算】通常97.2万
D25: 建築確認申請料 | E25: 実施設計料・公的機関検査料を含む
D26: 建物検査費 | E26: 第三者機関による現場監査・品質チェック・瑕疵保険料
D27: 長期優良住宅申請料 | E27: 各種書類作成・外皮計算・構造計算を含む
D28: 解体工事 | E28: 概算：建物は1万円／㎡ 樹木は3000円／㎡ | G28: 鉄筋は1.5倍みる
D29: 浄化槽設置工事 | E29: 下水の場合は不要／5,7,10人槽で金額違うので注意↓
D30: 地盤調査・地盤保証 | E30: 地盤保証（20年最大5000万円の保証込）
D31: 地盤改良工事 | E31: 【予算】調査前なので改良の有無未確定 改良確率１０％程度 | G31: 概算予算 100万
D32: 太陽光発電システム | E32: MAXION40年保証 286,000円／1kW ※400W／枚 | G32: 標準はMaxiの9.6kW（24枚）
D33: 照明工事 | E33: 10,000円/坪 （LED照明）
D34: 2世帯住宅増加分 | E34: 玄関＋風呂＋キッチン想定の予算 | G34: 概算予算 200万
D35: ガレージ予算 | E35: 屋根一体型基礎による1台分の家屋隣接ガレージ | G35: 概算予算 350万
D36: 蓄電池 | E36: テスラ13.5kwh ※2023/5確認 | G36: テスラ 234万円（パネルがMAXIONだと225万）
D38: その他
D39: 消費税 | E39: 0.1 | F39: =SUM(F22:F38)*0.1 -> 0
D40: 小 計 | F40: =SUM(F22:F39) -> 0
C41: オプション工事 | D41: 外構工事費用 | E41: 芝・柵・デッキ等 敷地面積など内容により変動
D42: エアコン工事費用 | E42: 目安として2台分の予算取りです
D43: カーテン工事費用 | E43: 目安として坪数×1万円＋8万円という予算取りです
D45: その他
D46: 消費税 | E46: 0.1 | F46: =SUM(F41:F45)*0.1 -> 0
D47: 小 計 | F47: =SUM(F41:F46) -> 0
B48: 残債 | D48: 住宅ローン残高 | E48: 完済予定金額を入力します | G48: 住み替え、建替え時
D49: 小 計 | F49: =F48 -> 0
B50: 諸費用 | C50: 建物関係費用 | D50: 契約印紙税（建物） | E50: クラウドサインのため印紙代無料 | G50: ="紙ベースの場合は、"&TEXT(K50,"#,##0")&"円" -> 紙ベースの場合は、10,000円 | K50: =IFERROR(VLOOKUP(L4*10000,table!B3:D11,3,TRUE),0) -> 10000
D51: 建物表題登記 | E51: 土地家屋調査士（調査費・報酬） | F51: 10 | G51: 約10万 新築時のみ必要（中古・リフォームは不要）
D52: 保存設定登記 | E52: 司法書士（登録免許税・報酬） | F52: =IF(O14=TRUE,F3,IF(L4=0,0,(F21+F40+F47)))/2*0.5%+IF(OR(O14=TRUE,O13=FALSE),0,12) -> 19.5 | G52: 固定資産税評価額×0.15%+報酬12万円
D53: 抵当権設定登記 | E53: 司法書士（登録免許税・報酬） | F53: =IF(L9="","",L9*0.1%) -> 4 | G53: 固定資産税評価額×0.1%
D54: 地目変更登記 | E54: 土地家屋調査士（登録免許税・報酬） | G54: 約5万 他地目→宅地のときのみ
D55: 建物滅失登記 | E55: 土地家屋調査士（調査費・報酬） | G55: 約5万 建て替え時のみ
D56: 分筆登記 | E56: 土地家屋調査士（登記・調査費・報酬） | G56: 約70万 地勢により変わる
D59: 小 計 | F59: =SUM(F50:F58) -> 33.5
C60: 金融関係費用 | D60: 融資手数料 | E60: 金融機関によって違います | F60: =IF(L9>0,L9*2.2%+IF(O14=TRUE,0,11),0) -> 99 | G60: 手数料2.2％で算出
D61: 銀行用印紙税 | E61: ローンの組み方によって違います | F61: =IFERROR((VLOOKUP(L9*10000,table!B3:C11,2,TRUE)+VLOOKUP(L9*10000,table!B3:C11,2,TRUE))/10000,0) -> 4 | G61: 本融資2万円+つなぎ2万円
D62: 保証料 | E62: 銀行によって％が違います | G62: フラット35は0円
D63: 火災保険 | E63: 火災（建物・家財）・風災の価格目安 ※5年更新 | F63: 50 | G63: 水災加算時は値をU51に変更
D64: 団体信用生命保険 | E64: 一般銀行は銀行側で負担（金利に含まれている） | F64: 0 | G64: フラット35の場合は金利に含まれてる
D65: つなぎ融資関係費用 | E65: 土地代+着工金30％+中間金30％×1.3％+手数料5万円+各つなぎ金額×0.805% | F65: =IF(O13=FALSE,IF(F3>0,F3*3/12*1.82%/10000+5.5+資金調達!M21*0.805%,0),IF(O14=TRUE,0,(F3*8+L4*30%*10)/12*1.82%/10000+5.5+資金調達!M21*0.805%)) -> 32.068185 | G65: SBIアルヒの条件で計算
D66: 小 計 | F66: =SUM(F60:F65) -> 185.068185
C67: その他 | D67: 賃貸家賃 | E67: 建替え中に賃貸住まいの場合は家賃×8か月(目安） | F67: 0 | G67: ＋初期費用おおよそ20万円
D68: 引っ越し費用 | E68: 自分たちでするか業者でするか | F68: 20 | G68: 5万円から20万円（建替え時）
D69: 家具・家電 | F69: 50 | G69: お客様の予算
D70: 地鎮祭費用 | E70: 平松建築に委託の場合は3万円 | F70: 10 | G70: お客様の予算
D71: 上棟費用 | E71: 大工さんご祝儀 餅まき費用は別途 | G71: 餅まきする場合は20万円（目安）
D72: 予備費
D73: 小 計 | F73: =SUM(F67:F72) -> 80

Sheet 資金調達
B2: 都道府県 | C2: 静岡県 | F2: 借入金額 | H2: 借入期間 | L2: 返済タイプ | M2: 団信種類 | N2: フラット20 | P2: 年齢 | R2: 年収
B3: 物件新旧 | C3: 1 新築 | D3: =_xlfn.XLOOKUP(C3,table!W$2:W$6,table!V$2:V$6) -> 1 | E3: お客様1 | F3: 4000 | G3: 万円 | H3: 35 | I3: 年 | K3: カ月 | L3: 元利均等 | M3: 一般団信 | N3: 含めない | P3: 35 | Q3: 才 | R3: 600 | S3: 万円
B4: 物件種類 | C4: 2 土地＋建物 | D4: =IFERROR(_xlfn.XLOOKUP(C4,table!X$2:X$6,table!V$2:V$6),0) -> 2 | E4: お客様2 | G4: 万円 | I4: 年 | K4: カ月 | Q4: 才 | S4: 万円
B5: 居住区分 | C5: 1 自己居住用 | D5: =_xlfn.XLOOKUP(C5,table!Y$2:Y$6,table!V$2:V$6) -> 1 | E5: 合計 | F5: =F3+F4 -> 4000 | G5: 万円 | L5: =IFERROR(_xlfn.XLOOKUP(L3,table!T$3:T$4,table!O$3:O$4),0) -> 1 | N5: =IFERROR(_xlfn.XLOOKUP(N3,table!S$3:S$4,table!O$3:O$4),0) -> 1
B6: 使途 | C6: 1 居宅 | D6: =_xlfn.XLOOKUP(C6,table!Z$2:Z$6,table!V$2:V$6) -> 1 | E6: 種類 | F6: 単独債務 | G6: =_xlfn.XLOOKUP(F6,table!AA1:AA6,table!V1:V6) -> 1 | L6: =IFERROR(_xlfn.XLOOKUP(L4,table!T$3:T$4,table!O$3:O$4),"") ->  | M6: =_xlfn.XLOOKUP(M$3,table!Q$1:Q$7,table!O$1:O$7) -> 1 | N6: =IFERROR(_xlfn.XLOOKUP(N4,table!S$3:S$4,table!O$3:O$4),0) -> 0
D7: =IF(E15>0,1,0) -> 0 | F7: =IF(F5=F18,"","借入金額を正しく入力してください！") ->  | M7: =_xlfn.XLOOKUP(M4,table!Q$1:Q$7,table!O$1:O$7) -> 0
C9: 資金計画概要 | E9: 支払額 | F9: 借入金額 | G9: 自己資金 | J9: 支払条件 | L9: 支払額 | M9: 借入金額 | N9: 期間＊ | P9: 簡易計算機
E10: （万円） | F10: （万円） | G10: （万円） | L10: （万円） | M10: （万円） | N10: （ヵ月） | P10: 借入金額
C11: マンション | G11: =E11-F11 -> 0 | J11: 不動産価格 | L11: =IF(AND(D3=1,D4=1),E11,IF(E11>0,E11,IF(E12>0,E12,0))*1.05) -> 1575 | M11: 1500 | N11: 7 | P11: 借入期間
C12: 不動産価格 | E12: 1500 | F12: 1500 | G12: =E12-F12 -> 0 | J12: 残債 | L12: =E16 -> 0 | P12: 金利
C13: 内 土地 | J13: 契約時 | L13: 100 | P13: 毎月返済額 | R13: =IFERROR(INT(PMT(R12/12,R11*12,-R10*10000,,)),"") ->  | S13: 円
C14: 工事費用 | E14: 3000 | F14: 2500 | G14: =E14-F14 -> 500 | J14: 着工時 | L14: =E14*30% -> 900 | M14: 900 | N14: 5 | P14: その他ローン返済 | S14: 円
C15: リフォーム工事費用 | G15: =E15-F15 -> 0 | H15: =IF(F15>0,1,0) -> 0 | J15: 中間時 | L15: =L14 -> 900 | M15: 900 | N15: 3
C16: 残債 | G16: =E16-F16 -> 0 | J16: リフォーム代 | L16: =E15 -> 0 | P16: 返済負担率 | R16: =IFERROR((R13+R14)*12/(R3+R4)/10000,"") -> 
C17: 諸費用概算 | E17: =予算計画!L6 -> 355.568185 | G17: =IFERROR(E17-F17,0) -> 355.568185 | J17: 諸費用 | L17: =IFERROR(IF(AND(D3=1,D4=1),E17,E17-(E11+E12)*5%),0) -> 280.568185
C18: 合計 | E18: =SUM(E11:E17)-E13 -> 4855.568185 | F18: =SUM(F11:F17)-F13 -> 4000 | G18: =E18-F18 -> 855.568185 | J18: 最終金 | L18: =E14+E15-SUM(L13:L16) -> 1100 | M18: =F18-M11-M12-M14-M15 -> 700
E19: =SUM(E11:E16)-E13 -> 4500
C20: 融資率（フラット35） | F20: =IFERROR(F18/E18,"") -> 0.8237964843 | J20: 総合計 | L20: =SUM(L11:L18) -> 4855.568185 | M20: =F18 -> 4000 | N20: =MAX(N11:N15) -> 7
C21: 融資率 | F21: =IFERROR(F18/(SUM(E11:E15)-E13),"") -> 0.8888888889 | J21: つなぎ合計 | M21: =SUM(M11:M15) -> 3300 | N21: =COUNT(N11:N15) -> 3
M22: =M14+M15 -> 1800
N33: =COUNT(M11:M15) -> 3 | O33: =IF(N33>3,3,N33) -> 3
N34: 不動産積 | O34: =M11*N11 -> 10500
N35: 残債積 | O35: =M12*N12 -> 0
N36: 契約金積 | O36: =M13*N13 -> 0
N37: 着工金積 | O37: =M14*N14 -> 4500
N38: 中間金積 | O38: =M15*N15 -> 2700
N39: 総合計 | O39: =SUM(O34:O38) -> 17700
N40: 3回 | O40: =O34+O37+O38 -> 17700
N41: 2回 | O41: =O37+O38 -> 7200
N42: 1回 | O42: =M15*N15 -> 2700
N43: リフォーム | O43: =M11*N11 -> 10500

Sheet 支払計画
D2: 一括（当初） | F2: 分割（2回） | H2: 分割（3回以上） | J2: 一括（最終）
D4: 金融機関名 | E4: 常陽銀行 | F4: 金融機関名 | G4: 三菱UFJ銀行 | H4: 金融機関名 | I4: みずほ銀行 | J4: 金融機関名 | K4: auじぶん銀行
D5: 商品名 | E5: 常陽住宅ローン | F5: 商品名 | G5: 住宅ローン | H5: 商品名 | I5: みずほネット住宅ローン | J5: 商品名 | K5: 住宅ローン
D6: 手数料タイプ | E6: 手数料定率 | F6: 手数料タイプ | G6: 手数料定率 | H6: 手数料タイプ | I6: 手数料定率 | J6: 手数料タイプ | K6: 手数料定率
E7: =_xlfn.XLOOKUP(E4&E5&E6,table!$U18:$U100&table!$V18:$V100&table!$W18:$W100,table!$AB18:$AB100) -> 104 | G7: =_xlfn.XLOOKUP(G4&G5&G6,table!$U18:$U100&table!$V18:$V100&table!$W18:$W100,table!$AB18:$AB100) -> 26 | I7: =_xlfn.XLOOKUP(I4&I5&I6,table!$U18:$U100&table!$V18:$V100&table!$W18:$W100,table!$AB18:$AB100) -> 27 | K7: =_xlfn.XLOOKUP(K4&K5&K6,table!$U18:$U100&table!$V18:$V100&table!$W18:$W100,table!$AB18:$AB100) -> 19
B8: 全体 | D8: 総予算 | E8: =_xlfn.XLOOKUP(E$7*10+IF(RIGHT(E$5,4)="+ローン",2,IF(RIGHT(E$5,3)="プラス",3,1)),諸費用並び替え!$C$1:$DF$1,諸費用並び替え!$C6:$DF6) -> 4743.93 | F8: =D8 -> 総予算 | G8: =IF(G36="Error","",_xlfn.XLOOKUP(G$7*10+IF(RIGHT(G$5,4)="+ローン",2,IF(RIGHT(G$5,3)="プラス",3,1)),諸費用並び替え!$C$1:$DF$1,諸費用並び替え!$C6:$DF6)) -> 4780.33 | H8: =F8 -> 総予算 | I8: =_xlfn.XLOOKUP(I$7*10+IF(RIGHT(I$5,4)="+ローン",2,IF(RIGHT(I$5,3)="プラス",3,1)),諸費用並び替え!$C$1:$DF$1,諸費用並び替え!$C6:$DF6) -> 4764.33 | J8: =H8 -> 総予算 | K8: =IF(K36="Error","",_xlfn.XLOOKUP(K$7*10+IF(RIGHT(K$5,4)="+ローン",2,IF(RIGHT(K$5,3)="プラス",3,1)),諸費用並び替え!C$1:DF$1,諸費用並び替え!C6:DF6)) -> 4796.3437
D9: 不動産 | E9: =_xlfn.XLOOKUP(E$7*10+IF(RIGHT(E$5,4)="+ローン",2,IF(RIGHT(E$5,3)="プラス",3,1)),諸費用並び替え!$C$1:$DF$1,諸費用並び替え!$C7:$DF7) -> 1500 | F9: =D9 -> 不動産 | G9: =IF(G8="","",_xlfn.XLOOKUP(G$7*10+IF(RIGHT(G$5,4)="+ローン",2,IF(RIGHT(G$5,3)="プラス",3,1)),諸費用並び替え!$C$1:$DF$1,諸費用並び替え!$C7:$DF7)) -> 1500 | H9: =F9 -> 不動産 | I9: =_xlfn.XLOOKUP(I$7*10+IF(RIGHT(I$5,4)="+ローン",2,IF(RIGHT(I$5,3)="プラス",3,1)),諸費用並び替え!$C$1:$DF$1,諸費用並び替え!$C7:$DF7) -> 1500 | J9: =H9 -> 不動産 | K9: =IF(K8="","",_xlfn.XLOOKUP(K$7*10+IF(RIGHT(K$5,4)="+ローン",2,IF(RIGHT(K$5,3)="プラス",3,1)),諸費用並び替え!C$1:DF$1,諸費用並び替え!C7:DF7)) -> 1500
D10: 工事費用 | E10: =_xlfn.XLOOKUP(E$7*10+IF(RIGHT(E$5,4)="+ローン",2,IF(RIGHT(E$5,3)="プラス",3,1)),諸費用並び替え!$C$1:$DF$1,諸費用並び替え!$C8:$DF8) -> 3000 | F10: =D10 -> 工事費用 | G10: =IF(G8="","",_xlfn.XLOOKUP(G$7*10+IF(RIGHT(G$5,4)="+ローン",2,IF(RIGHT(G$5,3)="プラス",3,1)),諸費用並び替え!$C$1:$DF$1,諸費用並び替え!$C8:$DF8)) -> 3000 | H10: 工事費用 | I10: =_xlfn.XLOOKUP(I$7*10+IF(RIGHT(I$5,4)="+ローン",2,IF(RIGHT(I$5,3)="プラス",3,1)),諸費用並び替え!$C$1:$DF$1,諸費用並び替え!$C8:$DF8) -> 3000 | J10: 工事費用 | K10: =IF(K9="","",_xlfn.XLOOKUP(K$7*10+IF(RIGHT(K$5,4)="+ローン",2,IF(RIGHT(K$5,3)="プラス",3,1)),諸費用並び替え!C$1:DF$1,諸費用並び替え!C8:DF8)) -> 3000
D11: 残債 | E11: =_xlfn.XLOOKUP(E$7*10+IF(RIGHT(E$5,4)="+ローン",2,IF(RIGHT(E$5,3)="プラス",3,1)),諸費用並び替え!$C$1:$DF$1,諸費用並び替え!$C9:$DF9) -> 0 | F11: 残債 | G11: =IF(G8="","",_xlfn.XLOOKUP(G$7*10+IF(RIGHT(G$5,4)="+ローン",2,IF(RIGHT(G$5,3)="プラス",3,1)),諸費用並び替え!$C$1:$DF$1,諸費用並び替え!$C9:$DF9)) -> 0 | H11: 残債 | I11: =_xlfn.XLOOKUP(I$7*10+IF(RIGHT(I$5,4)="+ローン",2,IF(RIGHT(I$5,3)="プラス",3,1)),諸費用並び替え!$C$1:$DF$1,諸費用並び替え!$C9:$DF9) -> 0 | J11: 残債 | K11: =IF(K10="","",_xlfn.XLOOKUP(K$7*10+IF(RIGHT(K$5,4)="+ローン",2,IF(RIGHT(K$5,3)="プラス",3,1)),諸費用並び替え!C$1:DF$1,諸費用並び替え!C9:DF9)) -> 0
D12: 諸費用 | E12: =_xlfn.XLOOKUP(E$7*10+IF(RIGHT(E$5,4)="+ローン",2,IF(RIGHT(E$5,3)="プラス",3,1)),諸費用並び替え!$C$1:$DF$1,諸費用並び替え!$C10:$DF10) -> 243.93 | F12: 諸費用 | G12: =IF(G8="","",_xlfn.XLOOKUP(G$7*10+IF(RIGHT(G$5,4)="+ローン",2,IF(RIGHT(G$5,3)="プラス",3,1)),諸費用並び替え!$C$1:$DF$1,諸費用並び替え!$C10:$DF10)) -> 280.33 | H12: 諸費用 | I12: =_xlfn.XLOOKUP(I$7*10+IF(RIGHT(I$5,4)="+ローン",2,IF(RIGHT(I$5,3)="プラス",3,1)),諸費用並び替え!$C$1:$DF$1,諸費用並び替え!$C10:$DF10) -> 264.33 | J12: 諸費用 | K12: =IF(K11="","",_xlfn.XLOOKUP(K$7*10+IF(RIGHT(K$5,4)="+ローン",2,IF(RIGHT(K$5,3)="プラス",3,1)),諸費用並び替え!C$1:DF$1,諸費用並び替え!C10:DF10)) -> 296.3437
D13: 住宅ローン | E13: =_xlfn.XLOOKUP(E$7*10+IF(RIGHT(E$5,4)="+ローン",2,IF(RIGHT(E$5,3)="プラス",3,1)),諸費用並び替え!$C$1:$DF$1,諸費用並び替え!$C11:$DF11) -> 4000 | F13: 住宅ローン | G13: =IF(G8="","",_xlfn.XLOOKUP(G$7*10+IF(RIGHT(G$5,4)="+ローン",2,IF(RIGHT(G$5,3)="プラス",3,1)),諸費用並び替え!$C$1:$DF$1,諸費用並び替え!$C11:$DF11)) -> 4000 | H13: 住宅ローン | I13: =_xlfn.XLOOKUP(I$7*10+IF(RIGHT(I$5,4)="+ローン",2,IF(RIGHT(I$5,3)="プラス",3,1)),諸費用並び替え!$C$1:$DF$1,諸費用並び替え!$C11:$DF11) -> 4000 | J13: 住宅ローン | K13: =IF(K12="","",_xlfn.XLOOKUP(K$7*10+IF(RIGHT(K$5,4)="+ローン",2,IF(RIGHT(K$5,3)="プラス",3,1)),諸費用並び替え!C$1:DF$1,諸費用並び替え!C11:DF11)) -> 4000
D14: つなぎ融資 | E14: =_xlfn.XLOOKUP(E$7*10+IF(RIGHT(E$5,4)="+ローン",2,IF(RIGHT(E$5,3)="プラス",3,1)),諸費用並び替え!$C$1:$DF$1,諸費用並び替え!$C12:$DF12) -> 0 | F14: つなぎ融資 | G14: =IF(G8="","",_xlfn.XLOOKUP(G$7*10+IF(RIGHT(G$5,4)="+ローン",2,IF(RIGHT(G$5,3)="プラス",3,1)),諸費用並び替え!$C$1:$DF$1,諸費用並び替え!$C12:$DF12)) -> 1800 | H14: つなぎ融資 | I14: =_xlfn.XLOOKUP(I$7*10+IF(RIGHT(I$5,4)="+ローン",2,IF(RIGHT(I$5,3)="プラス",3,1)),諸費用並び替え!$C$1:$DF$1,諸費用並び替え!$C12:$DF12) -> 0 | J14: つなぎ融資 | K14: =IF(K13="","",_xlfn.XLOOKUP(K$7*10+IF(RIGHT(K$5,4)="+ローン",2,IF(RIGHT(K$5,3)="プラス",3,1)),諸費用並び替え!C$1:DF$1,諸費用並び替え!C12:DF12)) -> 3300
D15: 自己資金 | E15: =_xlfn.XLOOKUP(E$7*10+IF(RIGHT(E$5,4)="+ローン",2,IF(RIGHT(E$5,3)="プラス",3,1)),諸費用並び替え!$C$1:$DF$1,諸費用並び替え!$C13:$DF13) -> 743.93 | F15: 自己資金 | G15: =IF(G8="","",_xlfn.XLOOKUP(G$7*10+IF(RIGHT(G$5,4)="+ローン",2,IF(RIGHT(G$5,3)="プラス",3,1)),諸費用並び替え!$C$1:$DF$1,諸費用並び替え!$C13:$DF13)) -> 780.33 | H15: 自己資金 | I15: =_xlfn.XLOOKUP(I$7*10+IF(RIGHT(I$5,4)="+ローン",2,IF(RIGHT(I$5,3)="プラス",3,1)),諸費用並び替え!$C$1:$DF$1,諸費用並び替え!$C13:$DF13) -> 764.33 | J15: 自己資金 | K15: =IF(K14="","",_xlfn.XLOOKUP(K$7*10+IF(RIGHT(K$5,4)="+ローン",2,IF(RIGHT(K$5,3)="プラス",3,1)),諸費用並び替え!C$1:DF$1,諸費用並び替え!C13:DF13)) -> 796.3437
B17: 不動産購入 | C17: 契約時 | D17: =_xlfn.XLOOKUP(E$7*10,諸費用並び替え!$C$1:$DF$1,諸費用並び替え!$C15:$DF15) -> 支払合計 | E17: =_xlfn.XLOOKUP(E$7*10+IF(RIGHT(E$5,4)="+ローン",2,IF(RIGHT(E$5,3)="プラス",3,1)),諸費用並び替え!$C$1:$DF$1,諸費用並び替え!$C15:$DF15) -> 51 | F17: =_xlfn.XLOOKUP(G$7*10,諸費用並び替え!$C$1:$DF$1,諸費用並び替え!$C15:$DF15) -> 支払合計 | G17: =IF(G$8="",0,_xlfn.XLOOKUP(G$7*10+IF(RIGHT(G$5,4)="+ローン",2,IF(RIGHT(G$5,3)="プラス",3,1)),諸費用並び替え!$C$1:$DF$1,諸費用並び替え!$C15:$DF15)) -> 51 | H17: =_xlfn.XLOOKUP(I$7*10,諸費用並び替え!$C$1:$DF$1,諸費用並び替え!$C15:$DF15) -> 支払合計 | I17: =_xlfn.XLOOKUP(I$7*10+IF(RIGHT(I$5,4)="+ローン",2,IF(RIGHT(I$5,3)="プラス",3,1)),諸費用並び替え!$C$1:$DF$1,諸費用並び替え!$C15:$DF15) -> 51 | J17: =_xlfn.XLOOKUP(K$7*10,諸費用並び替え!C$1:DF$1,諸費用並び替え!C15:DF15) -> 支払合計 | K17: =_xlfn.XLOOKUP(K$7*10+IF(RIGHT(K$5,4)="+ローン",2,IF(RIGHT(K$5,3)="プラス",3,1)),諸費用並び替え!C$1:DF$1,諸費用並び替え!C15:DF15) -> 51
D19: =_xlfn.XLOOKUP(E$7*10,諸費用並び替え!$C$1:$DF$1,諸費用並び替え!$C17:$DF17) -> 0 | E19: =_xlfn.XLOOKUP(E$7*10+IF(RIGHT(E$5,4)="+ローン",2,IF(RIGHT(E$5,3)="プラス",3,1)),諸費用並び替え!$C$1:$DF$1,諸費用並び替え!$C17:$DF17) -> 0 | F19: =_xlfn.XLOOKUP(G$7*10,諸費用並び替え!$C$1:$DF$1,諸費用並び替え!$C17:$DF17) -> 0 | G19: =IF(G$8="",0,_xlfn.XLOOKUP(G$7*10+IF(RIGHT(G$5,4)="+ローン",2,IF(RIGHT(G$5,3)="プラス",3,1)),諸費用並び替え!$C$1:$DF$1,諸費用並び替え!$C17:$DF17)) -> 0 | H19: =_xlfn.XLOOKUP(I$7*10,諸費用並び替え!$C$1:$DF$1,諸費用並び替え!$C17:$DF17) -> 0 | I19: =_xlfn.XLOOKUP(I$7*10+IF(RIGHT(I$5,4)="+ローン",2,IF(RIGHT(I$5,3)="プラス",3,1)),諸費用並び替え!$C$1:$DF$1,諸費用並び替え!$C17:$DF17) -> 0 | J19: =_xlfn.XLOOKUP(K$7*10,諸費用並び替え!C$1:DF$1,諸費用並び替え!C17:DF17) -> 0 | K19: =_xlfn.XLOOKUP(K$7*10+IF(RIGHT(K$5,4)="+ローン",2,IF(RIGHT(K$5,3)="プラス",3,1)),諸費用並び替え!C$1:DF$1,諸費用並び替え!C17:DF17) -> 0
D20: =_xlfn.XLOOKUP(E$7*10,諸費用並び替え!$C$1:$DF$1,諸費用並び替え!$C18:$DF18) -> 自己資金 | E20: =_xlfn.XLOOKUP(E$7*10+IF(RIGHT(E$5,4)="+ローン",2,IF(RIGHT(E$5,3)="プラス",3,1)),諸費用並び替え!$C$1:$DF$1,諸費用並び替え!$C18:$DF18) -> 51 | F20: =_xlfn.XLOOKUP(G$7*10,諸費用並び替え!$C$1:$DF$1,諸費用並び替え!$C18:$DF18) -> 自己資金 | G20: =IF(G$8="",0,_xlfn.XLOOKUP(G$7*10+IF(RIGHT(G$5,4)="+ローン",2,IF(RIGHT(G$5,3)="プラス",3,1)),諸費用並び替え!$C$1:$DF$1,諸費用並び替え!$C18:$DF18)) -> 51 | H20: =_xlfn.XLOOKUP(I$7*10,諸費用並び替え!$C$1:$DF$1,諸費用並び替え!$C18:$DF18) -> 自己資金 | I20: =_xlfn.XLOOKUP(I$7*10+IF(RIGHT(I$5,4)="+ローン",2,IF(RIGHT(I$5,3)="プラス",3,1)),諸費用並び替え!$C$1:$DF$1,諸費用並び替え!$C18:$DF18) -> 51 | J20: =_xlfn.XLOOKUP(K$7*10,諸費用並び替え!C$1:DF$1,諸費用並び替え!C18:DF18) -> 自己資金 | K20: =_xlfn.XLOOKUP(K$7*10+IF(RIGHT(K$5,4)="+ローン",2,IF(RIGHT(K$5,3)="プラス",3,1)),諸費用並び替え!C$1:DF$1,諸費用並び替え!C18:DF18) -> 51
D22: =_xlfn.XLOOKUP(E$7*10,諸費用並び替え!$C$1:$DF$1,諸費用並び替え!$C20:$DF20) -> 手付金 | E22: =_xlfn.XLOOKUP(E$7*10+IF(RIGHT(E$5,4)="+ローン",2,IF(RIGHT(E$5,3)="プラス",3,1)),諸費用並び替え!$C$1:$DF$1,諸費用並び替え!$C20:$DF20) -> 50 | F22: =_xlfn.XLOOKUP(G$7*10,諸費用並び替え!$C$1:$DF$1,諸費用並び替え!$C20:$DF20) -> 手付金 | G22: =IF(G$8="",0,_xlfn.XLOOKUP(G$7*10+IF(RIGHT(G$5,4)="+ローン",2,IF(RIGHT(G$5,3)="プラス",3,1)),諸費用並び替え!$C$1:$DF$1,諸費用並び替え!$C20:$DF20)) -> 50 | H22: =_xlfn.XLOOKUP(I$7*10,諸費用並び替え!$C$1:$DF$1,諸費用並び替え!$C20:$DF20) -> 手付金 | I22: =_xlfn.XLOOKUP(I$7*10+IF(RIGHT(I$5,4)="+ローン",2,IF(RIGHT(I$5,3)="プラス",3,1)),諸費用並び替え!$C$1:$DF$1,諸費用並び替え!$C20:$DF20) -> 50 | J22: =_xlfn.XLOOKUP(K$7*10,諸費用並び替え!C$1:DF$1,諸費用並び替え!C20:DF20) -> 手付金 | K22: =_xlfn.XLOOKUP(K$7*10+IF(RIGHT(K$5,4)="+ローン",2,IF(RIGHT(K$5,3)="プラス",3,1)),諸費用並び替え!C$1:DF$1,諸費用並び替え!C20:DF20) -> 50
D23: =_xlfn.XLOOKUP(E$7*10,諸費用並び替え!$C$1:$DF$1,諸費用並び替え!$C21:$DF21) -> 収入印紙（不動産契約） | E23: =_xlfn.XLOOKUP(E$7*10+IF(RIGHT(E$5,4)="+ローン",2,IF(RIGHT(E$5,3)="プラス",3,1)),諸費用並び替え!$C$1:$DF$1,諸費用並び替え!$C21:$DF21) -> 1 | F23: =_xlfn.XLOOKUP(G$7*10,諸費用並び替え!$C$1:$DF$1,諸費用並び替え!$C21:$DF21) -> 収入印紙（不動産契約） | G23: =IF(G$8="",0,_xlfn.XLOOKUP(G$7*10+IF(RIGHT(G$5,4)="+ローン",2,IF(RIGHT(G$5,3)="プラス",3,1)),諸費用並び替え!$C$1:$DF$1,諸費用並び替え!$C21:$DF21)) -> 1 | H23: =_xlfn.XLOOKUP(I$7*10,諸費用並び替え!$C$1:$DF$1,諸費用並び替え!$C21:$DF21) -> 収入印紙（不動産契約） | I23: =_xlfn.XLOOKUP(I$7*10+IF(RIGHT(I$5,4)="+ローン",2,IF(RIGHT(I$5,3)="プラス",3,1)),諸費用並び替え!$C$1:$DF$1,諸費用並び替え!$C21:$DF21) -> 1 | J23: =_xlfn.XLOOKUP(K$7*10,諸費用並び替え!C$1:DF$1,諸費用並び替え!C21:DF21) -> 収入印紙（不動産契約） | K23: =_xlfn.XLOOKUP(K$7*10+IF(RIGHT(K$5,4)="+ローン",2,IF(RIGHT(K$5,3)="プラス",3,1)),諸費用並び替え!C$1:DF$1,諸費用並び替え!C21:DF21) -> 1
C25: 決済時 | D25: =_xlfn.XLOOKUP(E$7*10,諸費用並び替え!$C$1:$DF$1,諸費用並び替え!$C23:$DF23) -> 支払合計 | E25: =_xlfn.XLOOKUP(E$7*10+IF(RIGHT(E$5,4)="+ローン",2,IF(RIGHT(E$5,3)="プラス",3,1)),諸費用並び替え!$C$1:$DF$1,諸費用並び替え!$C23:$DF23) -> 1595.1 | F25: =_xlfn.XLOOKUP(G$7*10,諸費用並び替え!$C$1:$DF$1,諸費用並び替え!$C23:$DF23) -> 支払合計 | G25: =IF(G$8="",0,_xlfn.XLOOKUP(G$7*10+IF(RIGHT(G$5,4)="+ローン",2,IF(RIGHT(G$5,3)="プラス",3,1)),諸費用並び替え!$C$1:$DF$1,諸費用並び替え!$C23:$DF23)) -> 1544.8 | H25: =_xlfn.XLOOKUP(I$7*10,諸費用並び替え!$C$1:$DF$1,諸費用並び替え!$C23:$DF23) -> 支払合計 | I25: =_xlfn.XLOOKUP(I$7*10+IF(RIGHT(I$5,4)="+ローン",2,IF(RIGHT(I$5,3)="プラス",3,1)),諸費用並び替え!$C$1:$DF$1,諸費用並び替え!$C23:$DF23) -> 1613.85 | J25: =_xlfn.XLOOKUP(K$7*10,諸費用並び替え!C$1:DF$1,諸費用並び替え!C23:DF23) -> 支払合計 | K25: =_xlfn.XLOOKUP(K$7*10+IF(RIGHT(K$5,4)="+ローン",2,IF(RIGHT(K$5,3)="プラス",3,1)),諸費用並び替え!C$1:DF$1,諸費用並び替え!C23:DF23) -> 1524.5
D27: =_xlfn.XLOOKUP(E$7*10,諸費用並び替え!$C$1:$DF$1,諸費用並び替え!$C25:$DF25) -> 住宅ローン | E27: =_xlfn.XLOOKUP(E$7*10+IF(RIGHT(E$5,4)="+ローン",2,IF(RIGHT(E$5,3)="プラス",3,1)),諸費用並び替え!$C$1:$DF$1,諸費用並び替え!$C25:$DF25) -> 4000 | F27: =_xlfn.XLOOKUP(G$7*10,諸費用並び替え!$C$1:$DF$1,諸費用並び替え!$C25:$DF25) -> 住宅ローン | G27: =IF(G$8="",0,_xlfn.XLOOKUP(G$7*10+IF(RIGHT(G$5,4)="+ローン",2,IF(RIGHT(G$5,3)="プラス",3,1)),諸費用並び替え!$C$1:$DF$1,諸費用並び替え!$C25:$DF25)) -> 1500 | H27: =_xlfn.XLOOKUP(I$7*10,諸費用並び替え!$C$1:$DF$1,諸費用並び替え!$C25:$DF25) -> 住宅ローン | I27: =_xlfn.XLOOKUP(I$7*10+IF(RIGHT(I$5,4)="+ローン",2,IF(RIGHT(I$5,3)="プラス",3,1)),諸費用並び替え!$C$1:$DF$1,諸費用並び替え!$C25:$DF25) -> 1500 | J27: =_xlfn.XLOOKUP(K$7*10,諸費用並び替え!C$1:DF$1,諸費用並び替え!C25:DF25) -> つなぎ融資（アプラス） | K27: =_xlfn.XLOOKUP(K$7*10+IF(RIGHT(K$5,4)="+ローン",2,IF(RIGHT(K$5,3)="プラス",3,1)),諸費用並び替え!C$1:DF$1,諸費用並び替え!C25:DF25) -> 1500
D28: =_xlfn.XLOOKUP(E$7*10,諸費用並び替え!$C$1:$DF$1,諸費用並び替え!$C26:$DF26) -> 自己資金 | E28: =_xlfn.XLOOKUP(E$7*10+IF(RIGHT(E$5,4)="+ローン",2,IF(RIGHT(E$5,3)="プラス",3,1)),諸費用並び替え!$C$1:$DF$1,諸費用並び替え!$C26:$DF26) -> -2404.9 | F28: =_xlfn.XLOOKUP(G$7*10,諸費用並び替え!$C$1:$DF$1,諸費用並び替え!$C26:$DF26) -> 自己資金 | G28: =IF(G$8="",0,_xlfn.XLOOKUP(G$7*10+IF(RIGHT(G$5,4)="+ローン",2,IF(RIGHT(G$5,3)="プラス",3,1)),諸費用並び替え!$C$1:$DF$1,諸費用並び替え!$C26:$DF26)) -> 44.8 | H28: =_xlfn.XLOOKUP(I$7*10,諸費用並び替え!$C$1:$DF$1,諸費用並び替え!$C26:$DF26) -> 自己資金 | I28: =_xlfn.XLOOKUP(I$7*10+IF(RIGHT(I$5,4)="+ローン",2,IF(RIGHT(I$5,3)="プラス",3,1)),諸費用並び替え!$C$1:$DF$1,諸費用並び替え!$C26:$DF26) -> 113.85 | J28: =_xlfn.XLOOKUP(K$7*10,諸費用並び替え!C$1:DF$1,諸費用並び替え!C26:DF26) -> 自己資金 | K28: =_xlfn.XLOOKUP(K$7*10+IF(RIGHT(K$5,4)="+ローン",2,IF(RIGHT(K$5,3)="プラス",3,1)),諸費用並び替え!C$1:DF$1,諸費用並び替え!C26:DF26) -> 24.5
D30: =_xlfn.XLOOKUP(E$7*10,諸費用並び替え!$C$1:$DF$1,諸費用並び替え!$C28:$DF28) -> 残代金 | E30: =_xlfn.XLOOKUP(E$7*10+IF(RIGHT(E$5,4)="+ローン",2,IF(RIGHT(E$5,3)="プラス",3,1)),諸費用並び替え!$C$1:$DF$1,諸費用並び替え!$C28:$DF28) -> 1450 | F30: =_xlfn.XLOOKUP(G$7*10,諸費用並び替え!$C$1:$DF$1,諸費用並び替え!$C28:$DF28) -> 残代金 | G30: =IF(G$8="",0,_xlfn.XLOOKUP(G$7*10+IF(RIGHT(G$5,4)="+ローン",2,IF(RIGHT(G$5,3)="プラス",3,1)),諸費用並び替え!$C$1:$DF$1,諸費用並び替え!$C28:$DF28)) -> 1450 | H30: =_xlfn.XLOOKUP(I$7*10,諸費用並び替え!$C$1:$DF$1,諸費用並び替え!$C28:$DF28) -> 残代金 | I30: =_xlfn.XLOOKUP(I$7*10+IF(RIGHT(I$5,4)="+ローン",2,IF(RIGHT(I$5,3)="プラス",3,1)),諸費用並び替え!$C$1:$DF$1,諸費用並び替え!$C28:$DF28) -> 1450 | J30: =_xlfn.XLOOKUP(K$7*10,諸費用並び替え!C$1:DF$1,諸費用並び替え!C28:DF28) -> 残代金 | K30: =_xlfn.XLOOKUP(K$7*10+IF(RIGHT(K$5,4)="+ローン",2,IF(RIGHT(K$5,3)="プラス",3,1)),諸費用並び替え!C$1:DF$1,諸費用並び替え!C28:DF28) -> 1450
D31: =_xlfn.XLOOKUP(E$7*10,諸費用並び替え!$C$1:$DF$1,諸費用並び替え!$C29:$DF29) -> 仲介報酬 | E31: =_xlfn.XLOOKUP(E$7*10+IF(RIGHT(E$5,4)="+ローン",2,IF(RIGHT(E$5,3)="プラス",3,1)),諸費用並び替え!$C$1:$DF$1,諸費用並び替え!$C29:$DF29) -> 56 | F31: =_xlfn.XLOOKUP(G$7*10,諸費用並び替え!$C$1:$DF$1,諸費用並び替え!$C29:$DF29) -> 仲介報酬 | G31: =IF(G$8="",0,_xlfn.XLOOKUP(G$7*10+IF(RIGHT(G$5,4)="+ローン",2,IF(RIGHT(G$5,3)="プラス",3,1)),諸費用並び替え!$C$1:$DF$1,諸費用並び替え!$C29:$DF29)) -> 56 | H31: =_xlfn.XLOOKUP(I$7*10,諸費用並び替え!$C$1:$DF$1,諸費用並び替え!$C29:$DF29) -> 仲介報酬 | I31: =_xlfn.XLOOKUP(I$7*10+IF(RIGHT(I$5,4)="+ローン",2,IF(RIGHT(I$5,3)="プラス",3,1)),諸費用並び替え!$C$1:$DF$1,諸費用並び替え!$C29:$DF29) -> 56 | J31: =_xlfn.XLOOKUP(K$7*10,諸費用並び替え!C$1:DF$1,諸費用並び替え!C29:DF29) -> 仲介報酬 | K31: =_xlfn.XLOOKUP(K$7*10+IF(RIGHT(K$5,4)="+ローン",2,IF(RIGHT(K$5,3)="プラス",3,1)),諸費用並び替え!C$1:DF$1,諸費用並び替え!C29:DF29) -> 56
D32: =_xlfn.XLOOKUP(E$7*10,諸費用並び替え!$C$1:$DF$1,諸費用並び替え!$C30:$DF30) -> その他費用 | E32: =_xlfn.XLOOKUP(E$7*10+IF(RIGHT(E$5,4)="+ローン",2,IF(RIGHT(E$5,3)="プラス",3,1)),諸費用並び替え!$C$1:$DF$1,諸費用並び替え!$C30:$DF30) -> 0 | F32: =_xlfn.XLOOKUP(G$7*10,諸費用並び替え!$C$1:$DF$1,諸費用並び替え!$C30:$DF30) -> その他費用 | G32: =IF(G$8="",0,_xlfn.XLOOKUP(G$7*10+IF(RIGHT(G$5,4)="+ローン",2,IF(RIGHT(G$5,3)="プラス",3,1)),諸費用並び替え!$C$1:$DF$1,諸費用並び替え!$C30:$DF30)) -> 0 | H32: =_xlfn.XLOOKUP(I$7*10,諸費用並び替え!$C$1:$DF$1,諸費用並び替え!$C30:$DF30) -> その他費用 | I32: =_xlfn.XLOOKUP(I$7*10+IF(RIGHT(I$5,4)="+ローン",2,IF(RIGHT(I$5,3)="プラス",3,1)),諸費用並び替え!$C$1:$DF$1,諸費用並び替え!$C30:$DF30) -> 0 | J32: =_xlfn.XLOOKUP(K$7*10,諸費用並び替え!C$1:DF$1,諸費用並び替え!C30:DF30) -> その他費用 | K32: =_xlfn.XLOOKUP(K$7*10+IF(RIGHT(K$5,4)="+ローン",2,IF(RIGHT(K$5,3)="プラス",3,1)),諸費用並び替え!C$1:DF$1,諸費用並び替え!C30:DF30) -> 0
D33: =_xlfn.XLOOKUP(E$7*10,諸費用並び替え!$C$1:$DF$1,諸費用並び替え!$C31:$DF31) -> 登記関係費用 | E33: =_xlfn.XLOOKUP(E$7*10+IF(RIGHT(E$5,4)="+ローン",2,IF(RIGHT(E$5,3)="プラス",3,1)),諸費用並び替え!$C$1:$DF$1,諸費用並び替え!$C31:$DF31) -> 0 | F33: =_xlfn.XLOOKUP(G$7*10,諸費用並び替え!$C$1:$DF$1,諸費用並び替え!$C31:$DF31) -> 登記関係費用 | G33: =IF(G$8="",0,_xlfn.XLOOKUP(G$7*10+IF(RIGHT(G$5,4)="+ローン",2,IF(RIGHT(G$5,3)="プラス",3,1)),諸費用並び替え!$C$1:$DF$1,諸費用並び替え!$C31:$DF31)) -> 5.8 | H33: =_xlfn.XLOOKUP(I$7*10,諸費用並び替え!$C$1:$DF$1,諸費用並び替え!$C31:$DF31) -> 登記関係費用 | I33: =_xlfn.XLOOKUP(I$7*10+IF(RIGHT(I$5,4)="+ローン",2,IF(RIGHT(I$5,3)="プラス",3,1)),諸費用並び替え!$C$1:$DF$1,諸費用並び替え!$C31:$DF31) -> 16 | J33: =_xlfn.XLOOKUP(K$7*10,諸費用並び替え!C$1:DF$1,諸費用並び替え!C31:DF31) -> 登記関係費用 | K33: =_xlfn.XLOOKUP(K$7*10+IF(RIGHT(K$5,4)="+ローン",2,IF(RIGHT(K$5,3)="プラス",3,1)),諸費用並び替え!C$1:DF$1,諸費用並び替え!C31:DF31) -> 0
D34: =_xlfn.XLOOKUP(E$7*10,諸費用並び替え!$C$1:$DF$1,諸費用並び替え!$C32:$DF32) -> 融資関係費用 | E34: =_xlfn.XLOOKUP(E$7*10+IF(RIGHT(E$5,4)="+ローン",2,IF(RIGHT(E$5,3)="プラス",3,1)),諸費用並び替え!$C$1:$DF$1,諸費用並び替え!$C32:$DF32) -> 89.1 | F34: =_xlfn.XLOOKUP(G$7*10,諸費用並び替え!$C$1:$DF$1,諸費用並び替え!$C32:$DF32) -> 融資関係費用 | G34: =IF(G$8="",0,_xlfn.XLOOKUP(G$7*10+IF(RIGHT(G$5,4)="+ローン",2,IF(RIGHT(G$5,3)="プラス",3,1)),諸費用並び替え!$C$1:$DF$1,諸費用並び替え!$C32:$DF32)) -> 33 | H34: =_xlfn.XLOOKUP(I$7*10,諸費用並び替え!$C$1:$DF$1,諸費用並び替え!$C32:$DF32) -> 融資関係費用 | I34: =_xlfn.XLOOKUP(I$7*10+IF(RIGHT(I$5,4)="+ローン",2,IF(RIGHT(I$5,3)="プラス",3,1)),諸費用並び替え!$C$1:$DF$1,諸費用並び替え!$C32:$DF32) -> 91.85 | J34: =_xlfn.XLOOKUP(K$7*10,諸費用並び替え!C$1:DF$1,諸費用並び替え!C32:DF32) -> 融資関係費用 | K34: =_xlfn.XLOOKUP(K$7*10+IF(RIGHT(K$5,4)="+ローン",2,IF(RIGHT(K$5,3)="プラス",3,1)),諸費用並び替え!C$1:DF$1,諸費用並び替え!C32:DF32) -> 18.5
B36: 残債 | C36: 不動産購入前 または着工前 | D36: =_xlfn.XLOOKUP(E$7*10,諸費用並び替え!$C$1:$DF$1,諸費用並び替え!$C34:$DF34) -> 支払合計 | E36: =_xlfn.XLOOKUP(E$7*10+IF(RIGHT(E$5,4)="+ローン",2,IF(RIGHT(E$5,3)="プラス",3,1)),諸費用並び替え!$C$1:$DF$1,諸費用並び替え!$C34:$DF34) -> 0 | F36: =_xlfn.XLOOKUP(G$7*10,諸費用並び替え!$C$1:$DF$1,諸費用並び替え!$C34:$DF34) -> 支払合計 | G36: =_xlfn.XLOOKUP(G$7*10+IF(RIGHT(G$5,4)="+ローン",2,IF(RIGHT(G$5,3)="プラス",3,1)),諸費用並び替え!$C$1:$DF$1,諸費用並び替え!$C34:$DF34) -> 0 | H36: =_xlfn.XLOOKUP(I$7*10,諸費用並び替え!$C$1:$DF$1,諸費用並び替え!$C34:$DF34) -> 支払合計 | I36: =_xlfn.XLOOKUP(I$7*10+IF(RIGHT(I$5,4)="+ローン",2,IF(RIGHT(I$5,3)="プラス",3,1)),諸費用並び替え!$C$1:$DF$1,諸費用並び替え!$C34:$DF34) -> 0 | J36: =_xlfn.XLOOKUP(K$7*10,諸費用並び替え!C$1:DF$1,諸費用並び替え!C34:DF34) -> 0 | K36: =_xlfn.XLOOKUP(K$7*10+IF(RIGHT(K$5,4)="+ローン",2,IF(RIGHT(K$5,3)="プラス",3,1)),諸費用並び替え!C$1:DF$1,諸費用並び替え!C34:DF34) -> 0
D38: =_xlfn.XLOOKUP(E$7*10,諸費用並び替え!$C$1:$DF$1,諸費用並び替え!$C36:$DF36) -> 住宅ローン | E38: =_xlfn.XLOOKUP(E$7*10+IF(RIGHT(E$5,4)="+ローン",2,IF(RIGHT(E$5,3)="プラス",3,1)),諸費用並び替え!$C$1:$DF$1,諸費用並び替え!$C36:$DF36) -> 0 | F38: =_xlfn.XLOOKUP(G$7*10,諸費用並び替え!$C$1:$DF$1,諸費用並び替え!$C36:$DF36) -> 住宅ローン | G38: =IF(G$8="",0,_xlfn.XLOOKUP(G$7*10+IF(RIGHT(G$5,4)="+ローン",2,IF(RIGHT(G$5,3)="プラス",3,1)),諸費用並び替え!$C$1:$DF$1,諸費用並び替え!$C36:$DF36)) -> 0 | H38: =_xlfn.XLOOKUP(I$7*10,諸費用並び替え!$C$1:$DF$1,諸費用並び替え!$C36:$DF36) -> 住宅ローン | I38: =_xlfn.XLOOKUP(I$7*10+IF(RIGHT(I$5,4)="+ローン",2,IF(RIGHT(I$5,3)="プラス",3,1)),諸費用並び替え!$C$1:$DF$1,諸費用並び替え!$C36:$DF36) -> 0 | J38: =_xlfn.XLOOKUP(K$7*10,諸費用並び替え!C$1:DF$1,諸費用並び替え!C36:DF36) -> 0 | K38: =_xlfn.XLOOKUP(K$7*10+IF(RIGHT(K$5,4)="+ローン",2,IF(RIGHT(K$5,3)="プラス",3,1)),諸費用並び替え!C$1:DF$1,諸費用並び替え!C36:DF36) -> 0
D39: =_xlfn.XLOOKUP(E$7*10,諸費用並び替え!$C$1:$DF$1,諸費用並び替え!$C37:$DF37) -> 自己資金 | E39: =_xlfn.XLOOKUP(E$7*10+IF(RIGHT(E$5,4)="+ローン",2,IF(RIGHT(E$5,3)="プラス",3,1)),諸費用並び替え!$C$1:$DF$1,諸費用並び替え!$C37:$DF37) -> 0 | F39: =_xlfn.XLOOKUP(G$7*10,諸費用並び替え!$C$1:$DF$1,諸費用並び替え!$C37:$DF37) -> 自己資金 | G39: =IF(G$8="",0,_xlfn.XLOOKUP(G$7*10+IF(RIGHT(G$5,4)="+ローン",2,IF(RIGHT(G$5,3)="プラス",3,1)),諸費用並び替え!$C$1:$DF$1,諸費用並び替え!$C37:$DF37)) -> 0 | H39: =_xlfn.XLOOKUP(I$7*10,諸費用並び替え!$C$1:$DF$1,諸費用並び替え!$C37:$DF37) -> 自己資金 | I39: =_xlfn.XLOOKUP(I$7*10+IF(RIGHT(I$5,4)="+ローン",2,IF(RIGHT(I$5,3)="プラス",3,1)),諸費用並び替え!$C$1:$DF$1,諸費用並び替え!$C37:$DF37) -> 0 | J39: =_xlfn.XLOOKUP(K$7*10,諸費用並び替え!C$1:DF$1,諸費用並び替え!C37:DF37) -> 0 | K39: =_xlfn.XLOOKUP(K$7*10+IF(RIGHT(K$5,4)="+ローン",2,IF(RIGHT(K$5,3)="プラス",3,1)),諸費用並び替え!C$1:DF$1,諸費用並び替え!C37:DF37) -> 0
D41: =_xlfn.XLOOKUP(E$7*10,諸費用並び替え!$C$1:$DF$1,諸費用並び替え!$C39:$DF39) -> 残債 | E41: =_xlfn.XLOOKUP(E$7*10+IF(RIGHT(E$5,4)="+ローン",2,IF(RIGHT(E$5,3)="プラス",3,1)),諸費用並び替え!$C$1:$DF$1,諸費用並び替え!$C39:$DF39) -> 0 | F41: =_xlfn.XLOOKUP(G$7*10,諸費用並び替え!$C$1:$DF$1,諸費用並び替え!$C39:$DF39) -> 残債 | G41: =IF(G$8="",0,_xlfn.XLOOKUP(G$7*10+IF(RIGHT(G$5,4)="+ローン",2,IF(RIGHT(G$5,3)="プラス",3,1)),諸費用並び替え!$C$1:$DF$1,諸費用並び替え!$C39:$DF39)) -> 0 | H41: =_xlfn.XLOOKUP(I$7*10,諸費用並び替え!$C$1:$DF$1,諸費用並び替え!$C39:$DF39) -> 残債 | I41: =_xlfn.XLOOKUP(I$7*10+IF(RIGHT(I$5,4)="+ローン",2,IF(RIGHT(I$5,3)="プラス",3,1)),諸費用並び替え!$C$1:$DF$1,諸費用並び替え!$C39:$DF39) -> 0 | J41: =_xlfn.XLOOKUP(K$7*10,諸費用並び替え!C$1:DF$1,諸費用並び替え!C39:DF39) -> 0 | K41: =_xlfn.XLOOKUP(K$7*10+IF(RIGHT(K$5,4)="+ローン",2,IF(RIGHT(K$5,3)="プラス",3,1)),諸費用並び替え!C$1:DF$1,諸費用並び替え!C39:DF39) -> 0
D42: =_xlfn.XLOOKUP(E$7*10,諸費用並び替え!$C$1:$DF$1,諸費用並び替え!$C40:$DF40) -> 融資関係手数料 | E42: =_xlfn.XLOOKUP(E$7*10+IF(RIGHT(E$5,4)="+ローン",2,IF(RIGHT(E$5,3)="プラス",3,1)),諸費用並び替え!$C$1:$DF$1,諸費用並び替え!$C40:$DF40) -> 0 | F42: =_xlfn.XLOOKUP(G$7*10,諸費用並び替え!$C$1:$DF$1,諸費用並び替え!$C40:$DF40) -> 融資関係手数料 | G42: =IF(G$8="",0,_xlfn.XLOOKUP(G$7*10+IF(RIGHT(G$5,4)="+ローン",2,IF(RIGHT(G$5,3)="プラス",3,1)),諸費用並び替え!$C$1:$DF$1,諸費用並び替え!$C40:$DF40)) -> 0 | H42: =_xlfn.XLOOKUP(I$7*10,諸費用並び替え!$C$1:$DF$1,諸費用並び替え!$C40:$DF40) -> 融資関係手数料 | I42: =_xlfn.XLOOKUP(I$7*10+IF(RIGHT(I$5,4)="+ローン",2,IF(RIGHT(I$5,3)="プラス",3,1)),諸費用並び替え!$C$1:$DF$1,諸費用並び替え!$C40:$DF40) -> 0 | J42: =_xlfn.XLOOKUP(K$7*10,諸費用並び替え!C$1:DF$1,諸費用並び替え!C40:DF40) -> 0 | K42: =_xlfn.XLOOKUP(K$7*10+IF(RIGHT(K$5,4)="+ローン",2,IF(RIGHT(K$5,3)="プラス",3,1)),諸費用並び替え!C$1:DF$1,諸費用並び替え!C40:DF40) -> 0
D43: =_xlfn.XLOOKUP(E$7*10,諸費用並び替え!$C$1:$DF$1,諸費用並び替え!$C41:$DF41) -> 収入印紙 | E43: =_xlfn.XLOOKUP(E$7*10+IF(RIGHT(E$5,4)="+ローン",2,IF(RIGHT(E$5,3)="プラス",3,1)),諸費用並び替え!$C$1:$DF$1,諸費用並び替え!$C41:$DF41) -> 0 | F43: =_xlfn.XLOOKUP(G$7*10,諸費用並び替え!$C$1:$DF$1,諸費用並び替え!$C41:$DF41) -> 収入印紙 | G43: =IF(G$8="",0,_xlfn.XLOOKUP(G$7*10+IF(RIGHT(G$5,4)="+ローン",2,IF(RIGHT(G$5,3)="プラス",3,1)),諸費用並び替え!$C$1:$DF$1,諸費用並び替え!$C41:$DF41)) -> 0 | H43: =_xlfn.XLOOKUP(I$7*10,諸費用並び替え!$C$1:$DF$1,諸費用並び替え!$C41:$DF41) -> 収入印紙（融資契約） | I43: =_xlfn.XLOOKUP(I$7*10+IF(RIGHT(I$5,4)="+ローン",2,IF(RIGHT(I$5,3)="プラス",3,1)),諸費用並び替え!$C$1:$DF$1,諸費用並び替え!$C41:$DF41) -> 0 | J43: =_xlfn.XLOOKUP(K$7*10,諸費用並び替え!C$1:DF$1,諸費用並び替え!C41:DF41) -> 0 | K43: =_xlfn.XLOOKUP(K$7*10+IF(RIGHT(K$5,4)="+ローン",2,IF(RIGHT(K$5,3)="プラス",3,1)),諸費用並び替え!C$1:DF$1,諸費用並び替え!C41:DF41) -> 0
B46: 住宅建設 | C46: 契約時 | D46: =_xlfn.XLOOKUP(E$7*10,諸費用並び替え!$C$1:$DF$1,諸費用並び替え!$C44:$DF44) -> 支払合計 | E46: =_xlfn.XLOOKUP(E$7*10+IF(RIGHT(E$5,4)="+ローン",2,IF(RIGHT(E$5,3)="プラス",3,1)),諸費用並び替え!$C$1:$DF$1,諸費用並び替え!$C44:$DF44) -> 102 | F46: =_xlfn.XLOOKUP(G$7*10,諸費用並び替え!$C$1:$DF$1,諸費用並び替え!$C44:$DF44) -> 支払合計 | G46: =IF(G$8="",0,_xlfn.XLOOKUP(G$7*10+IF(RIGHT(G$5,4)="+ローン",2,IF(RIGHT(G$5,3)="プラス",3,1)),諸費用並び替え!$C$1:$DF$1,諸費用並び替え!$C44:$DF44)) -> 102 | H46: =_xlfn.XLOOKUP(I$7*10,諸費用並び替え!$C$1:$DF$1,諸費用並び替え!$C44:$DF44) -> 支払合計 | I46: =_xlfn.XLOOKUP(I$7*10+IF(RIGHT(I$5,4)="+ローン",2,IF(RIGHT(I$5,3)="プラス",3,1)),諸費用並び替え!$C$1:$DF$1,諸費用並び替え!$C44:$DF44) -> 102 | J46: =_xlfn.XLOOKUP(K$7*10,諸費用並び替え!C$1:DF$1,諸費用並び替え!C44:DF44) -> 支払合計 | K46: =IF(K8="",0,_xlfn.XLOOKUP(K$7*10+IF(RIGHT(K$5,4)="+ローン",2,IF(RIGHT(K$5,3)="プラス",3,1)),諸費用並び替え!C$1:DF$1,諸費用並び替え!C44:DF44)) -> 102
B47: または工事
D48: =_xlfn.XLOOKUP(E$7*10,諸費用並び替え!$C$1:$DF$1,諸費用並び替え!$C46:$DF46) -> 0 | E48: =_xlfn.XLOOKUP(E$7*10+IF(RIGHT(E$5,4)="+ローン",2,IF(RIGHT(E$5,3)="プラス",3,1)),諸費用並び替え!$C$1:$DF$1,諸費用並び替え!$C46:$DF46) -> 0 | F48: =_xlfn.XLOOKUP(G$7*10,諸費用並び替え!$C$1:$DF$1,諸費用並び替え!$C46:$DF46) -> 住宅ローン | G48: =IF(G$8="",0,_xlfn.XLOOKUP(G$7*10+IF(RIGHT(G$5,4)="+ローン",2,IF(RIGHT(G$5,3)="プラス",3,1)),諸費用並び替え!$C$1:$DF$1,諸費用並び替え!$C46:$DF46)) -> 0 | H48: =_xlfn.XLOOKUP(I$7*10,諸費用並び替え!$C$1:$DF$1,諸費用並び替え!$C46:$DF46) -> 住宅ローン | I48: =_xlfn.XLOOKUP(I$7*10+IF(RIGHT(I$5,4)="+ローン",2,IF(RIGHT(I$5,3)="プラス",3,1)),諸費用並び替え!$C$1:$DF$1,諸費用並び替え!$C46:$DF46) -> 0 | J48: =_xlfn.XLOOKUP(K$7*10,諸費用並び替え!C$1:DF$1,諸費用並び替え!C46:DF46) -> 0 | K48: =IF(K8="",0,_xlfn.XLOOKUP(K$7*10+IF(RIGHT(K$5,4)="+ローン",2,IF(RIGHT(K$5,3)="プラス",3,1)),諸費用並び替え!C$1:DF$1,諸費用並び替え!C46:DF46)) -> 0
D49: =_xlfn.XLOOKUP(E$7*10,諸費用並び替え!$C$1:$DF$1,諸費用並び替え!$C47:$DF47) -> 自己資金 | E49: =_xlfn.XLOOKUP(E$7*10+IF(RIGHT(E$5,4)="+ローン",2,IF(RIGHT(E$5,3)="プラス",3,1)),諸費用並び替え!$C$1:$DF$1,諸費用並び替え!$C47:$DF47) -> 102 | F49: =_xlfn.XLOOKUP(G$7*10,諸費用並び替え!$C$1:$DF$1,諸費用並び替え!$C47:$DF47) -> 自己資金 | G49: =IF(G$8="",0,_xlfn.XLOOKUP(G$7*10+IF(RIGHT(G$5,4)="+ローン",2,IF(RIGHT(G$5,3)="プラス",3,1)),諸費用並び替え!$C$1:$DF$1,諸費用並び替え!$C47:$DF47)) -> 102 | H49: =_xlfn.XLOOKUP(I$7*10,諸費用並び替え!$C$1:$DF$1,諸費用並び替え!$C47:$DF47) -> 自己資金 | I49: =_xlfn.XLOOKUP(I$7*10+IF(RIGHT(I$5,4)="+ローン",2,IF(RIGHT(I$5,3)="プラス",3,1)),諸費用並び替え!$C$1:$DF$1,諸費用並び替え!$C47:$DF47) -> 102 | J49: =_xlfn.XLOOKUP(K$7*10,諸費用並び替え!C$1:DF$1,諸費用並び替え!C47:DF47) -> 自己資金 | K49: =IF(K8="",0,_xlfn.XLOOKUP(K$7*10+IF(RIGHT(K$5,4)="+ローン",2,IF(RIGHT(K$5,3)="プラス",3,1)),諸費用並び替え!C$1:DF$1,諸費用並び替え!C47:DF47)) -> 102
D51: =_xlfn.XLOOKUP(E$7*10,諸費用並び替え!$C$1:$DF$1,諸費用並び替え!$C49:$DF49) -> 契約金 | E51: =_xlfn.XLOOKUP(E$7*10+IF(RIGHT(E$5,4)="+ローン",2,IF(RIGHT(E$5,3)="プラス",3,1)),諸費用並び替え!$C$1:$DF$1,諸費用並び替え!$C49:$DF49) -> 100 | F51: =_xlfn.XLOOKUP(G$7*10,諸費用並び替え!$C$1:$DF$1,諸費用並び替え!$C49:$DF49) -> 契約金 | G51: =IF(G$8="",0,_xlfn.XLOOKUP(G$7*10+IF(RIGHT(G$5,4)="+ローン",2,IF(RIGHT(G$5,3)="プラス",3,1)),諸費用並び替え!$C$1:$DF$1,諸費用並び替え!$C49:$DF49)) -> 100 | H51: =_xlfn.XLOOKUP(I$7*10,諸費用並び替え!$C$1:$DF$1,諸費用並び替え!$C49:$DF49) -> 契約金 | I51: =_xlfn.XLOOKUP(I$7*10+IF(RIGHT(I$5,4)="+ローン",2,IF(RIGHT(I$5,3)="プラス",3,1)),諸費用並び替え!$C$1:$DF$1,諸費用並び替え!$C49:$DF49) -> 100 | J51: =_xlfn.XLOOKUP(K$7*10,諸費用並び替え!C$1:DF$1,諸費用並び替え!C49:DF49) -> 契約金 | K51: =IF(K8="",0,_xlfn.XLOOKUP(K$7*10+IF(RIGHT(K$5,4)="+ローン",2,IF(RIGHT(K$5,3)="プラス",3,1)),諸費用並び替え!C$1:DF$1,諸費用並び替え!C49:DF49)) -> 100
D52: =_xlfn.XLOOKUP(E$7*10,諸費用並び替え!$C$1:$DF$1,諸費用並び替え!$C50:$DF50) -> 収入印紙 | E52: =_xlfn.XLOOKUP(E$7*10+IF(RIGHT(E$5,4)="+ローン",2,IF(RIGHT(E$5,3)="プラス",3,1)),諸費用並び替え!$C$1:$DF$1,諸費用並び替え!$C50:$DF50) -> 2 | F52: =_xlfn.XLOOKUP(G$7*10,諸費用並び替え!$C$1:$DF$1,諸費用並び替え!$C50:$DF50) -> 収入印紙 | G52: =IF(G$8="",0,_xlfn.XLOOKUP(G$7*10+IF(RIGHT(G$5,4)="+ローン",2,IF(RIGHT(G$5,3)="プラス",3,1)),諸費用並び替え!$C$1:$DF$1,諸費用並び替え!$C50:$DF50)) -> 2 | H52: =_xlfn.XLOOKUP(I$7*10,諸費用並び替え!$C$1:$DF$1,諸費用並び替え!$C50:$DF50) -> 収入印紙（工事契約） | I52: =_xlfn.XLOOKUP(I$7*10+IF(RIGHT(I$5,4)="+ローン",2,IF(RIGHT(I$5,3)="プラス",3,1)),諸費用並び替え!$C$1:$DF$1,諸費用並び替え!$C50:$DF50) -> 2 | J52: =_xlfn.XLOOKUP(K$7*10,諸費用並び替え!C$1:DF$1,諸費用並び替え!C50:DF50) -> 収入印紙 | K52: =IF(K8="",0,_xlfn.XLOOKUP(K$7*10+IF(RIGHT(K$5,4)="+ローン",2,IF(RIGHT(K$5,3)="プラス",3,1)),諸費用並び替え!C$1:DF$1,諸費用並び替え!C50:DF50)) -> 2
D53: =_xlfn.XLOOKUP(E$7*10,諸費用並び替え!$C$1:$DF$1,諸費用並び替え!$C51:$DF51) -> 融資関係手数料 | E53: =_xlfn.XLOOKUP(E$7*10+IF(RIGHT(E$5,4)="+ローン",2,IF(RIGHT(E$5,3)="プラス",3,1)),諸費用並び替え!$C$1:$DF$1,諸費用並び替え!$C51:$DF51) -> 0 | F53: =_xlfn.XLOOKUP(G$7*10,諸費用並び替え!$C$1:$DF$1,諸費用並び替え!$C51:$DF51) -> 融資関係手数料 | G53: =IF(G$8="",0,_xlfn.XLOOKUP(G$7*10+IF(RIGHT(G$5,4)="+ローン",2,IF(RIGHT(G$5,3)="プラス",3,1)),諸費用並び替え!$C$1:$DF$1,諸費用並び替え!$C51:$DF51)) -> 0 | H53: =_xlfn.XLOOKUP(I$7*10,諸費用並び替え!$C$1:$DF$1,諸費用並び替え!$C51:$DF51) -> 融資関係手数料 | I53: =_xlfn.XLOOKUP(I$7*10+IF(RIGHT(I$5,4)="+ローン",2,IF(RIGHT(I$5,3)="プラス",3,1)),諸費用並び替え!$C$1:$DF$1,諸費用並び替え!$C51:$DF51) -> 0 | J53: =_xlfn.XLOOKUP(K$7*10,諸費用並び替え!C$1:DF$1,諸費用並び替え!C51:DF51) -> 融資関係手数料 | K53: =IF(K8="",0,_xlfn.XLOOKUP(K$7*10+IF(RIGHT(K$5,4)="+ローン",2,IF(RIGHT(K$5,3)="プラス",3,1)),諸費用並び替え!C$1:DF$1,諸費用並び替え!C51:DF51)) -> 0
D54: =_xlfn.XLOOKUP(E$7*10,諸費用並び替え!$C$1:$DF$1,諸費用並び替え!$C52:$DF52) -> 収入印紙 | E54: =_xlfn.XLOOKUP(E$7*10+IF(RIGHT(E$5,4)="+ローン",2,IF(RIGHT(E$5,3)="プラス",3,1)),諸費用並び替え!$C$1:$DF$1,諸費用並び替え!$C52:$DF52) -> 0 | F54: =_xlfn.XLOOKUP(G$7*10,諸費用並び替え!$C$1:$DF$1,諸費用並び替え!$C52:$DF52) -> 収入印紙 | G54: =IF(G$8="",0,_xlfn.XLOOKUP(G$7*10+IF(RIGHT(G$5,4)="+ローン",2,IF(RIGHT(G$5,3)="プラス",3,1)),諸費用並び替え!$C$1:$DF$1,諸費用並び替え!$C52:$DF52)) -> 0 | H54: =_xlfn.XLOOKUP(I$7*10,諸費用並び替え!$C$1:$DF$1,諸費用並び替え!$C52:$DF52) -> 収入印紙（融資契約） | I54: =_xlfn.XLOOKUP(I$7*10+IF(RIGHT(I$5,4)="+ローン",2,IF(RIGHT(I$5,3)="プラス",3,1)),諸費用並び替え!$C$1:$DF$1,諸費用並び替え!$C52:$DF52) -> 0 | J54: =_xlfn.XLOOKUP(K$7*10,諸費用並び替え!C$1:DF$1,諸費用並び替え!C52:DF52) -> 収入印紙 | K54: =IF(K8="",0,_xlfn.XLOOKUP(K$7*10+IF(RIGHT(K$5,4)="+ローン",2,IF(RIGHT(K$5,3)="プラス",3,1)),諸費用並び替え!C$1:DF$1,諸費用並び替え!C52:DF52)) -> 0
C56: 着工時 | D56: =_xlfn.XLOOKUP(E$7*10,諸費用並び替え!$C$1:$DF$1,諸費用並び替え!$C55:$DF55) -> 支払合計 | E56: =_xlfn.XLOOKUP(E$7*10+IF(RIGHT(E$5,4)="+ローン",2,IF(RIGHT(E$5,3)="プラス",3,1)),諸費用並び替え!$C$1:$DF$1,諸費用並び替え!$C55:$DF55) -> 910 | F56: =_xlfn.XLOOKUP(G$7*10,諸費用並び替え!$C$1:$DF$1,諸費用並び替え!$C55:$DF55) -> 支払合計 | G56: =IF(G$8="",0,_xlfn.XLOOKUP(G$7*10+IF(RIGHT(G$5,4)="+ローン",2,IF(RIGHT(G$5,3)="プラス",3,1)),諸費用並び替え!$C$1:$DF$1,諸費用並び替え!$C55:$DF55)) -> 931 | H56: =_xlfn.XLOOKUP(I$7*10,諸費用並び替え!$C$1:$DF$1,諸費用並び替え!$C55:$DF55) -> 支払合計 | I56: =_xlfn.XLOOKUP(I$7*10+IF(RIGHT(I$5,4)="+ローン",2,IF(RIGHT(I$5,3)="プラス",3,1)),諸費用並び替え!$C$1:$DF$1,諸費用並び替え!$C55:$DF55) -> 910.55 | J56: =_xlfn.XLOOKUP(K$7*10,諸費用並び替え!C$1:DF$1,諸費用並び替え!C55:DF55) -> 支払合計 | K56: =IF(K8="",0,_xlfn.XLOOKUP(K$7*10+IF(RIGHT(K$5,4)="+ローン",2,IF(RIGHT(K$5,3)="プラス",3,1)),諸費用並び替え!C$1:DF$1,諸費用並び替え!C55:DF55)) -> 910
D58: =_xlfn.XLOOKUP(E$7*10,諸費用並び替え!$C$1:$DF$1,諸費用並び替え!$C57:$DF57) -> 住宅ローン | E58: =_xlfn.XLOOKUP(E$7*10+IF(RIGHT(E$5,4)="+ローン",2,IF(RIGHT(E$5,3)="プラス",3,1)),諸費用並び替え!$C$1:$DF$1,諸費用並び替え!$C57:$DF57) -> 0 | F58: =_xlfn.XLOOKUP(G$7*10,諸費用並び替え!$C$1:$DF$1,諸費用並び替え!$C57:$DF57) -> つなぎ融資（東光商事） | G58: =IF(G$8="",0,_xlfn.XLOOKUP(G$7*10+IF(RIGHT(G$5,4)="+ローン",2,IF(RIGHT(G$5,3)="プラス",3,1)),諸費用並び替え!$C$1:$DF$1,諸費用並び替え!$C57:$DF57)) -> 900 | H58: =_xlfn.XLOOKUP(I$7*10,諸費用並び替え!$C$1:$DF$1,諸費用並び替え!$C57:$DF57) -> 住宅ローン | I58: =_xlfn.XLOOKUP(I$7*10+IF(RIGHT(I$5,4)="+ローン",2,IF(RIGHT(I$5,3)="プラス",3,1)),諸費用並び替え!$C$1:$DF$1,諸費用並び替え!$C57:$DF57) -> 900 | J58: =_xlfn.XLOOKUP(K$7*10,諸費用並び替え!C$1:DF$1,諸費用並び替え!C57:DF57) -> つなぎ融資（アプラス） | K58: =IF(K8="",0,_xlfn.XLOOKUP(K$7*10+IF(RIGHT(K$5,4)="+ローン",2,IF(RIGHT(K$5,3)="プラス",3,1)),諸費用並び替え!C$1:DF$1,諸費用並び替え!C57:DF57)) -> 900
D59: =_xlfn.XLOOKUP(E$7*10,諸費用並び替え!$C$1:$DF$1,諸費用並び替え!$C58:$DF58) -> 自己資金 | E59: =_xlfn.XLOOKUP(E$7*10+IF(RIGHT(E$5,4)="+ローン",2,IF(RIGHT(E$5,3)="プラス",3,1)),諸費用並び替え!$C$1:$DF$1,諸費用並び替え!$C58:$DF58) -> 910 | F59: =_xlfn.XLOOKUP(G$7*10,諸費用並び替え!$C$1:$DF$1,諸費用並び替え!$C58:$DF58) -> 自己資金 | G59: =IF(G$8="",0,_xlfn.XLOOKUP(G$7*10+IF(RIGHT(G$5,4)="+ローン",2,IF(RIGHT(G$5,3)="プラス",3,1)),諸費用並び替え!$C$1:$DF$1,諸費用並び替え!$C58:$DF58)) -> 31 | H59: =_xlfn.XLOOKUP(I$7*10,諸費用並び替え!$C$1:$DF$1,諸費用並び替え!$C58:$DF58) -> 自己資金 | I59: =_xlfn.XLOOKUP(I$7*10+IF(RIGHT(I$5,4)="+ローン",2,IF(RIGHT(I$5,3)="プラス",3,1)),諸費用並び替え!$C$1:$DF$1,諸費用並び替え!$C58:$DF58) -> 10.55 | J59: =_xlfn.XLOOKUP(K$7*10,諸費用並び替え!C$1:DF$1,諸費用並び替え!C58:DF58) -> 自己資金 | K59: =IF(K8="",0,_xlfn.XLOOKUP(K$7*10+IF(RIGHT(K$5,4)="+ローン",2,IF(RIGHT(K$5,3)="プラス",3,1)),諸費用並び替え!C$1:DF$1,諸費用並び替え!C58:DF58)) -> 10
D61: =_xlfn.XLOOKUP(E$7*10,諸費用並び替え!$C$1:$DF$1,諸費用並び替え!$C60:$DF60) -> 着工金 | E61: =_xlfn.XLOOKUP(E$7*10+IF(RIGHT(E$5,4)="+ローン",2,IF(RIGHT(E$5,3)="プラス",3,1)),諸費用並び替え!$C$1:$DF$1,諸費用並び替え!$C60:$DF60) -> 900 | F61: =_xlfn.XLOOKUP(G$7*10,諸費用並び替え!$C$1:$DF$1,諸費用並び替え!$C60:$DF60) -> 着工金 | G61: =IF(G$8="",0,_xlfn.XLOOKUP(G$7*10+IF(RIGHT(G$5,4)="+ローン",2,IF(RIGHT(G$5,3)="プラス",3,1)),諸費用並び替え!$C$1:$DF$1,諸費用並び替え!$C60:$DF60)) -> 900 | H61: =_xlfn.XLOOKUP(I$7*10,諸費用並び替え!$C$1:$DF$1,諸費用並び替え!$C60:$DF60) -> 着工金 | I61: =_xlfn.XLOOKUP(I$7*10+IF(RIGHT(I$5,4)="+ローン",2,IF(RIGHT(I$5,3)="プラス",3,1)),諸費用並び替え!$C$1:$DF$1,諸費用並び替え!$C60:$DF60) -> 900 | J61: =_xlfn.XLOOKUP(K$7*10,諸費用並び替え!C$1:DF$1,諸費用並び替え!C60:DF60) -> 着工金 | K61: =IF(K8="",0,_xlfn.XLOOKUP(K$7*10+IF(RIGHT(K$5,4)="+ローン",2,IF(RIGHT(K$5,3)="プラス",3,1)),諸費用並び替え!C$1:DF$1,諸費用並び替え!C60:DF60)) -> 900
D62: =_xlfn.XLOOKUP(E$7*10,諸費用並び替え!$C$1:$DF$1,諸費用並び替え!$C61:$DF61) -> 融資関係手数料 | E62: =_xlfn.XLOOKUP(E$7*10+IF(RIGHT(E$5,4)="+ローン",2,IF(RIGHT(E$5,3)="プラス",3,1)),諸費用並び替え!$C$1:$DF$1,諸費用並び替え!$C61:$DF61) -> 0 | F62: =_xlfn.XLOOKUP(G$7*10,諸費用並び替え!$C$1:$DF$1,諸費用並び替え!$C61:$DF61) -> 融資関係手数料 | G62: =IF(G$8="",0,_xlfn.XLOOKUP(G$7*10+IF(RIGHT(G$5,4)="+ローン",2,IF(RIGHT(G$5,3)="プラス",3,1)),諸費用並び替え!$C$1:$DF$1,諸費用並び替え!$C61:$DF61)) -> 11 | H62: =_xlfn.XLOOKUP(I$7*10,諸費用並び替え!$C$1:$DF$1,諸費用並び替え!$C61:$DF61) -> 融資関係手数料 | I62: =_xlfn.XLOOKUP(I$7*10+IF(RIGHT(I$5,4)="+ローン",2,IF(RIGHT(I$5,3)="プラス",3,1)),諸費用並び替え!$C$1:$DF$1,諸費用並び替え!$C61:$DF61) -> 0 | J62: =_xlfn.XLOOKUP(K$7*10,諸費用並び替え!C$1:DF$1,諸費用並び替え!C61:DF61) -> 融資関係手数料 | K62: =IF(K8="",0,_xlfn.XLOOKUP(K$7*10+IF(RIGHT(K$5,4)="+ローン",2,IF(RIGHT(K$5,3)="プラス",3,1)),諸費用並び替え!C$1:DF$1,諸費用並び替え!C61:DF61)) -> 0
D63: =_xlfn.XLOOKUP(E$7*10,諸費用並び替え!$C$1:$DF$1,諸費用並び替え!$C62:$DF62) -> 収入印紙 | E63: =_xlfn.XLOOKUP(E$7*10+IF(RIGHT(E$5,4)="+ローン",2,IF(RIGHT(E$5,3)="プラス",3,1)),諸費用並び替え!$C$1:$DF$1,諸費用並び替え!$C62:$DF62) -> 0 | F63: =_xlfn.XLOOKUP(G$7*10,諸費用並び替え!$C$1:$DF$1,諸費用並び替え!$C62:$DF62) -> 収入印紙 | G63: =IF(G$8="",0,_xlfn.XLOOKUP(G$7*10+IF(RIGHT(G$5,4)="+ローン",2,IF(RIGHT(G$5,3)="プラス",3,1)),諸費用並び替え!$C$1:$DF$1,諸費用並び替え!$C62:$DF62)) -> 2 | H63: =_xlfn.XLOOKUP(I$7*10,諸費用並び替え!$C$1:$DF$1,諸費用並び替え!$C62:$DF62) -> 収入印紙（融資契約） | I63: =_xlfn.XLOOKUP(I$7*10+IF(RIGHT(I$5,4)="+ローン",2,IF(RIGHT(I$5,3)="プラス",3,1)),諸費用並び替え!$C$1:$DF$1,諸費用並び替え!$C62:$DF62) -> 0.55 | J63: =_xlfn.XLOOKUP(K$7*10,諸費用並び替え!C$1:DF$1,諸費用並び替え!C62:DF62) -> 収入印紙 | K63: =IF(K8="",0,_xlfn.XLOOKUP(K$7*10+IF(RIGHT(K$5,4)="+ローン",2,IF(RIGHT(K$5,3)="プラス",3,1)),諸費用並び替え!C$1:DF$1,諸費用並び替え!C62:DF62)) -> 0
C65: 中間時 | D65: =_xlfn.XLOOKUP(E$7*10,諸費用並び替え!$C$1:$DF$1,諸費用並び替え!$C66:$DF66) -> 支払合計 | E65: =_xlfn.XLOOKUP(E$7*10+IF(RIGHT(E$5,4)="+ローン",2,IF(RIGHT(E$5,3)="プラス",3,1)),諸費用並び替え!$C$1:$DF$1,諸費用並び替え!$C66:$DF66) -> 900 | F65: =_xlfn.XLOOKUP(G$7*10,諸費用並び替え!$C$1:$DF$1,諸費用並び替え!$C66:$DF66) -> 支払合計 | G65: =IF(G$8="",0,_xlfn.XLOOKUP(G$7*10+IF(RIGHT(G$5,4)="+ローン",2,IF(RIGHT(G$5,3)="プラス",3,1)),諸費用並び替え!$C$1:$DF$1,諸費用並び替え!$C66:$DF66)) -> 900 | H65: =_xlfn.XLOOKUP(I$7*10,諸費用並び替え!$C$1:$DF$1,諸費用並び替え!$C66:$DF66) -> 支払合計 | I65: =_xlfn.XLOOKUP(I$7*10+IF(RIGHT(I$5,4)="+ローン",2,IF(RIGHT(I$5,3)="プラス",3,1)),諸費用並び替え!$C$1:$DF$1,諸費用並び替え!$C66:$DF66) -> 900.55 | J65: =_xlfn.XLOOKUP(K$7*10,諸費用並び替え!C$1:DF$1,諸費用並び替え!C66:DF66) -> 支払合計 | K65: =IF(K8="",0,_xlfn.XLOOKUP(K$7*10+IF(RIGHT(K$5,4)="+ローン",2,IF(RIGHT(K$5,3)="プラス",3,1)),諸費用並び替え!C$1:DF$1,諸費用並び替え!C66:DF66)) -> 900
D67: =_xlfn.XLOOKUP(E$7*10,諸費用並び替え!$C$1:$DF$1,諸費用並び替え!$C68:$DF68) -> 住宅ローン | E67: =_xlfn.XLOOKUP(E$7*10+IF(RIGHT(E$5,4)="+ローン",2,IF(RIGHT(E$5,3)="プラス",3,1)),諸費用並び替え!$C$1:$DF$1,諸費用並び替え!$C68:$DF68) -> 0 | F67: =_xlfn.XLOOKUP(G$7*10,諸費用並び替え!$C$1:$DF$1,諸費用並び替え!$C68:$DF68) -> つなぎ融資（東光商事） | G67: =IF(G$8="",0,_xlfn.XLOOKUP(G$7*10+IF(RIGHT(G$5,4)="+ローン",2,IF(RIGHT(G$5,3)="プラス",3,1)),諸費用並び替え!$C$1:$DF$1,諸費用並び替え!$C68:$DF68)) -> 900 | H67: =_xlfn.XLOOKUP(I$7*10,諸費用並び替え!$C$1:$DF$1,諸費用並び替え!$C68:$DF68) -> 住宅ローン | I67: =_xlfn.XLOOKUP(I$7*10+IF(RIGHT(I$5,4)="+ローン",2,IF(RIGHT(I$5,3)="プラス",3,1)),諸費用並び替え!$C$1:$DF$1,諸費用並び替え!$C68:$DF68) -> 900 | J67: =_xlfn.XLOOKUP(K$7*10,諸費用並び替え!C$1:DF$1,諸費用並び替え!C68:DF68) -> つなぎ融資（アプラス） | K67: =IF(K8="",0,_xlfn.XLOOKUP(K$7*10+IF(RIGHT(K$5,4)="+ローン",2,IF(RIGHT(K$5,3)="プラス",3,1)),諸費用並び替え!C$1:DF$1,諸費用並び替え!C68:DF68)) -> 900
D68: =_xlfn.XLOOKUP(E$7*10,諸費用並び替え!$C$1:$DF$1,諸費用並び替え!$C69:$DF69) -> 自己資金 | E68: =_xlfn.XLOOKUP(E$7*10+IF(RIGHT(E$5,4)="+ローン",2,IF(RIGHT(E$5,3)="プラス",3,1)),諸費用並び替え!$C$1:$DF$1,諸費用並び替え!$C69:$DF69) -> 900 | F68: =_xlfn.XLOOKUP(G$7*10,諸費用並び替え!$C$1:$DF$1,諸費用並び替え!$C69:$DF69) -> 自己資金 | G68: =IF(G$8="",0,_xlfn.XLOOKUP(G$7*10+IF(RIGHT(G$5,4)="+ローン",2,IF(RIGHT(G$5,3)="プラス",3,1)),諸費用並び替え!$C$1:$DF$1,諸費用並び替え!$C69:$DF69)) -> 0 | H68: =_xlfn.XLOOKUP(I$7*10,諸費用並び替え!$C$1:$DF$1,諸費用並び替え!$C69:$DF69) -> 自己資金 | I68: =_xlfn.XLOOKUP(I$7*10+IF(RIGHT(I$5,4)="+ローン",2,IF(RIGHT(I$5,3)="プラス",3,1)),諸費用並び替え!$C$1:$DF$1,諸費用並び替え!$C69:$DF69) -> 0.55 | J68: =_xlfn.XLOOKUP(K$7*10,諸費用並び替え!C$1:DF$1,諸費用並び替え!C69:DF69) -> 自己資金 | K68: =IF(K8="",0,_xlfn.XLOOKUP(K$7*10+IF(RIGHT(K$5,4)="+ローン",2,IF(RIGHT(K$5,3)="プラス",3,1)),諸費用並び替え!C$1:DF$1,諸費用並び替え!C69:DF69)) -> 0
D70: =_xlfn.XLOOKUP(E$7*10,諸費用並び替え!$C$1:$DF$1,諸費用並び替え!$C71:$DF71) -> 中間金 | E70: =_xlfn.XLOOKUP(E$7*10+IF(RIGHT(E$5,4)="+ローン",2,IF(RIGHT(E$5,3)="プラス",3,1)),諸費用並び替え!$C$1:$DF$1,諸費用並び替え!$C71:$DF71) -> 900 | F70: =_xlfn.XLOOKUP(G$7*10,諸費用並び替え!$C$1:$DF$1,諸費用並び替え!$C71:$DF71) -> 中間金 | G70: =IF(G$8="",0,_xlfn.XLOOKUP(G$7*10+IF(RIGHT(G$5,4)="+ローン",2,IF(RIGHT(G$5,3)="プラス",3,1)),諸費用並び替え!$C$1:$DF$1,諸費用並び替え!$C71:$DF71)) -> 900 | H70: =_xlfn.XLOOKUP(I$7*10,諸費用並び替え!$C$1:$DF$1,諸費用並び替え!$C71:$DF71) -> 中間金 | I70: =_xlfn.XLOOKUP(I$7*10+IF(RIGHT(I$5,4)="+ローン",2,IF(RIGHT(I$5,3)="プラス",3,1)),諸費用並び替え!$C$1:$DF$1,諸費用並び替え!$C71:$DF71) -> 900 | J70: =_xlfn.XLOOKUP(K$7*10,諸費用並び替え!C$1:DF$1,諸費用並び替え!C71:DF71) -> 中間金 | K70: =IF(K$8="",0,_xlfn.XLOOKUP(K$7*10+IF(RIGHT(K$5,4)="+ローン",2,IF(RIGHT(K$5,3)="プラス",3,1)),諸費用並び替え!C$1:DF$1,諸費用並び替え!C71:DF71)) -> 900
D71: =_xlfn.XLOOKUP(E$7*10,諸費用並び替え!$C$1:$DF$1,諸費用並び替え!$C72:$DF72) -> 融資関係手数料 | E71: =_xlfn.XLOOKUP(E$7*10+IF(RIGHT(E$5,4)="+ローン",2,IF(RIGHT(E$5,3)="プラス",3,1)),諸費用並び替え!$C$1:$DF$1,諸費用並び替え!$C72:$DF72) -> 0 | F71: =_xlfn.XLOOKUP(G$7*10,諸費用並び替え!$C$1:$DF$1,諸費用並び替え!$C72:$DF72) -> 融資関係手数料 | G71: =IF(G$8="",0,_xlfn.XLOOKUP(G$7*10+IF(RIGHT(G$5,4)="+ローン",2,IF(RIGHT(G$5,3)="プラス",3,1)),諸費用並び替え!$C$1:$DF$1,諸費用並び替え!$C72:$DF72)) -> 0 | H71: =_xlfn.XLOOKUP(I$7*10,諸費用並び替え!$C$1:$DF$1,諸費用並び替え!$C72:$DF72) -> 融資関係手数料 | I71: =_xlfn.XLOOKUP(I$7*10+IF(RIGHT(I$5,4)="+ローン",2,IF(RIGHT(I$5,3)="プラス",3,1)),諸費用並び替え!$C$1:$DF$1,諸費用並び替え!$C72:$DF72) -> 0 | J71: =_xlfn.XLOOKUP(K$7*10,諸費用並び替え!C$1:DF$1,諸費用並び替え!C72:DF72) -> 融資関係手数料 | K71: =IF(K$8="",0,_xlfn.XLOOKUP(K$7*10+IF(RIGHT(K$5,4)="+ローン",2,IF(RIGHT(K$5,3)="プラス",3,1)),諸費用並び替え!C$1:DF$1,諸費用並び替え!C72:DF72)) -> 0
D72: =_xlfn.XLOOKUP(E$7*10,諸費用並び替え!$C$1:$DF$1,諸費用並び替え!$C73:$DF73) -> 収入印紙 | E72: =_xlfn.XLOOKUP(E$7*10+IF(RIGHT(E$5,4)="+ローン",2,IF(RIGHT(E$5,3)="プラス",3,1)),諸費用並び替え!$C$1:$DF$1,諸費用並び替え!$C73:$DF73) -> 0 | F72: =_xlfn.XLOOKUP(G$7*10,諸費用並び替え!$C$1:$DF$1,諸費用並び替え!$C73:$DF73) -> 収入印紙 | G72: =IF(G$8="",0,_xlfn.XLOOKUP(G$7*10+IF(RIGHT(G$5,4)="+ローン",2,IF(RIGHT(G$5,3)="プラス",3,1)),諸費用並び替え!$C$1:$DF$1,諸費用並び替え!$C73:$DF73)) -> 0 | H72: =_xlfn.XLOOKUP(I$7*10,諸費用並び替え!$C$1:$DF$1,諸費用並び替え!$C73:$DF73) -> 収入印紙（融資契約） | I72: =_xlfn.XLOOKUP(I$7*10+IF(RIGHT(I$5,4)="+ローン",2,IF(RIGHT(I$5,3)="プラス",3,1)),諸費用並び替え!$C$1:$DF$1,諸費用並び替え!$C73:$DF73) -> 0.55 | J72: =_xlfn.XLOOKUP(K$7*10,諸費用並び替え!C$1:DF$1,諸費用並び替え!C73:DF73) -> 収入印紙 | K72: =IF(K$8="",0,_xlfn.XLOOKUP(K$7*10+IF(RIGHT(K$5,4)="+ローン",2,IF(RIGHT(K$5,3)="プラス",3,1)),諸費用並び替え!C$1:DF$1,諸費用並び替え!C73:DF73)) -> 0
C74: 竣工前 | D74: =_xlfn.XLOOKUP(E$7*10,諸費用並び替え!$C$1:$DF$1,諸費用並び替え!$C76:$DF76) -> 支払合計 | E74: =_xlfn.XLOOKUP(E$7*10+IF(RIGHT(E$5,4)="+ローン",2,IF(RIGHT(E$5,3)="プラス",3,1)),諸費用並び替え!$C$1:$DF$1,諸費用並び替え!$C76:$DF76) -> 60 | F74: =_xlfn.XLOOKUP(G$7*10,諸費用並び替え!$C$1:$DF$1,諸費用並び替え!$C76:$DF76) -> 支払合計 | G74: =IF(G$8="",0,_xlfn.XLOOKUP(G$7*10+IF(RIGHT(G$5,4)="+ローン",2,IF(RIGHT(G$5,3)="プラス",3,1)),諸費用並び替え!$C$1:$DF$1,諸費用並び替え!$C76:$DF76)) -> 60 | H74: =_xlfn.XLOOKUP(I$7*10,諸費用並び替え!$C$1:$DF$1,諸費用並び替え!$C76:$DF76) -> 支払合計 | I74: =_xlfn.XLOOKUP(I$7*10+IF(RIGHT(I$5,4)="+ローン",2,IF(RIGHT(I$5,3)="プラス",3,1)),諸費用並び替え!$C$1:$DF$1,諸費用並び替え!$C76:$DF76) -> 60 | J74: =_xlfn.XLOOKUP(K$7*10,諸費用並び替え!C$1:DF$1,諸費用並び替え!C76:DF76) -> 支払合計 | K74: =IF(K$8="",0,_xlfn.XLOOKUP(K$7*10+IF(RIGHT(K$5,4)="+ローン",2,IF(RIGHT(K$5,3)="プラス",3,1)),諸費用並び替え!C$1:DF$1,諸費用並び替え!C76:DF76)) -> 60
D76: =_xlfn.XLOOKUP(E$7*10,諸費用並び替え!$C$1:$DF$1,諸費用並び替え!$C78:$DF78) -> 0 | E76: =_xlfn.XLOOKUP(E$7*10+IF(RIGHT(E$5,4)="+ローン",2,IF(RIGHT(E$5,3)="プラス",3,1)),諸費用並び替え!$C$1:$DF$1,諸費用並び替え!$C78:$DF78) -> 0 | F76: =_xlfn.XLOOKUP(G$7*10,諸費用並び替え!$C$1:$DF$1,諸費用並び替え!$C78:$DF78) -> 0 | G76: =IF(G$8="",0,_xlfn.XLOOKUP(G$7*10+IF(RIGHT(G$5,4)="+ローン",2,IF(RIGHT(G$5,3)="プラス",3,1)),諸費用並び替え!$C$1:$DF$1,諸費用並び替え!$C78:$DF78)) -> 0 | H76: =_xlfn.XLOOKUP(I$7*10,諸費用並び替え!$C$1:$DF$1,諸費用並び替え!$C78:$DF78) -> 0 | I76: =_xlfn.XLOOKUP(I$7*10+IF(RIGHT(I$5,4)="+ローン",2,IF(RIGHT(I$5,3)="プラス",3,1)),諸費用並び替え!$C$1:$DF$1,諸費用並び替え!$C78:$DF78) -> 0 | J76: =_xlfn.XLOOKUP(K$7*10,諸費用並び替え!C$1:DF$1,諸費用並び替え!C78:DF78) -> 0 | K76: =IF(K$8="",0,_xlfn.XLOOKUP(K$7*10+IF(RIGHT(K$5,4)="+ローン",2,IF(RIGHT(K$5,3)="プラス",3,1)),諸費用並び替え!C$1:DF$1,諸費用並び替え!C78:DF78)) -> 0
D77: =_xlfn.XLOOKUP(E$7*10,諸費用並び替え!$C$1:$DF$1,諸費用並び替え!$C79:$DF79) -> 自己資金 | E77: =_xlfn.XLOOKUP(E$7*10+IF(RIGHT(E$5,4)="+ローン",2,IF(RIGHT(E$5,3)="プラス",3,1)),諸費用並び替え!$C$1:$DF$1,諸費用並び替え!$C79:$DF79) -> 60 | F77: =_xlfn.XLOOKUP(G$7*10,諸費用並び替え!$C$1:$DF$1,諸費用並び替え!$C79:$DF79) -> 自己資金 | G77: =IF(G$8="",0,_xlfn.XLOOKUP(G$7*10+IF(RIGHT(G$5,4)="+ローン",2,IF(RIGHT(G$5,3)="プラス",3,1)),諸費用並び替え!$C$1:$DF$1,諸費用並び替え!$C79:$DF79)) -> 60 | H77: =_xlfn.XLOOKUP(I$7*10,諸費用並び替え!$C$1:$DF$1,諸費用並び替え!$C79:$DF79) -> 自己資金 | I77: =_xlfn.XLOOKUP(I$7*10+IF(RIGHT(I$5,4)="+ローン",2,IF(RIGHT(I$5,3)="プラス",3,1)),諸費用並び替え!$C$1:$DF$1,諸費用並び替え!$C79:$DF79) -> 60 | J77: =_xlfn.XLOOKUP(K$7*10,諸費用並び替え!C$1:DF$1,諸費用並び替え!C79:DF79) -> 自己資金 | K77: =IF(K$8="",0,_xlfn.XLOOKUP(K$7*10+IF(RIGHT(K$5,4)="+ローン",2,IF(RIGHT(K$5,3)="プラス",3,1)),諸費用並び替え!C$1:DF$1,諸費用並び替え!C79:DF79)) -> 60
D79: =_xlfn.XLOOKUP(E$7*10,諸費用並び替え!$C$1:$DF$1,諸費用並び替え!$C81:$DF81) -> 表題登記費用 | E79: =_xlfn.XLOOKUP(E$7*10+IF(RIGHT(E$5,4)="+ローン",2,IF(RIGHT(E$5,3)="プラス",3,1)),諸費用並び替え!$C$1:$DF$1,諸費用並び替え!$C81:$DF81) -> 10 | F79: =_xlfn.XLOOKUP(G$7*10,諸費用並び替え!$C$1:$DF$1,諸費用並び替え!$C81:$DF81) -> 表題登記費用 | G79: =IF(G$8="",0,_xlfn.XLOOKUP(G$7*10+IF(RIGHT(G$5,4)="+ローン",2,IF(RIGHT(G$5,3)="プラス",3,1)),諸費用並び替え!$C$1:$DF$1,諸費用並び替え!$C81:$DF81)) -> 10 | H79: =_xlfn.XLOOKUP(I$7*10,諸費用並び替え!$C$1:$DF$1,諸費用並び替え!$C81:$DF81) -> 表題登記費用 | I79: =_xlfn.XLOOKUP(I$7*10+IF(RIGHT(I$5,4)="+ローン",2,IF(RIGHT(I$5,3)="プラス",3,1)),諸費用並び替え!$C$1:$DF$1,諸費用並び替え!$C81:$DF81) -> 10 | J79: =_xlfn.XLOOKUP(K$7*10,諸費用並び替え!C$1:DF$1,諸費用並び替え!C81:DF81) -> 表題登記費用 | K79: =IF(K$8="",0,_xlfn.XLOOKUP(K$7*10+IF(RIGHT(K$5,4)="+ローン",2,IF(RIGHT(K$5,3)="プラス",3,1)),諸費用並び替え!C$1:DF$1,諸費用並び替え!C81:DF81)) -> 10
D80: =_xlfn.XLOOKUP(E$7*10,諸費用並び替え!$C$1:$DF$1,諸費用並び替え!$C82:$DF82) -> 火災保険関係費用 | E80: =_xlfn.XLOOKUP(E$7*10+IF(RIGHT(E$5,4)="+ローン",2,IF(RIGHT(E$5,3)="プラス",3,1)),諸費用並び替え!$C$1:$DF$1,諸費用並び替え!$C82:$DF82) -> 50 | F80: =_xlfn.XLOOKUP(G$7*10,諸費用並び替え!$C$1:$DF$1,諸費用並び替え!$C82:$DF82) -> 火災保険関係費用 | G80: =IF(G$8="",0,_xlfn.XLOOKUP(G$7*10+IF(RIGHT(G$5,4)="+ローン",2,IF(RIGHT(G$5,3)="プラス",3,1)),諸費用並び替え!$C$1:$DF$1,諸費用並び替え!$C82:$DF82)) -> 50 | H80: =_xlfn.XLOOKUP(I$7*10,諸費用並び替え!$C$1:$DF$1,諸費用並び替え!$C82:$DF82) -> 火災保険関係費用 | I80: =_xlfn.XLOOKUP(I$7*10+IF(RIGHT(I$5,4)="+ローン",2,IF(RIGHT(I$5,3)="プラス",3,1)),諸費用並び替え!$C$1:$DF$1,諸費用並び替え!$C82:$DF82) -> 50 | J80: =_xlfn.XLOOKUP(K$7*10,諸費用並び替え!C$1:DF$1,諸費用並び替え!C82:DF82) -> 火災保険関係費用 | K80: =IF(K$8="",0,_xlfn.XLOOKUP(K$7*10+IF(RIGHT(K$5,4)="+ローン",2,IF(RIGHT(K$5,3)="プラス",3,1)),諸費用並び替え!C$1:DF$1,諸費用並び替え!C82:DF82)) -> 50
C82: 引渡時 | D82: =_xlfn.XLOOKUP(E$7*10,諸費用並び替え!$C$1:$DF$1,諸費用並び替え!$C84:$DF84) -> 支払合計 | E82: =_xlfn.XLOOKUP(E$7*10+IF(RIGHT(E$5,4)="+ローン",2,IF(RIGHT(E$5,3)="プラス",3,1)),諸費用並び替え!$C$1:$DF$1,諸費用並び替え!$C84:$DF84) -> 1205.83 | F82: =_xlfn.XLOOKUP(G$7*10,諸費用並び替え!$C$1:$DF$1,諸費用並び替え!$C84:$DF84) -> 支払合計 | G82: =IF(G$8="",0,_xlfn.XLOOKUP(G$7*10+IF(RIGHT(G$5,4)="+ローン",2,IF(RIGHT(G$5,3)="プラス",3,1)),諸費用並び替え!$C$1:$DF$1,諸費用並び替え!$C84:$DF84)) -> 3079.53 | H82: =_xlfn.XLOOKUP(I$7*10,諸費用並び替え!$C$1:$DF$1,諸費用並び替え!$C84:$DF84) -> 支払合計 | I82: =_xlfn.XLOOKUP(I$7*10+IF(RIGHT(I$5,4)="+ローン",2,IF(RIGHT(I$5,3)="プラス",3,1)),諸費用並び替え!$C$1:$DF$1,諸費用並び替え!$C84:$DF84) -> 1206.38 | J82: =_xlfn.XLOOKUP(K$7*10,諸費用並び替え!C$1:DF$1,諸費用並び替え!C84:DF84) -> 支払合計 | K82: =IF(K$8="",0,_xlfn.XLOOKUP(K$7*10+IF(RIGHT(K$5,4)="+ローン",2,IF(RIGHT(K$5,3)="プラス",3,1)),諸費用並び替え!C$1:DF$1,諸費用並び替え!C84:DF84)) -> 4628.8437
D84: =_xlfn.XLOOKUP(E$7*10,諸費用並び替え!$C$1:$DF$1,諸費用並び替え!$C86:$DF86) -> 住宅ローン | E84: =_xlfn.XLOOKUP(E$7*10+IF(RIGHT(E$5,4)="+ローン",2,IF(RIGHT(E$5,3)="プラス",3,1)),諸費用並び替え!$C$1:$DF$1,諸費用並び替え!$C86:$DF86) -> 0 | F84: =_xlfn.XLOOKUP(G$7*10,諸費用並び替え!$C$1:$DF$1,諸費用並び替え!$C86:$DF86) -> 住宅ローン | G84: =IF(G$8="",0,_xlfn.XLOOKUP(G$7*10+IF(RIGHT(G$5,4)="+ローン",2,IF(RIGHT(G$5,3)="プラス",3,1)),諸費用並び替え!$C$1:$DF$1,諸費用並び替え!$C86:$DF86)) -> 2500 | H84: =_xlfn.XLOOKUP(I$7*10,諸費用並び替え!$C$1:$DF$1,諸費用並び替え!$C86:$DF86) -> 住宅ローン | I84: =_xlfn.XLOOKUP(I$7*10+IF(RIGHT(I$5,4)="+ローン",2,IF(RIGHT(I$5,3)="プラス",3,1)),諸費用並び替え!$C$1:$DF$1,諸費用並び替え!$C86:$DF86) -> 700 | J84: =_xlfn.XLOOKUP(K$7*10,諸費用並び替え!C$1:DF$1,諸費用並び替え!C86:DF86) -> 住宅ローン | K84: =IF(K$8="",0,_xlfn.XLOOKUP(K$7*10+IF(RIGHT(K$5,4)="+ローン",2,IF(RIGHT(K$5,3)="プラス",3,1)),諸費用並び替え!C$1:DF$1,諸費用並び替え!C86:DF86)) -> 4000
D85: =_xlfn.XLOOKUP(E$7*10,諸費用並び替え!$C$1:$DF$1,諸費用並び替え!$C87:$DF87) -> 自己資金 | E85: =_xlfn.XLOOKUP(E$7*10+IF(RIGHT(E$5,4)="+ローン",2,IF(RIGHT(E$5,3)="プラス",3,1)),諸費用並び替え!$C$1:$DF$1,諸費用並び替え!$C87:$DF87) -> 1205.83 | F85: =_xlfn.XLOOKUP(G$7*10,諸費用並び替え!$C$1:$DF$1,諸費用並び替え!$C87:$DF87) -> 自己資金 | G85: =IF(G$8="",0,_xlfn.XLOOKUP(G$7*10+IF(RIGHT(G$5,4)="+ローン",2,IF(RIGHT(G$5,3)="プラス",3,1)),諸費用並び替え!$C$1:$DF$1,諸費用並び替え!$C87:$DF87)) -> 2379.53 | H85: =_xlfn.XLOOKUP(I$7*10,諸費用並び替え!$C$1:$DF$1,諸費用並び替え!$C87:$DF87) -> 自己資金 | I85: =_xlfn.XLOOKUP(I$7*10+IF(RIGHT(I$5,4)="+ローン",2,IF(RIGHT(I$5,3)="プラス",3,1)),諸費用並び替え!$C$1:$DF$1,諸費用並び替え!$C87:$DF87) -> 506.38 | J85: =_xlfn.XLOOKUP(K$7*10,諸費用並び替え!C$1:DF$1,諸費用並び替え!C87:DF87) -> 自己資金 | K85: =IF(K$8="",0,_xlfn.XLOOKUP(K$7*10+IF(RIGHT(K$5,4)="+ローン",2,IF(RIGHT(K$5,3)="プラス",3,1)),諸費用並び替え!C$1:DF$1,諸費用並び替え!C87:DF87)) -> 3928.8437
D87: =_xlfn.XLOOKUP(E$7*10,諸費用並び替え!$C$1:$DF$1,諸費用並び替え!$C89:$DF89) -> 最終金 | E87: =_xlfn.XLOOKUP(E$7*10+IF(RIGHT(E$5,4)="+ローン",2,IF(RIGHT(E$5,3)="プラス",3,1)),諸費用並び替え!$C$1:$DF$1,諸費用並び替え!$C89:$DF89) -> 1100 | F87: =_xlfn.XLOOKUP(G$7*10,諸費用並び替え!$C$1:$DF$1,諸費用並び替え!$C89:$DF89) -> 最終金 | G87: =IF(G$8="",0,_xlfn.XLOOKUP(G$7*10+IF(RIGHT(G$5,4)="+ローン",2,IF(RIGHT(G$5,3)="プラス",3,1)),諸費用並び替え!$C$1:$DF$1,諸費用並び替え!$C89:$DF89)) -> 1100 | H87: =_xlfn.XLOOKUP(I$7*10,諸費用並び替え!$C$1:$DF$1,諸費用並び替え!$C89:$DF89) -> 最終金 | I87: =_xlfn.XLOOKUP(I$7*10+IF(RIGHT(I$5,4)="+ローン",2,IF(RIGHT(I$5,3)="プラス",3,1)),諸費用並び替え!$C$1:$DF$1,諸費用並び替え!$C89:$DF89) -> 1100 | J87: =_xlfn.XLOOKUP(K$7*10,諸費用並び替え!C$1:DF$1,諸費用並び替え!C89:DF89) -> 最終金 | K87: =IF(K$8="",0,_xlfn.XLOOKUP(K$7*10+IF(RIGHT(K$5,4)="+ローン",2,IF(RIGHT(K$5,3)="プラス",3,1)),諸費用並び替え!C$1:DF$1,諸費用並び替え!C89:DF89)) -> 1100
D88: =_xlfn.XLOOKUP(E$7*10,諸費用並び替え!$C$1:$DF$1,諸費用並び替え!$C90:$DF90) -> 0 | E88: =_xlfn.XLOOKUP(E$7*10+IF(RIGHT(E$5,4)="+ローン",2,IF(RIGHT(E$5,3)="プラス",3,1)),諸費用並び替え!$C$1:$DF$1,諸費用並び替え!$C90:$DF90) -> 0 | F88: =_xlfn.XLOOKUP(G$7*10,諸費用並び替え!$C$1:$DF$1,諸費用並び替え!$C90:$DF90) -> つなぎ返済 | G88: =IF(G$8="",0,_xlfn.XLOOKUP(G$7*10+IF(RIGHT(G$5,4)="+ローン",2,IF(RIGHT(G$5,3)="プラス",3,1)),諸費用並び替え!$C$1:$DF$1,諸費用並び替え!$C90:$DF90)) -> 1800 | H88: =_xlfn.XLOOKUP(I$7*10,諸費用並び替え!$C$1:$DF$1,諸費用並び替え!$C90:$DF90) -> つなぎ返済 | I88: =_xlfn.XLOOKUP(I$7*10+IF(RIGHT(I$5,4)="+ローン",2,IF(RIGHT(I$5,3)="プラス",3,1)),諸費用並び替え!$C$1:$DF$1,諸費用並び替え!$C90:$DF90) -> 0 | J88: =_xlfn.XLOOKUP(K$7*10,諸費用並び替え!C$1:DF$1,諸費用並び替え!C90:DF90) -> 0 | K88: =IF(K$8="",0,_xlfn.XLOOKUP(K$7*10+IF(RIGHT(K$5,4)="+ローン",2,IF(RIGHT(K$5,3)="プラス",3,1)),諸費用並び替え!C$1:DF$1,諸費用並び替え!C90:DF90)) -> 3300
D89: =_xlfn.XLOOKUP(E$7*10,諸費用並び替え!$C$1:$DF$1,諸費用並び替え!$C91:$DF91) -> 融資関係費用 | E89: =_xlfn.XLOOKUP(E$7*10+IF(RIGHT(E$5,4)="+ローン",2,IF(RIGHT(E$5,3)="プラス",3,1)),諸費用並び替え!$C$1:$DF$1,諸費用並び替え!$C91:$DF91) -> 0 | F89: =_xlfn.XLOOKUP(G$7*10,諸費用並び替え!$C$1:$DF$1,諸費用並び替え!$C91:$DF91) -> 融資関係費用 | G89: =IF(G$8="",0,_xlfn.XLOOKUP(G$7*10+IF(RIGHT(G$5,4)="+ローン",2,IF(RIGHT(G$5,3)="プラス",3,1)),諸費用並び替え!$C$1:$DF$1,諸費用並び替え!$C91:$DF91)) -> 55 | H89: =_xlfn.XLOOKUP(I$7*10,諸費用並び替え!$C$1:$DF$1,諸費用並び替え!$C91:$DF91) -> 融資関係費用 | I89: =_xlfn.XLOOKUP(I$7*10+IF(RIGHT(I$5,4)="+ローン",2,IF(RIGHT(I$5,3)="プラス",3,1)),諸費用並び替え!$C$1:$DF$1,諸費用並び替え!$C91:$DF91) -> 0 | J89: =_xlfn.XLOOKUP(K$7*10,諸費用並び替え!C$1:DF$1,諸費用並び替え!C91:DF91) -> 融資関係費用 | K89: =IF(K$8="",0,_xlfn.XLOOKUP(K$7*10+IF(RIGHT(K$5,4)="+ローン",2,IF(RIGHT(K$5,3)="プラス",3,1)),諸費用並び替え!C$1:DF$1,諸費用並び替え!C91:DF91)) -> 88
D90: =_xlfn.XLOOKUP(E$7*10,諸費用並び替え!$C$1:$DF$1,諸費用並び替え!$C92:$DF92) -> つなぎ融資関係費用 | E90: =_xlfn.XLOOKUP(E$7*10+IF(RIGHT(E$5,4)="+ローン",2,IF(RIGHT(E$5,3)="プラス",3,1)),諸費用並び替え!$C$1:$DF$1,諸費用並び替え!$C92:$DF92) -> 0 | F90: =_xlfn.XLOOKUP(G$7*10,諸費用並び替え!$C$1:$DF$1,諸費用並び替え!$C92:$DF92) -> つなぎ融資関係費用 | G90: =IF(G$8="",0,_xlfn.XLOOKUP(G$7*10+IF(RIGHT(G$5,4)="+ローン",2,IF(RIGHT(G$5,3)="プラス",3,1)),諸費用並び替え!$C$1:$DF$1,諸費用並び替え!$C92:$DF92)) -> 17.4 | H90: =_xlfn.XLOOKUP(I$7*10,諸費用並び替え!$C$1:$DF$1,諸費用並び替え!$C92:$DF92) -> つなぎ融資関係費用 | I90: =_xlfn.XLOOKUP(I$7*10+IF(RIGHT(I$5,4)="+ローン",2,IF(RIGHT(I$5,3)="プラス",3,1)),諸費用並び替え!$C$1:$DF$1,諸費用並び替え!$C92:$DF92) -> 0 | J90: =_xlfn.XLOOKUP(K$7*10,諸費用並び替え!C$1:DF$1,諸費用並び替え!C92:DF92) -> つなぎ融資関係費用 | K90: =IF(K$8="",0,_xlfn.XLOOKUP(K$7*10+IF(RIGHT(K$5,4)="+ローン",2,IF(RIGHT(K$5,3)="プラス",3,1)),諸費用並び替え!C$1:DF$1,諸費用並び替え!C92:DF92)) -> 31.3437
D91: =_xlfn.XLOOKUP(E$7*10,諸費用並び替え!$C$1:$DF$1,諸費用並び替え!$C93:$DF93) -> 登記関係費用 | E91: =_xlfn.XLOOKUP(E$7*10+IF(RIGHT(E$5,4)="+ローン",2,IF(RIGHT(E$5,3)="プラス",3,1)),諸費用並び替え!$C$1:$DF$1,諸費用並び替え!$C93:$DF93) -> 35.83 | F91: =_xlfn.XLOOKUP(G$7*10,諸費用並び替え!$C$1:$DF$1,諸費用並び替え!$C93:$DF93) -> 登記関係費用 | G91: =IF(G$8="",0,_xlfn.XLOOKUP(G$7*10+IF(RIGHT(G$5,4)="+ローン",2,IF(RIGHT(G$5,3)="プラス",3,1)),諸費用並び替え!$C$1:$DF$1,諸費用並び替え!$C93:$DF93)) -> 36.58 | H91: =_xlfn.XLOOKUP(I$7*10,諸費用並び替え!$C$1:$DF$1,諸費用並び替え!$C93:$DF93) -> 登記関係費用 | I91: =_xlfn.XLOOKUP(I$7*10+IF(RIGHT(I$5,4)="+ローン",2,IF(RIGHT(I$5,3)="プラス",3,1)),諸費用並び替え!$C$1:$DF$1,諸費用並び替え!$C93:$DF93) -> 35.83 | J91: =_xlfn.XLOOKUP(K$7*10,諸費用並び替え!C$1:DF$1,諸費用並び替え!C93:DF93) -> 登記関係費用 | K91: =IF(K$8="",0,_xlfn.XLOOKUP(K$7*10+IF(RIGHT(K$5,4)="+ローン",2,IF(RIGHT(K$5,3)="プラス",3,1)),諸費用並び替え!C$1:DF$1,諸費用並び替え!C93:DF93)) -> 39.5
D92: =_xlfn.XLOOKUP(E$7*10,諸費用並び替え!$C$1:$DF$1,諸費用並び替え!$C94:$DF94) -> 収入印紙 | E92: =_xlfn.XLOOKUP(E$7*10+IF(RIGHT(E$5,4)="+ローン",2,IF(RIGHT(E$5,3)="プラス",3,1)),諸費用並び替え!$C$1:$DF$1,諸費用並び替え!$C94:$DF94) -> 0 | F92: =_xlfn.XLOOKUP(G$7*10,諸費用並び替え!$C$1:$DF$1,諸費用並び替え!$C94:$DF94) -> 収入印紙 | G92: =IF(G$8="",0,_xlfn.XLOOKUP(G$7*10+IF(RIGHT(G$5,4)="+ローン",2,IF(RIGHT(G$5,3)="プラス",3,1)),諸費用並び替え!$C$1:$DF$1,諸費用並び替え!$C94:$DF94)) -> 0.55 | H92: =_xlfn.XLOOKUP(I$7*10,諸費用並び替え!$C$1:$DF$1,諸費用並び替え!$C94:$DF94) -> 収入印紙（融資契約） | I92: =_xlfn.XLOOKUP(I$7*10+IF(RIGHT(I$5,4)="+ローン",2,IF(RIGHT(I$5,3)="プラス",3,1)),諸費用並び替え!$C$1:$DF$1,諸費用並び替え!$C94:$DF94) -> 0.55 | J92: =_xlfn.XLOOKUP(K$7*10,諸費用並び替え!C$1:DF$1,諸費用並び替え!C94:DF94) -> 収入印紙 | K92: =IF(K$8="",0,_xlfn.XLOOKUP(K$7*10+IF(RIGHT(K$5,4)="+ローン",2,IF(RIGHT(K$5,3)="プラス",3,1)),諸費用並び替え!C$1:DF$1,諸費用並び替え!C94:DF94)) -> 0

Sheet フラット35
A2: 【購入予定地】 | C2: 政令指定都市ですか？ | H2: TRUE
C3: 敷地面積は何㎡ですか？ | F3: ㎡
A5: 【購入予定建物】 | C5: 延べ床面積は何㎡ですか？ | F5: ㎡
C6: 居住用面積は何㎡ですか？
C7: （同じ場合は入力不要です）
A9: 【住宅ローン控除】
C10: 長期優良住宅・低炭素住宅 | E10: 子育て世帯 | H10: TRUE | I10: TRUE | J10: （年末時点で19歳未満の扶養親族を有するもの）
C11: ＺＥＨ水準省エネ住宅 | E11: 若年夫婦 | H11: FALSE | I11: TRUE | J11: （夫婦のいずれかが年末時点で40才未満のもの）
C12: 省エネ基準適合住宅 | E12: 延床面積40㎡以上 | H12: FALSE | I12: FALSE
C13: その他 | E13: 延床面積50㎡以上 | H13: FALSE | I13: TRUE
C14: 既存住宅 | H14: FALSE
A16: 【フラット35】 | C16: 戸建て住宅 | H16: TRUE | L16: ポイント | M16: =F32 -> 5
C17: マンション | H17: FALSE
C18: 既存住宅＋リノベーション | F18: ポイント | H18: FALSE | I18: =IF(H18=TRUE,1,0) -> 0 | L18: =IF(M16=0,"","当初5年") -> 当初5年 | M18: =IF(L18="","",IF(F32=0,0%,IF(F32=1,-0.25%,IF(F32=2,-0.5%,IF(F32=3,-0.75%,-1%))))) -> -0.01
C19: 若年夫婦（いずれか1人が40才未満） | F19: =IF(H19=TRUE,G19,0) -> 1 | G19: 1 | H19: TRUE
C20: 子ども人数 | D20: 1 | E20: 人 | F20: =IF(H20=TRUE,G20,0) -> 0 | G20: =IF(F19=1,D20-G19,D20) -> 0 | H20: TRUE | L20: =IF(F32=0,"",IF(F32<5,"6年以降","6～10年")) -> 6～10年 | M20: =IF(L20="","",IF(F32<=4,0%,IF(F32=5,-0.25%,IF(F32=6,-0.5%,IF(F32=7,-0.75%,-1%))))) -> -0.0025
C21: =IF(OR(H16=TRUE,H17=TRUE),"フラット35Ｓ(ＺＥＨ)","") -> フラット35Ｓ(ＺＥＨ) | F21: =IF(H21=TRUE,G21,0) -> 3 | G21: 3 | H21: TRUE
C22: フラット35Ｓ（金利Ａプラン） | F22: =IF(H22=TRUE,G22,0) -> 0 | G22: =IF(OR(H16=TRUE,H17=TRUE),2,IF(H18=TRUE,4,0)) -> 2 | H22: FALSE | L22: =IF(F32<5,"",IF(F32<9,"11年以降","11～15年")) -> 11年以降 | M22: =IF(F32<=4,"",IF(F32<=8,0%,IF(F32=9,-0.25%,IF(F32=10,-0.5%,IF(F32=11,-0.75%,-1%))))) -> 0
C23: フラット35Ｓ（金利Ｂプラン） | F23: 0 | G23: =IF(OR(H16=TRUE,H17=TRUE),1,IF(H18=TRUE,2,0)) -> 1 | H23: FALSE
C24: =IF(OR(H16=TRUE,H17=TRUE),"認定長期優良住宅","") -> 認定長期優良住宅 | F24: =IF(H24=TRUE,IF(OR(H23=TRUE,SUM(F21:F23)=0),0,G24),0) -> 1 | G24: 1 | H24: TRUE | L24: =IF(F32<9,"",IF(F32<13,"16年以降","16～20年")) ->  | M24: =IF(F32<=8,"",IF(F32<=12,0%,IF(F32=13,-0.25%,IF(F32=14,-0.5%,IF(F32=15,-0.75%,-1%))))) -> 
C25: =IF(OR(H17=TRUE,H18=TRUE),"管理計画認定マンション","") ->  | F25: 0 | G25: 1 | H25: FALSE
C26: =IF(OR(H17=TRUE,H18=TRUE),"安心Ｒ住宅","") ->  | F26: 0 | G26: 1 | H26: FALSE | L26: =IF(F32<13,"",IF(F32<17,"21年以降","21～25年")) ->  | M26: =IF(F32<=12,"",IF(F32<=16,0%,IF(F32=17,-0.25%,IF(F32=18,-0.5%,IF(F32=19,-0.75%,-1%))))) -> 
C27: =IF(OR(H17=TRUE,H18=TRUE),"インスペクション実施住宅","") ->  | F27: 0 | G27: 1 | H27: FALSE
C28: =IF(OR(H17=TRUE,H18=TRUE),"既存住宅売買瑕疵保険付住宅","") ->  | F28: 0 | G28: 1 | H28: FALSE | L28: =IF(F32<17,"",IF(F32<21,"26年以降","26～30年")) ->  | M28: =IF(F32<=16,"",IF(F32<=20,0%,IF(F32=21,-0.25%,IF(F32=22,-0.5%,IF(F32=23,-0.75%,-1%))))) -> 
C29: 地域連携型（子育て支援・空き家対策） | F29: 0 | G29: 2 | H29: FALSE
C30: 地域連携型（地域活性型） | F30: 0 | G30: 1 | H30: FALSE | L30: =IF(F32<21,"",IF(F32<25,"31年以降","31～35年")) ->  | M30: =IF(F32<=20,"",IF(F32<=24,0%,IF(F32=25,-0.25%,IF(F32=26,-0.5%,IF(F32=27,-0.75%,-1%))))) -> 
C31: 地方移住支援型 | F31: 0 | G31: 2 | H31: FALSE
C32: 合計 | F32: =SUM(F19:F31) -> 5

Sheet キャンペーン
B2: =IF(金融機関マスター!B4=1,"☑","☐") -> ☑ | C2: みずほ銀行 | F2: TRUE | G2: ネット申込
F4: FALSE | G4: 店頭申込 | H4: 0.002
B6: =IF(金融機関マスター!B5=1,"☑","☐") -> ☑ | C6: 三菱UFJ銀行
B8: =IF(金融機関マスター!B6=1,"☑","☐") -> ☑ | C8: 三井住友銀行 | F8: TRUE | G8: 環境に配慮した住宅（ZEH）を対象とした住宅ローン | H8: -0.0005
G9: 申込期限：2025年3月31日
B11: =IF(金融機関マスター!B7=1,"☑","☐") -> ☑ | C11: りそな銀行 | F11: TRUE | G11: 環境配慮型 | H11: -0.0001
F13: TRUE | G13: 【期間限定】WEB完結金利優遇キャンペーン | H13: -0.001 | J13: FALSE | K13: りそな住宅ローン事前審査WEB申込
G14: 申込期限：2025年3月31日 | J14: FALSE | K14: りそな住宅ローンマイページによる正式審査申込の利用
G15: 実行期限：2026年3月31日 | J15: FALSE | K15: りそな住宅ローン電子契約サービスの利用（非対面電子契約、店頭電子契約いずれも可）
G16: (全期間型限定）
G17: 「団信革命」「ペア一般団信、ペアがん団信」 | H17: -0.0005
F18: TRUE | G18: 変動金利の優遇 | H18: =IF(AND(COUNTIF(J18:J20,TRUE)>=1,COUNTIF(J21:J23,TRUE)>=1),-0.03%,0) -> 0 | J18: FALSE | K18: 給与振込
J19: FALSE | K19: 団信革命付保
J20: FALSE | K20: りそなクレジットカード＜クラブオポイントプラス＞
J21: FALSE | K21: NISAでの積立投資信託
J22: FALSE | K22: 積立投資信託
J23: FALSE | K23: 積立式定期預金
B25: =IF(金融機関マスター!B9=1,"☑","☐") -> ☑ | C25: PayPay銀行
B27: =IF(金融機関マスター!B10=1,"☑","☐") -> ☑ | C27: ソニー銀行 | F27: TRUE | G27: 環境配慮型住宅ローン（変動セレクトのみ） | H27: -0.003
B29: =IF(金融機関マスター!B11=1,"☑","☐") -> ☑ | C29: 楽天銀行 | F29: TRUE | G29: 楽天銀行を返済口座に指定する | H29: -0.003 | K29: フラット35利用の場合に、融資手数料1.43％を1.1％まで優遇
B31: =IF(金融機関マスター!B12=1,"☑","☐") -> ☑ | C31: 住信SBIネット銀行
B33: =IF(金融機関マスター!B13=1,"☑","☐") -> ☑ | C33: auじぶん銀行 | F33: TRUE | G33: 住宅ローン金利優遇割 | H33: -0.0007 | J33: FALSE | K33: モバイル：au回線（auマネ活プラン）2回線以上
H34: -0.0003 | J34: TRUE | K34: でんき：じぶんでんき
H35: -0.0003 | J35: FALSE | K35: インターネット：J:COMまたはコミュファ光
H36: -0.0002 | J36: FALSE | K36: ＴＶ：J:COM TV
G37: 合計 | H37: =IF(J33=TRUE,H33,0)+IF(J34=TRUE,H34,0)+IF(J35=TRUE,H35,0)+IF(J36=TRUE,H36,0) -> -0.0003
F38: TRUE | G38: 変動金利全期間引下げプラン | H38: -0.0009 | J38: FALSE | K38: 50才以下、自己資金20％以上
H39: -0.00054 | J39: TRUE | K39: 50才以下、自己資金20％未満
B41: =IF(金融機関マスター!B14=1,"☑","☐") -> ☑ | C41: イオン銀行
B43: =IF(金融機関マスター!B28=1,"☑","☐") -> ☐ | C43: 常陽銀行 | F43: FALSE | G43: ずーっとうれしい金利引下げの適用条件 | H43: =IF(COUNTIF(J43:J46,TRUE)=4,-0.325%,0) -> 0 | J43: FALSE | K43: 給与振込ご指定の方
J44: FALSE | K44: 「めぶきdeでんき」のご契約またはZEH基準を満たす住宅を建設・購入される方
J45: FALSE | K45: 常陽バンキングアプリのご利用
J46: FALSE | K46: 当行発行のクレジットカード契約、またはJOYO CARD Debit契約
B48: =IF(金融機関マスター!B34=1,"☑","☐") -> ☐ | C48: 横浜銀行 | F48: FALSE | G48: さらにおトクな金利プラン | H48: =IF(COUNTIF(J48:J51,TRUE)=4,-0.03%,0) -> 0 | J48: FALSE | K48: お借入時の年齢が18才以上の方
G49: 申込期限：2025年3月31日 | J49: FALSE | K49: 横浜銀行にて給与振込をご利用の方
J50: FALSE | K50: スマホアプリ「はまぎん365」をご利用中の方
J51: FALSE | K51: 保証会社（横浜信用保証）の保証が受けられる方
F52: FALSE | G52: 『ZEH』・LCCM住宅 | H52: -0.0002
B54: =IF(金融機関マスター!B38=1,"☑","☐") -> ☐ | C54: 北陸銀行 | F54: FALSE | G54: 石川県・富山県・福井県で | H54: =0.35%-0.7% -> -0.0035 | K54: 3年固定の金利と手数料率を優遇
H55: =0.51%-1% -> -0.0049 | K55: 5年固定の金利と手数料率を優遇
F56: FALSE | G56: 北海道で | H56: =0.35%-0.7% -> -0.0035 | K56: 3年固定の金利と手数料率を優遇
H57: =0.71%-1% -> -0.0029 | K57: 5年固定の金利と手数料率を優遇
F58: FALSE | G58: 金利引下げについて | H58: =-IF(COUNTIF(J58:J63,TRUE)>=IF(F56=TRUE,3,4),IF(F56=TRUE,3,4),COUNTIF(J58:J63,TRUE))*0.1% -> 0 | J58: FALSE | K58: カードローン
J59: FALSE | K59: クレジットカードorデビットカード
J60: FALSE | K60: ほくぎんダイレクトＡor北陸銀行ポータルアプリ
J61: FALSE | K61: ほくぎんダイレクトＡor投資信託口座の利用登録
J62: FALSE | K62: ＮＩＳＡ
J63: FALSE | K63: ほくぎんWeb口座
B65: =IF(金融機関マスター!B40=1,"☑","☐") -> ☐ | C65: 北國銀行 | F65: FALSE | G65: 金利プランの適用条件 | H65: =IF(F65=TRUE,"-1.6～2.2％","") ->  | K65: HOKKOKU LIFE+に加入する
F67: FALSE | G67: 特約固定期間終了時の適用金利 | H67: =IF(OR(J67=TRUE,AND(J68=TRUE,J69=TRUE,J70=TRUE)),"-1.2～1.6％","") ->  | J67: FALSE | K67: HOKKOKU LIFE+に加入する
J68: FALSE | K68: 北國Visaデビットカード
J69: FALSE | K69: 北國クラウドバンキング
J70: FALSE | K70: 給与振込または年金受け取り・口座振替
B72: =IF(金融機関マスター!B42=1,"☑","☐") -> ☑ | C72: 静岡銀行
B74: =IF(金融機関マスター!B78=1,"☑","☐") -> ☑ | C74: 三菱UFJ信託銀行
B76: =IF(金融機関マスター!B79=1,"☑","☐") -> ☑ | C76: 三井住友信託銀行 | F76: FALSE | G76: 家計応援プラン | H76: =IF(OR(J76=TRUE,J77=TRUE),-0.03%,0) -> 0 | J76: FALSE | K76: 投資信託自動購入プラン
G77: 申込期限：2024年9月30日、実行期限：2026年4月30日 | J77: FALSE | K77: 三井住友信託ダイナースクラブカード
B80: =IF(金融機関マスター!B81=1,"☑","☐") -> ☑ | C80: SBI新生銀行 | F80: TRUE | G80: <ZEH住宅限定>住宅ローン金利優遇プログラム | H80: -0.0001
B82: =IF(金融機関マスター!B370=1,"☑","☐") -> ☐ | C82: 中央ろうきん | F82: FALSE | G82: 団体会員 | K82: 金利、諸費用等が優遇されます
F84: FALSE | G84: 生協会員 | K84: 金利、諸費用等が優遇されます
F86: FALSE | G86: 団体会員以外の会員
B88: =IF(金融機関マスター!B374=1,"☑","☐") -> ☐ | C88: 北陸ろうきん | F88: FALSE | G88: 融資金利引下げ項目 | H88: まるっと500α | J88: FALSE | K88: ろうきん会員の間接構成員の方・生活協同組合員の方（本人または同居家族）
H89: =IF(COUNTIF(J88:J92,TRUE)>=1,-1.25%,0) -> 0 | J89: FALSE | K89: 給与振込ご指定の方
H90: まるっと500 | J90: FALSE | K90: 障がい者手帳等をお持ちの方（本人または同居家族）
H91: =IF(COUNTIF(J88:J92,TRUE)>=1,-0.6%,0) -> 0 | J91: FALSE | K91: 子育て支援項目に該当される方
J92: FALSE | K92: 令和6年度能登半島地震復興特別利下げ
H93: まるっと500α | J93: FALSE | K93: 「ろうきんアプリ」かつ｛Webお知らせ」ご利用登録の方
H94: =IF(COUNTIF(J93:J100,TRUE)>=3,-1.25%,IF(COUNTIF(J93:J100,TRUE)>=2,-0.8,IF(COUNTIF(J93:J100,TRUE)>=1,-0.4%))) -> FALSE | J94: FALSE | K94: インターネｔットバンキング（ろうきんダイレクト）ご契約の方
H95: まるっと500 | J95: FALSE | K95: カードローン「マイプラン」ご契約の方（ご契約対象20歳以上）
H96: =IF(COUNTIF(J93:J100,TRUE)>=3,-0.6%,IF(COUNTIF(J93:J100,TRUE)>=2,-0.4,IF(COUNTIF(J93:J100,TRUE)>=1,-0.2%))) -> FALSE | J96: FALSE | K96: 財形貯蓄またはエース預金ご契約の方
J97: FALSE | K97: 個人型確定拠出年金または積立型投資信託ご加入の方
J98: FALSE | K98: 宅建会員業者・指定住宅業者から紹介の方
J99: FALSE | K99: 「いしかわの木づかい応援住宅ローン制度」「県産材を活用したふくいの住まい支援事業」対象住宅を新築・建売購入・リフォームの方
J100: FALSE | K100: 「福井県防犯モデル一戸建て住宅認定制度」認定証をお持ちの方
H101: まるっと500α
H102: =IF(H89+H94<-1.25%,-1.25%,H89+H94)-0.3% -> -0.003 | I102: 当初引下げ
H103: =IF(H89+H94<-1.25%,-1.25%,H89+H94) -> 0 | I103: 固定期間終了後
H104: まるっと500
H105: =IF(H91+H96<-0.6%,-0.6%,H91+H96)-0.75% -> -0.0075 | I105: 固定金利特別引下げ
H106: =IF(H91+H96<-0.6%,-0.6%,H91+H96) -> 0 | I106: 変動金利引下げ
B109: =IF(金融機関マスター!B83=1,"☑","☐") -> ☐ | C109: 北洋銀行 | F109: FALSE | G109: ほくようゼロカーボン応援プラン | H109: -0.0002
G110: 申込期限：2024年9月30日、実行期限：2026年4月30日
B112: =IF(金融機関マスター!B26=1,"☑","☐") -> ☐ | C112: 群馬銀行 | F112: FALSE | G112: 全期間固定金利型住宅ローン（ZEH住宅・ZEH-M・LCCM住宅の新築・購入で） | H112: -0.001

Sheet 中間処理 (hidden)
A1: =_xlfn.XLOOKUP(資金調達!F6,table!AA1:AA6,table!V1:V6) -> 1 | B1: =資金調達!F6 -> 単独債務
A2: =金利手数料一覧!Y1 -> 1 | C2: 借入金額 | D2: 借入期間 | F2: 年齢 | G2: 収入 | H2: 団信 | J2: 物件総額 | K2: 総予算 | L2: 自己資金 | M2: 残債
J3: =(資金調達!E18-資金調達!E17)*10000 -> 45000000 | K3: =資金調達!E18*10000 -> 48555681.85 | L3: =資金調達!G18*10000 -> 8555681.85 | M3: =資金調達!E16*10000 -> 0
A4: 債務者1 | C4: =資金調達!F3*10000 -> 40000000 | D4: =資金調達!H3 -> 35 | E4: =資金調達!J3 -> 0 | F4: =IF(資金調達!P3="",資金調達!P3,資金調達!P3) -> 35 | G4: =IF(資金調達!R3="",資金調達!R3,資金調達!R3) -> 600 | H4: =資金調達!M3 -> 一般団信 | J4: =C18/J3 -> 0.8888888889 | K4: =C18/K3 -> 0.8237964843
A5: 債務者2 | C5: =資金調達!F4*10000 -> 0 | D5: =資金調達!H4 -> 0 | E5: =資金調達!J4 -> 0 | F5: =IF(資金調達!P4="",0,資金調達!P4) -> 0 | G5: =IF(資金調達!R4="",資金調達!R4,資金調達!R4) -> 0 | H5: =資金調達!M4 -> 0
A6: 1 | B6: =table!AA2 -> 単独債務 | C6: =C4 -> 40000000 | D6: =D4 -> 35 | E6: 0 | F6: 35 | G6: 600 | H6: =_xlfn.XLOOKUP(H$4,table!Q$2:Q$7,table!O$2:O$7) -> 1 | I6: =C6/J$3 -> 0.8888888889
A7: 2 | B7: =table!AA3 -> 単独債務（収入合算） | C7: =C6 -> 40000000 | D7: =D$4 -> 35 | E7: 0 | F7: 35 | G7: =G$4+G5 -> 600 | H7: =_xlfn.XLOOKUP(H$4,table!Q$2:Q$7,table!O$2:O$7) -> 1 | I7: =C7/J$3 -> 0.8888888889 | J7: =資金調達!E13 -> 0
A8: 3 | B8: =table!AA4 -> 連帯債務 | C8: =C4 -> 40000000 | D8: =IF(F4=F8,D4,D5) -> 35 | E8: =IF(F4=F8,E4,E5) -> 0 | F8: =MAX(F4:F5) -> 35 | G8: =G$4+G5 -> 600 | H8: =_xlfn.XLOOKUP(H$4,table!Q$2:Q$7,table!O$2:O$7) -> 1 | I8: 0.8888888889
A9: 4 | B9: =table!AA5 -> 親子リレー | C9: =C4 -> 40000000 | D9: =D5 -> 0 | E9: =E5 -> 0 | F9: =F5 -> 0 | G9: 0 | H9: =_xlfn.XLOOKUP(H$4,table!Q$2:Q$7,table!O$2:O$7) -> 1 | I9: 0.8888888889
A10: 5 | B10: ペアローン１ | C10: =C4 -> 40000000 | D10: 35 | E10: 0 | F10: 35 | G10: =G$4+G5 -> 600 | H10: =_xlfn.XLOOKUP(H$4,table!Q$2:Q$7,table!O$2:O$7) -> 1 | I10: =(C10+C11)/J$3 -> 0.8888888889 | J10: =資金調達!F20 -> 0.8237964843 | K10: =K3/(C10+C11)*C10 -> 48555681.85 | L10: =IF(K3>80000000,INT(80000000*(C10/K3)),K3*0.9) -> 43700113.66
A11: 6 | B11: ペアローン２ | C11: =C5 -> 0 | D11: =D5 -> 0 | E11: 0 | F11: 0 | G11: 0 | H11: =IFERROR(_xlfn.XLOOKUP(H$5,table!Q$2:Q$7,table!O$2:O$7),0) -> 0 | I11: =(C11+C10)/J$3 -> 0.8888888889 | J11: =J10 -> 0.8237964843 | K11: =K3-K10 -> 0 | L11: =IF(K3>80000000,80000000-L10,K3-L10) -> 4855568.185
N15: 27
M16: じぶん | N16: 24000
I17: 融資率 | J17: 融資率F | M17: アイフル | N17: 23000
A18: ローンの計算 | B18: =IF(AND(A1=5,A2=2),6,A1) -> 1 | C18: =_xlfn.XLOOKUP($B18,$A6:$A11,C6:C11) -> 40000000 | D18: =_xlfn.XLOOKUP($B18,$A6:$A11,D6:D11) -> 35 | E18: 0 | F18: 35 | G18: 600 | H18: 1 | I18: =_xlfn.XLOOKUP($B18,$A6:$A11,I6:I11) -> 0.8888888889 | J18: =資金調達!F20 -> 0.8237964843
R22: 借入予定額 | Y22: 次回 | AB22: 次々回 | AE22: 5年ﾙｰﾙ | AG22: つなぎ融資の条件

Sheet SmartRanking
B2: 決済予定 | D2: 2025 | E2: 年 | F2: 12 | G2: 月予定
B4: 住宅ローンの
B5: 金利上昇時期 | D5: 2 | E5: 年後に | F5: 0.01 | G5: 0.02 | H5: 0.03
K6: =IF(資金調達!F6="","「資金調達」の債務種類が未入力です！","") -> 
D7: 借入金額 | E7: 借入期間 | G7: 返済タイプ | H7: 団信タイプ | K7: お客様2 のランキングを作成する場合、先にお客様1 のボタンを押しておく必要があります。
D8: （万円） | E8: （年） | F8: （ヵ月）
B9: お客様1 | D9: =資金調達!F3 -> 4000 | E9: =資金調達!H3 -> 35 | F9: =資金調達!J3 -> 0 | G9: =資金調達!L3 -> 元利均等 | H9: =資金調達!M3 -> 一般団信
B11: お客様2 | D11: =資金調達!F4 -> 0 | E11: =資金調達!H4 -> 0 | F11: =資金調達!J4 -> 0 | G11: =資金調達!L4 -> 0 | H11: =資金調達!M4 -> 0
B14: ミックス | D14: 変動金利 | F14: 2000 | G14: 万円 | H14: =IFERROR(F14/F18,"") -> 0.5 | K14: ミックスプラン のランキングを作成する場合、先にお客様1 のボタンを押しておく必要があります。
D16: 固定金利 | F16: 2000 | G16: 万円 | H16: =IFERROR(F16/F18,"") -> 0.5
D18: 合計 | F18: =F14+F16 -> 4000 | G18: 万円
C20: =IF(D9=F18,"","ミックス・プランのランキングを生成するには、お客様1とミックス合計金額をあわせて下さい。") -> 

Sheet 商品比較
B1: =_xlfn.XLOOKUP(A1,table!AA7:AA9,table!Z7:Z9) -> 0 | C1: =_xlfn.XLOOKUP(B1,table!AB7:AB9,table!AA7:AA9) ->  | D1: =_xlfn.XLOOKUP(C1,table!AC7:AC9,table!AB7:AB9) ->  | K1: 当初金利 | M1: 金利上昇時 | N1: 0.03 | O1: =_xlfn.XLOOKUP(N1,table!U1:U4,table!V1:V4) -> 3 | P1: 当初金利 | Q1: 金利上昇時
A2: お客様 | B2: 金融機関名 | C2: 商品名 | D2: 金利タイプ | E2: 手数料タイプ | F2: 返済タイプ | G2: 優遇タイプ | H2: 団信タイプ | I2: 借入金額 | J2: 借入期間 | K2: 金利 | L2: 毎月返済額 | M2: 金利 | N2: 毎月返済額 | O2: 諸費用 | P2: TC
A3: 1 | B3: みずほ銀行 | C3: みずほネット住宅ローン | D3: 2年固定 | E3: 手数料定率 | F3: 元利均等 | G3: 全期間 | I3: =_xlfn.XLOOKUP($B3&$C3&$D3&$E3&$F3&$G3,比較表!$B$2:$B$1001&比較表!$C$2:$C$1001&比較表!$O$2:$O$1001&比較表!$F$2:$F$1001&比較表!$G$2:$G$1001&比較表!$H$2:$H$1001,比較表!L$2:L$1001)/10000 -> 4000 | J3: =_xlfn.XLOOKUP($B3&$C3&$D3&$E3&$F3&$G3,比較表!$B$2:$B$1001&比較表!$C$2:$C$1001&比較表!$O$2:$O$1001&比較表!$F$2:$F$1001&比較表!$G$2:$G$1001&比較表!$H$2:$H$1001,比較表!M$2:M$1001) -> 35 | K3: =_xlfn.XLOOKUP($B3&$C3&$D3&$E3&$F3&$G3,比較表!$B$2:$B$1001&比較表!$C$2:$C$1001&比較表!$O$2:$O$1001&比較表!$F$2:$F$1001&比較表!$G$2:$G$1001&比較表!$H$2:$H$1001,比較表!P$2:P$1001) -> 0.0135 | L3: =_xlfn.XLOOKUP($B3&$C3&$D3&$E3&$F3&$G3,比較表!$B$2:$B$1001&比較表!$C$2:$C$1001&比較表!$O$2:$O$1001&比較表!$F$2:$F$1001&比較表!$G$2:$G$1001&比較表!$H$2:$H$1001,比較表!Q$2:Q$1001) -> 119555 | M3: =_xlfn.XLOOKUP($B3&$C3&$D3&$E3&$F3&$G3,比較表!$B$2:$B$1001&比較表!$C$2:$C$1001&比較表!$O$2:$O$1001&比較表!$F$2:$F$1001&比較表!$G$2:$G$1001&比較表!$H$2:$H$1001,IF($O$1=1,比較表!R$2:R$1001,IF($O$1=2,比較表!T$2:T$1001,IF($O$1=3,比較表!V$2:V$1001,"")))) -> 0.03375 | N3: =_xlfn.XLOOKUP($B3&$C3&$D3&$E3&$F3&$G3,比較表!$B$2:$B$1001&比較表!$C$2:$C$1001&比較表!$O$2:$O$1001&比較表!$F$2:$F$1001&比較表!$G$2:$G$1001&比較表!$H$2:$H$1001,IF($O$1=1,比較表!S$2:S$1001,IF($O$1=2,比較表!U$2:U$1001,IF($O$1=3,比較表!W$2:W$1001,"")))) -> 160024 | O3: =_xlfn.XLOOKUP($B3&$C3&$D3&$E3&$F3&$G3,比較表!$B$2:$B$1001&比較表!$C$2:$C$1001&比較表!$O$2:$O$1001&比較表!$F$2:$F$1001&比較表!$G$2:$G$1001&比較表!$H$2:$H$1001,比較表!AL$2:AL$1001)/10000 -> 158.03 | P3: =_xlfn.XLOOKUP($B3&$C3&$D3&$E3&$F3&$G3,比較表!$B$2:$B$1001&比較表!$C$2:$C$1001&比較表!$O$2:$O$1001&比較表!$F$2:$F$1001&比較表!$G$2:$G$1001&比較表!$H$2:$H$1001,比較表!AN$2:AN$1001)/10000 -> 4505.4272 | Q3: =_xlfn.XLOOKUP($B3&$C3&$D3&$E3&$F3&$G3,比較表!$B$2:$B$1001&比較表!$C$2:$C$1001&比較表!$O$2:$O$1001&比較表!$F$2:$F$1001&比較表!$G$2:$G$1001&比較表!$H$2:$H$1001,IF($O$1=1,比較表!AO$2:AO$1001,IF($O$1=2,比較表!AP$2:AP$1001,IF($O$1=3,比較表!AQ$2:AQ$1001,""))))/10000 -> 6781.9124
A4: 1 | B4: みずほ銀行 | C4: みずほネット住宅ローン | D4: 2年固定 | E4: 手数料定額 | F4: 元利均等 | G4: 全期間 | I4: =_xlfn.XLOOKUP($B4&$C4&$D4&$E4&$F4&$G4,比較表!$B$2:$B$1001&比較表!$C$2:$C$1001&比較表!$O$2:$O$1001&比較表!$F$2:$F$1001&比較表!$G$2:$G$1001&比較表!$H$2:$H$1001,比較表!L$2:L$1001)/10000 -> 4000 | J4: =_xlfn.XLOOKUP($B4&$C4&$D4&$E4&$F4&$G4,比較表!$B$2:$B$1001&比較表!$C$2:$C$1001&比較表!$O$2:$O$1001&比較表!$F$2:$F$1001&比較表!$G$2:$G$1001&比較表!$H$2:$H$1001,比較表!M$2:M$1001) -> 35 | K4: =_xlfn.XLOOKUP($B4&$C4&$D4&$E4&$F4&$G4,比較表!$B$2:$B$1001&比較表!$C$2:$C$1001&比較表!$O$2:$O$1001&比較表!$F$2:$F$1001&比較表!$G$2:$G$1001&比較表!$H$2:$H$1001,比較表!P$2:P$1001) -> 0.0155 | L4: =_xlfn.XLOOKUP($B4&$C4&$D4&$E4&$F4&$G4,比較表!$B$2:$B$1001&比較表!$C$2:$C$1001&比較表!$O$2:$O$1001&比較表!$F$2:$F$1001&比較表!$G$2:$G$1001&比較表!$H$2:$H$1001,比較表!Q$2:Q$1001) -> 123455 | M4: =_xlfn.XLOOKUP($B4&$C4&$D4&$E4&$F4&$G4,比較表!$B$2:$B$1001&比較表!$C$2:$C$1001&比較表!$O$2:$O$1001&比較表!$F$2:$F$1001&比較表!$G$2:$G$1001&比較表!$H$2:$H$1001,IF($O$1=1,比較表!R$2:R$1001,IF($O$1=2,比較表!T$2:T$1001,IF($O$1=3,比較表!V$2:V$1001,"")))) -> 0.03575 | N4: =_xlfn.XLOOKUP($B4&$C4&$D4&$E4&$F4&$G4,比較表!$B$2:$B$1001&比較表!$C$2:$C$1001&比較表!$O$2:$O$1001&比較表!$F$2:$F$1001&比較表!$G$2:$G$1001&比較表!$H$2:$H$1001,IF($O$1=1,比較表!S$2:S$1001,IF($O$1=2,比較表!U$2:U$1001,IF($O$1=3,比較表!W$2:W$1001,"")))) -> 164652 | O4: =_xlfn.XLOOKUP($B4&$C4&$D4&$E4&$F4&$G4,比較表!$B$2:$B$1001&比較表!$C$2:$C$1001&比較表!$O$2:$O$1001&比較表!$F$2:$F$1001&比較表!$G$2:$G$1001&比較表!$H$2:$H$1001,比較表!AL$2:AL$1001)/10000 -> 66.73 | P4: =_xlfn.XLOOKUP($B4&$C4&$D4&$E4&$F4&$G4,比較表!$B$2:$B$1001&比較表!$C$2:$C$1001&比較表!$O$2:$O$1001&比較表!$F$2:$F$1001&比較表!$G$2:$G$1001&比較表!$H$2:$H$1001,比較表!AN$2:AN$1001)/10000 -> 4563.4336 | Q4: =_xlfn.XLOOKUP($B4&$C4&$D4&$E4&$F4&$G4,比較表!$B$2:$B$1001&比較表!$C$2:$C$1001&比較表!$O$2:$O$1001&比較表!$F$2:$F$1001&比較表!$G$2:$G$1001&比較表!$H$2:$H$1001,IF($O$1=1,比較表!AO$2:AO$1001,IF($O$1=2,比較表!AP$2:AP$1001,IF($O$1=3,比較表!AQ$2:AQ$1001,""))))/10000 -> 6883.2412
A5: 1 | I5: =_xlfn.XLOOKUP($B5&$C5&$D5&$E5&$F5&$G5,比較表!$B$2:$B$1001&比較表!$C$2:$C$1001&比較表!$O$2:$O$1001&比較表!$F$2:$F$1001&比較表!$G$2:$G$1001&比較表!$H$2:$H$1001,比較表!L$2:L$1001)/10000 -> 0 | J5: =_xlfn.XLOOKUP($B5&$C5&$D5&$E5&$F5&$G5,比較表!$B$2:$B$1001&比較表!$C$2:$C$1001&比較表!$O$2:$O$1001&比較表!$F$2:$F$1001&比較表!$G$2:$G$1001&比較表!$H$2:$H$1001,比較表!M$2:M$1001) -> 0 | K5: =_xlfn.XLOOKUP($B5&$C5&$D5&$E5&$F5&$G5,比較表!$B$2:$B$1001&比較表!$C$2:$C$1001&比較表!$O$2:$O$1001&比較表!$F$2:$F$1001&比較表!$G$2:$G$1001&比較表!$H$2:$H$1001,比較表!P$2:P$1001) -> 0 | L5: =_xlfn.XLOOKUP($B5&$C5&$D5&$E5&$F5&$G5,比較表!$B$2:$B$1001&比較表!$C$2:$C$1001&比較表!$O$2:$O$1001&比較表!$F$2:$F$1001&比較表!$G$2:$G$1001&比較表!$H$2:$H$1001,比較表!Q$2:Q$1001) -> 0 | M5: =_xlfn.XLOOKUP($B5&$C5&$D5&$E5&$F5&$G5,比較表!$B$2:$B$1001&比較表!$C$2:$C$1001&比較表!$O$2:$O$1001&比較表!$F$2:$F$1001&比較表!$G$2:$G$1001&比較表!$H$2:$H$1001,IF($O$1=1,比較表!R$2:R$1001,IF($O$1=2,比較表!T$2:T$1001,IF($O$1=3,比較表!V$2:V$1001,"")))) -> 0 | N5: =_xlfn.XLOOKUP($B5&$C5&$D5&$E5&$F5&$G5,比較表!$B$2:$B$1001&比較表!$C$2:$C$1001&比較表!$O$2:$O$1001&比較表!$F$2:$F$1001&比較表!$G$2:$G$1001&比較表!$H$2:$H$1001,IF($O$1=1,比較表!S$2:S$1001,IF($O$1=2,比較表!U$2:U$1001,IF($O$1=3,比較表!W$2:W$1001,"")))) -> 0 | O5: =_xlfn.XLOOKUP($B5&$C5&$D5&$E5&$F5&$G5,比較表!$B$2:$B$1001&比較表!$C$2:$C$1001&比較表!$O$2:$O$1001&比較表!$F$2:$F$1001&比較表!$G$2:$G$1001&比較表!$H$2:$H$1001,比較表!AL$2:AL$1001)/10000 -> 0 | P5: =_xlfn.XLOOKUP($B5&$C5&$D5&$E5&$F5&$G5,比較表!$B$2:$B$1001&比較表!$C$2:$C$1001&比較表!$O$2:$O$1001&比較表!$F$2:$F$1001&比較表!$G$2:$G$1001&比較表!$H$2:$H$1001,比較表!AN$2:AN$1001)/10000 -> 0 | Q5: =_xlfn.XLOOKUP($B5&$C5&$D5&$E5&$F5&$G5,比較表!$B$2:$B$1001&比較表!$C$2:$C$1001&比較表!$O$2:$O$1001&比較表!$F$2:$F$1001&比較表!$G$2:$G$1001&比較表!$H$2:$H$1001,IF($O$1=1,比較表!AO$2:AO$1001,IF($O$1=2,比較表!AP$2:AP$1001,IF($O$1=3,比較表!AQ$2:AQ$1001,""))))/10000 -> 0
A6: 1 | I6: =_xlfn.XLOOKUP($B6&$C6&$D6&$E6&$F6&$G6,比較表!$B$2:$B$1001&比較表!$C$2:$C$1001&比較表!$O$2:$O$1001&比較表!$F$2:$F$1001&比較表!$G$2:$G$1001&比較表!$H$2:$H$1001,比較表!L$2:L$1001)/10000 -> 0 | J6: =_xlfn.XLOOKUP($B6&$C6&$D6&$E6&$F6&$G6,比較表!$B$2:$B$1001&比較表!$C$2:$C$1001&比較表!$O$2:$O$1001&比較表!$F$2:$F$1001&比較表!$G$2:$G$1001&比較表!$H$2:$H$1001,比較表!M$2:M$1001) -> 0 | K6: =_xlfn.XLOOKUP($B6&$C6&$D6&$E6&$F6&$G6,比較表!$B$2:$B$1001&比較表!$C$2:$C$1001&比較表!$O$2:$O$1001&比較表!$F$2:$F$1001&比較表!$G$2:$G$1001&比較表!$H$2:$H$1001,比較表!P$2:P$1001) -> 0 | L6: =_xlfn.XLOOKUP($B6&$C6&$D6&$E6&$F6&$G6,比較表!$B$2:$B$1001&比較表!$C$2:$C$1001&比較表!$O$2:$O$1001&比較表!$F$2:$F$1001&比較表!$G$2:$G$1001&比較表!$H$2:$H$1001,比較表!Q$2:Q$1001) -> 0 | M6: =_xlfn.XLOOKUP($B6&$C6&$D6&$E6&$F6&$G6,比較表!$B$2:$B$1001&比較表!$C$2:$C$1001&比較表!$O$2:$O$1001&比較表!$F$2:$F$1001&比較表!$G$2:$G$1001&比較表!$H$2:$H$1001,IF($O$1=1,比較表!R$2:R$1001,IF($O$1=2,比較表!T$2:T$1001,IF($O$1=3,比較表!V$2:V$1001,"")))) -> 0 | N6: =_xlfn.XLOOKUP($B6&$C6&$D6&$E6&$F6&$G6,比較表!$B$2:$B$1001&比較表!$C$2:$C$1001&比較表!$O$2:$O$1001&比較表!$F$2:$F$1001&比較表!$G$2:$G$1001&比較表!$H$2:$H$1001,IF($O$1=1,比較表!S$2:S$1001,IF($O$1=2,比較表!U$2:U$1001,IF($O$1=3,比較表!W$2:W$1001,"")))) -> 0 | O6: =_xlfn.XLOOKUP($B6&$C6&$D6&$E6&$F6&$G6,比較表!$B$2:$B$1001&比較表!$C$2:$C$1001&比較表!$O$2:$O$1001&比較表!$F$2:$F$1001&比較表!$G$2:$G$1001&比較表!$H$2:$H$1001,比較表!AL$2:AL$1001)/10000 -> 0 | P6: =_xlfn.XLOOKUP($B6&$C6&$D6&$E6&$F6&$G6,比較表!$B$2:$B$1001&比較表!$C$2:$C$1001&比較表!$O$2:$O$1001&比較表!$F$2:$F$1001&比較表!$G$2:$G$1001&比較表!$H$2:$H$1001,比較表!AN$2:AN$1001)/10000 -> 0 | Q6: =_xlfn.XLOOKUP($B6&$C6&$D6&$E6&$F6&$G6,比較表!$B$2:$B$1001&比較表!$C$2:$C$1001&比較表!$O$2:$O$1001&比較表!$F$2:$F$1001&比較表!$G$2:$G$1001&比較表!$H$2:$H$1001,IF($O$1=1,比較表!AO$2:AO$1001,IF($O$1=2,比較表!AP$2:AP$1001,IF($O$1=3,比較表!AQ$2:AQ$1001,""))))/10000 -> 0
A7: 1 | I7: =_xlfn.XLOOKUP($B7&$C7&$D7&$E7&$F7&$G7,比較表!$B$2:$B$1001&比較表!$C$2:$C$1001&比較表!$O$2:$O$1001&比較表!$F$2:$F$1001&比較表!$G$2:$G$1001&比較表!$H$2:$H$1001,比較表!L$2:L$1001)/10000 -> 0 | J7: =_xlfn.XLOOKUP($B7&$C7&$D7&$E7&$F7&$G7,比較表!$B$2:$B$1001&比較表!$C$2:$C$1001&比較表!$O$2:$O$1001&比較表!$F$2:$F$1001&比較表!$G$2:$G$1001&比較表!$H$2:$H$1001,比較表!M$2:M$1001) -> 0 | K7: =_xlfn.XLOOKUP($B7&$C7&$D7&$E7&$F7&$G7,比較表!$B$2:$B$1001&比較表!$C$2:$C$1001&比較表!$O$2:$O$1001&比較表!$F$2:$F$1001&比較表!$G$2:$G$1001&比較表!$H$2:$H$1001,比較表!P$2:P$1001) -> 0 | L7: =_xlfn.XLOOKUP($B7&$C7&$D7&$E7&$F7&$G7,比較表!$B$2:$B$1001&比較表!$C$2:$C$1001&比較表!$O$2:$O$1001&比較表!$F$2:$F$1001&比較表!$G$2:$G$1001&比較表!$H$2:$H$1001,比較表!Q$2:Q$1001) -> 0 | M7: =_xlfn.XLOOKUP($B7&$C7&$D7&$E7&$F7&$G7,比較表!$B$2:$B$1001&比較表!$C$2:$C$1001&比較表!$O$2:$O$1001&比較表!$F$2:$F$1001&比較表!$G$2:$G$1001&比較表!$H$2:$H$1001,IF($O$1=1,比較表!R$2:R$1001,IF($O$1=2,比較表!T$2:T$1001,IF($O$1=3,比較表!V$2:V$1001,"")))) -> 0 | N7: =_xlfn.XLOOKUP($B7&$C7&$D7&$E7&$F7&$G7,比較表!$B$2:$B$1001&比較表!$C$2:$C$1001&比較表!$O$2:$O$1001&比較表!$F$2:$F$1001&比較表!$G$2:$G$1001&比較表!$H$2:$H$1001,IF($O$1=1,比較表!S$2:S$1001,IF($O$1=2,比較表!U$2:U$1001,IF($O$1=3,比較表!W$2:W$1001,"")))) -> 0 | O7: =_xlfn.XLOOKUP($B7&$C7&$D7&$E7&$F7&$G7,比較表!$B$2:$B$1001&比較表!$C$2:$C$1001&比較表!$O$2:$O$1001&比較表!$F$2:$F$1001&比較表!$G$2:$G$1001&比較表!$H$2:$H$1001,比較表!AL$2:AL$1001)/10000 -> 0 | P7: =_xlfn.XLOOKUP($B7&$C7&$D7&$E7&$F7&$G7,比較表!$B$2:$B$1001&比較表!$C$2:$C$1001&比較表!$O$2:$O$1001&比較表!$F$2:$F$1001&比較表!$G$2:$G$1001&比較表!$H$2:$H$1001,比較表!AN$2:AN$1001)/10000 -> 0 | Q7: =_xlfn.XLOOKUP($B7&$C7&$D7&$E7&$F7&$G7,比較表!$B$2:$B$1001&比較表!$C$2:$C$1001&比較表!$O$2:$O$1001&比較表!$F$2:$F$1001&比較表!$G$2:$G$1001&比較表!$H$2:$H$1001,IF($O$1=1,比較表!AO$2:AO$1001,IF($O$1=2,比較表!AP$2:AP$1001,IF($O$1=3,比較表!AQ$2:AQ$1001,""))))/10000 -> 0
A8: 1 | I8: =_xlfn.XLOOKUP($B8&$C8&$D8&$E8&$F8&$G8,比較表!$B$2:$B$1001&比較表!$C$2:$C$1001&比較表!$O$2:$O$1001&比較表!$F$2:$F$1001&比較表!$G$2:$G$1001&比較表!$H$2:$H$1001,比較表!L$2:L$1001)/10000 -> 0 | J8: =_xlfn.XLOOKUP($B8&$C8&$D8&$E8&$F8&$G8,比較表!$B$2:$B$1001&比較表!$C$2:$C$1001&比較表!$O$2:$O$1001&比較表!$F$2:$F$1001&比較表!$G$2:$G$1001&比較表!$H$2:$H$1001,比較表!M$2:M$1001) -> 0 | K8: =_xlfn.XLOOKUP($B8&$C8&$D8&$E8&$F8&$G8,比較表!$B$2:$B$1001&比較表!$C$2:$C$1001&比較表!$O$2:$O$1001&比較表!$F$2:$F$1001&比較表!$G$2:$G$1001&比較表!$H$2:$H$1001,比較表!P$2:P$1001) -> 0 | L8: =_xlfn.XLOOKUP($B8&$C8&$D8&$E8&$F8&$G8,比較表!$B$2:$B$1001&比較表!$C$2:$C$1001&比較表!$O$2:$O$1001&比較表!$F$2:$F$1001&比較表!$G$2:$G$1001&比較表!$H$2:$H$1001,比較表!Q$2:Q$1001) -> 0 | M8: =_xlfn.XLOOKUP($B8&$C8&$D8&$E8&$F8&$G8,比較表!$B$2:$B$1001&比較表!$C$2:$C$1001&比較表!$O$2:$O$1001&比較表!$F$2:$F$1001&比較表!$G$2:$G$1001&比較表!$H$2:$H$1001,IF($O$1=1,比較表!R$2:R$1001,IF($O$1=2,比較表!T$2:T$1001,IF($O$1=3,比較表!V$2:V$1001,"")))) -> 0 | N8: =_xlfn.XLOOKUP($B8&$C8&$D8&$E8&$F8&$G8,比較表!$B$2:$B$1001&比較表!$C$2:$C$1001&比較表!$O$2:$O$1001&比較表!$F$2:$F$1001&比較表!$G$2:$G$1001&比較表!$H$2:$H$1001,IF($O$1=1,比較表!S$2:S$1001,IF($O$1=2,比較表!U$2:U$1001,IF($O$1=3,比較表!W$2:W$1001,"")))) -> 0 | O8: =_xlfn.XLOOKUP($B8&$C8&$D8&$E8&$F8&$G8,比較表!$B$2:$B$1001&比較表!$C$2:$C$1001&比較表!$O$2:$O$1001&比較表!$F$2:$F$1001&比較表!$G$2:$G$1001&比較表!$H$2:$H$1001,比較表!AL$2:AL$1001)/10000 -> 0 | P8: =_xlfn.XLOOKUP($B8&$C8&$D8&$E8&$F8&$G8,比較表!$B$2:$B$1001&比較表!$C$2:$C$1001&比較表!$O$2:$O$1001&比較表!$F$2:$F$1001&比較表!$G$2:$G$1001&比較表!$H$2:$H$1001,比較表!AN$2:AN$1001)/10000 -> 0 | Q8: =_xlfn.XLOOKUP($B8&$C8&$D8&$E8&$F8&$G8,比較表!$B$2:$B$1001&比較表!$C$2:$C$1001&比較表!$O$2:$O$1001&比較表!$F$2:$F$1001&比較表!$G$2:$G$1001&比較表!$H$2:$H$1001,IF($O$1=1,比較表!AO$2:AO$1001,IF($O$1=2,比較表!AP$2:AP$1001,IF($O$1=3,比較表!AQ$2:AQ$1001,""))))/10000 -> 0
A10: 2 | I10: =_xlfn.XLOOKUP($B10&$C10&$D10&$E10&$F10&$G10,比較表2!$B$2:$B$1001&比較表2!$C$2:$C$1001&比較表2!$O$2:$O$1001&比較表2!$F$2:$F$1001&比較表2!$G$2:$G$1001&比較表2!$H$2:$H$1001,比較表2!L$2:L$1001)/10000 -> 0 | J10: =_xlfn.XLOOKUP($B10&$C10&$D10&$E10&$F10&$G10,比較表2!$B$2:$B$1001&比較表2!$C$2:$C$1001&比較表2!$O$2:$O$1001&比較表2!$F$2:$F$1001&比較表2!$G$2:$G$1001&比較表2!$H$2:$H$1001,比較表2!M$2:M$1001) -> 0 | K10: =_xlfn.XLOOKUP($B10&$C10&$D10&$E10&$F10&$G10,比較表2!$B$2:$B$1001&比較表2!$C$2:$C$1001&比較表2!$O$2:$O$1001&比較表2!$F$2:$F$1001&比較表2!$G$2:$G$1001&比較表2!$H$2:$H$1001,比較表2!P$2:P$1001) -> 0 | L10: =_xlfn.XLOOKUP($B10&$C10&$D10&$E10&$F10&$G10,比較表2!$B$2:$B$1001&比較表2!$C$2:$C$1001&比較表2!$O$2:$O$1001&比較表2!$F$2:$F$1001&比較表2!$G$2:$G$1001&比較表2!$H$2:$H$1001,比較表2!Q$2:Q$1001) -> 0 | M10: =_xlfn.XLOOKUP($B10&$C10&$D10&$E10&$F10&$G10,比較表2!$B$2:$B$1001&比較表2!$C$2:$C$1001&比較表2!$O$2:$O$1001&比較表2!$F$2:$F$1001&比較表2!$G$2:$G$1001&比較表2!$H$2:$H$1001,IF($O$1=1,比較表!R$2:R$1001,IF($O$1=2,比較表!T$2:T$1001,IF($O$1=3,比較表!V$2:V$1001,"")))) -> 0 | N10: =_xlfn.XLOOKUP($B10&$C10&$D10&$E10&$F10&$G10,比較表2!$B$2:$B$1001&比較表2!$C$2:$C$1001&比較表2!$O$2:$O$1001&比較表2!$F$2:$F$1001&比較表2!$G$2:$G$1001&比較表2!$H$2:$H$1001,IF($O$1=1,比較表!S$2:S$1001,IF($O$1=2,比較表!U$2:U$1001,IF($O$1=3,比較表!W$2:W$1001,"")))) -> 0 | O10: =_xlfn.XLOOKUP($B10&$C10&$D10&$E10&$F10&$G10,比較表2!$B$2:$B$1001&比較表2!$C$2:$C$1001&比較表2!$O$2:$O$1001&比較表2!$F$2:$F$1001&比較表2!$G$2:$G$1001&比較表2!$H$2:$H$1001,比較表2!AL$2:AL$1001)/10000 -> 0 | P10: =_xlfn.XLOOKUP($B10&$C10&$D10&$E10&$F10&$G10,比較表2!$B$2:$B$1001&比較表2!$C$2:$C$1001&比較表2!$O$2:$O$1001&比較表2!$F$2:$F$1001&比較表2!$G$2:$G$1001&比較表2!$H$2:$H$1001,比較表2!AN$2:AN$1001)/10000 -> 0 | Q10: =_xlfn.XLOOKUP($B10&$C10&$D10&$E10&$F10&$G10,比較表2!$B$2:$B$1001&比較表2!$C$2:$C$1001&比較表2!$O$2:$O$1001&比較表2!$F$2:$F$1001&比較表2!$G$2:$G$1001&比較表2!$H$2:$H$1001,IF($O$1=1,比較表2!AO$2:AO$1001,IF($O$1=2,比較表2!AP$2:AP$1001,IF($O$1=3,比較表2!AQ$2:AQ$1001,""))))/10000 -> 0
A11: 2 | I11: =_xlfn.XLOOKUP($B11&$C11&$D11&$E11&$F11&$G11,比較表2!$B$2:$B$1001&比較表2!$C$2:$C$1001&比較表2!$O$2:$O$1001&比較表2!$F$2:$F$1001&比較表2!$G$2:$G$1001&比較表2!$H$2:$H$1001,比較表2!L$2:L$1001)/10000 -> 0 | J11: =_xlfn.XLOOKUP($B11&$C11&$D11&$E11&$F11&$G11,比較表2!$B$2:$B$1001&比較表2!$C$2:$C$1001&比較表2!$O$2:$O$1001&比較表2!$F$2:$F$1001&比較表2!$G$2:$G$1001&比較表2!$H$2:$H$1001,比較表2!M$2:M$1001) -> 0 | K11: =_xlfn.XLOOKUP($B11&$C11&$D11&$E11&$F11&$G11,比較表2!$B$2:$B$1001&比較表2!$C$2:$C$1001&比較表2!$O$2:$O$1001&比較表2!$F$2:$F$1001&比較表2!$G$2:$G$1001&比較表2!$H$2:$H$1001,比較表2!P$2:P$1001) -> 0 | L11: =_xlfn.XLOOKUP($B11&$C11&$D11&$E11&$F11&$G11,比較表2!$B$2:$B$1001&比較表2!$C$2:$C$1001&比較表2!$O$2:$O$1001&比較表2!$F$2:$F$1001&比較表2!$G$2:$G$1001&比較表2!$H$2:$H$1001,比較表2!Q$2:Q$1001) -> 0 | M11: =_xlfn.XLOOKUP($B11&$C11&$D11&$E11&$F11&$G11,比較表2!$B$2:$B$1001&比較表2!$C$2:$C$1001&比較表2!$O$2:$O$1001&比較表2!$F$2:$F$1001&比較表2!$G$2:$G$1001&比較表2!$H$2:$H$1001,IF($O$1=1,比較表!R$2:R$1001,IF($O$1=2,比較表!T$2:T$1001,IF($O$1=3,比較表!V$2:V$1001,"")))) -> 0 | N11: =_xlfn.XLOOKUP($B11&$C11&$D11&$E11&$F11&$G11,比較表2!$B$2:$B$1001&比較表2!$C$2:$C$1001&比較表2!$O$2:$O$1001&比較表2!$F$2:$F$1001&比較表2!$G$2:$G$1001&比較表2!$H$2:$H$1001,IF($O$1=1,比較表!S$2:S$1001,IF($O$1=2,比較表!U$2:U$1001,IF($O$1=3,比較表!W$2:W$1001,"")))) -> 0 | O11: =_xlfn.XLOOKUP($B11&$C11&$D11&$E11&$F11&$G11,比較表2!$B$2:$B$1001&比較表2!$C$2:$C$1001&比較表2!$O$2:$O$1001&比較表2!$F$2:$F$1001&比較表2!$G$2:$G$1001&比較表2!$H$2:$H$1001,比較表2!AL$2:AL$1001)/10000 -> 0 | P11: =_xlfn.XLOOKUP($B11&$C11&$D11&$E11&$F11&$G11,比較表2!$B$2:$B$1001&比較表2!$C$2:$C$1001&比較表2!$O$2:$O$1001&比較表2!$F$2:$F$1001&比較表2!$G$2:$G$1001&比較表2!$H$2:$H$1001,比較表2!AN$2:AN$1001)/10000 -> 0 | Q11: =_xlfn.XLOOKUP($B11&$C11&$D11&$E11&$F11&$G11,比較表2!$B$2:$B$1001&比較表2!$C$2:$C$1001&比較表2!$O$2:$O$1001&比較表2!$F$2:$F$1001&比較表2!$G$2:$G$1001&比較表2!$H$2:$H$1001,IF($O$1=1,比較表2!AO$2:AO$1001,IF($O$1=2,比較表2!AP$2:AP$1001,IF($O$1=3,比較表2!AQ$2:AQ$1001,""))))/10000 -> 0
A12: 2 | I12: =_xlfn.XLOOKUP($B12&$C12&$D12&$E12&$F12&$G12,比較表2!$B$2:$B$1001&比較表2!$C$2:$C$1001&比較表2!$O$2:$O$1001&比較表2!$F$2:$F$1001&比較表2!$G$2:$G$1001&比較表2!$H$2:$H$1001,比較表2!L$2:L$1001)/10000 -> 0 | J12: =_xlfn.XLOOKUP($B12&$C12&$D12&$E12&$F12&$G12,比較表2!$B$2:$B$1001&比較表2!$C$2:$C$1001&比較表2!$O$2:$O$1001&比較表2!$F$2:$F$1001&比較表2!$G$2:$G$1001&比較表2!$H$2:$H$1001,比較表2!M$2:M$1001) -> 0 | K12: =_xlfn.XLOOKUP($B12&$C12&$D12&$E12&$F12&$G12,比較表2!$B$2:$B$1001&比較表2!$C$2:$C$1001&比較表2!$O$2:$O$1001&比較表2!$F$2:$F$1001&比較表2!$G$2:$G$1001&比較表2!$H$2:$H$1001,比較表2!P$2:P$1001) -> 0 | L12: =_xlfn.XLOOKUP($B12&$C12&$D12&$E12&$F12&$G12,比較表2!$B$2:$B$1001&比較表2!$C$2:$C$1001&比較表2!$O$2:$O$1001&比較表2!$F$2:$F$1001&比較表2!$G$2:$G$1001&比較表2!$H$2:$H$1001,比較表2!Q$2:Q$1001) -> 0 | M12: =_xlfn.XLOOKUP($B12&$C12&$D12&$E12&$F12&$G12,比較表2!$B$2:$B$1001&比較表2!$C$2:$C$1001&比較表2!$O$2:$O$1001&比較表2!$F$2:$F$1001&比較表2!$G$2:$G$1001&比較表2!$H$2:$H$1001,IF($O$1=1,比較表!R$2:R$1001,IF($O$1=2,比較表!T$2:T$1001,IF($O$1=3,比較表!V$2:V$1001,"")))) -> 0 | N12: =_xlfn.XLOOKUP($B12&$C12&$D12&$E12&$F12&$G12,比較表2!$B$2:$B$1001&比較表2!$C$2:$C$1001&比較表2!$O$2:$O$1001&比較表2!$F$2:$F$1001&比較表2!$G$2:$G$1001&比較表2!$H$2:$H$1001,IF($O$1=1,比較表!S$2:S$1001,IF($O$1=2,比較表!U$2:U$1001,IF($O$1=3,比較表!W$2:W$1001,"")))) -> 0 | O12: =_xlfn.XLOOKUP($B12&$C12&$D12&$E12&$F12&$G12,比較表2!$B$2:$B$1001&比較表2!$C$2:$C$1001&比較表2!$O$2:$O$1001&比較表2!$F$2:$F$1001&比較表2!$G$2:$G$1001&比較表2!$H$2:$H$1001,比較表2!AL$2:AL$1001)/10000 -> 0 | P12: =_xlfn.XLOOKUP($B12&$C12&$D12&$E12&$F12&$G12,比較表2!$B$2:$B$1001&比較表2!$C$2:$C$1001&比較表2!$O$2:$O$1001&比較表2!$F$2:$F$1001&比較表2!$G$2:$G$1001&比較表2!$H$2:$H$1001,比較表2!AN$2:AN$1001)/10000 -> 0 | Q12: =_xlfn.XLOOKUP($B12&$C12&$D12&$E12&$F12&$G12,比較表2!$B$2:$B$1001&比較表2!$C$2:$C$1001&比較表2!$O$2:$O$1001&比較表2!$F$2:$F$1001&比較表2!$G$2:$G$1001&比較表2!$H$2:$H$1001,IF($O$1=1,比較表2!AO$2:AO$1001,IF($O$1=2,比較表2!AP$2:AP$1001,IF($O$1=3,比較表2!AQ$2:AQ$1001,""))))/10000 -> 0
A13: 2 | I13: =_xlfn.XLOOKUP($B13&$C13&$D13&$E13&$F13&$G13,比較表2!$B$2:$B$1001&比較表2!$C$2:$C$1001&比較表2!$O$2:$O$1001&比較表2!$F$2:$F$1001&比較表2!$G$2:$G$1001&比較表2!$H$2:$H$1001,比較表2!L$2:L$1001)/10000 -> 0 | J13: =_xlfn.XLOOKUP($B13&$C13&$D13&$E13&$F13&$G13,比較表2!$B$2:$B$1001&比較表2!$C$2:$C$1001&比較表2!$O$2:$O$1001&比較表2!$F$2:$F$1001&比較表2!$G$2:$G$1001&比較表2!$H$2:$H$1001,比較表2!M$2:M$1001) -> 0 | K13: =_xlfn.XLOOKUP($B13&$C13&$D13&$E13&$F13&$G13,比較表2!$B$2:$B$1001&比較表2!$C$2:$C$1001&比較表2!$O$2:$O$1001&比較表2!$F$2:$F$1001&比較表2!$G$2:$G$1001&比較表2!$H$2:$H$1001,比較表2!P$2:P$1001) -> 0 | L13: =_xlfn.XLOOKUP($B13&$C13&$D13&$E13&$F13&$G13,比較表!$B$2:$B$1001&比較表!$C$2:$C$1001&比較表!$O$2:$O$1001&比較表!$F$2:$F$1001&比較表!$G$2:$G$1001&比較表!$H$2:$H$1001,比較表2!Q$2:Q$1001) -> 0 | M13: =_xlfn.XLOOKUP($B13&$C13&$D13&$E13&$F13&$G13,比較表2!$B$2:$B$1001&比較表2!$C$2:$C$1001&比較表2!$O$2:$O$1001&比較表2!$F$2:$F$1001&比較表2!$G$2:$G$1001&比較表2!$H$2:$H$1001,IF($O$1=1,比較表!R$2:R$1001,IF($O$1=2,比較表!T$2:T$1001,IF($O$1=3,比較表!V$2:V$1001,"")))) -> 0 | N13: =_xlfn.XLOOKUP($B13&$C13&$D13&$E13&$F13&$G13,比較表2!$B$2:$B$1001&比較表2!$C$2:$C$1001&比較表2!$O$2:$O$1001&比較表2!$F$2:$F$1001&比較表2!$G$2:$G$1001&比較表2!$H$2:$H$1001,IF($O$1=1,比較表!S$2:S$1001,IF($O$1=2,比較表!U$2:U$1001,IF($O$1=3,比較表!W$2:W$1001,"")))) -> 0 | O13: =_xlfn.XLOOKUP($B13&$C13&$D13&$E13&$F13&$G13,比較表2!$B$2:$B$1001&比較表2!$C$2:$C$1001&比較表2!$O$2:$O$1001&比較表2!$F$2:$F$1001&比較表2!$G$2:$G$1001&比較表2!$H$2:$H$1001,比較表2!AL$2:AL$1001)/10000 -> 0 | P13: =_xlfn.XLOOKUP($B13&$C13&$D13&$E13&$F13&$G13,比較表2!$B$2:$B$1001&比較表2!$C$2:$C$1001&比較表2!$O$2:$O$1001&比較表2!$F$2:$F$1001&比較表2!$G$2:$G$1001&比較表2!$H$2:$H$1001,比較表2!AN$2:AN$1001)/10000 -> 0 | Q13: =_xlfn.XLOOKUP($B13&$C13&$D13&$E13&$F13&$G13,比較表2!$B$2:$B$1001&比較表2!$C$2:$C$1001&比較表2!$O$2:$O$1001&比較表2!$F$2:$F$1001&比較表2!$G$2:$G$1001&比較表2!$H$2:$H$1001,IF($O$1=1,比較表2!AO$2:AO$1001,IF($O$1=2,比較表2!AP$2:AP$1001,IF($O$1=3,比較表2!AQ$2:AQ$1001,""))))/10000 -> 0
A14: 2 | I14: =_xlfn.XLOOKUP($B14&$C14&$D14&$E14&$F14&$G14,比較表2!$B$2:$B$1001&比較表2!$C$2:$C$1001&比較表2!$O$2:$O$1001&比較表2!$F$2:$F$1001&比較表2!$G$2:$G$1001&比較表2!$H$2:$H$1001,比較表2!L$2:L$1001)/10000 -> 0 | J14: =_xlfn.XLOOKUP($B14&$C14&$D14&$E14&$F14&$G14,比較表2!$B$2:$B$1001&比較表2!$C$2:$C$1001&比較表2!$O$2:$O$1001&比較表2!$F$2:$F$1001&比較表2!$G$2:$G$1001&比較表2!$H$2:$H$1001,比較表2!M$2:M$1001) -> 0 | K14: =_xlfn.XLOOKUP($B14&$C14&$D14&$E14&$F14&$G14,比較表2!$B$2:$B$1001&比較表2!$C$2:$C$1001&比較表2!$O$2:$O$1001&比較表2!$F$2:$F$1001&比較表2!$G$2:$G$1001&比較表2!$H$2:$H$1001,比較表2!P$2:P$1001) -> 0 | L14: =_xlfn.XLOOKUP($B14&$C14&$D14&$E14&$F14&$G14,比較表2!$B$2:$B$1001&比較表2!$C$2:$C$1001&比較表2!$O$2:$O$1001&比較表2!$F$2:$F$1001&比較表2!$G$2:$G$1001&比較表2!$H$2:$H$1001,比較表2!Q$2:Q$1001) -> 0 | M14: =_xlfn.XLOOKUP($B14&$C14&$D14&$E14&$F14&$G14,比較表2!$B$2:$B$1001&比較表2!$C$2:$C$1001&比較表2!$O$2:$O$1001&比較表2!$F$2:$F$1001&比較表2!$G$2:$G$1001&比較表2!$H$2:$H$1001,IF($O$1=1,比較表!R$2:R$1001,IF($O$1=2,比較表!T$2:T$1001,IF($O$1=3,比較表!V$2:V$1001,"")))) -> 0 | N14: =_xlfn.XLOOKUP($B14&$C14&$D14&$E14&$F14&$G14,比較表2!$B$2:$B$1001&比較表2!$C$2:$C$1001&比較表2!$O$2:$O$1001&比較表2!$F$2:$F$1001&比較表2!$G$2:$G$1001&比較表2!$H$2:$H$1001,IF($O$1=1,比較表!S$2:S$1001,IF($O$1=2,比較表!U$2:U$1001,IF($O$1=3,比較表!W$2:W$1001,"")))) -> 0 | O14: =_xlfn.XLOOKUP($B14&$C14&$D14&$E14&$F14&$G14,比較表2!$B$2:$B$1001&比較表2!$C$2:$C$1001&比較表2!$O$2:$O$1001&比較表2!$F$2:$F$1001&比較表2!$G$2:$G$1001&比較表2!$H$2:$H$1001,比較表2!AL$2:AL$1001)/10000 -> 0 | P14: =_xlfn.XLOOKUP($B14&$C14&$D14&$E14&$F14&$G14,比較表2!$B$2:$B$1001&比較表2!$C$2:$C$1001&比較表2!$O$2:$O$1001&比較表2!$F$2:$F$1001&比較表2!$G$2:$G$1001&比較表2!$H$2:$H$1001,比較表2!AN$2:AN$1001)/10000 -> 0 | Q14: =_xlfn.XLOOKUP($B14&$C14&$D14&$E14&$F14&$G14,比較表2!$B$2:$B$1001&比較表2!$C$2:$C$1001&比較表2!$O$2:$O$1001&比較表2!$F$2:$F$1001&比較表2!$G$2:$G$1001&比較表2!$H$2:$H$1001,IF($O$1=1,比較表2!AO$2:AO$1001,IF($O$1=2,比較表2!AP$2:AP$1001,IF($O$1=3,比較表2!AQ$2:AQ$1001,""))))/10000 -> 0
A15: 2 | I15: =_xlfn.XLOOKUP($B15&$C15&$D15&$E15&$F15&$G15,比較表2!$B$2:$B$1001&比較表2!$C$2:$C$1001&比較表2!$O$2:$O$1001&比較表2!$F$2:$F$1001&比較表2!$G$2:$G$1001&比較表2!$H$2:$H$1001,比較表2!L$2:L$1001)/10000 -> 0 | J15: =_xlfn.XLOOKUP($B15&$C15&$D15&$E15&$F15&$G15,比較表2!$B$2:$B$1001&比較表2!$C$2:$C$1001&比較表2!$O$2:$O$1001&比較表2!$F$2:$F$1001&比較表2!$G$2:$G$1001&比較表2!$H$2:$H$1001,比較表2!M$2:M$1001) -> 0 | K15: =_xlfn.XLOOKUP($B15&$C15&$D15&$E15&$F15&$G15,比較表2!$B$2:$B$1001&比較表2!$C$2:$C$1001&比較表2!$O$2:$O$1001&比較表2!$F$2:$F$1001&比較表2!$G$2:$G$1001&比較表2!$H$2:$H$1001,比較表2!P$2:P$1001) -> 0 | L15: =_xlfn.XLOOKUP($B15&$C15&$D15&$E15&$F15&$G15,比較表2!$B$2:$B$1001&比較表2!$C$2:$C$1001&比較表2!$O$2:$O$1001&比較表2!$F$2:$F$1001&比較表2!$G$2:$G$1001&比較表2!$H$2:$H$1001,比較表2!Q$2:Q$1001) -> 0 | M15: =_xlfn.XLOOKUP($B15&$C15&$D15&$E15&$F15&$G15,比較表2!$B$2:$B$1001&比較表2!$C$2:$C$1001&比較表2!$O$2:$O$1001&比較表2!$F$2:$F$1001&比較表2!$G$2:$G$1001&比較表2!$H$2:$H$1001,IF($O$1=1,比較表!R$2:R$1001,IF($O$1=2,比較表!T$2:T$1001,IF($O$1=3,比較表!V$2:V$1001,"")))) -> 0 | N15: =_xlfn.XLOOKUP($B15&$C15&$D15&$E15&$F15&$G15,比較表2!$B$2:$B$1001&比較表2!$C$2:$C$1001&比較表2!$O$2:$O$1001&比較表2!$F$2:$F$1001&比較表2!$G$2:$G$1001&比較表2!$H$2:$H$1001,IF($O$1=1,比較表!S$2:S$1001,IF($O$1=2,比較表!U$2:U$1001,IF($O$1=3,比較表!W$2:W$1001,"")))) -> 0 | O15: =_xlfn.XLOOKUP($B15&$C15&$D15&$E15&$F15&$G15,比較表2!$B$2:$B$1001&比較表2!$C$2:$C$1001&比較表2!$O$2:$O$1001&比較表2!$F$2:$F$1001&比較表2!$G$2:$G$1001&比較表2!$H$2:$H$1001,比較表2!AL$2:AL$1001)/10000 -> 0 | P15: =_xlfn.XLOOKUP($B15&$C15&$D15&$E15&$F15&$G15,比較表2!$B$2:$B$1001&比較表2!$C$2:$C$1001&比較表2!$O$2:$O$1001&比較表2!$F$2:$F$1001&比較表2!$G$2:$G$1001&比較表2!$H$2:$H$1001,比較表2!AN$2:AN$1001)/10000 -> 0 | Q15: =_xlfn.XLOOKUP($B15&$C15&$D15&$E15&$F15&$G15,比較表2!$B$2:$B$1001&比較表2!$C$2:$C$1001&比較表2!$O$2:$O$1001&比較表2!$F$2:$F$1001&比較表2!$G$2:$G$1001&比較表2!$H$2:$H$1001,IF($O$1=1,比較表2!AO$2:AO$1001,IF($O$1=2,比較表2!AP$2:AP$1001,IF($O$1=3,比較表2!AQ$2:AQ$1001,""))))/10000 -> 0

Sheet 諸費用
A1: # | B1: 手数料T | C1: 金融機関名 | E1: 商品名 | F1: 融資タイプ | G1: つなぎ融資 | H1: 物件新旧 | I1: 物件種類 | J1: 借入金額 | K1: 借入期間 | L1: 土地 | M1: （建物） | N1: 残債 | O1: 工事費用 | P1: つなぎ融資 | Q1: 定率 | R1: 定額 | S1: 担保取扱手数料 | T1: 融資手数料 | U1: 保証料 | V1: 収入印紙または電子契約手数料 | W1: 所有権移転登記 | X1: 表示登記 | Y1: 保存登記 | Z1: 抵当権設定登記 | AA1: 抵当権仮設定登記 | AB1: 追加登記 | AC1: 司法書士報酬 | AD1: つなぎ手数料 | AE1: つなぎ金利 | AF1: つなぎ収入印紙 | AG1: 諸費用合計 | AH1: つなぎ金融機関 | AI1: つなぎ金利 | AN1: 所有権移転登記 | AO1: 表題登記 | AP1: 保存登記 | AS1: 所有権移転登記 | AV1: 保存登記 | AW1: 抵当権設定 | AX1: 追加登記
A2: 1 | B2: 手数料定率 | C2: ソニー銀行 | E2: =当月!C5 -> 変動セレクト／固定セレクト | F2: 最終一括 | G2: =IF(資金調達!D$4=1,0,IF(金利手数料一覧!Y$1=2,0,IF(F2="当初一括",0,IF(F2="分割3回",1,IF(資金調達!M$20>0,1,0))))) -> 1 | H2: =資金調達!D$3 -> 1 | I2: =資金調達!D$4 -> 2 | J2: =中間処理!C18/10000 -> 4000 | K2: =中間処理!D18 -> 35 | L2: =IF(OR(I2=2,I2=5),資金調達!E$12,IF(I2=4,資金調達!E$11,IF(I2=1,資金調達!E$11,0)))+IF(D2="フラット35",0,資金調達!E$16) -> 1500 | M2: =資金調達!E$12-資金調達!E$13 -> 1500 | N2: =資金調達!E16 -> 0 | O2: =IF(I2=1,資金調達!E$11,IF(I2=4,資金調達!E$11,資金調達!E$14)) -> 3000 | P2: =IF(I2=1,0,IF(OR(F2="当初一括",F2="分割4回"),0,IF(OR(I2=4,I2=5),資金調達!M$11,IF(F2="分割3回",資金調達!M$15,IF(F2="分割2回",資金調達!M$14+資金調達!M$15,SUM(資金調達!M$11:M$15)))))) -> 3300 | Q2: =金利手数料一覧!U5 -> 0.022 | T2: =IF(J2=0,0,IF(COUNTIF(B2,"*定率")=1,J2*10000*Q2,0)+IF(COUNTIF(B2,"*定額")=1,R2,0)) -> 880000 | U2: =IF(B2="保証料前払い",J2*10000*Q2,0) -> 0 | V2: 0 | W2: =IF(OR(I2=1,0,中間処理!A2=2),0,VLOOKUP(I2,AR$3:AU$13,4,FALSE)) -> 135000 | X2: =IF(H2=1,IF(中間処理!A2=2,0,IF(I2=1,0,AO$7)),0) -> 100000 | Y2: =IF(H2=1,IF(中間処理!A2=2,0,VLOOKUP(I2,AR$3:AV$13,5,FALSE)),0) -> 22500 | Z2: =INT(IF(OR(I2=4,I2=5,F2="最終一括"),0.1%,0.4%)*J2*10000) -> 40000 | AA2: =IF(G2=0,0,1000) -> 1000 | AB2: =IF(OR(I2=1,F2="最終一括"),0,3300) -> 0 | AC2: =IF(J2=0,0,IF(中間処理!A$2=2,0,IF(L2>0,120000,0)+IF(AB2>0,1,0)*120000+IF(AND(P2>0,OR(AH2="東光商事",AH2="アプラス")),80000,0))) -> 200000 | AD2: =IF(G2=0,0,110000) -> 110000 | AE2: =INT(IF(G2>0,IF(OR(I2=4,I2=5),資金調達!O$43,IF(F2="分割2回",資金調達!O$41,IF(F2="分割3回",資金調達!O$42,資金調達!O$40)))*10000*AI2/12,0)) -> 427750 | AF2: =IF(AE2>0,VLOOKUP(P2*10000,table!B$3:C$11,2,TRUE),0) -> 20000 | AG2: =SUM(S2:AE2) -> 1916250 | AH2: 東光商事 | AI2: 0.029 | AS2: 土地 | AT2: 建物 | AU2: 合計
A3: 2 | B3: 手数料定額 | C3: ソニー銀行 | E3: 住宅ローン | F3: 最終一括 | G3: =IF(資金調達!D$4=1,0,IF(金利手数料一覧!Y$1=2,0,IF(F3="当初一括",0,IF(F3="分割3回",1,IF(資金調達!M$20>0,1,0))))) -> 1 | H3: =資金調達!D$3 -> 1 | I3: =資金調達!D$4 -> 2 | J3: =J2 -> 4000 | K3: 35 | L3: =IF(OR(I3=2,I3=5),資金調達!E$12,IF(I3=4,資金調達!E$11,IF(I3=1,資金調達!E$11,0)))+IF(D3="フラット35",0,資金調達!E$16) -> 1500 | M3: =資金調達!E$12-資金調達!E$13 -> 1500 | N3: =N2 -> 0 | O3: =IF(I3=1,資金調達!E$11,IF(I3=4,資金調達!E$11,資金調達!E$14)) -> 3000 | P3: =IF(I3=1,0,IF(OR(F3="当初一括",F3="分割4回"),0,IF(OR(I3=4,I3=5),資金調達!M$11,IF(F3="分割3回",資金調達!M$15,IF(F3="分割2回",資金調達!M$14+資金調達!M$15,SUM(資金調達!M$11:M$15)))))) -> 3300 | R3: =金利手数料一覧!U3 -> 44000 | T3: 44000 | U3: 0 | V3: 0 | W3: =IF(OR(I3=1,0,中間処理!A3=2),0,VLOOKUP(I3,AR$3:AU$13,4,FALSE)) -> 135000 | X3: =IF(H3=1,IF(中間処理!A3=2,0,IF(I3=1,0,AO$7)),0) -> 100000 | Y3: =IF(H3=1,IF(中間処理!A3=2,0,VLOOKUP(I3,AR$3:AV$13,5,FALSE)),0) -> 22500 | Z3: =INT(IF(OR(I3=4,I3=5,F3="最終一括"),0.1%,0.4%)*J3*10000) -> 40000 | AA3: 1000 | AB3: 0 | AC3: =IF(J3=0,0,IF(中間処理!A$2=2,0,IF(L3>0,120000,0)+IF(AB3>0,1,0)*120000+IF(AND(P3>0,OR(AH3="東光商事",AH3="アプラス")),80000,0))) -> 200000 | AD3: =IF(G3=0,0,110000) -> 110000 | AE3: =INT(IF(G3>0,IF(OR(I3=4,I3=5),資金調達!O$43,IF(F3="分割2回",資金調達!O$41,IF(F3="分割3回",資金調達!O$42,資金調達!O$40)))*10000*AI3/12,0)) -> 427750 | AF3: =IF(AE3>0,VLOOKUP(P3*10000,table!B$3:C$11,2,TRUE),0) -> 20000 | AG3: 1080250 | AH3: 東光商事 | AI3: =AI2 -> 0.029 | AL3: マンション | AM3: 土地 | AN3: 0 | AO3: 0 | AR3: 1 | AS3: =L2*AN3 -> 0 | AT3: =INT(O2*10000/2*AN4) -> 45000 | AU3: =AS3+AT3 -> 45000 | AV3: =INT(O2*10000/2*AP4) -> 22500 | AW3: =IF(F2="最終一括",0.1%,0.4%)*J2*10000 -> 40000
A4: 3 | B4: 手数料定率 | C4: 三菱UFJ信託銀行 | E4: =当月!B16 -> 三菱UFJネット住宅ローン | F4: =IF(L4=0,"最終一括","分割2回") -> 分割2回 | G4: =IF(資金調達!D$4=1,0,IF(金利手数料一覧!Y$1=2,0,IF(F4="当初一括",0,IF(F4="分割3回",1,IF(資金調達!M$20>0,1,0))))) -> 1 | H4: =資金調達!D$3 -> 1 | I4: =資金調達!D$4 -> 2 | J4: 4000 | K4: 35 | L4: =IF(OR(I4=2,I4=5),資金調達!E$12,IF(I4=4,資金調達!E$11,IF(I4=1,資金調達!E$11,0)))+IF(D4="フラット35",0,資金調達!E$16) -> 1500 | M4: =資金調達!E$12-資金調達!E$13 -> 1500 | N4: =N3 -> 0 | O4: =IF(I4=1,資金調達!E$11,IF(I4=4,資金調達!E$11,資金調達!E$14)) -> 3000 | P4: =IF(I4=1,0,IF(OR(F4="当初一括",F4="分割4回"),0,IF(OR(I4=4,I4=5),資金調達!M$11,IF(F4="分割3回",資金調達!M$15,IF(F4="分割2回",資金調達!M$14+資金調達!M$15,SUM(資金調達!M$11:M$15)))))) -> 1800 | Q4: =金利手数料一覧!U12 -> 0.022 | T4: 880000 | U4: 0 | V4: 0 | W4: =IF(OR(I4=1,0,中間処理!A4=2),0,VLOOKUP(I4,AR$3:AU$13,4,FALSE)) -> 135000 | X4: =IF(H4=1,IF(中間処理!A4=2,0,IF(I4=1,0,AO$7)),0) -> 100000 | Y4: =IF(H4=1,IF(中間処理!A4=2,0,VLOOKUP(I4,AR$3:AV$13,5,FALSE)),0) -> 22500 | Z4: 160000 | AA4: 1000 | AB4: 3300 | AC4: =IF(J4=0,0,IF(中間処理!A$2=2,0,IF(L4>0,120000,0)+IF(AB4>0,1,0)*120000+IF(AND(P4>0,OR(AH4="東光商事",AH4="アプラス")),80000,0))) -> 320000 | AD4: 110000 | AE4: =INT(IF(G4>0,IF(OR(I4=4,I4=5),資金調達!O$43,IF(F4="分割2回",資金調達!O$41,IF(F4="分割3回",資金調達!O$42,資金調達!O$40)))*10000*AI4/12,0)) -> 174000 | AF4: =IF(AE4>0,VLOOKUP(P4*10000,table!B$3:C$11,2,TRUE),0) -> 20000 | AG4: 1905800 | AH4: 東光商事 | AI4: =AI3 -> 0.029 | AM4: 建物 | AN4: 0.003 | AO4: =予算計画!F51*10000 -> 100000 | AP4: 0.0015 | AR4: 2 | AS4: =L2*10000/2*AN5 -> 112500 | AT4: =INT(M2*10000/2*AN6) -> 22500 | AU4: =AS4+AT4 -> 135000 | AV4: =INT(O2*10000/2*AP7) -> 22500
A5: 4 | B5: 手数料定率 | C5: 三井住友信託銀行 | E5: =当月!B27 -> 住まいのアシスト | F5: =IF(L5=0,"最終一括","分割2回") -> 分割2回 | G5: =IF(資金調達!D$4=1,0,IF(金利手数料一覧!Y$1=2,0,IF(F5="当初一括",0,IF(F5="分割3回",1,IF(資金調達!M$20>0,1,0))))) -> 1 | H5: =資金調達!D$3 -> 1 | I5: =資金調達!D$4 -> 2 | J5: 4000 | K5: 35 | L5: =IF(OR(I5=2,I5=5),資金調達!E$12,IF(I5=4,資金調達!E$11,IF(I5=1,資金調達!E$11,0)))+IF(D5="フラット35",0,資金調達!E$16) -> 1500 | M5: =資金調達!E$12-資金調達!E$13 -> 1500 | N5: 0 | O5: =IF(I5=1,資金調達!E$11,IF(I5=4,資金調達!E$11,資金調達!E$14)) -> 3000 | P5: =IF(I5=1,0,IF(OR(F5="当初一括",F5="分割4回"),0,IF(OR(I5=4,I5=5),資金調達!M$11,IF(F5="分割3回",資金調達!M$15,IF(F5="分割2回",資金調達!M$14+資金調達!M$15,SUM(資金調達!M$11:M$15)))))) -> 1800 | Q5: =金利手数料一覧!U21 -> 0.022 | S5: 33000 | T5: 880000 | U5: 0 | V5: =IFERROR(VLOOKUP(J5*10000,table!B$3:C$11,2,TRUE),0) -> 20000 | W5: =IF(OR(I5=1,0,中間処理!A5=2),0,VLOOKUP(I5,AR$3:AU$13,4,FALSE)) -> 135000 | X5: =IF(H5=1,IF(中間処理!A5=2,0,IF(I5=1,0,AO$7)),0) -> 100000 | Y5: =IF(H5=1,IF(中間処理!A5=2,0,VLOOKUP(I5,AR$3:AV$13,5,FALSE)),0) -> 22500 | Z5: 160000 | AA5: 1000 | AB5: 3300 | AC5: =IF(J5=0,0,IF(中間処理!A$2=2,0,IF(L5>0,120000,0)+IF(AB5>0,1,0)*120000+IF(AND(P5>0,OR(AH5="東光商事",AH5="アプラス")),80000,0))) -> 320000 | AD5: 110000 | AE5: =INT(IF(G5>0,IF(OR(I5=4,I5=5),資金調達!O$43,IF(F5="分割2回",資金調達!O$41,IF(F5="分割3回",資金調達!O$42,資金調達!O$40)))*10000*AI5/12,0)) -> 174000 | AF5: =IF(AE5>0,VLOOKUP(P5*10000,table!B$3:C$11,2,TRUE),0) -> 20000 | AG5: 1958800 | AH5: 東光商事 | AI5: =AI4 -> 0.029 | AL5: 土地＋建物 | AM5: 土地 | AN5: 0.015 | AO5: 0 | AR5: 3 | AS5: 0 | AT5: =INT(M2*10000/2*AN7) -> 22500 | AU5: 22500 | AV5: =AV4 -> 22500
A6: 5 | B6: 保証料前払い | C6: 三井住友信託銀行 | E6: =E5 -> 住まいのアシスト | F6: =IF(L6=0,"最終一括","分割2回") -> 分割2回 | G6: =IF(資金調達!D$4=1,0,IF(金利手数料一覧!Y$1=2,0,IF(F6="当初一括",0,IF(F6="分割3回",1,IF(資金調達!M$20>0,1,0))))) -> 1 | H6: =資金調達!D$3 -> 1 | I6: =資金調達!D$4 -> 2 | J6: 4000 | K6: 35 | L6: =IF(OR(I6=2,I6=5),資金調達!E$12,IF(I6=4,資金調達!E$11,IF(I6=1,資金調達!E$11,0)))+IF(D6="フラット35",0,資金調達!E$16) -> 1500 | M6: =資金調達!E$12-資金調達!E$13 -> 1500 | N6: 0 | O6: =IF(I6=1,資金調達!E$11,IF(I6=4,資金調達!E$11,資金調達!E$14)) -> 3000 | P6: =IF(I6=1,0,IF(OR(F6="当初一括",F6="分割4回"),0,IF(OR(I6=4,I6=5),資金調達!M$11,IF(F6="分割3回",資金調達!M$15,IF(F6="分割2回",資金調達!M$14+資金調達!M$15,SUM(資金調達!M$11:M$15)))))) -> 1800 | Q6: =HLOOKUP(K6,table!$AO$2:$BX$3,2) -> 0.020611 | S6: 33000 | T6: 0 | U6: 824440 | V6: =IFERROR(VLOOKUP(J6*10000,table!B$3:C$11,2,TRUE),0) -> 20000 | W6: =IF(OR(I6=1,0,中間処理!A6=2),0,VLOOKUP(I6,AR$3:AU$13,4,FALSE)) -> 135000 | X6: =IF(H6=1,IF(中間処理!A6=2,0,IF(I6=1,0,AO$7)),0) -> 100000 | Y6: =IF(H6=1,IF(中間処理!A6=2,0,VLOOKUP(I6,AR$3:AV$13,5,FALSE)),0) -> 22500 | Z6: 160000 | AA6: 1000 | AB6: 3300 | AC6: =IF(J6=0,0,IF(中間処理!A$2=2,0,IF(L6>0,120000,0)+IF(AB6>0,1,0)*120000+IF(AND(P6>0,OR(AH6="東光商事",AH6="アプラス")),80000,0))) -> 320000 | AD6: 110000 | AE6: =INT(IF(G6>0,IF(OR(I6=4,I6=5),資金調達!O$43,IF(F6="分割2回",資金調達!O$41,IF(F6="分割3回",資金調達!O$42,資金調達!O$40)))*10000*AI6/12,0)) -> 174000 | AF6: =IF(AE6>0,VLOOKUP(P6*10000,table!B$3:C$11,2,TRUE),0) -> 20000 | AG6: 1903240 | AH6: 東光商事 | AI6: =AI5 -> 0.029 | AL6: 購入物件 | AM6: 建物 | AN6: 0.003 | AO6: 0 | AR6: 4 | AS6: 0 | AT6: =資金調達!E11*10000/2*AN4 -> 0 | AU6: 0
A7: 6 | B7: 保証料後払い | C7: 三井住友信託銀行 | E7: =E6 -> 住まいのアシスト | F7: =IF(L7=0,"最終一括","分割2回") -> 分割2回 | G7: =IF(資金調達!D$4=1,0,IF(金利手数料一覧!Y$1=2,0,IF(F7="当初一括",0,IF(F7="分割3回",1,IF(資金調達!M$20>0,1,0))))) -> 1 | H7: =資金調達!D$3 -> 1 | I7: =資金調達!D$4 -> 2 | J7: 4000 | K7: 35 | L7: =IF(OR(I7=2,I7=5),資金調達!E$12,IF(I7=4,資金調達!E$11,IF(I7=1,資金調達!E$11,0)))+IF(D7="フラット35",0,資金調達!E$16) -> 1500 | M7: =資金調達!E$12-資金調達!E$13 -> 1500 | N7: 0 | O7: =IF(I7=1,資金調達!E$11,IF(I7=4,資金調達!E$11,資金調達!E$14)) -> 3000 | P7: =IF(I7=1,0,IF(OR(F7="当初一括",F7="分割4回"),0,IF(OR(I7=4,I7=5),資金調達!M$11,IF(F7="分割3回",資金調達!M$15,IF(F7="分割2回",資金調達!M$14+資金調達!M$15,SUM(資金調達!M$11:M$15)))))) -> 1800 | S7: 33000 | T7: 0 | U7: 0 | V7: =IFERROR(VLOOKUP(J7*10000,table!B$3:C$11,2,TRUE),0) -> 20000 | W7: =IF(OR(I7=1,0,中間処理!A7=2),0,VLOOKUP(I7,AR$3:AU$13,4,FALSE)) -> 0 | X7: =IF(H7=1,IF(中間処理!A7=2,0,IF(I7=1,0,AO$7)),0) -> 0 | Y7: =IF(H7=1,IF(中間処理!A7=2,0,VLOOKUP(I7,AR$3:AV$13,5,FALSE)),0) -> 0 | Z7: 160000 | AA7: 1000 | AB7: 3300 | AC7: =IF(J7=0,0,IF(中間処理!A$2=2,0,IF(L7>0,120000,0)+IF(AB7>0,1,0)*120000+IF(AND(P7>0,OR(AH7="東光商事",AH7="アプラス")),80000,0))) -> 320000 | AD7: 110000 | AE7: =INT(IF(G7>0,IF(OR(I7=4,I7=5),資金調達!O$43,IF(F7="分割2回",資金調達!O$41,IF(F7="分割3回",資金調達!O$42,資金調達!O$40)))*10000*AI7/12,0)) -> 174000 | AF7: =IF(AE7>0,VLOOKUP(P7*10000,table!B$3:C$11,2,TRUE),0) -> 20000 | AG7: 821300 | AH7: 東光商事 | AI7: =AI6 -> 0.029 | AL7: 建物 | AM7: 建物 | AN7: 0.003 | AO7: =AO4 -> 100000 | AP7: 0.0015 | AR7: 5 | AS7: =AS4 -> 112500 | AT7: =INT(M2*10000/2*AN6) -> 22500 | AU7: 135000
A8: 7 | B8: 手数料定率 | C8: 三井住友信託銀行 | D8: フラット35 | E8: フラット35 | F8: 最終一括 | G8: =IF(資金調達!D$4=1,0,IF(金利手数料一覧!Y$1=2,0,IF(F8="当初一括",0,IF(F8="分割3回",1,IF(資金調達!M$20>0,1,0))))) -> 1 | H8: =資金調達!D$3 -> 1 | I8: =資金調達!D$4 -> 2 | J8: =IF(中間処理!J18>0.9,IF(中間処理!A2=1,中間処理!L10,中間処理!L11)*0.9,中間処理!C18)/10000 -> 4000 | K8: =K7 -> 35 | L8: =IF(OR(I8=2,I8=5),資金調達!E$12,IF(I8=4,資金調達!E$11,IF(I8=1,資金調達!E$11,0)))+IF(D8="フラット35",0,資金調達!E$16) -> 1500 | M8: =資金調達!E$12-資金調達!E$13 -> 1500 | N8: 0 | O8: =IF(I8=1,資金調達!E$11,IF(I8=4,資金調達!E$11,資金調達!E$14)) -> 3000 | P8: =IF(I8=1,0,IF(OR(F8="当初一括",F8="分割4回"),0,IF(OR(I8=4,I8=5),資金調達!M$11,IF(F8="分割3回",資金調達!M$15,IF(F8="分割2回",資金調達!M$14+資金調達!M$15,SUM(資金調達!M$11:M$15)))))) -> 3300 | Q8: =金利手数料一覧!U25 -> 0.0099 | T8: 396000 | U8: 0 | V8: =IFERROR(VLOOKUP(J8*10000,table!B$3:C$11,2,TRUE),0) -> 20000 | W8: =IF(OR(I8=1,0,中間処理!A8=2),0,VLOOKUP(I8,AR$3:AU$13,4,FALSE)) -> 135000 | X8: =IF(H8=1,IF(中間処理!A8=2,0,IF(I8=1,0,AO$7)),0) -> 100000 | Y8: =IF(H8=1,IF(中間処理!A8=2,0,VLOOKUP(I8,AR$3:AV$13,5,FALSE)),0) -> 22500 | Z8: 40000 | AA8: 1000 | AB8: 0 | AC8: =IF(J8=0,0,IF(中間処理!A$2=2,0,IF(L8>0,120000,0)+IF(AB8>0,1,0)*120000+IF(AND(P8>0,OR(AH8="東光商事",AH8="アプラス")),80000,0))) -> 120000 | AD8: 0 | AE8: =INT(IF(G8>0,IF(OR(I8=4,I8=5),資金調達!O$43,IF(F8="分割2回",資金調達!O$41,IF(F8="分割3回",資金調達!O$42,資金調達!O$40)))*10000*AI8/12,0)) -> 505187 | AF8: =IF(AE8>0,VLOOKUP(P8*10000,table!B$3:C$11,2,TRUE),0) -> 20000 | AG8: 1339687 | AH8: プロパー | AI8: 0.03425
A9: 8 | B9: 手数料定率 | C9: 三井住友信託銀行 | D9: フラット35 | E9: フラット35 90%over | F9: 最終一括 | G9: =IF(資金調達!D$4=1,0,IF(金利手数料一覧!Y$1=2,0,IF(F9="当初一括",0,IF(F9="分割3回",1,IF(資金調達!M$20>0,1,0))))) -> 1 | H9: =資金調達!D$3 -> 1 | I9: =資金調達!D$4 -> 2 | J9: =IF(中間処理!I18>0.9,J7,0) -> 0 | K9: 35 | L9: =IF(OR(I9=2,I9=5),資金調達!E$12,IF(I9=4,資金調達!E$11,IF(I9=1,資金調達!E$11,0)))+IF(D9="フラット35",0,資金調達!E$16) -> 1500 | M9: =資金調達!E$12-資金調達!E$13 -> 1500 | N9: 0 | O9: =IF(I9=1,資金調達!E$11,IF(I9=4,資金調達!E$11,資金調達!E$14)) -> 3000 | P9: =IF(I9=1,0,IF(OR(F9="当初一括",F9="分割4回"),0,IF(OR(I9=4,I9=5),資金調達!M$11,IF(F9="分割3回",資金調達!M$15,IF(F9="分割2回",資金調達!M$14+資金調達!M$15,SUM(資金調達!M$11:M$15)))))) -> 3300 | Q9: =Q8 -> 0.0099 | T9: 0 | U9: 0 | V9: =IFERROR(VLOOKUP(J9*10000,table!B$3:C$11,2,TRUE),0) -> 0 | W9: =IF(OR(I9=1,0,中間処理!A9=2),0,VLOOKUP(I9,AR$3:AU$13,4,FALSE)) -> 135000 | X9: =IF(H9=1,IF(中間処理!A9=2,0,IF(I9=1,0,AO$7)),0) -> 100000 | Y9: =IF(H9=1,IF(中間処理!A9=2,0,VLOOKUP(I9,AR$3:AV$13,5,FALSE)),0) -> 22500 | Z9: 0 | AA9: 1000 | AB9: 0 | AC9: =IF(J9=0,0,IF(中間処理!A$2=2,0,IF(L9>0,120000,0)+IF(AB9>0,1,0)*120000+IF(AND(P9>0,OR(AH9="東光商事",AH9="アプラス")),80000,0))) -> 0 | AD9: 0 | AE9: =INT(IF(G9>0,IF(OR(I9=4,I9=5),資金調達!O$43,IF(F9="分割2回",資金調達!O$41,IF(F9="分割3回",資金調達!O$42,資金調達!O$40)))*10000*AI9/12,0)) -> 505187 | AF9: =IF(AE9>0,VLOOKUP(P9*10000,table!B$3:C$11,2,TRUE),0) -> 20000 | AG9: 763687 | AH9: プロパー | AI9: =AI8 -> 0.03425
A10: 9 | B10: 手数料定額 | C10: 三井住友信託銀行 | D10: フラット35 | E10: フラット35 | F10: 最終一括 | G10: =IF(資金調達!D$4=1,0,IF(金利手数料一覧!Y$1=2,0,IF(F10="当初一括",0,IF(F10="分割3回",1,IF(資金調達!M$20>0,1,0))))) -> 1 | H10: =資金調達!D$3 -> 1 | I10: =資金調達!D$4 -> 2 | J10: =J8 -> 4000 | K10: 35 | L10: =IF(OR(I10=2,I10=5),資金調達!E$12,IF(I10=4,資金調達!E$11,IF(I10=1,資金調達!E$11,0)))+IF(D10="フラット35",0,資金調達!E$16) -> 1500 | M10: =資金調達!E$12-資金調達!E$13 -> 1500 | N10: 0 | O10: =IF(I10=1,資金調達!E$11,IF(I10=4,資金調達!E$11,資金調達!E$14)) -> 3000 | P10: =IF(I10=1,0,IF(OR(F10="当初一括",F10="分割4回"),0,IF(OR(I10=4,I10=5),資金調達!M$11,IF(F10="分割3回",資金調達!M$15,IF(F10="分割2回",資金調達!M$14+資金調達!M$15,SUM(資金調達!M$11:M$15)))))) -> 3300 | R10: 0 | T10: 0 | U10: 0 | V10: =IFERROR(VLOOKUP(J10*10000,table!B$3:C$11,2,TRUE),0) -> 20000 | W10: =IF(OR(I10=1,0,中間処理!A10=2),0,VLOOKUP(I10,AR$3:AU$13,4,FALSE)) -> 135000 | X10: =IF(H10=1,IF(中間処理!A10=2,0,IF(I10=1,0,AO$7)),0) -> 100000 | Y10: =IF(H10=1,IF(中間処理!A10=2,0,VLOOKUP(I10,AR$3:AV$13,5,FALSE)),0) -> 22500 | Z10: 40000 | AA10: 1000 | AB10: 0 | AC10: =IF(J10=0,0,IF(中間処理!A$2=2,0,IF(L10>0,120000,0)+IF(AB10>0,1,0)*120000+IF(AND(P10>0,OR(AH10="東光商事",AH10="アプラス")),80000,0))) -> 120000 | AD10: 0 | AE10: =INT(IF(G10>0,IF(OR(I10=4,I10=5),資金調達!O$43,IF(F10="分割2回",資金調達!O$41,IF(F10="分割3回",資金調達!O$42,資金調達!O$40)))*10000*AI10/12,0)) -> 505187 | AF10: =IF(AE10>0,VLOOKUP(P10*10000,table!B$3:C$11,2,TRUE),0) -> 20000 | AG10: 943687 | AH10: プロパー | AI10: =AI9 -> 0.03425
A11: 10 | B11: 手数料定額 | C11: 三井住友信託銀行 | D11: フラット35 | E11: フラット35 90%over | F11: 最終一括 | G11: =IF(資金調達!D$4=1,0,IF(金利手数料一覧!Y$1=2,0,IF(F11="当初一括",0,IF(F11="分割3回",1,IF(資金調達!M$20>0,1,0))))) -> 1 | H11: =資金調達!D$3 -> 1 | I11: =資金調達!D$4 -> 2 | J11: =J9 -> 0 | K11: 35 | L11: =IF(OR(I11=2,I11=5),資金調達!E$12,IF(I11=4,資金調達!E$11,IF(I11=1,資金調達!E$11,0)))+IF(D11="フラット35",0,資金調達!E$16) -> 1500 | M11: =資金調達!E$12-資金調達!E$13 -> 1500 | N11: 0 | O11: =IF(I11=1,資金調達!E$11,IF(I11=4,資金調達!E$11,資金調達!E$14)) -> 3000 | P11: =IF(I11=1,0,IF(OR(F11="当初一括",F11="分割4回"),0,IF(OR(I11=4,I11=5),資金調達!M$11,IF(F11="分割3回",資金調達!M$15,IF(F11="分割2回",資金調達!M$14+資金調達!M$15,SUM(資金調達!M$11:M$15)))))) -> 3300 | R11: 0 | T11: 0 | U11: 0 | V11: =IFERROR(VLOOKUP(J11*10000,table!B$3:C$11,2,TRUE),0) -> 0 | W11: =IF(OR(I11=1,0,中間処理!A11=2),0,VLOOKUP(I11,AR$3:AU$13,4,FALSE)) -> 135000 | X11: =IF(H11=1,IF(中間処理!A11=2,0,IF(I11=1,0,AO$7)),0) -> 100000 | Y11: =IF(H11=1,IF(中間処理!A11=2,0,VLOOKUP(I11,AR$3:AV$13,5,FALSE)),0) -> 22500 | Z11: 0 | AA11: 1000 | AB11: 0 | AC11: =IF(J11=0,0,IF(中間処理!A$2=2,0,IF(L11>0,120000,0)+IF(AB11>0,1,0)*120000+IF(AND(P11>0,OR(AH11="東光商事",AH11="アプラス")),80000,0))) -> 0 | AD11: 0 | AE11: =INT(IF(G11>0,IF(OR(I11=4,I11=5),資金調達!O$43,IF(F11="分割2回",資金調達!O$41,IF(F11="分割3回",資金調達!O$42,資金調達!O$40)))*10000*AI11/12,0)) -> 505187 | AF11: =IF(AE11>0,VLOOKUP(P11*10000,table!B$3:C$11,2,TRUE),0) -> 20000 | AG11: 763687 | AH11: プロパー | AI11: =AI10 -> 0.03425
A12: 11 | B12: 手数料定額 | C12: 三井住友信託銀行 | D12: フラット35 | E12: すまい・るパッケージ | F12: 最終一括 | G12: =IF(資金調達!D$4=1,0,IF(金利手数料一覧!Y$1=2,0,IF(F12="当初一括",0,IF(F12="分割3回",1,IF(資金調達!M$20>0,1,0))))) -> 1 | H12: =資金調達!D$3 -> 1 | I12: =資金調達!D$4 -> 2 | J12: =IF(中間処理!I18>0.9,MIN(800,中間処理!C18/10000-J8),0) -> 0 | K12: 35 | M12: =資金調達!E$12-資金調達!E$13 -> 1500 | N12: 0 | O12: =IF(I12=1,資金調達!E$11,IF(I12=4,資金調達!E$11,資金調達!E$14)) -> 3000 | P12: =IF(I12=1,0,IF(OR(F12="当初一括",F12="分割4回"),0,IF(OR(I12=4,I12=5),資金調達!M$11,IF(F12="分割3回",資金調達!M$15,IF(F12="分割2回",資金調達!M$14+資金調達!M$15,SUM(資金調達!M$11:M$15)))))) -> 3300 | R12: 0 | T12: 0 | U12: 0 | V12: =IFERROR(VLOOKUP(J12*10000,table!B$3:C$11,2,TRUE),0) -> 0 | W12: =IF(OR(I12=1,0,中間処理!A12=2),0,VLOOKUP(I12,AR$3:AU$13,4,FALSE)) -> 135000 | X12: =IF(H12=1,IF(中間処理!A12=2,0,IF(I12=1,0,AO$7)),0) -> 100000 | Y12: 0 | Z12: 0 | AA12: 0 | AB12: 0 | AC12: =IF(J12=0,0,IF(中間処理!A$2=2,0,IF(L12>0,120000,0)+IF(AB12>0,1,0)*120000+IF(AND(P12>0,OR(AH12="東光商事",AH12="アプラス")),80000,0))) -> 0 | AF12: =IF(AE12>0,VLOOKUP(P12*10000,table!B$3:C$11,2,TRUE),0) -> 0 | AG12: 235000
A13: 12 | B13: 手数料定率 | C13: 住信SBIネット銀行 | E13: =当月!B86 -> WEB申込コース | F13: =IF(OR(L13>0,N13>0),"分割2回","最終一括") -> 分割2回 | G13: =IF(資金調達!D$4=1,0,IF(金利手数料一覧!Y$1=2,0,IF(F13="当初一括",0,IF(F13="分割3回",1,IF(資金調達!M$20>0,1,0))))) -> 1 | H13: =資金調達!D$3 -> 1 | I13: =資金調達!D$4 -> 2 | J13: =J2 -> 4000 | K13: 35 | L13: =IF(OR(I13=2,I13=5),資金調達!E$12,IF(I13=4,資金調達!E$11,IF(I13=1,資金調達!E$11,0)))+IF(D13="フラット35",0,資金調達!E$16) -> 1500 | M13: =資金調達!E$12-資金調達!E$13 -> 1500 | N13: 0 | O13: =IF(I13=1,資金調達!E$11,IF(I13=4,資金調達!E$11,資金調達!E$14)) -> 3000 | P13: =IF(I13=1,0,IF(OR(F13="当初一括",F13="分割4回"),0,IF(OR(I13=4,I13=5),資金調達!M$11,IF(F13="分割3回",資金調達!M$15,IF(F13="分割2回",資金調達!M$14+資金調達!M$15,SUM(資金調達!M$11:M$15)))))) -> 1800 | Q13: =金利手数料一覧!U32 -> 0.022 | T13: 880000 | U13: =IF(B13="保証料前払い",J13*10000*Q13,0) -> 0 | V13: 5500 | W13: =IF(OR(I13=1,0,中間処理!A13=2),0,VLOOKUP(I13,AR$3:AU$13,4,FALSE)) -> 135000 | X13: =IF(H13=1,IF(中間処理!A13=2,0,IF(I13=1,0,AO$7)),0) -> 100000 | Y13: =IF(H13=1,IF(中間処理!A13=2,0,VLOOKUP(I13,AR$3:AV$13,5,FALSE)),0) -> 22500 | Z13: 160000 | AA13: =IF(G13=0,0,1000) -> 1000 | AB13: 3300 | AC13: =IF(J13=0,0,IF(中間処理!A$2=2,0,IF(L13>0,120000,0)+IF(AB13>0,1,0)*120000+IF(AND(P13>0,OR(AH13="東光商事",AH13="アプラス")),80000,0))) -> 320000 | AD13: =IF(G13=0,0,110000) -> 110000 | AE13: =INT(IF(G13>0,IF(OR(I13=4,I13=5),資金調達!O$43,IF(F13="分割2回",資金調達!O$41,IF(F13="分割3回",資金調達!O$42,資金調達!O$40)))*10000*AI13/12,0)) -> 174000 | AF13: =IF(AE13>0,VLOOKUP(P13*10000,table!B$3:C$11,2,TRUE),0) -> 20000 | AG13: 1911300 | AH13: 東光商事 | AI13: =AI7 -> 0.029 | AR13: 建物＋リフォーム | AS13: 0 | AT13: =INT(M2*10000/2*AN7) -> 22500 | AU13: 22500
A14: 13 | B14: 手数料定率 | C14: 住信SBIネット銀行 | D14: フラット35 | E14: フラット35 | F14: 最終一括 | G14: =IF(資金調達!D$4=1,0,IF(金利手数料一覧!Y$1=2,0,IF(F14="当初一括",0,IF(F14="分割3回",1,IF(資金調達!M$20>0,1,0))))) -> 1 | H14: =資金調達!D$3 -> 1 | I14: =資金調達!D$4 -> 2 | J14: =J8 -> 4000 | K14: 35 | L14: =IF(OR(I14=2,I14=5),資金調達!E$12,IF(I14=4,資金調達!E$11,IF(I14=1,資金調達!E$11,0)))+IF(D14="フラット35",0,資金調達!E$16) -> 1500 | M14: =資金調達!E$12-資金調達!E$13 -> 1500 | N14: 0 | O14: =IF(I14=1,資金調達!E$11,IF(I14=4,資金調達!E$11,資金調達!E$14)) -> 3000 | P14: =IF(I14=1,0,IF(OR(F14="当初一括",F14="分割4回"),0,IF(OR(I14=4,I14=5),資金調達!M$11,IF(F14="分割3回",資金調達!M$15,IF(F14="分割2回",資金調達!M$14+資金調達!M$15,SUM(資金調達!M$11:M$15)))))) -> 3300 | Q14: =IF(P14>0,金利手数料一覧!U38,金利手数料一覧!U36) -> 0.022 | T14: 880000 | U14: =IF(B14="保証料前払い",J14*10000*Q14,0) -> 0 | V14: 5500 | W14: =IF(OR(I14=1,0,中間処理!A14=2),0,VLOOKUP(I14,AR$3:AU$13,4,FALSE)) -> 135000 | X14: =IF(H14=1,IF(中間処理!A14=2,0,IF(I14=1,0,AO$7)),0) -> 100000 | Y14: =IF(H14=1,IF(中間処理!A14=2,0,VLOOKUP(I14,AR$3:AV$13,5,FALSE)),0) -> 22500 | Z14: 40000 | AA14: =IF(G14=0,0,1000) -> 1000 | AB14: 0 | AC14: =IF(J14=0,0,IF(中間処理!A$2=2,0,IF(L14>0,120000,0)+IF(AB14>0,1,0)*120000+IF(AND(P14>0,OR(AH14="東光商事",AH14="アプラス")),80000,0))) -> 200000 | AD14: 110000 | AE14: =INT(IF(G14>0,IF(OR(I14=4,I14=5),資金調達!O$43,IF(F14="分割2回",資金調達!O$41,IF(F14="分割3回",資金調達!O$42,資金調達!O$40)))*10000*AI14/12,0)) -> 427750 | AF14: =IF(AE14>0,VLOOKUP(P14*10000,table!B$3:C$11,2,TRUE),0) -> 20000 | AG14: 1921750 | AH14: 東光商事 | AI14: =AI13 -> 0.029
A15: 14 | B15: 手数料定率 | C15: 住信SBIネット銀行 | D15: フラット35 | E15: フラット35 90%over | F15: 最終一括 | G15: =IF(資金調達!D$4=1,0,IF(金利手数料一覧!Y$1=2,0,IF(F15="当初一括",0,IF(F15="分割3回",1,IF(資金調達!M$20>0,1,0))))) -> 1 | H15: =資金調達!D$3 -> 1 | I15: =資金調達!D$4 -> 2 | J15: =J9 -> 0 | K15: 35 | L15: =IF(OR(I15=2,I15=5),資金調達!E$12,IF(I15=4,資金調達!E$11,IF(I15=1,資金調達!E$11,0)))+IF(D15="フラット35",0,資金調達!E$16) -> 1500 | M15: =資金調達!E$12-資金調達!E$13 -> 1500 | N15: 0 | O15: =IF(I15=1,資金調達!E$11,IF(I15=4,資金調達!E$11,資金調達!E$14)) -> 3000 | P15: =IF(I15=1,0,IF(OR(F15="当初一括",F15="分割4回"),0,IF(OR(I15=4,I15=5),資金調達!M$11,IF(F15="分割3回",資金調達!M$15,IF(F15="分割2回",資金調達!M$14+資金調達!M$15,SUM(資金調達!M$11:M$15)))))) -> 3300 | Q15: =Q14 -> 0.022 | T15: 0 | U15: =IF(B15="保証料前払い",J15*10000*Q15,0) -> 0 | V15: 5500 | W15: =IF(OR(I15=1,0,中間処理!A15=2),0,VLOOKUP(I15,AR$3:AU$13,4,FALSE)) -> 135000 | X15: =IF(H15=1,IF(中間処理!A15=2,0,IF(I15=1,0,AO$7)),0) -> 100000 | Y15: =IF(H15=1,IF(中間処理!A15=2,0,VLOOKUP(I15,AR$3:AV$13,5,FALSE)),0) -> 22500 | Z15: 0 | AA15: =IF(G15=0,0,1000) -> 1000 | AB15: 0 | AC15: =IF(J15=0,0,IF(中間処理!A$2=2,0,IF(L15>0,120000,0)+IF(AB15>0,1,0)*120000+IF(AND(P15>0,OR(AH15="東光商事",AH15="アプラス")),80000,0))) -> 0 | AD15: 110000 | AE15: =INT(IF(G15>0,IF(OR(I15=4,I15=5),資金調達!O$43,IF(F15="分割2回",資金調達!O$41,IF(F15="分割3回",資金調達!O$42,資金調達!O$40)))*10000*AI15/12,0)) -> 427750 | AF15: =IF(AE15>0,VLOOKUP(P15*10000,table!B$3:C$11,2,TRUE),0) -> 20000 | AG15: 801750 | AH15: 東光商事 | AI15: =AI14 -> 0.029
A16: 15 | B16: 手数料定率 | C16: 住信SBIネット銀行 | D16: フラット35 | E16: フラット35 ゴーゴー | F16: 最終一括 | G16: =IF(資金調達!D$4=1,0,IF(金利手数料一覧!Y$1=2,0,IF(F16="当初一括",0,IF(F16="分割3回",1,IF(資金調達!M$20>0,1,0))))) -> 1 | H16: =資金調達!D$3 -> 1 | I16: =資金調達!D$4 -> 2 | J16: =中間処理!C18/20000 -> 2000 | K16: =K14 -> 35 | L16: =IF(OR(I16=2,I16=5),資金調達!E$12,IF(I16=4,資金調達!E$11,IF(I16=1,資金調達!E$11,0)))+IF(D16="フラット35",0,資金調達!E$16) -> 1500 | M16: =資金調達!E$12-資金調達!E$13 -> 1500 | N16: 0 | O16: =IF(I16=1,資金調達!E$11,IF(I16=4,資金調達!E$11,資金調達!E$14)) -> 3000 | P16: =IF(I16=1,0,IF(OR(F16="当初一括",F16="分割4回"),0,IF(OR(I16=4,I16=5),資金調達!M$11,IF(F16="分割3回",資金調達!M$15,IF(F16="分割2回",資金調達!M$14+資金調達!M$15,SUM(資金調達!M$11:M$15)))))) -> 3300 | Q16: =Q15 -> 0.022 | T16: 440000 | U16: =IF(B16="保証料前払い",J16*10000*Q16,0) -> 0 | V16: 5500 | W16: =IF(OR(I16=1,0,中間処理!A16=2),0,VLOOKUP(I16,AR$3:AU$13,4,FALSE)) -> 135000 | X16: =IF(H16=1,IF(中間処理!A16=2,0,IF(I16=1,0,AO$7)),0) -> 100000 | Y16: =IF(H16=1,IF(中間処理!A16=2,0,VLOOKUP(I16,AR$3:AV$13,5,FALSE)),0) -> 22500 | Z16: 20000 | AA16: =IF(G16=0,0,1000) -> 1000 | AB16: 0 | AC16: =IF(J16=0,0,IF(中間処理!A$2=2,0,IF(L16>0,120000,0)+IF(AB16>0,1,0)*120000+IF(AND(P16>0,OR(AH16="東光商事",AH16="アプラス")),80000,0))) -> 200000 | AD16: 110000 | AE16: =INT(IF(G16>0,IF(OR(I16=4,I16=5),資金調達!O$43,IF(F16="分割2回",資金調達!O$41,IF(F16="分割3回",資金調達!O$42,資金調達!O$40)))*10000*AI16/12,0)) -> 427750 | AF16: =IF(AE16>0,VLOOKUP(P16*10000,table!B$3:C$11,2,TRUE),0) -> 20000 | AG16: 1461750 | AH16: 東光商事 | AI16: =AI14 -> 0.029
A17: 16 | B17: 手数料定率 | C17: 住信SBIネット銀行 | D17: フラット35 | E17: すまい・るパッケージゴーゴー | F17: 最終一括 | G17: =IF(資金調達!D$4=1,0,IF(金利手数料一覧!Y$1=2,0,IF(F17="当初一括",0,IF(F17="分割3回",1,IF(資金調達!M$20>0,1,0))))) -> 1 | H17: =資金調達!D$3 -> 1 | I17: =資金調達!D$4 -> 2 | J17: =中間処理!C18/20000 -> 2000 | K17: =K14 -> 35 | M17: =資金調達!E$12-資金調達!E$13 -> 1500 | N17: 0 | O17: =IF(I17=1,資金調達!E$11,IF(I17=4,資金調達!E$11,資金調達!E$14)) -> 3000 | P17: =IF(I17=1,0,IF(OR(F17="当初一括",F17="分割4回"),0,IF(OR(I17=4,I17=5),資金調達!M$11,IF(F17="分割3回",資金調達!M$15,IF(F17="分割2回",資金調達!M$14+資金調達!M$15,SUM(資金調達!M$11:M$15)))))) -> 3300 | Q17: =金利手数料一覧!U40 -> 0.022 | T17: 440000 | U17: 0 | V17: 5500 | W17: =IF(OR(I17=1,0,中間処理!A17=2),0,VLOOKUP(I17,AR$3:AU$13,4,FALSE)) -> 135000 | X17: =IF(H17=1,IF(中間処理!A17=2,0,IF(I17=1,0,AO$7)),0) -> 100000 | Y17: 0 | Z17: 20000 | AA17: 0 | AB17: 0 | AC17: =IF(J17=0,0,IF(中間処理!A$2=2,0,IF(L17>0,120000,0)+IF(AB17>0,1,0)*120000+IF(AND(P17>0,OR(AH17="東光商事",AH17="アプラス")),80000,0))) -> 80000 | AF17: =IF(AE17>0,VLOOKUP(P17*10000,table!B$3:C$11,2,TRUE),0) -> 0 | AG17: 780500 | AH17: 東光商事 | AI17: =AI14 -> 0.029
A18: 17 | B18: 手数料定率 | C18: 住信SBIネット銀行 | D18: フラット35 | E18: すまい・るパッケージ | F18: 最終一括 | G18: =IF(資金調達!D$4=1,0,IF(金利手数料一覧!Y$1=2,0,IF(F18="当初一括",0,IF(F18="分割3回",1,IF(資金調達!M$20>0,1,0))))) -> 1 | H18: =資金調達!D$3 -> 1 | I18: =資金調達!D$4 -> 2 | J18: =IF(中間処理!C18>0.9,J15-J14,0) -> -4000 | K18: =K17 -> 35 | M18: =資金調達!E$12-資金調達!E$13 -> 1500 | N18: 0 | O18: =IF(I18=1,資金調達!E$11,IF(I18=4,資金調達!E$11,資金調達!E$14)) -> 3000 | P18: =IF(I18=1,0,IF(OR(F18="当初一括",F18="分割4回"),0,IF(OR(I18=4,I18=5),資金調達!M$11,IF(F18="分割3回",資金調達!M$15,IF(F18="分割2回",資金調達!M$14+資金調達!M$15,SUM(資金調達!M$11:M$15)))))) -> 3300 | Q18: =金利手数料一覧!U42 -> 0.022 | T18: -880000 | U18: 0 | V18: 5500 | W18: =IF(OR(I18=1,0,中間処理!A18=2),0,VLOOKUP(I18,AR$3:AU$13,4,FALSE)) -> 135000 | X18: =IF(H18=1,IF(中間処理!A18=2,0,IF(I18=1,0,AO$7)),0) -> 100000 | Y18: 0 | Z18: -40000 | AA18: 0 | AB18: 0 | AC18: =IF(J18=0,0,IF(中間処理!A$2=2,0,IF(L18>0,120000,0)+IF(AB18>0,1,0)*120000+IF(AND(P18>0,OR(AH18="東光商事",AH18="アプラス")),80000,0))) -> 0 | AF18: =IF(AE18>0,VLOOKUP(P18*10000,table!B$3:C$11,2,TRUE),0) -> 0 | AG18: -679500
A19: 18 | B19: 手数料定率 | C19: 住信SBIネット銀行 | D19: フラット35 | E19: フラット35（保証型） | F19: 最終一括 | G19: =IF(資金調達!D$4=1,0,IF(金利手数料一覧!Y$1=2,0,IF(F19="当初一括",0,IF(F19="分割3回",1,IF(資金調達!M$20>0,1,0))))) -> 1 | H19: =資金調達!D$3 -> 1 | I19: =資金調達!D$4 -> 2 | J19: =J13 -> 4000 | K19: =K18 -> 35 | L19: =IF(OR(I19=2,I19=5),資金調達!E$12,IF(I19=4,資金調達!E$11,IF(I19=1,資金調達!E$11,0)))+IF(D19="フラット35",0,資金調達!E$16) -> 1500 | M19: =資金調達!E$12-資金調達!E$13 -> 1500 | N19: 0 | O19: =IF(I19=1,資金調達!E$11,IF(I19=4,資金調達!E$11,資金調達!E$14)) -> 3000 | P19: =IF(I19=1,0,IF(OR(F19="当初一括",F19="分割4回"),0,IF(OR(I19=4,I19=5),資金調達!M$11,IF(F19="分割3回",資金調達!M$15,IF(F19="分割2回",資金調達!M$14+資金調達!M$15,SUM(資金調達!M$11:M$15)))))) -> 3300 | Q19: =金利手数料一覧!U38 -> 0.022 | T19: 880000 | U19: =IF(B19="保証料前払い",J19*10000*Q19,0) -> 0 | V19: 5500 | W19: =IF(OR(I19=1,0,中間処理!A19=2),0,VLOOKUP(I19,AR$3:AU$13,4,FALSE)) -> 135000 | X19: =IF(H19=1,IF(中間処理!A19=2,0,IF(I19=1,0,AO$7)),0) -> 100000 | Y19: =IF(H19=1,IF(中間処理!A19=2,0,VLOOKUP(I19,AR$3:AV$13,5,FALSE)),0) -> 22500 | Z19: 40000 | AA19: =IF(G19=0,0,1000) -> 1000 | AB19: 0 | AC19: =IF(J19=0,0,IF(中間処理!A$2=2,0,IF(L19>0,120000,0)+IF(AB19>0,1,0)*120000+IF(AND(P19>0,OR(AH19="東光商事",AH19="アプラス")),80000,0))) -> 200000 | AD19: =IF(G19=0,0,110000) -> 110000 | AE19: =INT(IF(G19>0,IF(OR(I19=4,I19=5),資金調達!O$43,IF(F19="分割2回",資金調達!O$41,IF(F19="分割3回",資金調達!O$42,資金調達!O$40)))*10000*AI19/12,0)) -> 427750 | AF19: =IF(AE19>0,VLOOKUP(P19*10000,table!B$3:C$11,2,TRUE),0) -> 20000 | AG19: 1921750 | AH19: 東光商事 | AI19: =AI17 -> 0.029
A20: 19 | B20: 手数料定率 | C20: auじぶん銀行 | E20: =当月!B130 -> 住宅ローン | F20: 最終一括 | G20: =IF(資金調達!D$4=1,0,IF(金利手数料一覧!Y$1=2,0,IF(F20="当初一括",0,IF(F20="分割3回",1,IF(資金調達!M$20>0,1,0))))) -> 1 | H20: =資金調達!D$3 -> 1 | I20: =資金調達!D$4 -> 2 | J20: =J2 -> 4000 | K20: =K18 -> 35 | L20: =IF(OR(I20=2,I20=5),資金調達!E$12,IF(I20=4,資金調達!E$11,IF(I20=1,資金調達!E$11,0)))+IF(D20="フラット35",0,資金調達!E$16) -> 1500 | M20: =資金調達!E$12-資金調達!E$13 -> 1500 | N20: 0 | O20: =IF(I20=1,資金調達!E$11,IF(I20=4,資金調達!E$11,資金調達!E$14)) -> 3000 | P20: =IF(I20=1,0,IF(OR(F20="当初一括",F20="分割4回"),0,IF(OR(I20=4,I20=5),資金調達!M$11,IF(F20="分割3回",資金調達!M$15,IF(F20="分割2回",資金調達!M$14+資金調達!M$15,SUM(資金調達!M$11:M$15)))))) -> 3300 | Q20: =金利手数料一覧!U45 -> 0.022 | T20: 880000 | U20: 0 | V20: 0 | W20: =IF(OR(I20=1,0,中間処理!A20=2),0,VLOOKUP(I20,AR$3:AU$13,4,FALSE)) -> 135000 | X20: =IF(H20=1,IF(中間処理!A20=2,0,IF(I20=1,0,AO$7)),0) -> 100000 | Y20: =IF(H20=1,IF(中間処理!A20=2,0,VLOOKUP(I20,AR$3:AV$13,5,FALSE)),0) -> 22500 | Z20: 40000 | AA20: 1000 | AB20: 0 | AC20: =IF(J20=0,0,IF(中間処理!A$2=2,0,IF(L20>0,120000,0)+IF(AB20>0,1,0)*120000+IF(AND(P20>0,OR(AH20="東光商事",AH20="アプラス")),80000,0))) -> 200000 | AD20: =IF(G20=0,0,165000) -> 165000 | AE20: =INT(IF(G20>0,IF(OR(I20=4,I20=5),資金調達!O$43,IF(F20="分割2回",資金調達!O$41,IF(F20="分割3回",資金調達!O$42,資金調達!O$40)))*10000*AI20/12,0)) -> 313437 | AF20: =IF(AE20>0,VLOOKUP(P20*10000,table!B$3:C$11,2,TRUE),0) -> 20000 | AG20: 1856937 | AH20: アプラス | AI20: 0.02125
A21: 20 | B21: 手数料定率 | C21: りそな銀行 | E21: =当月!B141 -> りそな住宅ローン | F21: =IF(L21=0,"分割2回","分割3回") -> 分割3回 | G21: =IF(資金調達!D$4=1,0,IF(金利手数料一覧!Y$1=2,0,IF(F21="当初一括",0,IF(F21="分割3回",1,IF(資金調達!M$20>0,1,0))))) -> 1 | H21: =資金調達!D$3 -> 1 | I21: =資金調達!D$4 -> 2 | J21: =J2 -> 4000 | K21: =K20 -> 35 | L21: =IF(OR(I21=2,I21=5),資金調達!E$12,IF(I21=4,資金調達!E$11,IF(I21=1,資金調達!E$11,0)))+IF(D21="フラット35",0,資金調達!E$16) -> 1500 | M21: =資金調達!E$12-資金調達!E$13 -> 1500 | N21: 0 | O21: =IF(I21=1,資金調達!E$11,IF(I21=4,資金調達!E$11,資金調達!E$14)) -> 3000 | P21: =IF(I21=1,0,IF(OR(F21="当初一括",F21="分割4回"),0,IF(OR(I21=4,I21=5),資金調達!M$11,IF(F21="分割3回",資金調達!M$15,IF(F21="分割2回",資金調達!M$14+資金調達!M$15,SUM(資金調達!M$11:M$15)))))) -> 900 | Q21: =金利手数料一覧!U52 -> 0.022 | S21: 33000 | T21: 880000 | U21: 0 | V21: 5500 | W21: =IF(OR(I21=1,0,中間処理!A21=2),0,VLOOKUP(I21,AR$3:AU$13,4,FALSE)) -> 135000 | X21: =IF(H21=1,IF(中間処理!A21=2,0,IF(I21=1,0,AO$7)),0) -> 100000 | Y21: =IF(H21=1,IF(中間処理!A21=2,0,VLOOKUP(I21,AR$3:AV$13,5,FALSE)),0) -> 22500 | Z21: 160000 | AA21: 1000 | AB21: 3300 | AC21: =IF(J21=0,0,IF(中間処理!A$2=2,0,IF(L21>0,120000,0)+IF(AB21>0,1,0)*120000+IF(AND(P21>0,OR(AH21="東光商事",AH21="アプラス")),80000,0))) -> 320000 | AD21: =IF(G21=0,0,110000) -> 110000 | AE21: =INT(IF(G21>0,IF(OR(I21=4,I21=5),資金調達!O$43,IF(F21="分割2回",資金調達!O$41,IF(F21="分割3回",資金調達!O$42,資金調達!O$40)))*10000*AI21/12,0)) -> 65250 | AF21: =IF(AE21>0,VLOOKUP(P21*10000,table!B$3:C$11,2,TRUE),0) -> 10000 | AG21: 1835550 | AH21: 東光商事 | AI21: =AI19 -> 0.029
A22: 21 | B22: 保証料前払い | C22: りそな銀行 | E22: =E21 -> りそな住宅ローン | F22: =IF(L22=0,"分割2回","分割3回") -> 分割3回 | G22: =IF(資金調達!D$4=1,0,IF(金利手数料一覧!Y$1=2,0,IF(F22="当初一括",0,IF(F22="分割3回",1,IF(資金調達!M$20>0,1,0))))) -> 1 | H22: =資金調達!D$3 -> 1 | I22: =資金調達!D$4 -> 2 | J22: =J2 -> 4000 | K22: =K21 -> 35 | L22: =IF(OR(I22=2,I22=5),資金調達!E$12,IF(I22=4,資金調達!E$11,IF(I22=1,資金調達!E$11,0)))+IF(D22="フラット35",0,資金調達!E$16) -> 1500 | M22: =資金調達!E$12-資金調達!E$13 -> 1500 | N22: 0 | O22: =IF(I22=1,資金調達!E$11,IF(I22=4,資金調達!E$11,資金調達!E$14)) -> 3000 | P22: =IF(I22=1,0,IF(OR(F22="当初一括",F22="分割4回"),0,IF(OR(I22=4,I22=5),資金調達!M$11,IF(F22="分割3回",資金調達!M$15,IF(F22="分割2回",資金調達!M$14+資金調達!M$15,SUM(資金調達!M$11:M$15)))))) -> 900 | Q22: =HLOOKUP(J22,table!$AO$2:$BI$3,2) -> 0.020611 | S22: 33000 | T22: 0 | U22: 824440 | V22: =V21 -> 5500 | W22: =IF(OR(I22=1,0,中間処理!A22=2),0,VLOOKUP(I22,AR$3:AU$13,4,FALSE)) -> 135000 | X22: =IF(H22=1,IF(中間処理!A22=2,0,IF(I22=1,0,AO$7)),0) -> 100000 | Y22: =IF(H22=1,IF(中間処理!A22=2,0,VLOOKUP(I22,AR$3:AV$13,5,FALSE)),0) -> 22500 | Z22: 160000 | AA22: 1000 | AB22: 3300 | AC22: =IF(J22=0,0,IF(中間処理!A$2=2,0,IF(L22>0,120000,0)+IF(AB22>0,1,0)*120000+IF(AND(P22>0,OR(AH22="東光商事",AH22="アプラス")),80000,0))) -> 320000 | AD22: 110000 | AE22: =INT(IF(G22>0,IF(OR(I22=4,I22=5),資金調達!O$43,IF(F22="分割2回",資金調達!O$41,IF(F22="分割3回",資金調達!O$42,資金調達!O$40)))*10000*AI22/12,0)) -> 65250 | AF22: =IF(AE22>0,VLOOKUP(P22*10000,table!B$3:C$11,2,TRUE),0) -> 10000 | AG22: 1779990 | AH22: 東光商事 | AI22: =AI21 -> 0.029
A23: 22 | B23: 保証料後払い | C23: りそな銀行 | E23: =E22 -> りそな住宅ローン | F23: =IF(L23=0,"分割2回","分割3回") -> 分割3回 | G23: =IF(資金調達!D$4=1,0,IF(金利手数料一覧!Y$1=2,0,IF(F23="当初一括",0,IF(F23="分割3回",1,IF(資金調達!M$20>0,1,0))))) -> 1 | H23: =資金調達!D$3 -> 1 | I23: =資金調達!D$4 -> 2 | J23: =J2 -> 4000 | K23: =K22 -> 35 | L23: =IF(OR(I23=2,I23=5),資金調達!E$12,IF(I23=4,資金調達!E$11,IF(I23=1,資金調達!E$11,0)))+IF(D23="フラット35",0,資金調達!E$16) -> 1500 | M23: =資金調達!E$12-資金調達!E$13 -> 1500 | N23: 0 | O23: =IF(I23=1,資金調達!E$11,IF(I23=4,資金調達!E$11,資金調達!E$14)) -> 3000 | P23: =IF(I23=1,0,IF(OR(F23="当初一括",F23="分割4回"),0,IF(OR(I23=4,I23=5),資金調達!M$11,IF(F23="分割3回",資金調達!M$15,IF(F23="分割2回",資金調達!M$14+資金調達!M$15,SUM(資金調達!M$11:M$15)))))) -> 900 | S23: 33000 | T23: 0 | U23: 0 | V23: =V22 -> 5500 | W23: =IF(OR(I23=1,0,中間処理!A23=2),0,VLOOKUP(I23,AR$3:AU$13,4,FALSE)) -> 135000 | X23: =IF(H23=1,IF(中間処理!A23=2,0,IF(I23=1,0,AO$7)),0) -> 100000 | Y23: =IF(H23=1,IF(中間処理!A23=2,0,VLOOKUP(I23,AR$3:AV$13,5,FALSE)),0) -> 22500 | Z23: 160000 | AA23: 1000 | AB23: 3300 | AC23: =IF(J23=0,0,IF(中間処理!A$2=2,0,IF(L23>0,120000,0)+IF(AB23>0,1,0)*120000+IF(AND(P23>0,OR(AH23="東光商事",AH23="アプラス")),80000,0))) -> 320000 | AD23: 110000 | AE23: =INT(IF(G23>0,IF(OR(I23=4,I23=5),資金調達!O$43,IF(F23="分割2回",資金調達!O$41,IF(F23="分割3回",資金調達!O$42,資金調達!O$40)))*10000*AI23/12,0)) -> 65250 | AF23: =IF(AE23>0,VLOOKUP(P23*10000,table!B$3:C$11,2,TRUE),0) -> 10000 | AG23: 955550 | AH23: 東光商事 | AI23: =AI22 -> 0.029
A24: 23 | B24: 手数料定率 | C24: りそな銀行 | D24: フラット35 | E24: フラット35 | F24: 最終一括 | G24: =IF(資金調達!D$4=1,0,IF(金利手数料一覧!Y$1=2,0,IF(F24="当初一括",0,IF(F24="分割3回",1,IF(資金調達!M$20>0,1,0))))) -> 1 | H24: =資金調達!D$3 -> 1 | I24: =資金調達!D$4 -> 2 | J24: =J8 -> 4000 | K24: =K23 -> 35 | L24: =IF(OR(I24=2,I24=5),資金調達!E$12,IF(I24=4,資金調達!E$11,IF(I24=1,資金調達!E$11,0)))+IF(D24="フラット35",0,資金調達!E$16) -> 1500 | M24: =資金調達!E$12-資金調達!E$13 -> 1500 | N24: 0 | O24: =IF(I24=1,資金調達!E$11,IF(I24=4,資金調達!E$11,資金調達!E$14)) -> 3000 | P24: =IF(I24=1,0,IF(OR(F24="当初一括",F24="分割4回"),0,IF(OR(I24=4,I24=5),資金調達!M$11,IF(F24="分割3回",資金調達!M$15,IF(F24="分割2回",資金調達!M$14+資金調達!M$15,SUM(資金調達!M$11:M$15)))))) -> 3300 | Q24: 0.022 | T24: 880000 | U24: 0 | V24: 5500 | W24: =IF(OR(I24=1,0,中間処理!A24=2),0,VLOOKUP(I24,AR$3:AU$13,4,FALSE)) -> 135000 | X24: =IF(H24=1,IF(中間処理!A24=2,0,IF(I24=1,0,AO$7)),0) -> 100000 | Y24: =IF(H24=1,IF(中間処理!A24=2,0,VLOOKUP(I24,AR$3:AV$13,5,FALSE)),0) -> 22500 | Z24: 40000 | AA24: 1000 | AB24: 0 | AC24: =IF(J24=0,0,IF(中間処理!A$2=2,0,IF(L24>0,120000,0)+IF(AB24>0,1,0)*120000+IF(AND(P24>0,OR(AH24="東光商事",AH24="アプラス")),80000,0))) -> 120000 | AD24: 110000 | AE24: =INT(IF(G24>0,IF(OR(I24=4,I24=5),資金調達!O$43,IF(F24="分割2回",資金調達!O$41,IF(F24="分割3回",資金調達!O$42,資金調達!O$40)))*10000*AI24/12,0)) -> 387187 | AF24: =IF(AE24>0,VLOOKUP(P24*10000,table!B$3:C$11,2,TRUE),0) -> 20000 | AG24: 1801187 | AH24: プロパー | AI24: 0.02625
A25: 24 | B25: 手数料定率 | C25: りそな銀行 | D25: フラット35 | E25: フラット35 90%over | F25: 最終一括 | G25: =IF(資金調達!D$4=1,0,IF(金利手数料一覧!Y$1=2,0,IF(F25="当初一括",0,IF(F25="分割3回",1,IF(資金調達!M$20>0,1,0))))) -> 1 | H25: =資金調達!D$3 -> 1 | I25: =資金調達!D$4 -> 2 | J25: =J9 -> 0 | K25: =K24 -> 35 | L25: =IF(OR(I25=2,I25=5),資金調達!E$12,IF(I25=4,資金調達!E$11,IF(I25=1,資金調達!E$11,0)))+IF(D25="フラット35",0,資金調達!E$16) -> 1500 | M25: =資金調達!E$12-資金調達!E$13 -> 1500 | N25: 0 | O25: =IF(I25=1,資金調達!E$11,IF(I25=4,資金調達!E$11,資金調達!E$14)) -> 3000 | P25: =IF(I25=1,0,IF(OR(F25="当初一括",F25="分割4回"),0,IF(OR(I25=4,I25=5),資金調達!M$11,IF(F25="分割3回",資金調達!M$15,IF(F25="分割2回",資金調達!M$14+資金調達!M$15,SUM(資金調達!M$11:M$15)))))) -> 3300 | Q25: 0.022 | T25: 0 | U25: 0 | V25: 5500 | W25: =IF(OR(I25=1,0,中間処理!A25=2),0,VLOOKUP(I25,AR$3:AU$13,4,FALSE)) -> 135000 | X25: =IF(H25=1,IF(中間処理!A25=2,0,IF(I25=1,0,AO$7)),0) -> 100000 | Y25: =IF(H25=1,IF(中間処理!A25=2,0,VLOOKUP(I25,AR$3:AV$13,5,FALSE)),0) -> 22500 | Z25: 0 | AA25: 1000 | AB25: 0 | AC25: =IF(J25=0,0,IF(中間処理!A$2=2,0,IF(L25>0,120000,0)+IF(AB25>0,1,0)*120000+IF(AND(P25>0,OR(AH25="東光商事",AH25="アプラス")),80000,0))) -> 0 | AD25: 110000 | AE25: =INT(IF(G25>0,IF(OR(I25=4,I25=5),資金調達!O$43,IF(F25="分割2回",資金調達!O$41,IF(F25="分割3回",資金調達!O$42,資金調達!O$40)))*10000*AI25/12,0)) -> 387187 | AF25: =IF(AE25>0,VLOOKUP(P25*10000,table!B$3:C$11,2,TRUE),0) -> 20000 | AG25: 761187 | AH25: プロパー | AI25: 0.02625
A26: 25 | B26: 手数料定額 | C26: りそな銀行 | D26: フラット35 | E26: すまい・るパッケージ | F26: 最終一括 | G26: =IF(資金調達!D$4=1,0,IF(金利手数料一覧!Y$1=2,0,IF(F26="当初一括",0,IF(F26="分割3回",1,IF(資金調達!M$20>0,1,0))))) -> 1 | H26: =資金調達!D$3 -> 1 | I26: =資金調達!D$4 -> 2 | J26: =J18 -> -4000 | K26: =K24 -> 35 | M26: =資金調達!E$12-資金調達!E$13 -> 1500 | N26: 0 | O26: =IF(I26=1,資金調達!E$11,IF(I26=4,資金調達!E$11,資金調達!E$14)) -> 3000 | P26: =IF(I26=1,0,IF(OR(F26="当初一括",F26="分割4回"),0,IF(OR(I26=4,I26=5),資金調達!M$11,IF(F26="分割3回",資金調達!M$15,IF(F26="分割2回",資金調達!M$14+資金調達!M$15,SUM(資金調達!M$11:M$15)))))) -> 3300 | R26: =金利手数料一覧!U64 -> 110000 | T26: 110000 | U26: 0 | V26: 5500 | W26: =IF(OR(I26=1,0,中間処理!A26=2),0,VLOOKUP(I26,AR$3:AU$13,4,FALSE)) -> 135000 | X26: =IF(H26=1,IF(中間処理!A26=2,0,IF(I26=1,0,AO$7)),0) -> 100000 | Y26: 0 | Z26: -40000 | AA26: 0 | AB26: 0 | AC26: =IF(J26=0,0,IF(中間処理!A$2=2,0,IF(L26>0,120000,0)+IF(AB26>0,1,0)*120000+IF(AND(P26>0,OR(AH26="東光商事",AH26="アプラス")),80000,0))) -> 0 | AF26: =IF(AE26>0,VLOOKUP(P26*10000,table!B$3:C$11,2,TRUE),0) -> 0 | AG26: 310500 | AH26: プロパー | AI26: 0.02625
A27: 26 | B27: 手数料定率 | C27: 三菱UFJ銀行 | E27: =当月!B212 -> 住宅ローン | F27: =IF(L27=0,"最終一括","分割2回") -> 分割2回 | G27: =IF(資金調達!D$4=1,0,IF(金利手数料一覧!Y$1=2,0,IF(F27="当初一括",0,IF(F27="分割3回",1,IF(資金調達!M$20>0,1,0))))) -> 1 | H27: =資金調達!D$3 -> 1 | I27: =資金調達!D$4 -> 2 | J27: =J2 -> 4000 | K27: =K23 -> 35 | L27: =IF(OR(I27=2,I27=5),資金調達!E$12,IF(I27=4,資金調達!E$11,IF(I27=1,資金調達!E$11,0)))+IF(D27="フラット35",0,資金調達!E$16) -> 1500 | M27: =資金調達!E$12-資金調達!E$13 -> 1500 | N27: 0 | O27: =IF(I27=1,資金調達!E$11,IF(I27=4,資金調達!E$11,資金調達!E$14)) -> 3000 | P27: =IF(I27=1,0,IF(OR(F27="当初一括",F27="分割4回"),0,IF(OR(I27=4,I27=5),資金調達!M$11,IF(F27="分割3回",資金調達!M$15,IF(F27="分割2回",資金調達!M$14+資金調達!M$15,SUM(資金調達!M$11:M$15)))))) -> 1800 | Q27: =金利手数料一覧!U67 -> 0.022 | T27: 880000 | U27: 0 | V27: 0 | W27: =IF(OR(I27=1,0,中間処理!A27=2),0,VLOOKUP(I27,AR$3:AU$13,4,FALSE)) -> 135000 | X27: =IF(H27=1,IF(中間処理!A27=2,0,IF(I27=1,0,AO$7)),0) -> 100000 | Y27: =IF(H27=1,IF(中間処理!A27=2,0,VLOOKUP(I27,AR$3:AV$13,5,FALSE)),0) -> 22500 | Z27: 160000 | AA27: =IF(G27=0,0,1000) -> 1000 | AB27: =IF(OR(I27=1,F27="最終一括"),0,3300) -> 3300 | AC27: =IF(J27=0,0,IF(中間処理!A$2=2,0,IF(L27>0,120000,0)+IF(AB27>0,1,0)*120000+IF(AND(P27>0,OR(AH27="東光商事",AH27="アプラス")),80000,0))) -> 320000 | AD27: 110000 | AE27: =INT(IF(G27>0,IF(OR(I27=4,I27=5),資金調達!O$43,IF(F27="分割2回",資金調達!O$41,IF(F27="分割3回",資金調達!O$42,資金調達!O$40)))*10000*AI27/12,0)) -> 174000 | AF27: =IF(AE27>0,VLOOKUP(P27*10000,table!B$3:C$11,2,TRUE),0) -> 20000 | AG27: =SUM(S27:AE27) -> 1905800 | AH27: 東光商事 | AI27: 0.029
A28: 27 | B28: 手数料定率 | C28: みずほ銀行 | E28: =当月!B229 -> みずほネット住宅ローン | F28: 分割4回 | G28: =IF(資金調達!D$4=1,0,IF(金利手数料一覧!Y$1=2,0,IF(F28="当初一括",0,IF(F28="分割3回",1,IF(資金調達!M$20>0,1,0))))) -> 1 | H28: =資金調達!D$3 -> 1 | I28: =資金調達!D$4 -> 2 | J28: =J2 -> 4000 | K28: =K27 -> 35 | L28: =IF(OR(I28=2,I28=5),資金調達!E$12,IF(I28=4,資金調達!E$11,IF(I28=1,資金調達!E$11,0)))+IF(D28="フラット35",0,資金調達!E$16) -> 1500 | M28: =資金調達!E$12-資金調達!E$13 -> 1500 | N28: 0 | O28: =IF(I28=1,資金調達!E$11,IF(I28=4,資金調達!E$11,資金調達!E$14)) -> 3000 | P28: =IF(I28=1,0,IF(OR(F28="当初一括",F28="分割4回"),0,IF(OR(I28=4,I28=5),資金調達!M$11,IF(F28="分割3回",資金調達!M$15,IF(F28="分割2回",資金調達!M$14+資金調達!M$15,SUM(資金調達!M$11:M$15)))))) -> 0 | Q28: =金利手数料一覧!U76 -> 0.022 | S28: 33000 | T28: 880000 | U28: 0 | V28: =IF(資金調達!G$6=5,11000,5500) -> 5500 | W28: =IF(OR(I28=1,0,中間処理!A28=2),0,VLOOKUP(I28,AR$3:AU$13,4,FALSE)) -> 135000 | X28: =IF(H28=1,IF(中間処理!A28=2,0,IF(I28=1,0,AO$7)),0) -> 100000 | Y28: =IF(H28=1,IF(中間処理!A28=2,0,VLOOKUP(I28,AR$3:AV$13,5,FALSE)),0) -> 22500 | Z28: 160000 | AA28: 1000 | AB28: 3300 | AC28: =IF(J28=0,0,IF(中間処理!A$2=2,0,IF(L28>0,120000,0)+IF(AB28>0,1,0)*120000+IF(AND(P28>0,OR(AH28="東光商事",AH28="アプラス")),80000,0))) -> 240000 | AE28: =INT(IF(G28>0,IF(OR(I28=4,I28=5),資金調達!O$43,IF(F28="分割2回",資金調達!O$41,IF(F28="分割3回",資金調達!O$42,資金調達!O$40)))*10000*AI28/12,0)) -> 0 | AF28: =IF(AE28>0,VLOOKUP(P28*10000,table!B$3:C$11,2,TRUE),0) -> 0 | AG28: 1580300
A29: 28 | B29: 保証料前払い | C29: みずほ銀行 | E29: =E28 -> みずほネット住宅ローン | F29: 分割4回 | G29: =IF(資金調達!D$4=1,0,IF(金利手数料一覧!Y$1=2,0,IF(F29="当初一括",0,IF(F29="分割3回",1,IF(資金調達!M$20>0,1,0))))) -> 1 | H29: =資金調達!D$3 -> 1 | I29: =資金調達!D$4 -> 2 | J29: =J2 -> 4000 | K29: =K28 -> 35 | L29: =IF(OR(I29=2,I29=5),資金調達!E$12,IF(I29=4,資金調達!E$11,IF(I29=1,資金調達!E$11,0)))+IF(D29="フラット35",0,資金調達!E$16) -> 1500 | M29: =資金調達!E$12-資金調達!E$13 -> 1500 | N29: 0 | O29: =IF(I29=1,資金調達!E$11,IF(I29=4,資金調達!E$11,資金調達!E$14)) -> 3000 | P29: =IF(I29=1,0,IF(OR(F29="当初一括",F29="分割4回"),0,IF(OR(I29=4,I29=5),資金調達!M$11,IF(F29="分割3回",資金調達!M$15,IF(F29="分割2回",資金調達!M$14+資金調達!M$15,SUM(資金調達!M$11:M$15)))))) -> 0 | Q29: =HLOOKUP(K29,table!$AO$2:$BX$3,2) -> 0.020611 | S29: 33000 | T29: 0 | U29: 824440 | V29: =IF(資金調達!G$6=5,11000,5500) -> 5500 | W29: =IF(OR(I29=1,0,中間処理!A29=2),0,VLOOKUP(I29,AR$3:AU$13,4,FALSE)) -> 135000 | X29: =IF(H29=1,IF(中間処理!A29=2,0,IF(I29=1,0,AO$7)),0) -> 100000 | Y29: =IF(H29=1,IF(中間処理!A29=2,0,VLOOKUP(I29,AR$3:AV$13,5,FALSE)),0) -> 22500 | Z29: 160000 | AA29: 1000 | AB29: 3300 | AC29: =IF(J29=0,0,IF(中間処理!A$2=2,0,IF(L29>0,120000,0)+IF(AB29>0,1,0)*120000+IF(AND(P29>0,OR(AH29="東光商事",AH29="アプラス")),80000,0))) -> 240000 | AE29: =INT(IF(G29>0,IF(OR(I29=4,I29=5),資金調達!O$43,IF(F29="分割2回",資金調達!O$41,IF(F29="分割3回",資金調達!O$42,資金調達!O$40)))*10000*AI29/12,0)) -> 0 | AF29: =IF(AE29>0,VLOOKUP(P29*10000,table!B$3:C$11,2,TRUE),0) -> 0 | AG29: 1524740
A30: 29 | B30: 保証料後払い | C30: みずほ銀行 | E30: =E29 -> みずほネット住宅ローン | F30: 分割4回 | G30: =IF(資金調達!D$4=1,0,IF(金利手数料一覧!Y$1=2,0,IF(F30="当初一括",0,IF(F30="分割3回",1,IF(資金調達!M$20>0,1,0))))) -> 1 | H30: =資金調達!D$3 -> 1 | I30: =資金調達!D$4 -> 2 | J30: =J2 -> 4000 | K30: =K29 -> 35 | L30: =IF(OR(I30=2,I30=5),資金調達!E$12,IF(I30=4,資金調達!E$11,IF(I30=1,資金調達!E$11,0)))+IF(D30="フラット35",0,資金調達!E$16) -> 1500 | M30: =資金調達!E$12-資金調達!E$13 -> 1500 | N30: 0 | O30: =IF(I30=1,資金調達!E$11,IF(I30=4,資金調達!E$11,資金調達!E$14)) -> 3000 | P30: =IF(I30=1,0,IF(OR(F30="当初一括",F30="分割4回"),0,IF(OR(I30=4,I30=5),資金調達!M$11,IF(F30="分割3回",資金調達!M$15,IF(F30="分割2回",資金調達!M$14+資金調達!M$15,SUM(資金調達!M$11:M$15)))))) -> 0 | S30: 33000 | T30: 0 | U30: 0 | V30: =IF(資金調達!G$6=5,11000,5500) -> 5500 | W30: =IF(OR(I30=1,0,中間処理!A30=2),0,VLOOKUP(I30,AR$3:AU$13,4,FALSE)) -> 135000 | X30: =IF(H30=1,IF(中間処理!A30=2,0,IF(I30=1,0,AO$7)),0) -> 100000 | Y30: =IF(H30=1,IF(中間処理!A30=2,0,VLOOKUP(I30,AR$3:AV$13,5,FALSE)),0) -> 22500 | Z30: 160000 | AA30: 1000 | AB30: 3300 | AC30: =IF(J30=0,0,IF(中間処理!A$2=2,0,IF(L30>0,120000,0)+IF(AB30>0,1,0)*120000+IF(AND(P30>0,OR(AH30="東光商事",AH30="アプラス")),80000,0))) -> 240000 | AE30: =INT(IF(G30>0,IF(OR(I30=4,I30=5),資金調達!O$43,IF(F30="分割2回",資金調達!O$41,IF(F30="分割3回",資金調達!O$42,資金調達!O$40)))*10000*AI30/12,0)) -> 0 | AF30: =IF(AE30>0,VLOOKUP(P30*10000,table!B$3:C$11,2,TRUE),0) -> 0 | AG30: 700300
A31: 107 | B31: 手数料定額 | C31: みずほ銀行 | E31: =E28 -> みずほネット住宅ローン | F31: 分割4回 | G31: =IF(資金調達!D$4=1,0,IF(金利手数料一覧!Y$1=2,0,IF(F31="当初一括",0,IF(F31="分割3回",1,IF(資金調達!M$20>0,1,0))))) -> 1 | H31: =資金調達!D$3 -> 1 | I31: =資金調達!D$4 -> 2 | J31: =J3 -> 4000 | K31: =K30 -> 35 | L31: =IF(OR(I31=2,I31=5),資金調達!E$12,IF(I31=4,資金調達!E$11,IF(I31=1,資金調達!E$11,0)))+IF(D31="フラット35",0,資金調達!E$16) -> 1500 | M31: =資金調達!E$12-資金調達!E$13 -> 1500 | N31: 0 | O31: =IF(I31=1,資金調達!E$11,IF(I31=4,資金調達!E$11,資金調達!E$14)) -> 3000 | P31: =IF(I31=1,0,IF(OR(F31="当初一括",F31="分割4回"),0,IF(OR(I31=4,I31=5),資金調達!M$11,IF(F31="分割3回",資金調達!M$15,IF(F31="分割2回",資金調達!M$14+資金調達!M$15,SUM(資金調達!M$11:M$15)))))) -> 0 | T31: 0 | U31: 0 | V31: =IF(資金調達!G$6=5,11000,5500) -> 5500 | W31: =IF(OR(I31=1,0,中間処理!A31=2),0,VLOOKUP(I31,AR$3:AU$13,4,FALSE)) -> 135000 | X31: =IF(H31=1,IF(中間処理!A31=2,0,IF(I31=1,0,AO$7)),0) -> 100000 | Y31: =IF(H31=1,IF(中間処理!A31=2,0,VLOOKUP(I31,AR$3:AV$13,5,FALSE)),0) -> 22500 | Z31: 160000 | AA31: 1000 | AB31: 3300 | AC31: =IF(J31=0,0,IF(中間処理!A$2=2,0,IF(L31>0,120000,0)+IF(AB31>0,1,0)*120000+IF(AND(P31>0,OR(AH31="東光商事",AH31="アプラス")),80000,0))) -> 240000 | AE31: =INT(IF(G31>0,IF(OR(I31=4,I31=5),資金調達!O$43,IF(F31="分割2回",資金調達!O$41,IF(F31="分割3回",資金調達!O$42,資金調達!O$40)))*10000*AI31/12,0)) -> 0 | AF31: =IF(AE31>0,VLOOKUP(P31*10000,table!B$3:C$11,2,TRUE),0) -> 0 | AG31: 667300
A32: 30 | B32: 手数料定額 | C32: みずほ銀行 | D32: フラット35 | E32: フラット35 | F32: 最終一括 | G32: =IF(資金調達!D$4=1,0,IF(金利手数料一覧!Y$1=2,0,IF(F32="当初一括",0,IF(F32="分割3回",1,IF(資金調達!M$20>0,1,0))))) -> 1 | H32: =資金調達!D$3 -> 1 | I32: =資金調達!D$4 -> 2 | J32: =J24 -> 4000 | K32: =K35 -> 35 | L32: =IF(OR(I32=2,I32=5),資金調達!E$12,IF(I32=4,資金調達!E$11,IF(I32=1,資金調達!E$11,0)))+IF(D32="フラット35",0,資金調達!E$16) -> 1500 | M32: =資金調達!E$12-資金調達!E$13 -> 1500 | N32: 0 | O32: =IF(I32=1,資金調達!E$11,IF(I32=4,資金調達!E$11,資金調達!E$14)) -> 3000 | P32: =IF(I32=1,0,IF(OR(F32="当初一括",F32="分割4回"),0,IF(OR(I32=4,I32=5),資金調達!M$11,IF(F32="分割3回",資金調達!M$15,IF(F32="分割2回",資金調達!M$14+資金調達!M$15,SUM(資金調達!M$11:M$15)))))) -> 3300 | T32: 0 | U32: 0 | V32: =IFERROR(VLOOKUP(J32*10000,table!B$3:C$11,2,TRUE),0) -> 20000 | W32: =IF(OR(I32=1,0,中間処理!A32=2),0,VLOOKUP(I32,AR$3:AU$13,4,FALSE)) -> 135000 | X32: =IF(H32=1,IF(中間処理!A32=2,0,IF(I32=1,0,AO$7)),0) -> 100000 | Y32: =IF(H32=1,IF(中間処理!A32=2,0,VLOOKUP(I32,AR$3:AV$13,5,FALSE)),0) -> 22500 | Z32: 40000 | AA32: 1000 | AB32: 0 | AC32: =IF(J32=0,0,IF(中間処理!A$2=2,0,IF(L32>0,120000,0)+IF(AB32>0,1,0)*120000+IF(AND(P32>0,OR(AH32="東光商事",AH32="アプラス")),80000,0))) -> 120000 | AD32: =IF(G32=0,0,110000) -> 110000 | AE32: =INT(IF(G32>0,IF(OR(I32=4,I32=5),資金調達!O$43,IF(F32="分割2回",資金調達!O$41,IF(F32="分割3回",資金調達!O$42,資金調達!O$40)))*10000*AI32/12,0)) -> 0 | AF32: =IF(AE32>0,VLOOKUP(P32*10000,table!B$3:C$11,2,TRUE),0) -> 0 | AG32: 548500
A33: 31 | B33: 手数料定額 | C33: みずほ銀行 | D33: フラット35 | E33: フラット35 90%over | F33: 最終一括 | G33: =IF(資金調達!D$4=1,0,IF(金利手数料一覧!Y$1=2,0,IF(F33="当初一括",0,IF(F33="分割3回",1,IF(資金調達!M$20>0,1,0))))) -> 1 | H33: =資金調達!D$3 -> 1 | I33: =資金調達!D$4 -> 2 | J33: =J25 -> 0 | K33: =K32 -> 35 | L33: =IF(OR(I33=2,I33=5),資金調達!E$12,IF(I33=4,資金調達!E$11,IF(I33=1,資金調達!E$11,0)))+IF(D33="フラット35",0,資金調達!E$16) -> 1500 | M33: =資金調達!E$12-資金調達!E$13 -> 1500 | N33: 0 | O33: =IF(I33=1,資金調達!E$11,IF(I33=4,資金調達!E$11,資金調達!E$14)) -> 3000 | P33: =IF(I33=1,0,IF(OR(F33="当初一括",F33="分割4回"),0,IF(OR(I33=4,I33=5),資金調達!M$11,IF(F33="分割3回",資金調達!M$15,IF(F33="分割2回",資金調達!M$14+資金調達!M$15,SUM(資金調達!M$11:M$15)))))) -> 3300 | T33: 0 | U33: 0 | V33: =IFERROR(VLOOKUP(J33*10000,table!B$3:C$11,2,TRUE),0) -> 0 | W33: =IF(OR(I33=1,0,中間処理!A33=2),0,VLOOKUP(I33,AR$3:AU$13,4,FALSE)) -> 135000 | X33: =IF(H33=1,IF(中間処理!A33=2,0,IF(I33=1,0,AO$7)),0) -> 100000 | Y33: =IF(H33=1,IF(中間処理!A33=2,0,VLOOKUP(I33,AR$3:AV$13,5,FALSE)),0) -> 22500 | Z33: 0 | AA33: 1000 | AB33: 0 | AC33: =IF(J33=0,0,IF(中間処理!A$2=2,0,IF(L33>0,120000,0)+IF(AB33>0,1,0)*120000+IF(AND(P33>0,OR(AH33="東光商事",AH33="アプラス")),80000,0))) -> 0 | AD33: 110000 | AE33: =INT(IF(G33>0,IF(OR(I33=4,I33=5),資金調達!O$43,IF(F33="分割2回",資金調達!O$41,IF(F33="分割3回",資金調達!O$42,資金調達!O$40)))*10000*AI33/12,0)) -> 0 | AF33: =IF(AE33>0,VLOOKUP(P33*10000,table!B$3:C$11,2,TRUE),0) -> 0 | AG33: 368500
A34: 32 | B34: 手数料定率 | C34: みずほ銀行 | D34: フラット35 | E34: フラット35 | F34: 最終一括 | G34: =IF(資金調達!D$4=1,0,IF(金利手数料一覧!Y$1=2,0,IF(F34="当初一括",0,IF(F34="分割3回",1,IF(資金調達!M$20>0,1,0))))) -> 1 | H34: =資金調達!D$3 -> 1 | I34: =資金調達!D$4 -> 2 | K34: =K30 -> 35 | L34: =IF(OR(I34=2,I34=5),資金調達!E$12,IF(I34=4,資金調達!E$11,IF(I34=1,資金調達!E$11,0)))+IF(D34="フラット35",0,資金調達!E$16) -> 1500 | M34: =資金調達!E$12-資金調達!E$13 -> 1500 | N34: 0 | O34: =IF(I34=1,資金調達!E$11,IF(I34=4,資金調達!E$11,資金調達!E$14)) -> 3000 | P34: =IF(I34=1,0,IF(OR(F34="当初一括",F34="分割4回"),0,IF(OR(I34=4,I34=5),資金調達!M$11,IF(F34="分割3回",資金調達!M$15,IF(F34="分割2回",資金調達!M$14+資金調達!M$15,SUM(資金調達!M$11:M$15)))))) -> 3300 | T34: 0 | U34: 0 | V34: 5500 | W34: =IF(OR(I34=1,0,中間処理!A34=2),0,VLOOKUP(I34,AR$3:AU$13,4,FALSE)) -> 135000 | X34: =IF(H34=1,IF(中間処理!A34=2,0,IF(I34=1,0,AO$7)),0) -> 100000 | Y34: =IF(H34=1,IF(中間処理!A34=2,0,VLOOKUP(I34,AR$3:AV$13,5,FALSE)),0) -> 22500 | Z34: 0 | AA34: 1000 | AB34: 0 | AC34: =IF(J34=0,0,IF(中間処理!A$2=2,0,IF(L34>0,120000,0)+IF(AB34>0,1,0)*120000+IF(AND(P34>0,OR(AH34="東光商事",AH34="アプラス")),80000,0))) -> 0 | AD34: 110000 | AE34: =INT(IF(G34>0,IF(OR(I34=4,I34=5),資金調達!O$43,IF(F34="分割2回",資金調達!O$41,IF(F34="分割3回",資金調達!O$42,資金調達!O$40)))*10000*AI34/12,0)) -> 0 | AF34: =IF(AE34>0,VLOOKUP(P34*10000,table!B$3:C$11,2,TRUE),0) -> 0 | AG34: =SUM(S34:AE34) -> 374000
A35: 33 | B35: 手数料定率 | C35: みずほ銀行 | D35: フラット35 | E35: フラット35 90%over | F35: 最終一括 | G35: =IF(資金調達!D$4=1,0,IF(金利手数料一覧!Y$1=2,0,IF(F35="当初一括",0,IF(F35="分割3回",1,IF(資金調達!M$20>0,1,0))))) -> 1 | H35: =資金調達!D$3 -> 1 | I35: =資金調達!D$4 -> 2 | K35: =K34 -> 35 | L35: =IF(OR(I35=2,I35=5),資金調達!E$12,IF(I35=4,資金調達!E$11,IF(I35=1,資金調達!E$11,0)))+IF(D35="フラット35",0,資金調達!E$16) -> 1500 | M35: =資金調達!E$12-資金調達!E$13 -> 1500 | N35: 0 | O35: =IF(I35=1,資金調達!E$11,IF(I35=4,資金調達!E$11,資金調達!E$14)) -> 3000 | P35: =IF(I35=1,0,IF(OR(F35="当初一括",F35="分割4回"),0,IF(OR(I35=4,I35=5),資金調達!M$11,IF(F35="分割3回",資金調達!M$15,IF(F35="分割2回",資金調達!M$14+資金調達!M$15,SUM(資金調達!M$11:M$15)))))) -> 3300 | T35: 0 | U35: 0 | V35: 5500 | W35: =IF(OR(I35=1,0,中間処理!A35=2),0,VLOOKUP(I35,AR$3:AU$13,4,FALSE)) -> 135000 | X35: =IF(H35=1,IF(中間処理!A35=2,0,IF(I35=1,0,AO$7)),0) -> 100000 | Y35: =IF(H35=1,IF(中間処理!A35=2,0,VLOOKUP(I35,AR$3:AV$13,5,FALSE)),0) -> 22500 | Z35: 0 | AA35: 1000 | AB35: 0 | AC35: =IF(J35=0,0,IF(中間処理!A$2=2,0,IF(L35>0,120000,0)+IF(AB35>0,1,0)*120000+IF(AND(P35>0,OR(AH35="東光商事",AH35="アプラス")),80000,0))) -> 0 | AD35: 110000 | AE35: =INT(IF(G35>0,IF(OR(I35=4,I35=5),資金調達!O$43,IF(F35="分割2回",資金調達!O$41,IF(F35="分割3回",資金調達!O$42,資金調達!O$40)))*10000*AI35/12,0)) -> 0 | AF35: =IF(AE35>0,VLOOKUP(P35*10000,table!B$3:C$11,2,TRUE),0) -> 0 | AG35: 374000
A36: 34 | B36: 手数料定額 | C36: みずほ銀行 | D36: フラット35 | E36: すまい・るパッケージ | F36: 最終一括 | G36: =IF(資金調達!D$4=1,0,IF(金利手数料一覧!Y$1=2,0,IF(F36="当初一括",0,IF(F36="分割3回",1,IF(資金調達!M$20>0,1,0))))) -> 1 | H36: =資金調達!D$3 -> 1 | I36: =資金調達!D$4 -> 2 | K36: =K34 -> 35 | M36: =資金調達!E$12-資金調達!E$13 -> 1500 | N36: 0 | O36: =IF(I36=1,資金調達!E$11,IF(I36=4,資金調達!E$11,資金調達!E$14)) -> 3000 | P36: =IF(I36=1,0,IF(OR(F36="当初一括",F36="分割4回"),0,IF(OR(I36=4,I36=5),資金調達!M$11,IF(F36="分割3回",資金調達!M$15,IF(F36="分割2回",資金調達!M$14+資金調達!M$15,SUM(資金調達!M$11:M$15)))))) -> 3300 | T36: 0 | U36: 0 | V36: 5500 | W36: =IF(OR(I36=1,0,中間処理!A36=2),0,VLOOKUP(I36,AR$3:AU$13,4,FALSE)) -> 135000 | X36: =IF(H36=1,IF(中間処理!A36=2,0,IF(I36=1,0,AO$7)),0) -> 100000 | Y36: 0 | Z36: 0 | AB36: 0 | AC36: =IF(J36=0,0,IF(中間処理!A$2=2,0,IF(L36>0,120000,0)+IF(AB36>0,1,0)*120000+IF(AND(P36>0,OR(AH36="東光商事",AH36="アプラス")),80000,0))) -> 0 | AE36: =INT(IF(G36>0,IF(OR(I36=4,I36=5),資金調達!O$43,IF(F36="分割2回",資金調達!O$41,IF(F36="分割3回",資金調達!O$42,資金調達!O$40)))*10000*AI36/12,0)) -> 0 | AF36: =IF(AE36>0,VLOOKUP(P36*10000,table!B$3:C$11,2,TRUE),0) -> 0 | AG36: 240500
A37: 35 | B37: 手数料定率 | C37: 三井住友銀行 | E37: =当月!B266 -> WEB申込専用住宅ローン | F37: 分割3回 | G37: =IF(資金調達!D$4=1,0,IF(金利手数料一覧!Y$1=2,0,IF(F37="当初一括",0,IF(F37="分割3回",1,IF(資金調達!M$20>0,1,0))))) -> 1 | H37: =資金調達!D$3 -> 1 | I37: =資金調達!D$4 -> 2 | J37: =J2 -> 4000 | K37: =K30 -> 35 | L37: =IF(OR(I37=2,I37=5),資金調達!E$12,IF(I37=4,資金調達!E$11,IF(I37=1,資金調達!E$11,0)))+IF(D37="フラット35",0,資金調達!E$16) -> 1500 | M37: =資金調達!E$12-資金調達!E$13 -> 1500 | N37: 0 | O37: =IF(I37=1,資金調達!E$11,IF(I37=4,資金調達!E$11,資金調達!E$14)) -> 3000 | P37: =IF(I37=1,0,IF(OR(F37="当初一括",F37="分割4回"),0,IF(OR(I37=4,I37=5),資金調達!M$11,IF(F37="分割3回",資金調達!M$15,IF(F37="分割2回",資金調達!M$14+資金調達!M$15,SUM(資金調達!M$11:M$15)))))) -> 900 | Q37: =金利手数料一覧!U89 -> 0.022 | T37: 880000 | U37: 0 | V37: 0 | W37: =IF(OR(I37=1,0,中間処理!A37=2),0,VLOOKUP(I37,AR$3:AU$13,4,FALSE)) -> 135000 | X37: =IF(H37=1,IF(中間処理!A37=2,0,IF(I37=1,0,AO$7)),0) -> 100000 | Y37: =IF(H37=1,IF(中間処理!A37=2,0,VLOOKUP(I37,AR$3:AV$13,5,FALSE)),0) -> 22500 | Z37: 160000 | AA37: =IF(G37=0,0,1000) -> 1000 | AB37: 3300 | AC37: =IF(J37=0,0,IF(中間処理!A$2=2,0,IF(L37>0,120000,0)+IF(AB37>0,1,0)*120000+IF(AND(P37>0,OR(AH37="東光商事",AH37="アプラス")),80000,0))) -> 240000 | AD37: =IF(G37=0,0,110000) -> 110000 | AE37: =INT(IF(G37>0,IF(OR(I37=4,I37=5),資金調達!O$43,IF(F37="分割2回",資金調達!O$41,IF(F37="分割3回",資金調達!O$42,資金調達!O$40)))*10000*AI37/12,0)) -> 59062 | AF37: =IF(AE37>0,VLOOKUP(P37*10000,table!B$3:C$11,2,TRUE),0) -> 10000 | AG37: =SUM(S37:AE37) -> 1710862 | AH37: プロパー | AI37: 0.02625
A38: 36 | B38: 手数料定率 | C38: 三井住友銀行 | E38: =E37 -> WEB申込専用住宅ローン | F38: 分割2回 | G38: =IF(資金調達!D$4=1,0,IF(金利手数料一覧!Y$1=2,0,IF(F38="当初一括",0,IF(F38="分割3回",1,IF(資金調達!M$20>0,1,0))))) -> 1 | H38: =資金調達!D$3 -> 1 | I38: =資金調達!D$4 -> 2 | J38: =J2 -> 4000 | K38: =K37 -> 35 | L38: =IF(OR(I38=2,I38=5),資金調達!E$12,IF(I38=4,資金調達!E$11,IF(I38=1,資金調達!E$11,0)))+IF(D38="フラット35",0,資金調達!E$16) -> 1500 | M38: =資金調達!E$12-資金調達!E$13 -> 1500 | N38: 0 | O38: =IF(I38=1,資金調達!E$11,IF(I38=4,資金調達!E$11,資金調達!E$14)) -> 3000 | P38: =IF(I38=1,0,IF(OR(F38="当初一括",F38="分割4回"),0,IF(OR(I38=4,I38=5),資金調達!M$11,IF(F38="分割3回",資金調達!M$15,IF(F38="分割2回",資金調達!M$14+資金調達!M$15,SUM(資金調達!M$11:M$15)))))) -> 1800 | Q38: =Q37 -> 0.022 | T38: 880000 | U38: 0 | V38: 0 | W38: =IF(OR(I38=1,0,中間処理!A38=2),0,VLOOKUP(I38,AR$3:AU$13,4,FALSE)) -> 135000 | X38: =IF(H38=1,IF(中間処理!A38=2,0,IF(I38=1,0,AO$7)),0) -> 100000 | Y38: =IF(H38=1,IF(中間処理!A38=2,0,VLOOKUP(I38,AR$3:AV$13,5,FALSE)),0) -> 22500 | Z38: 160000 | AA38: 1000 | AB38: 3300 | AC38: =IF(J38=0,0,IF(中間処理!A$2=2,0,IF(L38>0,120000,0)+IF(AB38>0,1,0)*120000+IF(AND(P38>0,OR(AH38="東光商事",AH38="アプラス")),80000,0))) -> 240000 | AD38: 110000 | AE38: =INT(IF(G38>0,IF(OR(I38=4,I38=5),資金調達!O$43,IF(F38="分割2回",資金調達!O$41,IF(F38="分割3回",資金調達!O$42,資金調達!O$40)))*10000*AI38/12,0)) -> 157500 | AF38: =IF(AE38>0,VLOOKUP(P38*10000,table!B$3:C$11,2,TRUE),0) -> 20000 | AG38: 1809300 | AH38: プロパー | AI38: 0.02625
A39: 37 | B39: 手数料定額 | C39: 三井住友銀行 | D39: フラット35 | E39: フラット35 | F39: 最終一括 | G39: =IF(資金調達!D$4=1,0,IF(金利手数料一覧!Y$1=2,0,IF(F39="当初一括",0,IF(F39="分割3回",1,IF(資金調達!M$20>0,1,0))))) -> 1 | H39: =資金調達!D$3 -> 1 | I39: =資金調達!D$4 -> 2 | J39: =J32 -> 4000 | K39: =K42 -> 35 | L39: =IF(OR(I39=2,I39=5),資金調達!E$12,IF(I39=4,資金調達!E$11,IF(I39=1,資金調達!E$11,0)))+IF(D39="フラット35",0,資金調達!E$16) -> 1500 | M39: =資金調達!E$12-資金調達!E$13 -> 1500 | N39: 0 | O39: =IF(I39=1,資金調達!E$11,IF(I39=4,資金調達!E$11,資金調達!E$14)) -> 3000 | P39: =IF(I39=1,0,IF(OR(F39="当初一括",F39="分割4回"),0,IF(OR(I39=4,I39=5),資金調達!M$11,IF(F39="分割3回",資金調達!M$15,IF(F39="分割2回",資金調達!M$14+資金調達!M$15,SUM(資金調達!M$11:M$15)))))) -> 3300 | R39: =金利手数料一覧!U95 -> 33000 | T39: 33000 | U39: 0 | V39: =IFERROR(VLOOKUP(J39*10000,table!B$3:C$11,2,TRUE),0) -> 20000 | W39: =IF(OR(I39=1,0,中間処理!A39=2),0,VLOOKUP(I39,AR$3:AU$13,4,FALSE)) -> 135000 | X39: =IF(H39=1,IF(中間処理!A39=2,0,IF(I39=1,0,AO$7)),0) -> 100000 | Y39: =IF(H39=1,IF(中間処理!A39=2,0,VLOOKUP(I39,AR$3:AV$13,5,FALSE)),0) -> 22500 | Z39: 40000 | AA39: 1000 | AB39: 0 | AC39: =IF(J39=0,0,IF(中間処理!A$2=2,0,IF(L39>0,120000,0)+IF(AB39>0,1,0)*120000+IF(AND(P39>0,OR(AH39="東光商事",AH39="アプラス")),80000,0))) -> 120000 | AD39: 110000 | AE39: =INT(IF(G39>0,IF(OR(I39=4,I39=5),資金調達!O$43,IF(F39="分割2回",資金調達!O$41,IF(F39="分割3回",資金調達!O$42,資金調達!O$40)))*10000*AI39/12,0)) -> 387187 | AF39: =IF(AE39>0,VLOOKUP(P39*10000,table!B$3:C$11,2,TRUE),0) -> 20000 | AG39: 968687 | AH39: プロパー | AI39: 0.02625
A40: 38 | B40: 手数料定額 | C40: 三井住友銀行 | D40: フラット35 | E40: フラット35 90%over | F40: 最終一括 | G40: =IF(資金調達!D$4=1,0,IF(金利手数料一覧!Y$1=2,0,IF(F40="当初一括",0,IF(F40="分割3回",1,IF(資金調達!M$20>0,1,0))))) -> 1 | H40: =資金調達!D$3 -> 1 | I40: =資金調達!D$4 -> 2 | J40: =J33 -> 0 | K40: =K39 -> 35 | L40: =IF(OR(I40=2,I40=5),資金調達!E$12,IF(I40=4,資金調達!E$11,IF(I40=1,資金調達!E$11,0)))+IF(D40="フラット35",0,資金調達!E$16) -> 1500 | M40: =資金調達!E$12-資金調達!E$13 -> 1500 | N40: 0 | O40: =IF(I40=1,資金調達!E$11,IF(I40=4,資金調達!E$11,資金調達!E$14)) -> 3000 | P40: =IF(I40=1,0,IF(OR(F40="当初一括",F40="分割4回"),0,IF(OR(I40=4,I40=5),資金調達!M$11,IF(F40="分割3回",資金調達!M$15,IF(F40="分割2回",資金調達!M$14+資金調達!M$15,SUM(資金調達!M$11:M$15)))))) -> 3300 | R40: =R39 -> 33000 | T40: 0 | U40: 0 | V40: =IFERROR(VLOOKUP(J40*10000,table!B$3:C$11,2,TRUE),0) -> 0 | W40: =IF(OR(I40=1,0,中間処理!A40=2),0,VLOOKUP(I40,AR$3:AU$13,4,FALSE)) -> 135000 | X40: =IF(H40=1,IF(中間処理!A40=2,0,IF(I40=1,0,AO$7)),0) -> 100000 | Y40: =IF(H40=1,IF(中間処理!A40=2,0,VLOOKUP(I40,AR$3:AV$13,5,FALSE)),0) -> 22500 | Z40: 0 | AA40: 1000 | AB40: 0 | AC40: =IF(J40=0,0,IF(中間処理!A$2=2,0,IF(L40>0,120000,0)+IF(AB40>0,1,0)*120000+IF(AND(P40>0,OR(AH40="東光商事",AH40="アプラス")),80000,0))) -> 0 | AD40: 110000 | AE40: =INT(IF(G40>0,IF(OR(I40=4,I40=5),資金調達!O$43,IF(F40="分割2回",資金調達!O$41,IF(F40="分割3回",資金調達!O$42,資金調達!O$40)))*10000*AI40/12,0)) -> 387187 | AF40: =IF(AE40>0,VLOOKUP(P40*10000,table!B$3:C$11,2,TRUE),0) -> 20000 | AG40: 755687 | AH40: プロパー | AI40: 0.02625
A41: 39 | B41: 手数料定率 | C41: イオン銀行 | E41: =当月!B305 -> イオン銀行住宅ローン | F41: =IF(OR(L41>0,N41>0),"分割2回","最終一括") -> 分割2回 | G41: =IF(資金調達!D$4=1,0,IF(金利手数料一覧!Y$1=2,0,IF(F41="当初一括",0,IF(F41="分割3回",1,IF(資金調達!M$20>0,1,0))))) -> 1 | H41: =資金調達!D$3 -> 1 | I41: =資金調達!D$4 -> 2 | J41: =J2 -> 4000 | K41: =K38 -> 35 | L41: =IF(OR(I41=2,I41=5),資金調達!E$12,IF(I41=4,資金調達!E$11,IF(I41=1,資金調達!E$11,0)))+IF(D41="フラット35",0,資金調達!E$16) -> 1500 | M41: =資金調達!E$12-資金調達!E$13 -> 1500 | N41: 0 | O41: =IF(I41=1,資金調達!E$11,IF(I41=4,資金調達!E$11,資金調達!E$14)) -> 3000 | P41: =IF(I41=1,0,IF(OR(F41="当初一括",F41="分割4回"),0,IF(OR(I41=4,I41=5),資金調達!M$11,IF(F41="分割3回",資金調達!M$15,IF(F41="分割2回",資金調達!M$14+資金調達!M$15,SUM(資金調達!M$11:M$15)))))) -> 1800 | Q41: =金利手数料一覧!U98 -> 0.022 | T41: 880000 | U41: 0 | V41: 5500 | W41: =IF(OR(I41=1,0,中間処理!A41=2),0,VLOOKUP(I41,AR$3:AU$13,4,FALSE)) -> 135000 | X41: =IF(H41=1,IF(中間処理!A41=2,0,IF(I41=1,0,AO$7)),0) -> 100000 | Y41: =IF(H41=1,IF(中間処理!A41=2,0,VLOOKUP(I41,AR$3:AV$13,5,FALSE)),0) -> 22500 | Z41: 160000 | AA41: 1000 | AB41: 3300 | AC41: =IF(J41=0,0,IF(中間処理!A$2=2,0,IF(L41>0,120000,0)+IF(AB41>0,1,0)*120000+IF(AND(P41>0,OR(AH41="東光商事",AH41="アプラス")),80000,0))) -> 240000 | AD41: 110000 | AE41: =INT(IF(G41>0,IF(OR(I41=4,I41=5),資金調達!O$43,IF(F41="分割2回",資金調達!O$41,IF(F41="分割3回",資金調達!O$42,資金調達!O$40)))*10000*AI41/12,0)) -> 268200 | AF41: =IF(AE41>0,VLOOKUP(P41*10000,table!B$3:C$11,2,TRUE),0) -> 20000 | AG41: 1925500 | AH41: プロパー | AI41: =金利手数料一覧!D111 -> 0.0447
A42: 40 | B42: 手数料定額 | C42: イオン銀行 | E42: =E41 -> イオン銀行住宅ローン | F42: =IF(OR(L42>0,N42>0),"分割2回","最終一括") -> 分割2回 | G42: =IF(資金調達!D$4=1,0,IF(金利手数料一覧!Y$1=2,0,IF(F42="当初一括",0,IF(F42="分割3回",1,IF(資金調達!M$20>0,1,0))))) -> 1 | H42: =資金調達!D$3 -> 1 | I42: =資金調達!D$4 -> 2 | J42: =J2 -> 4000 | K42: =K41 -> 35 | L42: =IF(OR(I42=2,I42=5),資金調達!E$12,IF(I42=4,資金調達!E$11,IF(I42=1,資金調達!E$11,0)))+IF(D42="フラット35",0,資金調達!E$16) -> 1500 | M42: =資金調達!E$12-資金調達!E$13 -> 1500 | N42: 0 | O42: =IF(I42=1,資金調達!E$11,IF(I42=4,資金調達!E$11,資金調達!E$14)) -> 3000 | P42: =IF(I42=1,0,IF(OR(F42="当初一括",F42="分割4回"),0,IF(OR(I42=4,I42=5),資金調達!M$11,IF(F42="分割3回",資金調達!M$15,IF(F42="分割2回",資金調達!M$14+資金調達!M$15,SUM(資金調達!M$11:M$15)))))) -> 1800 | R42: =金利手数料一覧!U102 -> 110000 | T42: 110000 | U42: 0 | V42: 5500 | W42: =IF(OR(I42=1,0,中間処理!A42=2),0,VLOOKUP(I42,AR$3:AU$13,4,FALSE)) -> 135000 | X42: =IF(H42=1,IF(中間処理!A42=2,0,IF(I42=1,0,AO$7)),0) -> 100000 | Y42: =IF(H42=1,IF(中間処理!A42=2,0,VLOOKUP(I42,AR$3:AV$13,5,FALSE)),0) -> 22500 | Z42: 160000 | AA42: 1000 | AB42: 3300 | AC42: =IF(J42=0,0,IF(中間処理!A$2=2,0,IF(L42>0,120000,0)+IF(AB42>0,1,0)*120000+IF(AND(P42>0,OR(AH42="東光商事",AH42="アプラス")),80000,0))) -> 240000 | AD42: 110000 | AE42: =INT(IF(G42>0,IF(OR(I42=4,I42=5),資金調達!O$43,IF(F42="分割2回",資金調達!O$41,IF(F42="分割3回",資金調達!O$42,資金調達!O$40)))*10000*AI42/12,0)) -> 268200 | AF42: =IF(AE42>0,VLOOKUP(P42*10000,table!B$3:C$11,2,TRUE),0) -> 20000 | AG42: 1155500 | AH42: プロパー | AI42: =AI41 -> 0.0447
A43: 41 | B43: 手数料定率 | C43: イオン銀行 | D43: フラット35 | E43: フラット35 | F43: 最終一括 | G43: =IF(資金調達!D$4=1,0,IF(金利手数料一覧!Y$1=2,0,IF(F43="当初一括",0,IF(F43="分割3回",1,IF(資金調達!M$20>0,1,0))))) -> 1 | H43: =資金調達!D$3 -> 1 | I43: =資金調達!D$4 -> 2 | J43: =J39 -> 4000 | K43: =K46 -> 35 | L43: =IF(OR(I43=2,I43=5),資金調達!E$12,IF(I43=4,資金調達!E$11,IF(I43=1,資金調達!E$11,0)))+IF(D43="フラット35",0,資金調達!E$16) -> 1500 | M43: =資金調達!E$12-資金調達!E$13 -> 1500 | N43: 0 | O43: =IF(I43=1,資金調達!E$11,IF(I43=4,資金調達!E$11,資金調達!E$14)) -> 3000 | P43: =IF(I43=1,0,IF(OR(F43="当初一括",F43="分割4回"),0,IF(OR(I43=4,I43=5),資金調達!M$11,IF(F43="分割3回",資金調達!M$15,IF(F43="分割2回",資金調達!M$14+資金調達!M$15,SUM(資金調達!M$11:M$15)))))) -> 3300 | Q43: =金利手数料一覧!U106 -> 0.0187 | T43: 748000 | U43: 0 | V43: =IFERROR(VLOOKUP(J43*10000,table!B$3:C$11,2,TRUE),0) -> 20000 | W43: =IF(OR(I43=1,0,中間処理!A43=2),0,VLOOKUP(I43,AR$3:AU$13,4,FALSE)) -> 135000 | X43: =IF(H43=1,IF(中間処理!A43=2,0,IF(I43=1,0,AO$7)),0) -> 100000 | Y43: =IF(H43=1,IF(中間処理!A43=2,0,VLOOKUP(I43,AR$3:AV$13,5,FALSE)),0) -> 22500 | Z43: 40000 | AA43: 1000 | AB43: 0 | AC43: =IF(J43=0,0,IF(中間処理!A$2=2,0,IF(L43>0,120000,0)+IF(AB43>0,1,0)*120000+IF(AND(P43>0,OR(AH43="東光商事",AH43="アプラス")),80000,0))) -> 120000 | AD43: 110000 | AE43: =INT(IF(G43>0,IF(OR(I43=4,I43=5),資金調達!O$43,IF(F43="分割2回",資金調達!O$41,IF(F43="分割3回",資金調達!O$42,資金調達!O$40)))*10000*AI43/12,0)) -> 483062 | AF43: =IF(AE43>0,VLOOKUP(P43*10000,table!B$3:C$11,2,TRUE),0) -> 20000 | AG43: 1779562 | AI43: 0.03275
A44: 42 | B44: 手数料定率 | C44: イオン銀行 | D44: フラット35 | E44: フラット35 90%over | F44: 最終一括 | G44: =IF(資金調達!D$4=1,0,IF(金利手数料一覧!Y$1=2,0,IF(F44="当初一括",0,IF(F44="分割3回",1,IF(資金調達!M$20>0,1,0))))) -> 1 | H44: =資金調達!D$3 -> 1 | I44: =資金調達!D$4 -> 2 | J44: =J40 -> 0 | K44: =K43 -> 35 | L44: =IF(OR(I44=2,I44=5),資金調達!E$12,IF(I44=4,資金調達!E$11,IF(I44=1,資金調達!E$11,0)))+IF(D44="フラット35",0,資金調達!E$16) -> 1500 | M44: =資金調達!E$12-資金調達!E$13 -> 1500 | N44: 0 | O44: =IF(I44=1,資金調達!E$11,IF(I44=4,資金調達!E$11,資金調達!E$14)) -> 3000 | P44: =IF(I44=1,0,IF(OR(F44="当初一括",F44="分割4回"),0,IF(OR(I44=4,I44=5),資金調達!M$11,IF(F44="分割3回",資金調達!M$15,IF(F44="分割2回",資金調達!M$14+資金調達!M$15,SUM(資金調達!M$11:M$15)))))) -> 3300 | Q44: =Q43 -> 0.0187 | T44: 0 | U44: 0 | V44: =IFERROR(VLOOKUP(J44*10000,table!B$3:C$11,2,TRUE),0) -> 0 | W44: =IF(OR(I44=1,0,中間処理!A44=2),0,VLOOKUP(I44,AR$3:AU$13,4,FALSE)) -> 135000 | X44: =IF(H44=1,IF(中間処理!A44=2,0,IF(I44=1,0,AO$7)),0) -> 100000 | Y44: =IF(H44=1,IF(中間処理!A44=2,0,VLOOKUP(I44,AR$3:AV$13,5,FALSE)),0) -> 22500 | Z44: 0 | AA44: 1000 | AB44: 0 | AC44: =IF(J44=0,0,IF(中間処理!A$2=2,0,IF(L44>0,120000,0)+IF(AB44>0,1,0)*120000+IF(AND(P44>0,OR(AH44="東光商事",AH44="アプラス")),80000,0))) -> 0 | AD44: 110000 | AE44: =INT(IF(G44>0,IF(OR(I44=4,I44=5),資金調達!O$43,IF(F44="分割2回",資金調達!O$41,IF(F44="分割3回",資金調達!O$42,資金調達!O$40)))*10000*AI44/12,0)) -> 483062 | AF44: =IF(AE44>0,VLOOKUP(P44*10000,table!B$3:C$11,2,TRUE),0) -> 20000 | AG44: 851562 | AI44: =AI43 -> 0.03275
A45: 43 | B45: 手数料定額 | C45: イオン銀行 | D45: フラット35 | E45: フラット35 | F45: 最終一括 | G45: =IF(資金調達!D$4=1,0,IF(金利手数料一覧!Y$1=2,0,IF(F45="当初一括",0,IF(F45="分割3回",1,IF(資金調達!M$20>0,1,0))))) -> 1 | H45: =資金調達!D$3 -> 1 | I45: =資金調達!D$4 -> 2 | J45: =J43 -> 4000 | K45: =K42 -> 35 | L45: =IF(OR(I45=2,I45=5),資金調達!E$12,IF(I45=4,資金調達!E$11,IF(I45=1,資金調達!E$11,0)))+IF(D45="フラット35",0,資金調達!E$16) -> 1500 | M45: =資金調達!E$12-資金調達!E$13 -> 1500 | N45: 0 | O45: =IF(I45=1,資金調達!E$11,IF(I45=4,資金調達!E$11,資金調達!E$14)) -> 3000 | P45: =IF(I45=1,0,IF(OR(F45="当初一括",F45="分割4回"),0,IF(OR(I45=4,I45=5),資金調達!M$11,IF(F45="分割3回",資金調達!M$15,IF(F45="分割2回",資金調達!M$14+資金調達!M$15,SUM(資金調達!M$11:M$15)))))) -> 3300 | R45: =金利手数料一覧!U108 -> 55000 | T45: 55000 | U45: 0 | V45: 5500 | W45: =IF(OR(I45=1,0,中間処理!A45=2),0,VLOOKUP(I45,AR$3:AU$13,4,FALSE)) -> 135000 | X45: =IF(H45=1,IF(中間処理!A45=2,0,IF(I45=1,0,AO$7)),0) -> 100000 | Y45: =IF(H45=1,IF(中間処理!A45=2,0,VLOOKUP(I45,AR$3:AV$13,5,FALSE)),0) -> 22500 | Z45: 40000 | AA45: 1000 | AB45: 0 | AC45: =IF(J45=0,0,IF(中間処理!A$2=2,0,IF(L45>0,120000,0)+IF(AB45>0,1,0)*120000+IF(AND(P45>0,OR(AH45="東光商事",AH45="アプラス")),80000,0))) -> 120000 | AD45: 110000 | AE45: =INT(IF(G45>0,IF(OR(I45=4,I45=5),資金調達!O$43,IF(F45="分割2回",資金調達!O$41,IF(F45="分割3回",資金調達!O$42,資金調達!O$40)))*10000*AI45/12,0)) -> 483062 | AF45: =IF(AE45>0,VLOOKUP(P45*10000,table!B$3:C$11,2,TRUE),0) -> 20000 | AG45: 1072062 | AH45: プロパー | AI45: =AI44 -> 0.03275
A46: 44 | B46: 手数料定額 | C46: イオン銀行 | D46: フラット35 | E46: フラット35 90%over | F46: 最終一括 | G46: =IF(資金調達!D$4=1,0,IF(金利手数料一覧!Y$1=2,0,IF(F46="当初一括",0,IF(F46="分割3回",1,IF(資金調達!M$20>0,1,0))))) -> 1 | H46: =資金調達!D$3 -> 1 | I46: =資金調達!D$4 -> 2 | J46: =J44 -> 0 | K46: =K45 -> 35 | L46: =IF(OR(I46=2,I46=5),資金調達!E$12,IF(I46=4,資金調達!E$11,IF(I46=1,資金調達!E$11,0)))+IF(D46="フラット35",0,資金調達!E$16) -> 1500 | M46: =資金調達!E$12-資金調達!E$13 -> 1500 | N46: 0 | O46: =IF(I46=1,資金調達!E$11,IF(I46=4,資金調達!E$11,資金調達!E$14)) -> 3000 | P46: =IF(I46=1,0,IF(OR(F46="当初一括",F46="分割4回"),0,IF(OR(I46=4,I46=5),資金調達!M$11,IF(F46="分割3回",資金調達!M$15,IF(F46="分割2回",資金調達!M$14+資金調達!M$15,SUM(資金調達!M$11:M$15)))))) -> 3300 | R46: =R45 -> 55000 | T46: 0 | U46: 0 | V46: 5500 | W46: =IF(OR(I46=1,0,中間処理!A46=2),0,VLOOKUP(I46,AR$3:AU$13,4,FALSE)) -> 135000 | X46: =IF(H46=1,IF(中間処理!A46=2,0,IF(I46=1,0,AO$7)),0) -> 100000 | Y46: =IF(H46=1,IF(中間処理!A46=2,0,VLOOKUP(I46,AR$3:AV$13,5,FALSE)),0) -> 22500 | Z46: 0 | AA46: 1000 | AB46: 0 | AC46: =IF(J46=0,0,IF(中間処理!A$2=2,0,IF(L46>0,120000,0)+IF(AB46>0,1,0)*120000+IF(AND(P46>0,OR(AH46="東光商事",AH46="アプラス")),80000,0))) -> 0 | AD46: 110000 | AE46: =INT(IF(G46>0,IF(OR(I46=4,I46=5),資金調達!O$43,IF(F46="分割2回",資金調達!O$41,IF(F46="分割3回",資金調達!O$42,資金調達!O$40)))*10000*AI46/12,0)) -> 483062 | AF46: =IF(AE46>0,VLOOKUP(P46*10000,table!B$3:C$11,2,TRUE),0) -> 20000 | AG46: 857062 | AH46: プロパー | AI46: =AI45 -> 0.03275
A47: 45 | B47: 手数料定率 | C47: イオン銀行 | D47: フラット35 | E47: すまい・るパッケージ | F47: 最終一括 | G47: =IF(資金調達!D$4=1,0,IF(金利手数料一覧!Y$1=2,0,IF(F47="当初一括",0,IF(F47="分割3回",1,IF(資金調達!M$20>0,1,0))))) -> 1 | H47: =資金調達!D$3 -> 1 | I47: =資金調達!D$4 -> 2 | J47: =J26 -> -4000 | K47: =K45 -> 35 | M47: =資金調達!E$12-資金調達!E$13 -> 1500 | N47: 0 | O47: =IF(I47=1,資金調達!E$11,IF(I47=4,資金調達!E$11,資金調達!E$14)) -> 3000 | P47: =IF(I47=1,0,IF(OR(F47="当初一括",F47="分割4回"),0,IF(OR(I47=4,I47=5),資金調達!M$11,IF(F47="分割3回",資金調達!M$15,IF(F47="分割2回",資金調達!M$14+資金調達!M$15,SUM(資金調達!M$11:M$15)))))) -> 3300 | Q47: =金利手数料一覧!U110 -> 0.011 | T47: -440000 | U47: 0 | V47: 5500 | W47: =IF(OR(I47=1,0,中間処理!A47=2),0,VLOOKUP(I47,AR$3:AU$13,4,FALSE)) -> 135000 | X47: =IF(H47=1,IF(中間処理!A47=2,0,IF(I47=1,0,AO$7)),0) -> 100000 | Y47: 0 | Z47: -40000 | AB47: 0 | AC47: =IF(J47=0,0,IF(中間処理!A$2=2,0,IF(L47>0,120000,0)+IF(AB47>0,1,0)*120000+IF(AND(P47>0,OR(AH47="東光商事",AH47="アプラス")),80000,0))) -> 0 | AE47: =INT(IF(G47>0,IF(OR(I47=4,I47=5),資金調達!O$43,IF(F47="分割2回",資金調達!O$41,IF(F47="分割3回",資金調達!O$42,資金調達!O$40)))*10000*AI47/12,0)) -> 0 | AF47: =IF(AE47>0,VLOOKUP(P47*10000,table!B$3:C$11,2,TRUE),0) -> 0 | AG47: -239500 | AH47: プロパー
A48: 46 | B48: 手数料定率 | C48: SBI新生銀行 | D48: 定率 | E48: =当月!B382 -> パワースマート住宅ローン | F48: 最終一括 | G48: =IF(資金調達!D$4=1,0,IF(金利手数料一覧!Y$1=2,0,IF(F48="当初一括",0,IF(F48="分割3回",1,IF(資金調達!M$20>0,1,0))))) -> 1 | H48: =資金調達!D$3 -> 1 | I48: =資金調達!D$4 -> 2 | J48: =J2 -> 4000 | K48: =K42 -> 35 | L48: =IF(OR(I48=2,I48=5),資金調達!E$12,IF(I48=4,資金調達!E$11,IF(I48=1,資金調達!E$11,0)))+IF(D48="フラット35",0,資金調達!E$16) -> 1500 | M48: =資金調達!E$12-資金調達!E$13 -> 1500 | N48: 0 | O48: =IF(I48=1,資金調達!E$11,IF(I48=4,資金調達!E$11,資金調達!E$14)) -> 3000 | P48: =IF(I48=1,0,IF(OR(F48="当初一括",F48="分割4回"),0,IF(OR(I48=4,I48=5),資金調達!M$11,IF(F48="分割3回",資金調達!M$15,IF(F48="分割2回",資金調達!M$14+資金調達!M$15,SUM(資金調達!M$11:M$15)))))) -> 3300 | Q48: =金利手数料一覧!U113 -> 0.022 | T48: 880000 | U48: 0 | V48: 5500 | W48: =IF(OR(I48=1,0,中間処理!A48=2),0,VLOOKUP(I48,AR$3:AU$13,4,FALSE)) -> 135000 | X48: =IF(H48=1,IF(中間処理!A48=2,0,IF(I48=1,0,AO$7)),0) -> 100000 | Y48: =IF(H48=1,IF(中間処理!A48=2,0,VLOOKUP(I48,AR$3:AV$13,5,FALSE)),0) -> 22500 | Z48: 40000 | AA48: =IF(G48=0,0,1000) -> 1000 | AB48: 0 | AC48: =IF(J48=0,0,IF(中間処理!A$2=2,0,IF(L48>0,120000,0)+IF(AB48>0,1,0)*120000+IF(AND(P48>0,OR(AH48="東光商事",AH48="アプラス")),80000,0))) -> 200000 | AD48: =IF(G48=0,0,165000) -> 165000 | AE48: =INT(IF(G48>0,IF(OR(I48=4,I48=5),資金調達!O$43,IF(F48="分割2回",資金調達!O$41,IF(F48="分割3回",資金調達!O$42,資金調達!O$40)))*10000*AI48/12,0)) -> 427750 | AF48: =IF(AE48>0,VLOOKUP(P48*10000,table!B$3:C$11,2,TRUE),0) -> 20000 | AG48: 1976750 | AH48: アプラス | AI48: =AI2 -> 0.029
A49: 47 | B49: 手数料定額 | C49: SBI新生銀行 | D49: ステップダウン | E49: =E48 -> パワースマート住宅ローン | F49: 最終一括 | G49: =IF(資金調達!D$4=1,0,IF(金利手数料一覧!Y$1=2,0,IF(F49="当初一括",0,IF(F49="分割3回",1,IF(資金調達!M$20>0,1,0))))) -> 1 | H49: =資金調達!D$3 -> 1 | I49: =資金調達!D$4 -> 2 | J49: =J2 -> 4000 | K49: =K48 -> 35 | L49: =IF(OR(I49=2,I49=5),資金調達!E$12,IF(I49=4,資金調達!E$11,IF(I49=1,資金調達!E$11,0)))+IF(D49="フラット35",0,資金調達!E$16) -> 1500 | M49: =資金調達!E$12-資金調達!E$13 -> 1500 | N49: 0 | O49: =IF(I49=1,資金調達!E$11,IF(I49=4,資金調達!E$11,資金調達!E$14)) -> 3000 | P49: =IF(I49=1,0,IF(OR(F49="当初一括",F49="分割4回"),0,IF(OR(I49=4,I49=5),資金調達!M$11,IF(F49="分割3回",資金調達!M$15,IF(F49="分割2回",資金調達!M$14+資金調達!M$15,SUM(資金調達!M$11:M$15)))))) -> 3300 | R49: =金利手数料一覧!U117 -> 165000 | T49: 165000 | U49: 0 | V49: 5500 | W49: =IF(OR(I49=1,0,中間処理!A49=2),0,VLOOKUP(I49,AR$3:AU$13,4,FALSE)) -> 135000 | X49: =IF(H49=1,IF(中間処理!A49=2,0,IF(I49=1,0,AO$7)),0) -> 100000 | Y49: =IF(H49=1,IF(中間処理!A49=2,0,VLOOKUP(I49,AR$3:AV$13,5,FALSE)),0) -> 22500 | Z49: 40000 | AA49: 1000 | AB49: 0 | AC49: =IF(J49=0,0,IF(中間処理!A$2=2,0,IF(L49>0,120000,0)+IF(AB49>0,1,0)*120000+IF(AND(P49>0,OR(AH49="東光商事",AH49="アプラス")),80000,0))) -> 200000 | AD49: =IF(G47=0,0,165000) -> 165000 | AE49: =INT(IF(G49>0,IF(OR(I49=4,I49=5),資金調達!O$43,IF(F49="分割2回",資金調達!O$41,IF(F49="分割3回",資金調達!O$42,資金調達!O$40)))*10000*AI49/12,0)) -> 427750 | AF49: =IF(AE49>0,VLOOKUP(P49*10000,table!B$3:C$11,2,TRUE),0) -> 20000 | AG49: 1261750 | AH49: アプラス | AI49: =AI48 -> 0.029
A50: 48 | B50: 手数料定額 | C50: SBI新生銀行 | D50: 定額 | E50: =E49 -> パワースマート住宅ローン | F50: 最終一括 | G50: =IF(資金調達!D$4=1,0,IF(金利手数料一覧!Y$1=2,0,IF(F50="当初一括",0,IF(F50="分割3回",1,IF(資金調達!M$20>0,1,0))))) -> 1 | H50: =資金調達!D$3 -> 1 | I50: =資金調達!D$4 -> 2 | J50: =J2 -> 4000 | K50: =K49 -> 35 | L50: =IF(OR(I50=2,I50=5),資金調達!E$12,IF(I50=4,資金調達!E$11,IF(I50=1,資金調達!E$11,0)))+IF(D50="フラット35",0,資金調達!E$16) -> 1500 | M50: =資金調達!E$12-資金調達!E$13 -> 1500 | N50: 0 | O50: =IF(I50=1,資金調達!E$11,IF(I50=4,資金調達!E$11,資金調達!E$14)) -> 3000 | P50: =IF(I50=1,0,IF(OR(F50="当初一括",F50="分割4回"),0,IF(OR(I50=4,I50=5),資金調達!M$11,IF(F50="分割3回",資金調達!M$15,IF(F50="分割2回",資金調達!M$14+資金調達!M$15,SUM(資金調達!M$11:M$15)))))) -> 3300 | R50: =金利手数料一覧!U115 -> 55000 | T50: 55000 | U50: 0 | V50: 5500 | W50: =IF(OR(I50=1,0,中間処理!A50=2),0,VLOOKUP(I50,AR$3:AU$13,4,FALSE)) -> 135000 | X50: =IF(H50=1,IF(中間処理!A50=2,0,IF(I50=1,0,AO$7)),0) -> 100000 | Y50: =IF(H50=1,IF(中間処理!A50=2,0,VLOOKUP(I50,AR$3:AV$13,5,FALSE)),0) -> 22500 | Z50: 40000 | AA50: 1000 | AB50: 0 | AC50: =IF(J50=0,0,IF(中間処理!A$2=2,0,IF(L50>0,120000,0)+IF(AB50>0,1,0)*120000+IF(AND(P50>0,OR(AH50="東光商事",AH50="アプラス")),80000,0))) -> 200000 | AD50: =IF(G50=0,0,165000) -> 165000 | AE50: =INT(IF(G50>0,IF(OR(I50=4,I50=5),資金調達!O$43,IF(F50="分割2回",資金調達!O$41,IF(F50="分割3回",資金調達!O$42,資金調達!O$40)))*10000*AI50/12,0)) -> 427750 | AF50: =IF(AE50>0,VLOOKUP(P50*10000,table!B$3:C$11,2,TRUE),0) -> 20000 | AG50: 1151750 | AH50: アプラス | AI50: =AI49 -> 0.029
A51: 49 | B51: 手数料定額 | C51: 楽天銀行 | E51: =当月!B405 -> 楽天銀行住宅ローン（金利選択型） | F51: 最終一括 | G51: =IF(資金調達!D$4=1,0,IF(金利手数料一覧!Y$1=2,0,IF(F51="当初一括",0,IF(F51="分割3回",1,IF(資金調達!M$20>0,1,0))))) -> 1 | H51: =資金調達!D$3 -> 1 | I51: =資金調達!D$4 -> 2 | J51: =J2 -> 4000 | K51: =K50 -> 35 | L51: =IF(OR(I51=2,I51=5),資金調達!E$12,IF(I51=4,資金調達!E$11,IF(I51=1,資金調達!E$11,0)))+IF(D51="フラット35",0,資金調達!E$16) -> 1500 | M51: =資金調達!E$12-資金調達!E$13 -> 1500 | N51: 0 | O51: =IF(I51=1,資金調達!E$11,IF(I51=4,資金調達!E$11,資金調達!E$14)) -> 3000 | P51: =IF(I51=1,0,IF(OR(F51="当初一括",F51="分割4回"),0,IF(OR(I51=4,I51=5),資金調達!M$11,IF(F51="分割3回",資金調達!M$15,IF(F51="分割2回",資金調達!M$14+資金調達!M$15,SUM(資金調達!M$11:M$15)))))) -> 3300 | R51: =金利手数料一覧!U121 -> 330000 | T51: 330000 | U51: =IF(B51="保証料前払い",J51*10000*Q51,0) -> 0 | V51: =IFERROR(VLOOKUP(J51*10000,table!B$3:C$11,2,TRUE),0) -> 20000 | W51: =IF(OR(I51=1,0,中間処理!A51=2),0,VLOOKUP(I51,AR$3:AU$13,4,FALSE)) -> 135000 | X51: =IF(H51=1,IF(中間処理!A51=2,0,IF(I51=1,0,AO$7)),0) -> 100000 | Y51: =IF(H51=1,IF(中間処理!A51=2,0,VLOOKUP(I51,AR$3:AV$13,5,FALSE)),0) -> 22500 | Z51: 40000 | AA51: 1000 | AB51: 0 | AC51: =IF(J51=0,0,IF(中間処理!A$2=2,0,IF(L51>0,120000,0)+IF(AB51>0,1,0)*120000+IF(AND(P51>0,OR(AH51="東光商事",AH51="アプラス")),80000,0))) -> 120000 | AD51: =IF(G51=0,0,110000) -> 110000 | AE51: =INT(IF(G51>0,IF(OR(I51=4,I51=5),資金調達!O$43,IF(F51="分割2回",資金調達!O$41,IF(F51="分割3回",資金調達!O$42,資金調達!O$40)))*10000*AI51/12,0)) -> 457250 | AF51: =IF(AE51>0,VLOOKUP(P51*10000,table!B$3:C$11,2,TRUE),0) -> 20000 | AG51: 1335750 | AH51: プロパー | AI51: =金利手数料一覧!D128 -> 0.031
A52: 50 | B52: 手数料定率 | C52: 楽天銀行 | D52: フラット35 | E52: フラット35 90 | F52: 最終一括 | G52: =IF(資金調達!D$4=1,0,IF(金利手数料一覧!Y$1=2,0,IF(F52="当初一括",0,IF(F52="分割3回",1,IF(資金調達!M$20>0,1,0))))) -> 1 | H52: =資金調達!D$3 -> 1 | I52: =資金調達!D$4 -> 2 | J52: =J43 -> 4000 | K52: =K49 -> 35 | L52: =IF(OR(I52=2,I52=5),資金調達!E$12,IF(I52=4,資金調達!E$11,IF(I52=1,資金調達!E$11,0)))+IF(D52="フラット35",0,資金調達!E$16) -> 1500 | M52: =資金調達!E$12-資金調達!E$13 -> 1500 | N52: 0 | O52: =IF(I52=1,資金調達!E$11,IF(I52=4,資金調達!E$11,資金調達!E$14)) -> 3000 | P52: =IF(I52=1,0,IF(OR(F52="当初一括",F52="分割4回"),0,IF(OR(I52=4,I52=5),資金調達!M$11,IF(F52="分割3回",資金調達!M$15,IF(F52="分割2回",資金調達!M$14+資金調達!M$15,SUM(資金調達!M$11:M$15)))))) -> 3300 | Q52: =金利手数料一覧!U125+IF(キャンペーン!F29=TRUE,0,0.32%) -> 0.0066 | T52: 264000 | U52: 0 | V52: 5500 | W52: =IF(OR(I52=1,0,中間処理!A52=2),0,VLOOKUP(I52,AR$3:AU$13,4,FALSE)) -> 135000 | X52: =IF(H52=1,IF(中間処理!A52=2,0,IF(I52=1,0,AO$7)),0) -> 100000 | Y52: =IF(H52=1,IF(中間処理!A52=2,0,VLOOKUP(I52,AR$3:AV$13,5,FALSE)),0) -> 22500 | Z52: 40000 | AA52: 1000 | AB52: 0 | AC52: =IF(J52=0,0,IF(中間処理!A$2=2,0,IF(L52>0,120000,0)+IF(AB52>0,1,0)*120000+IF(AND(P52>0,OR(AH52="東光商事",AH52="アプラス")),80000,0))) -> 120000 | AD52: 110000 | AE52: =INT(IF(G52>0,IF(OR(I52=4,I52=5),資金調達!O$43,IF(F52="分割2回",資金調達!O$41,IF(F52="分割3回",資金調達!O$42,資金調達!O$40)))*10000*AI52/12,0)) -> 457250 | AF52: =IF(AE52>0,VLOOKUP(P52*10000,table!B$3:C$11,2,TRUE),0) -> 20000 | AG52: 1255250 | AH52: プロパー | AI52: =AI51 -> 0.031
A53: 51 | B53: 手数料定率 | C53: 楽天銀行 | D53: フラット35 | E53: フラット35 70 | F53: 最終一括 | G53: =IF(資金調達!D$4=1,0,IF(金利手数料一覧!Y$1=2,0,IF(F53="当初一括",0,IF(F53="分割3回",1,IF(資金調達!M$20>0,1,0))))) -> 1 | H53: =資金調達!D$3 -> 1 | I53: =資金調達!D$4 -> 2 | J53: =中間処理!C18*0.7/10000 -> 2800 | K53: =K50 -> 35 | L53: =IF(OR(I53=2,I53=5),資金調達!E$12,IF(I53=4,資金調達!E$11,IF(I53=1,資金調達!E$11,0)))+IF(D53="フラット35",0,資金調達!E$16) -> 1500 | M53: =資金調達!E$12-資金調達!E$13 -> 1500 | N53: 0 | O53: =IF(I53=1,資金調達!E$11,IF(I53=4,資金調達!E$11,資金調達!E$14)) -> 3000 | P53: =IF(I53=1,0,IF(OR(F53="当初一括",F53="分割4回"),0,IF(OR(I53=4,I53=5),資金調達!M$11,IF(F53="分割3回",資金調達!M$15,IF(F53="分割2回",資金調達!M$14+資金調達!M$15,SUM(資金調達!M$11:M$15)))))) -> 3300 | Q53: =Q52 -> 0.0066 | T53: 184800 | U53: 0 | V53: 5500 | W53: =IF(OR(I53=1,0,中間処理!A53=2),0,VLOOKUP(I53,AR$3:AU$13,4,FALSE)) -> 135000 | X53: =IF(H53=1,IF(中間処理!A53=2,0,IF(I53=1,0,AO$7)),0) -> 100000 | Y53: =IF(H53=1,IF(中間処理!A53=2,0,VLOOKUP(I53,AR$3:AV$13,5,FALSE)),0) -> 22500 | Z53: 28000 | AA53: 1000 | AB53: 0 | AC53: =IF(J53=0,0,IF(中間処理!A$2=2,0,IF(L53>0,120000,0)+IF(AB53>0,1,0)*120000+IF(AND(P53>0,OR(AH53="東光商事",AH53="アプラス")),80000,0))) -> 120000 | AD53: 110000 | AE53: =INT(IF(G53>0,IF(OR(I53=4,I53=5),資金調達!O$43,IF(F53="分割2回",資金調達!O$41,IF(F53="分割3回",資金調達!O$42,資金調達!O$40)))*10000*AI53/12,0)) -> 457250 | AF53: =IF(AE53>0,VLOOKUP(P53*10000,table!B$3:C$11,2,TRUE),0) -> 20000 | AG53: 1164050 | AH53: プロパー | AI53: =AI52 -> 0.031
A54: 52 | B54: 手数料定率 | C54: 楽天銀行 | D54: フラット35 | E54: フラット35 50 | F54: 最終一括 | G54: =IF(資金調達!D$4=1,0,IF(金利手数料一覧!Y$1=2,0,IF(F54="当初一括",0,IF(F54="分割3回",1,IF(資金調達!M$20>0,1,0))))) -> 1 | H54: =資金調達!D$3 -> 1 | I54: =資金調達!D$4 -> 2 | J54: =中間処理!C18/20000 -> 2000 | K54: =K51 -> 35 | L54: =IF(OR(I54=2,I54=5),資金調達!E$12,IF(I54=4,資金調達!E$11,IF(I54=1,資金調達!E$11,0)))+IF(D54="フラット35",0,資金調達!E$16) -> 1500 | M54: =資金調達!E$12-資金調達!E$13 -> 1500 | N54: 0 | O54: =IF(I54=1,資金調達!E$11,IF(I54=4,資金調達!E$11,資金調達!E$14)) -> 3000 | P54: =IF(I54=1,0,IF(OR(F54="当初一括",F54="分割4回"),0,IF(OR(I54=4,I54=5),資金調達!M$11,IF(F54="分割3回",資金調達!M$15,IF(F54="分割2回",資金調達!M$14+資金調達!M$15,SUM(資金調達!M$11:M$15)))))) -> 3300 | Q54: =金利手数料一覧!U126 -> 0.0066 | T54: 132000 | U54: 0 | V54: 5500 | W54: =IF(OR(I54=1,0,中間処理!A54=2),0,VLOOKUP(I54,AR$3:AU$13,4,FALSE)) -> 135000 | X54: =IF(H54=1,IF(中間処理!A54=2,0,IF(I54=1,0,AO$7)),0) -> 100000 | Y54: =IF(H54=1,IF(中間処理!A54=2,0,VLOOKUP(I54,AR$3:AV$13,5,FALSE)),0) -> 22500 | Z54: 20000 | AA54: 1000 | AB54: 0 | AC54: =IF(J54=0,0,IF(中間処理!A$2=2,0,IF(L54>0,120000,0)+IF(AB54>0,1,0)*120000+IF(AND(P54>0,OR(AH54="東光商事",AH54="アプラス")),80000,0))) -> 120000 | AD54: 110000 | AE54: =INT(IF(G54>0,IF(OR(I54=4,I54=5),資金調達!O$43,IF(F54="分割2回",資金調達!O$41,IF(F54="分割3回",資金調達!O$42,資金調達!O$40)))*10000*AI54/12,0)) -> 457250 | AF54: =IF(AE54>0,VLOOKUP(P54*10000,table!B$3:C$11,2,TRUE),0) -> 20000 | AG54: 1103250 | AH54: プロパー | AI54: 0.031
A55: 53 | B55: 手数料定率 | C55: 楽天銀行 | D55: フラット35 | E55: フラット35 90%over | F55: 最終一括 | G55: =IF(資金調達!D$4=1,0,IF(金利手数料一覧!Y$1=2,0,IF(F55="当初一括",0,IF(F55="分割3回",1,IF(資金調達!M$20>0,1,0))))) -> 1 | H55: =資金調達!D$3 -> 1 | I55: =資金調達!D$4 -> 2 | J55: =J51 -> 4000 | K55: =K52 -> 35 | L55: =IF(OR(I55=2,I55=5),資金調達!E$12,IF(I55=4,資金調達!E$11,IF(I55=1,資金調達!E$11,0)))+IF(D55="フラット35",0,資金調達!E$16) -> 1500 | M55: =資金調達!E$12-資金調達!E$13 -> 1500 | N55: 0 | O55: =IF(I55=1,資金調達!E$11,IF(I55=4,資金調達!E$11,資金調達!E$14)) -> 3000 | P55: =IF(I55=1,0,IF(OR(F55="当初一括",F55="分割4回"),0,IF(OR(I55=4,I55=5),資金調達!M$11,IF(F55="分割3回",資金調達!M$15,IF(F55="分割2回",資金調達!M$14+資金調達!M$15,SUM(資金調達!M$11:M$15)))))) -> 3300 | Q55: =Q54 -> 0.0066 | T55: 264000 | U55: 0 | V55: 5500 | W55: =IF(OR(I55=1,0,中間処理!A55=2),0,VLOOKUP(I55,AR$3:AU$13,4,FALSE)) -> 135000 | X55: =IF(H55=1,IF(中間処理!A55=2,0,IF(I55=1,0,AO$7)),0) -> 100000 | Y55: =IF(H55=1,IF(中間処理!A55=2,0,VLOOKUP(I55,AR$3:AV$13,5,FALSE)),0) -> 22500 | Z55: 40000 | AA55: 1000 | AB55: 0 | AC55: =IF(J55=0,0,IF(中間処理!A$2=2,0,IF(L55>0,120000,0)+IF(AB55>0,1,0)*120000+IF(AND(P55>0,OR(AH55="東光商事",AH55="アプラス")),80000,0))) -> 120000 | AD55: 110000 | AE55: =INT(IF(G55>0,IF(OR(I55=4,I55=5),資金調達!O$43,IF(F55="分割2回",資金調達!O$41,IF(F55="分割3回",資金調達!O$42,資金調達!O$40)))*10000*AI55/12,0)) -> 457250 | AF55: =IF(AE55>0,VLOOKUP(P55*10000,table!B$3:C$11,2,TRUE),0) -> 20000 | AG55: 1255250 | AH55: プロパー | AI55: 0.031
A56: 54 | B56: 手数料定率 | C56: 楽天銀行 | D56: フラット35 | E56: すまい・るパッケー10 | F56: 最終一括 | G56: =IF(資金調達!D$4=1,0,IF(金利手数料一覧!Y$1=2,0,IF(F56="当初一括",0,IF(F56="分割3回",1,IF(資金調達!M$20>0,1,0))))) -> 1 | H56: =資金調達!D$3 -> 1 | I56: =資金調達!D$4 -> 2 | J56: =J47 -> -4000 | K56: =K52 -> 35 | M56: =資金調達!E$12-資金調達!E$13 -> 1500 | N56: 0 | O56: =IF(I56=1,資金調達!E$11,IF(I56=4,資金調達!E$11,資金調達!E$14)) -> 3000 | P56: =IF(I56=1,0,IF(OR(F56="当初一括",F56="分割4回"),0,IF(OR(I56=4,I56=5),資金調達!M$11,IF(F56="分割3回",資金調達!M$15,IF(F56="分割2回",資金調達!M$14+資金調達!M$15,SUM(資金調達!M$11:M$15)))))) -> 3300 | Q56: =金利手数料一覧!U127 -> 0.011 | T56: -440000 | U56: 0 | V56: 5500 | W56: =IF(OR(I56=1,0,中間処理!A56=2),0,VLOOKUP(I56,AR$3:AU$13,4,FALSE)) -> 135000 | X56: =IF(H56=1,IF(中間処理!A56=2,0,IF(I56=1,0,AO$7)),0) -> 100000 | Y56: 0 | Z56: -40000 | AB56: 0 | AC56: =IF(J56=0,0,IF(中間処理!A$2=2,0,IF(L56>0,120000,0)+IF(AB56>0,1,0)*120000+IF(AND(P56>0,OR(AH56="東光商事",AH56="アプラス")),80000,0))) -> 0 | AE56: =INT(IF(G56>0,IF(OR(I56=4,I56=5),資金調達!O$43,IF(F56="分割2回",資金調達!O$41,IF(F56="分割3回",資金調達!O$42,資金調達!O$40)))*10000*AI56/12,0)) -> 0 | AF56: =IF(AE56>0,VLOOKUP(P56*10000,table!B$3:C$11,2,TRUE),0) -> 0 | AG56: -239500 | AH56: プロパー
A57: 55 | B57: 手数料定率 | C57: 楽天銀行 | D57: フラット35 | E57: すまい・るパッケージ30 | F57: 最終一括 | G57: =IF(資金調達!D$4=1,0,IF(金利手数料一覧!Y$1=2,0,IF(F57="当初一括",0,IF(F57="分割3回",1,IF(資金調達!M$20>0,1,0))))) -> 1 | H57: =資金調達!D$3 -> 1 | I57: =資金調達!D$4 -> 2 | J57: =J55-J53 -> 1200 | K57: =K52 -> 35 | M57: =資金調達!E$12-資金調達!E$13 -> 1500 | N57: 0 | O57: =IF(I57=1,資金調達!E$11,IF(I57=4,資金調達!E$11,資金調達!E$14)) -> 3000 | P57: =IF(I57=1,0,IF(OR(F57="当初一括",F57="分割4回"),0,IF(OR(I57=4,I57=5),資金調達!M$11,IF(F57="分割3回",資金調達!M$15,IF(F57="分割2回",資金調達!M$14+資金調達!M$15,SUM(資金調達!M$11:M$15)))))) -> 3300 | Q57: =金利手数料一覧!U127 -> 0.011 | T57: 132000 | U57: 0 | V57: 5500 | W57: =IF(OR(I57=1,0,中間処理!A57=2),0,VLOOKUP(I57,AR$3:AU$13,4,FALSE)) -> 135000 | X57: =IF(H57=1,IF(中間処理!A57=2,0,IF(I57=1,0,AO$7)),0) -> 100000 | Y57: 0 | Z57: 12000 | AB57: 0 | AC57: =IF(J57=0,0,IF(中間処理!A$2=2,0,IF(L57>0,120000,0)+IF(AB57>0,1,0)*120000+IF(AND(P57>0,OR(AH57="東光商事",AH57="アプラス")),80000,0))) -> 0 | AE57: =INT(IF(G57>0,IF(OR(I57=4,I57=5),資金調達!O$43,IF(F57="分割2回",資金調達!O$41,IF(F57="分割3回",資金調達!O$42,資金調達!O$40)))*10000*AI57/12,0)) -> 0 | AF57: =IF(AE57>0,VLOOKUP(P57*10000,table!B$3:C$11,2,TRUE),0) -> 0 | AG57: 384500 | AH57: プロパー
A58: 56 | B58: 手数料定率 | C58: 楽天銀行 | D58: フラット35 | E58: すまい・るパッケージ50 | F58: 最終一括 | G58: =IF(資金調達!D$4=1,0,IF(金利手数料一覧!Y$1=2,0,IF(F58="当初一括",0,IF(F58="分割3回",1,IF(資金調達!M$20>0,1,0))))) -> 1 | H58: =資金調達!D$3 -> 1 | I58: =資金調達!D$4 -> 2 | J58: =J55-J54 -> 2000 | K58: =K55 -> 35 | M58: =資金調達!E$12-資金調達!E$13 -> 1500 | N58: 0 | O58: =IF(I58=1,資金調達!E$11,IF(I58=4,資金調達!E$11,資金調達!E$14)) -> 3000 | P58: =IF(I58=1,0,IF(OR(F58="当初一括",F58="分割4回"),0,IF(OR(I58=4,I58=5),資金調達!M$11,IF(F58="分割3回",資金調達!M$15,IF(F58="分割2回",資金調達!M$14+資金調達!M$15,SUM(資金調達!M$11:M$15)))))) -> 3300 | Q58: =金利手数料一覧!U127 -> 0.011 | T58: 220000 | U58: 0 | V58: 5500 | W58: =IF(OR(I58=1,0,中間処理!A58=2),0,VLOOKUP(I58,AR$3:AU$13,4,FALSE)) -> 135000 | X58: =IF(H58=1,IF(中間処理!A58=2,0,IF(I58=1,0,AO$7)),0) -> 100000 | Y58: 0 | Z58: 20000 | AB58: 0 | AC58: =IF(J58=0,0,IF(中間処理!A$2=2,0,IF(L58>0,120000,0)+IF(AB58>0,1,0)*120000+IF(AND(P58>0,OR(AH58="東光商事",AH58="アプラス")),80000,0))) -> 0 | AE58: =INT(IF(G58>0,IF(OR(I58=4,I58=5),資金調達!O$43,IF(F58="分割2回",資金調達!O$41,IF(F58="分割3回",資金調達!O$42,資金調達!O$40)))*10000*AI58/12,0)) -> 0 | AF58: =IF(AE58>0,VLOOKUP(P58*10000,table!B$3:C$11,2,TRUE),0) -> 0 | AG58: 480500 | AH58: プロパー
A59: 57 | B59: 手数料定率 | C59: 優良住宅ローン | D59: フラット35 | E59: フラット35 | F59: 最終一括 | G59: =IF(資金調達!D$4=1,0,IF(金利手数料一覧!Y$1=2,0,IF(F59="当初一括",0,IF(F59="分割3回",1,IF(資金調達!M$20>0,1,0))))) -> 1 | H59: =資金調達!D$3 -> 1 | I59: =資金調達!D$4 -> 2 | J59: =J45 -> 4000 | K59: =K92 -> 35 | L59: =IF(OR(I59=2,I59=5),資金調達!E$12,IF(I59=4,資金調達!E$11,IF(I59=1,資金調達!E$11,0)))+IF(D59="フラット35",0,資金調達!E$16) -> 1500 | M59: =資金調達!E$12-資金調達!E$13 -> 1500 | N59: 0 | O59: =IF(I59=1,資金調達!E$11,IF(I59=4,資金調達!E$11,資金調達!E$14)) -> 3000 | P59: =IF(I59=1,0,IF(OR(F59="当初一括",F59="分割4回"),0,IF(OR(I59=4,I59=5),資金調達!M$11,IF(F59="分割3回",資金調達!M$15,IF(F59="分割2回",資金調達!M$14+資金調達!M$15,SUM(資金調達!M$11:M$15)))))) -> 3300 | Q59: =金利手数料一覧!U129 -> 0.008 | T59: 320000 | U59: 0 | V59: =IFERROR(VLOOKUP(J59*10000,table!B$3:C$11,2,TRUE),0) -> 20000 | W59: =IF(OR(I59=1,0,中間処理!A59=2),0,VLOOKUP(I59,AR$3:AU$13,4,FALSE)) -> 135000 | X59: =IF(H59=1,IF(中間処理!A59=2,0,IF(I59=1,0,AO$7)),0) -> 100000 | Y59: =IF(H59=1,IF(中間処理!A59=2,0,VLOOKUP(I59,AR$3:AV$13,5,FALSE)),0) -> 22500 | Z59: 40000 | AA59: =IF(G59=0,0,1000) -> 1000 | AB59: 0 | AC59: =IF(J59=0,0,IF(中間処理!A$2=2,0,IF(L59>0,120000,0)+IF(AB59>0,1,0)*120000+IF(AND(P59>0,OR(AH59="東光商事",AH59="アプラス")),80000,0))) -> 120000 | AD59: =IF(G59>0,55000*資金調達!O$33+P59*10000*0.4%,0) -> 297000 | AE59: =INT(IF(G59>0,IF(OR(I59=4,I59=5),資金調達!O$43,IF(F59="分割2回",資金調達!O$41,IF(F59="分割3回",資金調達!O$42,資金調達!O$40)))*10000*AI59/12,0)) -> 268450 | AF59: =IF(AE59>0,VLOOKUP(P59*10000,table!B$3:C$11,2,TRUE),0) -> 20000 | AG59: 1323950 | AH59: プロパー | AI59: 0.0182
A60: 58 | B60: 手数料定率 | C60: 優良住宅ローン | D60: フラット35 | E60: フラット35 90%over | F60: 最終一括 | G60: =IF(資金調達!D$4=1,0,IF(金利手数料一覧!Y$1=2,0,IF(F60="当初一括",0,IF(F60="分割3回",1,IF(資金調達!M$20>0,1,0))))) -> 1 | H60: =資金調達!D$3 -> 1 | I60: =資金調達!D$4 -> 2 | J60: =J46 -> 0 | K60: =K57 -> 35 | L60: =IF(OR(I60=2,I60=5),資金調達!E$12,IF(I60=4,資金調達!E$11,IF(I60=1,資金調達!E$11,0)))+IF(D60="フラット35",0,資金調達!E$16) -> 1500 | M60: =資金調達!E$12-資金調達!E$13 -> 1500 | N60: 0 | O60: =IF(I60=1,資金調達!E$11,IF(I60=4,資金調達!E$11,資金調達!E$14)) -> 3000 | P60: =IF(I60=1,0,IF(OR(F60="当初一括",F60="分割4回"),0,IF(OR(I60=4,I60=5),資金調達!M$11,IF(F60="分割3回",資金調達!M$15,IF(F60="分割2回",資金調達!M$14+資金調達!M$15,SUM(資金調達!M$11:M$15)))))) -> 3300 | Q60: =Q59 -> 0.008 | T60: 0 | U60: 0 | V60: =IFERROR(VLOOKUP(J60*10000,table!B$3:C$11,2,TRUE),0) -> 0 | W60: =IF(OR(I60=1,0,中間処理!A60=2),0,VLOOKUP(I60,AR$3:AU$13,4,FALSE)) -> 135000 | X60: =IF(H60=1,IF(中間処理!A60=2,0,IF(I60=1,0,AO$7)),0) -> 100000 | Y60: =IF(H60=1,IF(中間処理!A60=2,0,VLOOKUP(I60,AR$3:AV$13,5,FALSE)),0) -> 22500 | Z60: 0 | AA60: =IF(G60=0,0,1000) -> 1000 | AB60: 0 | AC60: =IF(J60=0,0,IF(中間処理!A$2=2,0,IF(L60>0,120000,0)+IF(AB60>0,1,0)*120000+IF(AND(P60>0,OR(AH60="東光商事",AH60="アプラス")),80000,0))) -> 0 | AD60: =IF(G60>0,55000*資金調達!O$33+P60*10000*0.4%,0) -> 297000 | AE60: =INT(IF(G60>0,IF(OR(I60=4,I60=5),資金調達!O$43,IF(F60="分割2回",資金調達!O$41,IF(F60="分割3回",資金調達!O$42,資金調達!O$40)))*10000*AI60/12,0)) -> 271400 | AF60: =IF(AE60>0,VLOOKUP(P60*10000,table!B$3:C$11,2,TRUE),0) -> 20000 | AG60: 826900 | AH60: プロパー | AI60: 0.0184
A61: 59 | B61: 手数料定額 | C61: 優良住宅ローン | D61: フラット35 | E61: プラスワン | F61: 最終一括 | G61: =IF(資金調達!D$4=1,0,IF(金利手数料一覧!Y$1=2,0,IF(F61="当初一括",0,IF(F61="分割3回",1,IF(資金調達!M$20>0,1,0))))) -> 1 | H61: =資金調達!D$3 -> 1 | I61: =資金調達!D$4 -> 2 | J61: =J47 -> -4000 | K61: =K56 -> 35 | M61: =資金調達!E$12-資金調達!E$13 -> 1500 | N61: 0 | O61: =IF(I61=1,資金調達!E$11,IF(I61=4,資金調達!E$11,資金調達!E$14)) -> 3000 | P61: =IF(I61=1,0,IF(OR(F61="当初一括",F61="分割4回"),0,IF(OR(I61=4,I61=5),資金調達!M$11,IF(F61="分割3回",資金調達!M$15,IF(F61="分割2回",資金調達!M$14+資金調達!M$15,SUM(資金調達!M$11:M$15)))))) -> 3300 | R61: =金利手数料一覧!U131 -> 55000 | T61: 55000 | U61: 0 | V61: =IFERROR(VLOOKUP(J61*10000,table!B$3:C$11,2,TRUE),0) -> 0 | W61: =IF(OR(I61=1,0,中間処理!A61=2),0,VLOOKUP(I61,AR$3:AU$13,4,FALSE)) -> 135000 | X61: =IF(H61=1,IF(中間処理!A61=2,0,IF(I61=1,0,AO$7)),0) -> 100000 | Y61: 0 | Z61: -40000 | AB61: 0 | AC61: =IF(J61=0,0,IF(中間処理!A$2=2,0,IF(L61>0,120000,0)+IF(AB61>0,1,0)*120000+IF(AND(P61>0,OR(AH61="東光商事",AH61="アプラス")),80000,0))) -> 0 | AF61: =IF(AE61>0,VLOOKUP(P61*10000,table!B$3:C$11,2,TRUE),0) -> 0 | AG61: =SUM(S61:AE61) -> 250000 | AJ61: Ａタイプ | AK61: 手数料 | AL61: 金利 | AM61: 合計 | AN61: Ｂタイプ | AO61: 手数料 | AP61: 金利 | AQ61: 合計
A62: 60 | B62: 手数料定額 | C62: 優良住宅ローン | D62: フラット35 | E62: プラスワン 8000over | F62: 最終一括 | G62: =IF(資金調達!D$4=1,0,IF(金利手数料一覧!Y$1=2,0,IF(F62="当初一括",0,IF(F62="分割3回",1,IF(資金調達!M$20>0,1,0))))) -> 1 | H62: =資金調達!D$3 -> 1 | I62: =資金調達!D$4 -> 2 | J62: =IF(中間処理!C18/10000>8000,8000-J59,0) -> 0 | K62: =K57 -> 35 | M62: =資金調達!E$12-資金調達!E$13 -> 1500 | N62: 0 | O62: =IF(I62=1,資金調達!E$11,IF(I62=4,資金調達!E$11,資金調達!E$14)) -> 3000 | P62: =IF(I62=1,0,IF(OR(F62="当初一括",F62="分割4回"),0,IF(OR(I62=4,I62=5),資金調達!M$11,IF(F62="分割3回",資金調達!M$15,IF(F62="分割2回",資金調達!M$14+資金調達!M$15,SUM(資金調達!M$11:M$15)))))) -> 3300 | R62: =金利手数料一覧!U131 -> 55000 | T62: 0 | U62: 0 | V62: =IFERROR(VLOOKUP(J62*10000,table!B$3:C$11,2,TRUE),0) -> 0 | W62: =IF(OR(I62=1,0,中間処理!A62=2),0,VLOOKUP(I62,AR$3:AU$13,4,FALSE)) -> 135000 | X62: =IF(H62=1,IF(中間処理!A62=2,0,IF(I62=1,0,AO$7)),0) -> 100000 | Y62: 0 | Z62: 0 | AB62: 0 | AC62: =IF(J62=0,0,IF(中間処理!A$2=2,0,IF(L62>0,120000,0)+IF(AB62>0,1,0)*120000+IF(AND(P62>0,OR(AH62="東光商事",AH62="アプラス")),80000,0))) -> 0 | AF62: =IF(AE62>0,VLOOKUP(P62*10000,table!B$3:C$11,2,TRUE),0) -> 0 | AG62: =SUM(S62:AE62) -> 235000 | AJ62: Ａタイプ | AK62: 手数料 | AL62: 金利 | AM62: 合計 | AN62: Ｂタイプ | AO62: 手数料 | AP62: 金利 | AQ62: 合計
A63: 61 | B63: 手数料定率 | C63: SBIアルヒ | D63: フラット35 | E63: =当月!C463 -> フラット35 | F63: 最終一括 | G63: =IF(資金調達!D$4=1,0,IF(金利手数料一覧!Y$1=2,0,IF(F63="当初一括",0,IF(F63="分割3回",1,IF(資金調達!M$20>0,1,0))))) -> 1 | H63: =資金調達!D$3 -> 1 | I63: =資金調達!D$4 -> 2 | J63: =J59 -> 4000 | K63: =K61 -> 35 | L63: =IF(OR(I63=2,I63=5),資金調達!E$12,IF(I63=4,資金調達!E$11,IF(I63=1,資金調達!E$11,0)))+IF(D63="フラット35",0,資金調達!E$16) -> 1500 | M63: =資金調達!E$12-資金調達!E$13 -> 1500 | N63: 0 | O63: =IF(I63=1,資金調達!E$11,IF(I63=4,資金調達!E$11,資金調達!E$14)) -> 3000 | P63: =IF(I63=1,0,IF(OR(F63="当初一括",F63="分割4回"),0,IF(OR(I63=4,I63=5),資金調達!M$11,IF(F63="分割3回",資金調達!M$15,IF(F63="分割2回",資金調達!M$14+資金調達!M$15,SUM(資金調達!M$11:M$15)))))) -> 3300 | Q63: =IF(P63>0,金利手数料一覧!U136,金利手数料一覧!U133) -> 0.022 | T63: 880000 | U63: 0 | V63: 5500 | W63: =IF(OR(I63=1,0,中間処理!A63=2),0,VLOOKUP(I63,AR$3:AU$13,4,FALSE)) -> 135000 | X63: =IF(H63=1,IF(中間処理!A63=2,0,IF(I63=1,0,AO$7)),0) -> 100000 | Y63: =IF(H63=1,IF(中間処理!A63=2,0,VLOOKUP(I63,AR$3:AV$13,5,FALSE)),0) -> 22500 | Z63: 40000 | AA63: =IF(G63=0,0,1000) -> 1000 | AB63: 0 | AC63: =IF(J63=0,0,IF(中間処理!A$2=2,0,IF(L63>0,120000,0)+IF(AB63>0,1,0)*120000+IF(AND(P63>0,OR(AH63="東光商事",AH63="アプラス")),80000,0))) -> 120000 | AD63: =IF(G63=0,0,IF(AM63>AQ63,AO63,AK63)) -> 320650 | AE63: =INT(IF(H63>0,IF(AM63>AQ63,AP63,AL63),0)) -> 278775 | AF63: =IF(AE63>0,VLOOKUP(P63*10000,table!B$3:C$11,2,TRUE),0) -> 20000 | AG63: 1903425 | AI63: プロパー | AJ63: =金利手数料一覧!H144 -> 0.03475 | AK63: 110000 | AL63: =INT(IF(H63>0,IF(G63="分割（２回）",資金調達!O$41,資金調達!O$40))*10000*AJ63/12) -> 512562 | AM63: =AK63+AL63 -> 622562 | AN63: =金利手数料一覧!H145 -> 0.0189 | AO63: =55000+P63*0.805%*10000 -> 320650 | AP63: =INT(IF(H63>0,IF(G63="分割（２回）",資金調達!O$41,資金調達!O$40))*10000*AN63/12) -> 278775 | AQ63: =AO63+AP63 -> 599425
A64: 62 | B64: 手数料定率 | C64: =C63 -> SBIアルヒ | D64: フラット35 | E64: フラット35 90%over | F64: 最終一括 | G64: =IF(資金調達!D$4=1,0,IF(金利手数料一覧!Y$1=2,0,IF(F64="当初一括",0,IF(F64="分割3回",1,IF(資金調達!M$20>0,1,0))))) -> 1 | H64: =資金調達!D$3 -> 1 | I64: =資金調達!D$4 -> 2 | J64: =J60 -> 0 | K64: =K63 -> 35 | L64: =IF(OR(I64=2,I64=5),資金調達!E$12,IF(I64=4,資金調達!E$11,IF(I64=1,資金調達!E$11,0)))+IF(D64="フラット35",0,資金調達!E$16) -> 1500 | M64: =資金調達!E$12-資金調達!E$13 -> 1500 | N64: 0 | O64: =IF(I64=1,資金調達!E$11,IF(I64=4,資金調達!E$11,資金調達!E$14)) -> 3000 | P64: =IF(I64=1,0,IF(OR(F64="当初一括",F64="分割4回"),0,IF(OR(I64=4,I64=5),資金調達!M$11,IF(F64="分割3回",資金調達!M$15,IF(F64="分割2回",資金調達!M$14+資金調達!M$15,SUM(資金調達!M$11:M$15)))))) -> 3300 | Q64: =Q63 -> 0.022 | T64: 0 | U64: 0 | V64: 5500 | W64: =IF(OR(I64=1,0,中間処理!A64=2),0,VLOOKUP(I64,AR$3:AU$13,4,FALSE)) -> 135000 | X64: =IF(H64=1,IF(中間処理!A64=2,0,IF(I64=1,0,AO$7)),0) -> 100000 | Y64: =IF(H64=1,IF(中間処理!A64=2,0,VLOOKUP(I64,AR$3:AV$13,5,FALSE)),0) -> 22500 | Z64: 0 | AA64: =IF(G64=0,0,1000) -> 1000 | AB64: 0 | AC64: =IF(J64=0,0,IF(中間処理!A$2=2,0,IF(L64>0,120000,0)+IF(AB64>0,1,0)*120000+IF(AND(P64>0,OR(AH64="東光商事",AH64="アプラス")),80000,0))) -> 0 | AD64: =IF(G64=0,0,IF(AM64>AQ64,AO64,AK64)) -> 320650 | AE64: =INT(IF(H64>0,IF(AM64>AQ64,AP64,AL64),0)) -> 278775 | AF64: =IF(AE64>0,VLOOKUP(P64*10000,table!B$3:C$11,2,TRUE),0) -> 20000 | AG64: 863425 | AI64: プロパー | AJ64: =AJ63 -> 0.03475 | AK64: 110000 | AL64: =INT(IF(H64>0,IF(G64="分割（２回）",資金調達!O$41,資金調達!O$40))*10000*AJ64/12) -> 512562 | AM64: =AK64+AL64 -> 622562 | AN64: =AN63 -> 0.0189 | AO64: =AO63 -> 320650 | AP64: =INT(IF(H64>0,IF(G64="分割（２回）",資金調達!O$41,資金調達!O$40))*10000*AN64/12) -> 278775 | AQ64: =AO64+AP64 -> 599425
A65: 63 | B65: 手数料定率 | C65: =C64 -> SBIアルヒ | D65: フラット35 | E65: スーパーフラット | F65: 最終一括 | G65: =IF(資金調達!D$4=1,0,IF(金利手数料一覧!Y$1=2,0,IF(F65="当初一括",0,IF(F65="分割3回",1,IF(資金調達!M$20>0,1,0))))) -> 1 | H65: =資金調達!D$3 -> 1 | I65: =資金調達!D$4 -> 2 | J65: =J2 -> 4000 | K65: =K64 -> 35 | M65: =資金調達!E$12-資金調達!E$13 -> 1500 | N65: 0 | O65: =IF(I65=1,資金調達!E$11,IF(I65=4,資金調達!E$11,資金調達!E$14)) -> 3000 | P65: =IF(I65=1,0,IF(OR(F65="当初一括",F65="分割4回"),0,IF(OR(I65=4,I65=5),資金調達!M$11,IF(F65="分割3回",資金調達!M$15,IF(F65="分割2回",資金調達!M$14+資金調達!M$15,SUM(資金調達!M$11:M$15)))))) -> 3300 | Q65: =金利手数料一覧!U136 -> 0.022 | T65: 880000 | U65: 0 | V65: 5500 | W65: =IF(OR(I65=1,0,中間処理!A65=2),0,VLOOKUP(I65,AR$3:AU$13,4,FALSE)) -> 135000 | X65: =IF(H65=1,IF(中間処理!A65=2,0,IF(I65=1,0,AO$7)),0) -> 100000 | Y65: =IF(H65=1,IF(中間処理!A65=2,0,VLOOKUP(I65,AR$3:AV$13,5,FALSE)),0) -> 22500 | Z65: 40000 | AA65: =IF(G65=0,0,1000) -> 1000 | AB65: 0 | AC65: =IF(J65=0,0,IF(中間処理!A$2=2,0,IF(L65>0,120000,0)+IF(AB65>0,1,0)*120000+IF(AND(P65>0,OR(AH65="東光商事",AH65="アプラス")),80000,0))) -> 0 | AD65: 320650 | AE65: =INT(IF(H65>0,IF(AM65>AQ65,AP65,AL65),0)) -> 278775 | AF65: =IF(AE65>0,VLOOKUP(P65*10000,table!B$3:C$11,2,TRUE),0) -> 20000 | AG65: 1783425 | AI65: プロパー | AJ65: =AJ63 -> 0.03475 | AK65: 110000 | AL65: =INT(IF(H65>0,IF(G65="分割（２回）",資金調達!O$41,資金調達!O$40))*10000*AJ65/12) -> 512562 | AM65: =AK65+AL65 -> 622562 | AN65: =AN64 -> 0.0189 | AO65: =AO64 -> 320650 | AP65: =INT(IF(H65>0,IF(G65="分割（２回）",資金調達!O$41,資金調達!O$40))*10000*AN65/12) -> 278775 | AQ65: =AO65+AP65 -> 599425
A66: 64 | B66: 手数料定率 | C66: =C65 -> SBIアルヒ | D66: フラット35 | E66: フラットα | F66: 最終一括 | G66: =IF(資金調達!D$4=1,0,IF(金利手数料一覧!Y$1=2,0,IF(F66="当初一括",0,IF(F66="分割3回",1,IF(資金調達!M$20>0,1,0))))) -> 1 | H66: =資金調達!D$3 -> 1 | I66: =資金調達!D$4 -> 2 | J66: =J61 -> -4000 | K66: =K65 -> 35 | L66: =IF(OR(I66=2,I66=5),資金調達!E$12,IF(I66=4,資金調達!E$11,IF(I66=1,資金調達!E$11,0)))+IF(D66="フラット35",0,資金調達!E$16) -> 1500 | M66: =資金調達!E$12-資金調達!E$13 -> 1500 | N66: 0 | O66: =IF(I66=1,資金調達!E$11,IF(I66=4,資金調達!E$11,資金調達!E$14)) -> 3000 | P66: =IF(I66=1,0,IF(OR(F66="当初一括",F66="分割4回"),0,IF(OR(I66=4,I66=5),資金調達!M$11,IF(F66="分割3回",資金調達!M$15,IF(F66="分割2回",資金調達!M$14+資金調達!M$15,SUM(資金調達!M$11:M$15)))))) -> 3300 | Q66: =金利手数料一覧!U144 -> 0.022 | T66: =IF(J66=0,0,IF(COUNTIF(B66,"*定率")=1,J66*10000*Q66,0)+IF(COUNTIF(B66,"*定額")=1,R66,0)) -> -880000 | U66: 0 | V66: 0 | W66: =IF(OR(I66=1,0,中間処理!A66=2),0,VLOOKUP(I66,AR$3:AU$13,4,FALSE)) -> 135000 | X66: =IF(H66=1,IF(中間処理!A66=2,0,IF(I66=1,0,AO$7)),0) -> 100000 | Y66: 0 | Z66: -40000 | AB66: =IF(OR(I66=1,F66="最終一括"),0,3300) -> 0 | AC66: =IF(J66=0,0,IF(中間処理!A$2=2,0,IF(L66>0,120000,0)+IF(AB66>0,1,0)*120000+IF(AND(P66>0,OR(AH66="東光商事",AH66="アプラス")),80000,0))) -> 120000 | AF66: =IF(AE66>0,VLOOKUP(P66*10000,table!B$3:C$11,2,TRUE),0) -> 0 | AG66: -565000 | AJ66: Ａタイプ | AK66: 手数料 | AL66: 金利 | AM66: 合計 | AN66: Ｂタイプ | AO66: 手数料 | AP66: 金利 | AQ66: 合計
A67: 65 | B67: 手数料定率 | C67: =C66 -> SBIアルヒ | D67: フラット35 | E67: フラットα 8000over | F67: 最終一括 | G67: =IF(資金調達!D$4=1,0,IF(金利手数料一覧!Y$1=2,0,IF(F67="当初一括",0,IF(F67="分割3回",1,IF(資金調達!M$20>0,1,0))))) -> 1 | H67: =資金調達!D$3 -> 1 | I67: =資金調達!D$4 -> 2 | J67: =J62 -> 0 | K67: =K66 -> 35 | L67: =IF(OR(I67=2,I67=5),資金調達!E$12,IF(I67=4,資金調達!E$11,IF(I67=1,資金調達!E$11,0)))+IF(D67="フラット35",0,資金調達!E$16) -> 1500 | M67: =資金調達!E$12-資金調達!E$13 -> 1500 | N67: 0 | O67: =IF(I67=1,資金調達!E$11,IF(I67=4,資金調達!E$11,資金調達!E$14)) -> 3000 | P67: =IF(I67=1,0,IF(OR(F67="当初一括",F67="分割4回"),0,IF(OR(I67=4,I67=5),資金調達!M$11,IF(F67="分割3回",資金調達!M$15,IF(F67="分割2回",資金調達!M$14+資金調達!M$15,SUM(資金調達!M$11:M$15)))))) -> 3300 | Q67: =金利手数料一覧!U144 -> 0.022 | T67: 0 | U67: 0 | V67: 0 | W67: =IF(OR(I67=1,0,中間処理!A67=2),0,VLOOKUP(I67,AR$3:AU$13,4,FALSE)) -> 135000 | X67: =IF(H67=1,IF(中間処理!A67=2,0,IF(I67=1,0,AO$7)),0) -> 100000 | Y67: 0 | Z67: =INT(IF(OR(I67=4,I67=5,F67="最終一括"),0.1%,0.4%)*J67*10000) -> 0 | AB67: 0 | AC67: =IF(J67=0,0,IF(中間処理!A$2=2,0,IF(L67>0,120000,0)+IF(AB67>0,1,0)*120000+IF(AND(P67>0,OR(AH67="東光商事",AH67="アプラス")),80000,0))) -> 0 | AF67: =IF(AE67>0,VLOOKUP(P67*10000,table!B$3:C$11,2,TRUE),0) -> 0 | AG67: =SUM(S67:AE67) -> 235000 | AJ67: Ａタイプ | AK67: 手数料 | AL67: 金利 | AM67: 合計 | AN67: Ｂタイプ | AO67: 手数料 | AP67: 金利 | AQ67: 合計
A68: 66 | B68: 手数料定率 | C68: カシワバラ・アシスト | D68: フラット35 | E68: =当月!C463 -> フラット35 | F68: 最終一括 | G68: =IF(資金調達!D$4=1,0,IF(金利手数料一覧!Y$1=2,0,IF(F68="当初一括",0,IF(F68="分割3回",1,IF(資金調達!M$20>0,1,0))))) -> 1 | H68: =資金調達!D$3 -> 1 | I68: =資金調達!D$4 -> 2 | J68: =J63 -> 4000 | K68: =K66 -> 35 | L68: =IF(OR(I68=2,I68=5),資金調達!E$12,IF(I68=4,資金調達!E$11,IF(I68=1,資金調達!E$11,0)))+IF(D68="フラット35",0,資金調達!E$16) -> 1500 | M68: =資金調達!E$12-資金調達!E$13 -> 1500 | N68: =N67 -> 0 | O68: =IF(I68=1,資金調達!E$11,IF(I68=4,資金調達!E$11,資金調達!E$14)) -> 3000 | P68: =IF(I68=1,0,IF(OR(F68="当初一括",F68="分割4回"),0,IF(OR(I68=4,I68=5),資金調達!M$11,IF(F68="分割3回",資金調達!M$15,IF(F68="分割2回",資金調達!M$14+資金調達!M$15,SUM(資金調達!M$11:M$15)))))) -> 3300 | Q68: =IF(P68>0,金利手数料一覧!U140,金利手数料一覧!U137) -> 0.022 | T68: 880000 | U68: 0 | V68: =IFERROR(VLOOKUP(J68*10000,table!B$3:C$11,2,TRUE),0) -> 20000 | W68: =IF(OR(I68=1,0,中間処理!A68=2),0,VLOOKUP(I68,AR$3:AU$13,4,FALSE)) -> 135000 | X68: =IF(H68=1,IF(中間処理!A68=2,0,IF(I68=1,0,AO$7)),0) -> 100000 | Y68: =IF(H68=1,IF(中間処理!A68=2,0,VLOOKUP(I68,AR$3:AV$13,5,FALSE)),0) -> 22500 | Z68: 40000 | AA68: =IF(G68=0,0,1000) -> 1000 | AB68: 0 | AC68: =IF(J68=0,0,IF(中間処理!A$2=2,0,IF(L68>0,120000,0)+IF(AB68>0,1,0)*120000+IF(AND(P68>0,OR(AH68="東光商事",AH68="アプラス")),80000,0))) -> 120000 | AD68: =IF(G68=0,0,IF(AM68>AQ68,AO68,AK68)) -> 154000 | AE68: =INT(IF(H68>0,IF(AM68>AQ68,AP68,AL68),0)) -> 361375 | AF68: =IF(AE68>0,VLOOKUP(P68*10000,table!B$3:C$11,2,TRUE),0) -> 20000 | AG68: =SUM(S68:AE68) -> 1833875 | AI68: プロパー | AJ68: =金利手数料一覧!H149 -> 0.032 | AK68: 110000 | AL68: =INT(IF(H68>0,IF(G68="分割（２回）",資金調達!O$41,資金調達!O$40))*10000*AJ68/12) -> 472000 | AM68: =AK68+AL68 -> 582000 | AN68: =金利手数料一覧!H150 -> 0.0245 | AO68: 154000 | AP68: =INT(IF(H68>0,IF(G68="分割（２回）",資金調達!O$41,資金調達!O$40))*10000*AN68/12) -> 361375 | AQ68: =AO68+AP68 -> 515375
A69: 67 | B69: 手数料定率 | C69: =C68 -> カシワバラ・アシスト | D69: フラット35 | E69: フラット35 90%over | F69: 最終一括 | G69: =IF(資金調達!D$4=1,0,IF(金利手数料一覧!Y$1=2,0,IF(F69="当初一括",0,IF(F69="分割3回",1,IF(資金調達!M$20>0,1,0))))) -> 1 | H69: =資金調達!D$3 -> 1 | I69: =資金調達!D$4 -> 2 | J69: =J64 -> 0 | K69: =K68 -> 35 | L69: =IF(OR(I69=2,I69=5),資金調達!E$12,IF(I69=4,資金調達!E$11,IF(I69=1,資金調達!E$11,0)))+IF(D69="フラット35",0,資金調達!E$16) -> 1500 | M69: =資金調達!E$12-資金調達!E$13 -> 1500 | N69: 0 | O69: =IF(I69=1,資金調達!E$11,IF(I69=4,資金調達!E$11,資金調達!E$14)) -> 3000 | P69: =IF(I69=1,0,IF(OR(F69="当初一括",F69="分割4回"),0,IF(OR(I69=4,I69=5),資金調達!M$11,IF(F69="分割3回",資金調達!M$15,IF(F69="分割2回",資金調達!M$14+資金調達!M$15,SUM(資金調達!M$11:M$15)))))) -> 3300 | Q69: =Q68 -> 0.022 | T69: 0 | U69: 0 | V69: =IFERROR(VLOOKUP(J69*10000,table!B$3:C$11,2,TRUE),0) -> 0 | W69: =IF(OR(I69=1,0,中間処理!A69=2),0,VLOOKUP(I69,AR$3:AU$13,4,FALSE)) -> 135000 | X69: =IF(H69=1,IF(中間処理!A69=2,0,IF(I69=1,0,AO$7)),0) -> 100000 | Y69: =IF(H69=1,IF(中間処理!A69=2,0,VLOOKUP(I69,AR$3:AV$13,5,FALSE)),0) -> 22500 | Z69: 0 | AA69: =IF(G69=0,0,1000) -> 1000 | AB69: 0 | AC69: =IF(J69=0,0,IF(中間処理!A$2=2,0,IF(L69>0,120000,0)+IF(AB69>0,1,0)*120000+IF(AND(P69>0,OR(AH69="東光商事",AH69="アプラス")),80000,0))) -> 0 | AD69: =IF(G69=0,0,IF(AM69>AQ69,AO69,AK69)) -> 154000 | AE69: =INT(IF(H69>0,IF(AM69>AQ69,AP69,AL69),0)) -> 361375 | AF69: =IF(AE69>0,VLOOKUP(P69*10000,table!B$3:C$11,2,TRUE),0) -> 20000 | AG69: 773875 | AJ69: =AJ68 -> 0.032 | AK69: 110000 | AL69: =INT(IF(H69>0,IF(G69="分割（２回）",資金調達!O$41,資金調達!O$40))*10000*AJ69/12) -> 472000 | AM69: =AK69+AL69 -> 582000 | AN69: =AN68 -> 0.0245 | AO69: 154000 | AP69: =INT(IF(H69>0,IF(G69="分割（２回）",資金調達!O$41,資金調達!O$40))*10000*AN69/12) -> 361375 | AQ69: =AO69+AP69 -> 515375
A70: 68 | B70: 手数料定率 | C70: =C69 -> カシワバラ・アシスト | D70: フラット35 | E70: =金利手数料一覧!C149 -> プラスローン | F70: 最終一括 | G70: =IF(資金調達!D$4=1,0,IF(金利手数料一覧!Y$1=2,0,IF(F70="当初一括",0,IF(F70="分割3回",1,IF(資金調達!M$20>0,1,0))))) -> 1 | H70: =資金調達!D$3 -> 1 | I70: =資金調達!D$4 -> 2 | J70: =J61 -> -4000 | K70: =K69 -> 35 | M70: =資金調達!E$12-資金調達!E$13 -> 1500 | N70: 0 | O70: =IF(I70=1,資金調達!E$11,IF(I70=4,資金調達!E$11,資金調達!E$14)) -> 3000 | P70: =IF(I70=1,0,IF(OR(F70="当初一括",F70="分割4回"),0,IF(OR(I70=4,I70=5),資金調達!M$11,IF(F70="分割3回",資金調達!M$15,IF(F70="分割2回",資金調達!M$14+資金調達!M$15,SUM(資金調達!M$11:M$15)))))) -> 3300 | Q70: =金利手数料一覧!U140 -> 0.022 | T70: -880000 | U70: 0 | V70: =IFERROR(VLOOKUP(J70*10000,table!B$3:C$11,2,TRUE),0) -> 0 | W70: =IF(OR(I70=1,0,中間処理!A70=2),0,VLOOKUP(I70,AR$3:AU$13,4,FALSE)) -> 135000 | X70: =IF(H70=1,IF(中間処理!A70=2,0,IF(I70=1,0,AO$7)),0) -> 100000 | Y70: 0 | Z70: -40000 | AB70: 0 | AC70: =IF(J70=0,0,IF(中間処理!A$2=2,0,IF(L70>0,120000,0)+IF(AB70>0,1,0)*120000+IF(AND(P70>0,OR(AH70="東光商事",AH70="アプラス")),80000,0))) -> 0 | AF70: =IF(AE70>0,VLOOKUP(P70*10000,table!B$3:C$11,2,TRUE),0) -> 0 | AG70: =SUM(S70:AE70) -> -685000
A71: 69 | B71: 手数料定率 | C71: =C70 -> カシワバラ・アシスト | D71: フラット35 | E71: プラスローン 8000over | F71: 最終一括 | G71: =IF(資金調達!D$4=1,0,IF(金利手数料一覧!Y$1=2,0,IF(F71="当初一括",0,IF(F71="分割3回",1,IF(資金調達!M$20>0,1,0))))) -> 1 | H71: =資金調達!D$3 -> 1 | I71: =資金調達!D$4 -> 2 | J71: =J67 -> 0 | K71: =K70 -> 35 | M71: =資金調達!E$12-資金調達!E$13 -> 1500 | N71: 0 | O71: =IF(I71=1,資金調達!E$11,IF(I71=4,資金調達!E$11,資金調達!E$14)) -> 3000 | P71: =IF(I71=1,0,IF(OR(F71="当初一括",F71="分割4回"),0,IF(OR(I71=4,I71=5),資金調達!M$11,IF(F71="分割3回",資金調達!M$15,IF(F71="分割2回",資金調達!M$14+資金調達!M$15,SUM(資金調達!M$11:M$15)))))) -> 3300 | Q71: =金利手数料一覧!U141 -> 0.022 | T71: 0 | U71: 0 | V71: =IFERROR(VLOOKUP(J71*10000,table!B$3:C$11,2,TRUE),0) -> 0 | W71: =IF(OR(I71=1,0,中間処理!A71=2),0,VLOOKUP(I71,AR$3:AU$13,4,FALSE)) -> 135000 | X71: =IF(H71=1,IF(中間処理!A71=2,0,IF(I71=1,0,AO$7)),0) -> 100000 | Y71: 0 | Z71: 0 | AB71: 0 | AC71: =IF(J71=0,0,IF(中間処理!A$2=2,0,IF(L71>0,120000,0)+IF(AB71>0,1,0)*120000+IF(AND(P71>0,OR(AH71="東光商事",AH71="アプラス")),80000,0))) -> 0 | AF71: =IF(AE71>0,VLOOKUP(P71*10000,table!B$3:C$11,2,TRUE),0) -> 0 | AG71: 235000
A72: 70 | B72: 手数料定額 | C72: アプラス | E72: マイホームプラン（パッケージ型）Ａプラン 8000over | F72: 最終一括 | G72: =IF(資金調達!D$4=1,0,IF(金利手数料一覧!Y$1=2,0,IF(F72="当初一括",0,IF(F72="分割3回",1,IF(資金調達!M$20>0,1,0))))) -> 1 | H72: =資金調達!D$3 -> 1 | I72: =資金調達!D$4 -> 2 | J72: =IF(AND(中間処理!$C$3>80000000,中間処理!$C$3<=100000000),中間処理!$C$3-80000000,0)/10000 -> 0 | K72: =K70 -> 35 | M72: =資金調達!E$12-資金調達!E$13 -> 1500 | N72: 0 | O72: =IF(I72=1,資金調達!E$11,IF(I72=4,資金調達!E$11,資金調達!E$14)) -> 3000 | P72: =IF(I72=1,0,IF(OR(F72="当初一括",F72="分割4回"),0,IF(OR(I72=4,I72=5),資金調達!M$11,IF(F72="分割3回",資金調達!M$15,IF(F72="分割2回",資金調達!M$14+資金調達!M$15,SUM(資金調達!M$11:M$15)))))) -> 3300 | R72: =金利手数料一覧!U151 -> 55000 | T72: =IF(J72=0,0,IF(COUNTIF(B72,"*定率")=1,J72*10000*Q72,0)+IF(COUNTIF(B72,"*定額")=1,R72,0)) -> 0 | U72: 0 | V72: =IFERROR(VLOOKUP(J72*10000,table!B$3:C$11,2,TRUE),0) -> 0 | W72: =IF(OR(I72=1,0,中間処理!A72=2),0,VLOOKUP(I72,AR$3:AU$13,4,FALSE)) -> 135000 | X72: =IF(H72=1,IF(中間処理!A72=2,0,IF(I72=1,0,AO$7)),0) -> 100000 | Y72: 0 | Z72: 0 | AB72: 0 | AC72: =IF(J72=0,0,IF(中間処理!A$2=2,0,IF(L72>0,120000,0)+IF(AB72>0,1,0)*120000+IF(AND(P72>0,OR(AH72="東光商事",AH72="アプラス")),80000,0))) -> 0 | AF72: =IF(AE72>0,VLOOKUP(P72*10000,table!B$3:C$11,2,TRUE),0) -> 0 | AG72: 235000
A73: 71 | B73: 手数料定額 | C73: アプラス | E73: マイホームプラン（パッケージ型）Ａプラン_10% | F73: 最終一括 | G73: =IF(資金調達!D$4=1,0,IF(金利手数料一覧!Y$1=2,0,IF(F73="当初一括",0,IF(F73="分割3回",1,IF(資金調達!M$20>0,1,0))))) -> 1 | H73: =資金調達!D$3 -> 1 | I73: =資金調達!D$4 -> 2 | J73: =IF(中間処理!$C$18<=80000000,中間処理!$C$18-J68*10000,0)/10000 -> 0 | K73: =K72 -> 35 | M73: =資金調達!E$12-資金調達!E$13 -> 1500 | N73: 0 | O73: =IF(I73=1,資金調達!E$11,IF(I73=4,資金調達!E$11,資金調達!E$14)) -> 3000 | P73: =IF(I73=1,0,IF(OR(F73="当初一括",F73="分割4回"),0,IF(OR(I73=4,I73=5),資金調達!M$11,IF(F73="分割3回",資金調達!M$15,IF(F73="分割2回",資金調達!M$14+資金調達!M$15,SUM(資金調達!M$11:M$15)))))) -> 3300 | R73: =R72 -> 55000 | T73: =IF(J73=0,0,IF(COUNTIF(B73,"*定率")=1,J73*10000*Q73,0)+IF(COUNTIF(B73,"*定額")=1,R73,0)) -> 0 | U73: 0 | V73: =IFERROR(VLOOKUP(J73*10000,table!B$3:C$11,2,TRUE),0) -> 0 | W73: =IF(OR(I73=1,0,中間処理!A73=2),0,VLOOKUP(I73,AR$3:AU$13,4,FALSE)) -> 135000 | X73: =IF(H73=1,IF(中間処理!A73=2,0,IF(I73=1,0,AO$7)),0) -> 100000 | Y73: 0 | Z73: 0 | AB73: 0 | AC73: =IF(J73=0,0,IF(中間処理!A$2=2,0,IF(L73>0,120000,0)+IF(AB73>0,1,0)*120000+IF(AND(P73>0,OR(AH73="東光商事",AH73="アプラス")),80000,0))) -> 0 | AF73: =IF(AE73>0,VLOOKUP(P73*10000,table!B$3:C$11,2,TRUE),0) -> 0 | AG73: 235000
A74: 72 | B74: 手数料定額 | C74: アプラス | E74: マイホームプラン（パッケージ型）Ａプラン | F74: 最終一括 | G74: =IF(資金調達!D$4=1,0,IF(金利手数料一覧!Y$1=2,0,IF(F74="当初一括",0,IF(F74="分割3回",1,IF(資金調達!M$20>0,1,0))))) -> 1 | H74: =資金調達!D$3 -> 1 | I74: =資金調達!D$4 -> 2 | J74: =J70 -> -4000 | K74: =K73 -> 35 | M74: =資金調達!E$12-資金調達!E$13 -> 1500 | N74: 0 | O74: =IF(I74=1,資金調達!E$11,IF(I74=4,資金調達!E$11,資金調達!E$14)) -> 3000 | P74: =IF(I74=1,0,IF(OR(F74="当初一括",F74="分割4回"),0,IF(OR(I74=4,I74=5),資金調達!M$11,IF(F74="分割3回",資金調達!M$15,IF(F74="分割2回",資金調達!M$14+資金調達!M$15,SUM(資金調達!M$11:M$15)))))) -> 3300 | R74: =R73 -> 55000 | T74: 55000 | U74: 0 | V74: =IFERROR(VLOOKUP(J74*10000,table!B$3:C$11,2,TRUE),0) -> 0 | W74: =IF(OR(I74=1,0,中間処理!A74=2),0,VLOOKUP(I74,AR$3:AU$13,4,FALSE)) -> 135000 | X74: =IF(H74=1,IF(中間処理!A74=2,0,IF(I74=1,0,AO$7)),0) -> 100000 | Y74: 0 | Z74: -40000 | AB74: 0 | AC74: =IF(J74=0,0,IF(中間処理!A$2=2,0,IF(L74>0,120000,0)+IF(AB74>0,1,0)*120000+IF(AND(P74>0,OR(AH74="東光商事",AH74="アプラス")),80000,0))) -> 0 | AF74: =IF(AE74>0,VLOOKUP(P74*10000,table!B$3:C$11,2,TRUE),0) -> 0 | AG74: 250000
A75: 73 | B75: 手数料定額 | C75: アプラス | E75: マイホームプラン（パッケージ型）Ｂプラン、ULTRA 8000over | F75: 最終一括 | G75: =IF(資金調達!D$4=1,0,IF(金利手数料一覧!Y$1=2,0,IF(F75="当初一括",0,IF(F75="分割3回",1,IF(資金調達!M$20>0,1,0))))) -> 1 | H75: =資金調達!D$3 -> 1 | I75: =資金調達!D$4 -> 2 | J75: =IF(AND(中間処理!$C$3>80000000,中間処理!$C$3<=160000000),中間処理!$C$3-80000000,0)/10000 -> 0 | K75: =K73 -> 35 | M75: =資金調達!E$12-資金調達!E$13 -> 1500 | N75: 0 | O75: =IF(I75=1,資金調達!E$11,IF(I75=4,資金調達!E$11,資金調達!E$14)) -> 3000 | P75: =IF(I75=1,0,IF(OR(F75="当初一括",F75="分割4回"),0,IF(OR(I75=4,I75=5),資金調達!M$11,IF(F75="分割3回",資金調達!M$15,IF(F75="分割2回",資金調達!M$14+資金調達!M$15,SUM(資金調達!M$11:M$15)))))) -> 3300 | R75: =金利手数料一覧!U152 -> 132000 | T75: 0 | U75: 0 | V75: =IFERROR(VLOOKUP(J75*10000,table!B$3:C$11,2,TRUE),0) -> 0 | W75: =IF(OR(I75=1,0,中間処理!A75=2),0,VLOOKUP(I75,AR$3:AU$13,4,FALSE)) -> 135000 | X75: =IF(H75=1,IF(中間処理!A75=2,0,IF(I75=1,0,AO$7)),0) -> 100000 | Y75: 0 | Z75: 0 | AB75: 0 | AC75: =IF(J75=0,0,IF(中間処理!A$2=2,0,IF(L75>0,120000,0)+IF(AB75>0,1,0)*120000+IF(AND(P75>0,OR(AH75="東光商事",AH75="アプラス")),80000,0))) -> 0 | AF75: =IF(AE75>0,VLOOKUP(P75*10000,table!B$3:C$11,2,TRUE),0) -> 0 | AG75: 235000
A76: 74 | B76: 手数料定額 | C76: アプラス | E76: マイホームプラン（パッケージ型）Ｂプラン、ULTRA_10% | F76: 最終一括 | G76: =IF(資金調達!D$4=1,0,IF(金利手数料一覧!Y$1=2,0,IF(F76="当初一括",0,IF(F76="分割3回",1,IF(資金調達!M$20>0,1,0))))) -> 1 | H76: =資金調達!D$3 -> 1 | I76: =資金調達!D$4 -> 2 | J76: =IF(中間処理!$C$18<=80000000,中間処理!$C$18-J68*10000,0)/10000 -> 0 | K76: =K75 -> 35 | M76: =資金調達!E$12-資金調達!E$13 -> 1500 | N76: 0 | O76: =IF(I76=1,資金調達!E$11,IF(I76=4,資金調達!E$11,資金調達!E$14)) -> 3000 | P76: =IF(I76=1,0,IF(OR(F76="当初一括",F76="分割4回"),0,IF(OR(I76=4,I76=5),資金調達!M$11,IF(F76="分割3回",資金調達!M$15,IF(F76="分割2回",資金調達!M$14+資金調達!M$15,SUM(資金調達!M$11:M$15)))))) -> 3300 | R76: =R75 -> 132000 | T76: 0 | U76: 0 | V76: =IFERROR(VLOOKUP(J76*10000,table!B$3:C$11,2,TRUE),0) -> 0 | W76: =IF(OR(I76=1,0,中間処理!A76=2),0,VLOOKUP(I76,AR$3:AU$13,4,FALSE)) -> 135000 | X76: =IF(H76=1,IF(中間処理!A76=2,0,IF(I76=1,0,AO$7)),0) -> 100000 | Y76: 0 | Z76: 0 | AB76: 0 | AC76: =IF(J76=0,0,IF(中間処理!A$2=2,0,IF(L76>0,120000,0)+IF(AB76>0,1,0)*120000+IF(AND(P76>0,OR(AH76="東光商事",AH76="アプラス")),80000,0))) -> 0 | AF76: =IF(AE76>0,VLOOKUP(P76*10000,table!B$3:C$11,2,TRUE),0) -> 0 | AG76: 235000
A77: 75 | B77: 手数料定額 | C77: アプラス | E77: マイホームプラン（パッケージ型）Ｂプラン、ULTRA | F77: 最終一括 | G77: =IF(資金調達!D$4=1,0,IF(金利手数料一覧!Y$1=2,0,IF(F77="当初一括",0,IF(F77="分割3回",1,IF(資金調達!M$20>0,1,0))))) -> 1 | H77: =資金調達!D$3 -> 1 | I77: =資金調達!D$4 -> 2 | J77: =J70 -> -4000 | K77: =K76 -> 35 | M77: =資金調達!E$12-資金調達!E$13 -> 1500 | N77: 0 | O77: =IF(I77=1,資金調達!E$11,IF(I77=4,資金調達!E$11,資金調達!E$14)) -> 3000 | P77: =IF(I77=1,0,IF(OR(F77="当初一括",F77="分割4回"),0,IF(OR(I77=4,I77=5),資金調達!M$11,IF(F77="分割3回",資金調達!M$15,IF(F77="分割2回",資金調達!M$14+資金調達!M$15,SUM(資金調達!M$11:M$15)))))) -> 3300 | R77: =R76 -> 132000 | T77: 132000 | U77: 0 | V77: =IFERROR(VLOOKUP(J77*10000,table!B$3:C$11,2,TRUE),0) -> 0 | W77: =IF(OR(I77=1,0,中間処理!A77=2),0,VLOOKUP(I77,AR$3:AU$13,4,FALSE)) -> 135000 | X77: =IF(H77=1,IF(中間処理!A77=2,0,IF(I77=1,0,AO$7)),0) -> 100000 | Y77: 0 | Z77: -40000 | AB77: 0 | AC77: =IF(J77=0,0,IF(中間処理!A$2=2,0,IF(L77>0,120000,0)+IF(AB77>0,1,0)*120000+IF(AND(P77>0,OR(AH77="東光商事",AH77="アプラス")),80000,0))) -> 0 | AF77: =IF(AE77>0,VLOOKUP(P77*10000,table!B$3:C$11,2,TRUE),0) -> 0 | AG77: 327000
A78: 76 | B78: 手数料定率 | C78: SMBC信託銀行 | E78: 住宅ローン | F78: 最終一括 | G78: =IF(資金調達!D$4=1,0,IF(金利手数料一覧!Y$1=2,0,IF(F78="当初一括",0,IF(F78="分割3回",1,IF(資金調達!M$20>0,1,0))))) -> 1 | H78: =資金調達!D$3 -> 1 | I78: =資金調達!D$4 -> 2 | J78: =J2 -> 4000 | K78: =K51 -> 35 | L78: =IF(OR(I78=2,I78=5),資金調達!E$12,IF(I78=4,資金調達!E$11,IF(I78=1,資金調達!E$11,0)))+IF(D78="フラット35",0,資金調達!E$16) -> 1500 | M78: =資金調達!E$12-資金調達!E$13 -> 1500 | N78: 0 | O78: =IF(I78=1,資金調達!E$11,IF(I78=4,資金調達!E$11,資金調達!E$14)) -> 3000 | P78: =IF(I78=1,0,IF(OR(F78="当初一括",F78="分割4回"),0,IF(OR(I78=4,I78=5),資金調達!M$11,IF(F78="分割3回",資金調達!M$15,IF(F78="分割2回",資金調達!M$14+資金調達!M$15,SUM(資金調達!M$11:M$15)))))) -> 3300 | Q78: =当月!U738 -> 0.022 | T78: 880000 | U78: 0 | V78: =IFERROR(VLOOKUP(J78*10000,table!B$3:C$11,2,TRUE),0) -> 20000 | W78: =IF(OR(I78=1,0,中間処理!A78=2),0,VLOOKUP(I78,AR$3:AU$13,4,FALSE)) -> 135000 | X78: =IF(H78=1,IF(中間処理!A78=2,0,IF(I78=1,0,AO$7)),0) -> 100000 | Y78: =IF(H78=1,IF(中間処理!A78=2,0,VLOOKUP(I78,AR$3:AV$13,5,FALSE)),0) -> 22500 | Z78: 40000 | AA78: =IF(G78=0,0,1000) -> 1000 | AB78: 0 | AC78: =IF(J78=0,0,IF(中間処理!A$2=2,0,IF(L78>0,120000,0)+IF(AB78>0,1,0)*120000+IF(AND(P78>0,OR(AH78="東光商事",AH78="アプラス")),80000,0))) -> 200000 | AD78: =IF(G78=0,0,110000) -> 110000 | AE78: =INT(IF(G78>0,IF(OR(I78=4,I78=5),資金調達!O$43,IF(F78="分割2回",資金調達!O$41,IF(F78="分割3回",資金調達!O$42,資金調達!O$40)))*10000*AI78/12,0)) -> 427750 | AF78: =IF(AE78>0,VLOOKUP(P78*10000,table!B$3:C$11,2,TRUE),0) -> 20000 | AG78: 1936250 | AH78: 東光商事 | AI78: =AI49 -> 0.029
A79: 77 | B79: 手数料定額 | C79: SMBC信託銀行 | E79: 住宅ローン | F79: 最終一括 | G79: =IF(資金調達!D$4=1,0,IF(金利手数料一覧!Y$1=2,0,IF(F79="当初一括",0,IF(F79="分割3回",1,IF(資金調達!M$20>0,1,0))))) -> 1 | H79: =資金調達!D$3 -> 1 | I79: =資金調達!D$4 -> 2 | J79: =J2 -> 4000 | K79: =K78 -> 35 | L79: =IF(OR(I79=2,I79=5),資金調達!E$12,IF(I79=4,資金調達!E$11,IF(I79=1,資金調達!E$11,0)))+IF(D79="フラット35",0,資金調達!E$16) -> 1500 | M79: =資金調達!E$12-資金調達!E$13 -> 1500 | N79: 0 | O79: =IF(I79=1,資金調達!E$11,IF(I79=4,資金調達!E$11,資金調達!E$14)) -> 3000 | P79: =IF(I79=1,0,IF(OR(F79="当初一括",F79="分割4回"),0,IF(OR(I79=4,I79=5),資金調達!M$11,IF(F79="分割3回",資金調達!M$15,IF(F79="分割2回",資金調達!M$14+資金調達!M$15,SUM(資金調達!M$11:M$15)))))) -> 3300 | R79: =当月!U740 -> 22000 | T79: 22000 | U79: 0 | V79: =IFERROR(VLOOKUP(J79*10000,table!B$3:C$11,2,TRUE),0) -> 20000 | W79: =IF(OR(I79=1,0,中間処理!A79=2),0,VLOOKUP(I79,AR$3:AU$13,4,FALSE)) -> 135000 | X79: =IF(H79=1,IF(中間処理!A79=2,0,IF(I79=1,0,AO$7)),0) -> 100000 | Y79: =IF(H79=1,IF(中間処理!A79=2,0,VLOOKUP(I79,AR$3:AV$13,5,FALSE)),0) -> 22500 | Z79: 40000 | AA79: 1000 | AB79: 0 | AC79: =IF(J79=0,0,IF(中間処理!A$2=2,0,IF(L79>0,120000,0)+IF(AB79>0,1,0)*120000+IF(AND(P79>0,OR(AH79="東光商事",AH79="アプラス")),80000,0))) -> 200000 | AD79: 110000 | AE79: =INT(IF(G79>0,IF(OR(I79=4,I79=5),資金調達!O$43,IF(F79="分割2回",資金調達!O$41,IF(F79="分割3回",資金調達!O$42,資金調達!O$40)))*10000*AI79/12,0)) -> 427750 | AF79: =IF(AE79>0,VLOOKUP(P79*10000,table!B$3:C$11,2,TRUE),0) -> 20000 | AG79: 1078250 | AH79: 東光商事 | AI79: =AI78 -> 0.029
A80: 78 | B80: 手数料定率 | C80: SBIマネープラザ | E80: 住宅ローン（対面） | F80: =IF(OR(L80>0,N80>0),"分割2回","最終一括") -> 分割2回 | G80: =IF(資金調達!D$4=1,0,IF(金利手数料一覧!Y$1=2,0,IF(F80="当初一括",0,IF(F80="分割3回",1,IF(資金調達!M$20>0,1,0))))) -> 1 | H80: =資金調達!D$3 -> 1 | I80: =資金調達!D$4 -> 2 | J80: =J2 -> 4000 | K80: =K79 -> 35 | L80: =IF(OR(I80=2,I80=5),資金調達!E$12,IF(I80=4,資金調達!E$11,IF(I80=1,資金調達!E$11,0)))+IF(D80="フラット35",0,資金調達!E$16) -> 1500 | M80: =資金調達!E$12-資金調達!E$13 -> 1500 | N80: 0 | O80: =IF(I80=1,資金調達!E$11,IF(I80=4,資金調達!E$11,資金調達!E$14)) -> 3000 | P80: =IF(I80=1,0,IF(OR(F80="当初一括",F80="分割4回"),0,IF(OR(I80=4,I80=5),資金調達!M$11,IF(F80="分割3回",資金調達!M$15,IF(F80="分割2回",資金調達!M$14+資金調達!M$15,SUM(資金調達!M$11:M$15)))))) -> 1800 | Q80: =当月!U749 -> 0.022 | T80: 880000 | U80: 0 | V80: =IFERROR(VLOOKUP(J80*10000,table!B$3:C$11,2,TRUE),0) -> 20000 | W80: =IF(OR(I80=1,0,中間処理!A80=2),0,VLOOKUP(I80,AR$3:AU$13,4,FALSE)) -> 135000 | X80: =IF(H80=1,IF(中間処理!A80=2,0,IF(I80=1,0,AO$7)),0) -> 100000 | Y80: =IF(H80=1,IF(中間処理!A80=2,0,VLOOKUP(I80,AR$3:AV$13,5,FALSE)),0) -> 22500 | Z80: 160000 | AA80: 1000 | AB80: 3300 | AC80: =IF(J80=0,0,IF(中間処理!A$2=2,0,IF(L80>0,120000,0)+IF(AB80>0,1,0)*120000+IF(AND(P80>0,OR(AH80="東光商事",AH80="アプラス")),80000,0))) -> 240000 | AD80: 110000 | AE80: =INT(IF(G80>0,IF(OR(I80=4,I80=5),資金調達!O$43,IF(F80="分割2回",資金調達!O$41,IF(F80="分割3回",資金調達!O$42,資金調達!O$40)))*10000*AI80/12,0)) -> 114000 | AF80: =IF(AE80>0,VLOOKUP(P80*10000,table!B$3:C$11,2,TRUE),0) -> 20000 | AG80: 1785800 | AH80: 島根銀行 | AI80: 0.019
A81: 79 | B81: 手数料定率 | C81: PayPay銀行 | E81: =当月!B761 -> 住宅ローン | F81: 最終一括 | G81: =IF(資金調達!D$4=1,0,IF(金利手数料一覧!Y$1=2,0,IF(F81="当初一括",0,IF(F81="分割3回",1,IF(資金調達!M$20>0,1,0))))) -> 1 | H81: =資金調達!D$3 -> 1 | I81: =資金調達!D$4 -> 2 | J81: =J2 -> 4000 | K81: =K80 -> 35 | L81: =IF(OR(I81=2,I81=5),資金調達!E$12,IF(I81=4,資金調達!E$11,IF(I81=1,資金調達!E$11,0)))+IF(D81="フラット35",0,資金調達!E$16) -> 1500 | M81: =資金調達!E$12-資金調達!E$13 -> 1500 | N81: 0 | O81: =IF(I81=1,資金調達!E$11,IF(I81=4,資金調達!E$11,資金調達!E$14)) -> 3000 | P81: =IF(I81=1,0,IF(OR(F81="当初一括",F81="分割4回"),0,IF(OR(I81=4,I81=5),資金調達!M$11,IF(F81="分割3回",資金調達!M$15,IF(F81="分割2回",資金調達!M$14+資金調達!M$15,SUM(資金調達!M$11:M$15)))))) -> 3300 | Q81: =金利手数料一覧!U156 -> 0.022 | T81: 880000 | U81: 0 | V81: =IFERROR(VLOOKUP(J81*10000,table!B$3:C$11,2,TRUE),0) -> 20000 | W81: =IF(OR(I81=1,0,中間処理!A81=2),0,VLOOKUP(I81,AR$3:AU$13,4,FALSE)) -> 135000 | X81: =IF(H81=1,IF(中間処理!A81=2,0,IF(I81=1,0,AO$7)),0) -> 100000 | Y81: =IF(H81=1,IF(中間処理!A81=2,0,VLOOKUP(I81,AR$3:AV$13,5,FALSE)),0) -> 22500 | Z81: 40000 | AA81: 1000 | AB81: 0 | AC81: =IF(J81=0,0,IF(中間処理!A$2=2,0,IF(L81>0,120000,0)+IF(AB81>0,1,0)*120000+IF(AND(P81>0,OR(AH81="東光商事",AH81="アプラス")),80000,0))) -> 200000 | AD81: 110000 | AE81: =INT(IF(G81>0,IF(OR(I81=4,I81=5),資金調達!O$43,IF(F81="分割2回",資金調達!O$41,IF(F81="分割3回",資金調達!O$42,資金調達!O$40)))*10000*AI81/12,0)) -> 427750 | AF81: =IF(AE81>0,VLOOKUP(P81*10000,table!B$3:C$11,2,TRUE),0) -> 20000 | AG81: 1936250 | AH81: 東光商事 | AI81: =AI79 -> 0.029
A82: 80 | B82: 保証料前払い | C82: 北陸銀行 | D82: 業者限定で分割あり | E82: =当月!B768 -> ほくぎん住宅ローン | F82: 当初一括 | G82: =IF(資金調達!D$4=1,0,IF(金利手数料一覧!Y$1=2,0,IF(F82="当初一括",0,IF(F82="分割3回",1,IF(資金調達!M$20>0,1,0))))) -> 0 | H82: =資金調達!D$3 -> 1 | I82: =資金調達!D$4 -> 2 | J82: =J2 -> 4000 | K82: =K59 -> 35 | L82: =IF(OR(I82=2,I82=5),資金調達!E$12,IF(I82=4,資金調達!E$11,IF(I82=1,資金調達!E$11,0)))+IF(D82="フラット35",0,資金調達!E$16) -> 1500 | M82: =資金調達!E$12-資金調達!E$13 -> 1500 | N82: 0 | O82: =IF(I82=1,資金調達!E$11,IF(I82=4,資金調達!E$11,資金調達!E$14)) -> 3000 | P82: =IF(I82=1,0,IF(OR(F82="当初一括",F82="分割4回"),0,IF(OR(I82=4,I82=5),資金調達!M$11,IF(F82="分割3回",資金調達!M$15,IF(F82="分割2回",資金調達!M$14+資金調達!M$15,SUM(資金調達!M$11:M$15)))))) -> 0 | Q82: =HLOOKUP(K82,table!$AO$2:$BX$5,4) -> 0.025221 | R82: =金利手数料一覧!U159 -> 33000 | T82: 0 | U82: 1008840 | V82: =IFERROR(VLOOKUP(J82*10000,table!B$3:C$11,2,TRUE),0) -> 20000 | W82: =IF(OR(I82=1,0,中間処理!A82=2),0,VLOOKUP(I82,AR$3:AU$13,4,FALSE)) -> 135000 | X82: =IF(H82=1,IF(中間処理!A82=2,0,IF(I82=1,0,AO$7)),0) -> 100000 | Y82: =IF(H82=1,IF(中間処理!A82=2,0,VLOOKUP(I82,AR$3:AV$13,5,FALSE)),0) -> 22500 | Z82: 160000 | AA82: 0 | AB82: 3300 | AC82: =IF(J82=0,0,IF(中間処理!A$2=2,0,IF(L82>0,120000,0)+IF(AB82>0,1,0)*120000+IF(AND(P82>0,OR(AH82="東光商事",AH82="アプラス")),80000,0))) -> 240000 | AD82: 0 | AE82: =INT(IF(G82>0,IF(OR(I82=4,I82=5),資金調達!O$43,IF(F82="分割2回",資金調達!O$41,IF(F82="分割3回",資金調達!O$42,資金調達!O$40)))*10000*AI82/12,0)) -> 0 | AF82: =IF(AE82>0,VLOOKUP(P82*10000,table!B$3:C$11,2,TRUE),0) -> 0 | AG82: 1689640
A83: 81 | B83: 保証料後払い | C83: 北陸銀行 | D83: 業者限定で分割あり | E83: =E82 -> ほくぎん住宅ローン | F83: 当初一括 | G83: =IF(資金調達!D$4=1,0,IF(金利手数料一覧!Y$1=2,0,IF(F83="当初一括",0,IF(F83="分割3回",1,IF(資金調達!M$20>0,1,0))))) -> 0 | H83: =資金調達!D$3 -> 1 | I83: =資金調達!D$4 -> 2 | J83: =J2 -> 4000 | K83: =K82 -> 35 | L83: =IF(OR(I83=2,I83=5),資金調達!E$12,IF(I83=4,資金調達!E$11,IF(I83=1,資金調達!E$11,0)))+IF(D83="フラット35",0,資金調達!E$16) -> 1500 | M83: =資金調達!E$12-資金調達!E$13 -> 1500 | N83: 0 | O83: =IF(I83=1,資金調達!E$11,IF(I83=4,資金調達!E$11,資金調達!E$14)) -> 3000 | P83: =IF(I83=1,0,IF(OR(F83="当初一括",F83="分割4回"),0,IF(OR(I83=4,I83=5),資金調達!M$11,IF(F83="分割3回",資金調達!M$15,IF(F83="分割2回",資金調達!M$14+資金調達!M$15,SUM(資金調達!M$11:M$15)))))) -> 0 | R83: =金利手数料一覧!U159 -> 33000 | T83: 0 | U83: =IF(B83="保証料前払い",J83*10000*Q83,0) -> 0 | V83: =IFERROR(VLOOKUP(J83*10000,table!B$3:C$11,2,TRUE),0) -> 20000 | W83: =IF(OR(I83=1,0,中間処理!A83=2),0,VLOOKUP(I83,AR$3:AU$13,4,FALSE)) -> 135000 | X83: =IF(H83=1,IF(中間処理!A83=2,0,IF(I83=1,0,AO$7)),0) -> 100000 | Y83: =IF(H83=1,IF(中間処理!A83=2,0,VLOOKUP(I83,AR$3:AV$13,5,FALSE)),0) -> 22500 | Z83: 160000 | AA83: 0 | AB83: 3300 | AC83: =IF(J83=0,0,IF(中間処理!A$2=2,0,IF(L83>0,120000,0)+IF(AB83>0,1,0)*120000+IF(AND(P83>0,OR(AH83="東光商事",AH83="アプラス")),80000,0))) -> 240000 | AD83: 0 | AE83: =INT(IF(G83>0,IF(OR(I83=4,I83=5),資金調達!O$43,IF(F83="分割2回",資金調達!O$41,IF(F83="分割3回",資金調達!O$42,資金調達!O$40)))*10000*AI83/12,0)) -> 0 | AF83: =IF(AE83>0,VLOOKUP(P83*10000,table!B$3:C$11,2,TRUE),0) -> 0 | AG83: 680800
A84: 82 | B84: 手数料定率 | C84: 北陸銀行 | D84: 業者限定で分割あり | E84: =当月!B769 -> 0 | F84: 当初一括 | G84: =IF(資金調達!D$4=1,0,IF(金利手数料一覧!Y$1=2,0,IF(F84="当初一括",0,IF(F84="分割3回",1,IF(資金調達!M$20>0,1,0))))) -> 0 | H84: =資金調達!D$3 -> 1 | I84: =資金調達!D$4 -> 2 | J84: =J2 -> 4000 | K84: 35 | L84: =IF(OR(I84=2,I84=5),資金調達!E$12,IF(I84=4,資金調達!E$11,IF(I84=1,資金調達!E$11,0)))+IF(D84="フラット35",0,資金調達!E$16) -> 1500 | M84: =資金調達!E$12-資金調達!E$13 -> 1500 | N84: 0 | O84: =IF(I84=1,資金調達!E$11,IF(I84=4,資金調達!E$11,資金調達!E$14)) -> 3000 | P84: =IF(I84=1,0,IF(OR(F84="当初一括",F84="分割4回"),0,IF(OR(I84=4,I84=5),資金調達!M$11,IF(F84="分割3回",資金調達!M$15,IF(F84="分割2回",資金調達!M$14+資金調達!M$15,SUM(資金調達!M$11:M$15)))))) -> 0 | Q84: =金利手数料一覧!U161 -> 0.011 | T84: 440000 | U84: 0 | V84: =IFERROR(VLOOKUP(J84*10000,table!B$3:C$11,2,TRUE),0) -> 20000 | W84: =IF(OR(I84=1,0,中間処理!A84=2),0,VLOOKUP(I84,AR$3:AU$13,4,FALSE)) -> 135000 | X84: =IF(H84=1,IF(中間処理!A84=2,0,IF(I84=1,0,AO$7)),0) -> 100000 | Y84: =IF(H84=1,IF(中間処理!A84=2,0,VLOOKUP(I84,AR$3:AV$13,5,FALSE)),0) -> 22500 | Z84: 160000 | AA84: 0 | AB84: 3300 | AC84: =IF(J84=0,0,IF(中間処理!A$2=2,0,IF(L84>0,120000,0)+IF(AB84>0,1,0)*120000+IF(AND(P84>0,OR(AH84="東光商事",AH84="アプラス")),80000,0))) -> 240000 | AD84: 0 | AE84: =INT(IF(G84>0,IF(OR(I84=4,I84=5),資金調達!O$43,IF(F84="分割2回",資金調達!O$41,IF(F84="分割3回",資金調達!O$42,資金調達!O$40)))*10000*AI84/12,0)) -> 0 | AF84: =IF(AE84>0,VLOOKUP(P84*10000,table!B$3:C$11,2,TRUE),0) -> 0 | AG84: 1120800
A85: 83 | B85: 手数料定率 | C85: 北陸銀行 | D85: 業者限定で分割あり | E85: =E84 -> 0 | F85: 当初一括 | G85: =IF(資金調達!D$4=1,0,IF(金利手数料一覧!Y$1=2,0,IF(F85="当初一括",0,IF(F85="分割3回",1,IF(資金調達!M$20>0,1,0))))) -> 0 | H85: =資金調達!D$3 -> 1 | I85: =資金調達!D$4 -> 2 | J85: =J2 -> 4000 | K85: 35 | L85: =IF(OR(I85=2,I85=5),資金調達!E$12,IF(I85=4,資金調達!E$11,IF(I85=1,資金調達!E$11,0)))+IF(D85="フラット35",0,資金調達!E$16) -> 1500 | M85: =資金調達!E$12-資金調達!E$13 -> 1500 | N85: 0 | O85: =IF(I85=1,資金調達!E$11,IF(I85=4,資金調達!E$11,資金調達!E$14)) -> 3000 | P85: =IF(I85=1,0,IF(OR(F85="当初一括",F85="分割4回"),0,IF(OR(I85=4,I85=5),資金調達!M$11,IF(F85="分割3回",資金調達!M$15,IF(F85="分割2回",資金調達!M$14+資金調達!M$15,SUM(資金調達!M$11:M$15)))))) -> 0 | Q85: =金利手数料一覧!U163 -> 0.022 | T85: 880000 | U85: 0 | V85: =IFERROR(VLOOKUP(J85*10000,table!B$3:C$11,2,TRUE),0) -> 20000 | W85: =IF(OR(I85=1,0,中間処理!A85=2),0,VLOOKUP(I85,AR$3:AU$13,4,FALSE)) -> 135000 | X85: =IF(H85=1,IF(中間処理!A85=2,0,IF(I85=1,0,AO$7)),0) -> 100000 | Y85: =IF(H85=1,IF(中間処理!A85=2,0,VLOOKUP(I85,AR$3:AV$13,5,FALSE)),0) -> 22500 | Z85: 160000 | AA85: 0 | AB85: 3300 | AC85: =IF(J85=0,0,IF(中間処理!A$2=2,0,IF(L85>0,120000,0)+IF(AB85>0,1,0)*120000+IF(AND(P85>0,OR(AH85="東光商事",AH85="アプラス")),80000,0))) -> 240000 | AD85: 0 | AE85: =INT(IF(G85>0,IF(OR(I85=4,I85=5),資金調達!O$43,IF(F85="分割2回",資金調達!O$41,IF(F85="分割3回",資金調達!O$42,資金調達!O$40)))*10000*AI85/12,0)) -> 0 | AF85: =IF(AE85>0,VLOOKUP(P85*10000,table!B$3:C$11,2,TRUE),0) -> 0 | AG85: 1560800
A86: 84 | B86: 手数料定額 | C86: 北國銀行 | E86: =当月!C775 -> 北國住宅ローン | F86: 当初一括 | G86: =IF(資金調達!D$4=1,0,IF(金利手数料一覧!Y$1=2,0,IF(F86="当初一括",0,IF(F86="分割3回",1,IF(資金調達!M$20>0,1,0))))) -> 0 | H86: =資金調達!D$3 -> 1 | I86: =資金調達!D$4 -> 2 | J86: =J7 -> 4000 | K86: 35 | L86: =IF(OR(I86=2,I86=5),資金調達!E$12,IF(I86=4,資金調達!E$11,IF(I86=1,資金調達!E$11,0)))+IF(D86="フラット35",0,資金調達!E$16) -> 1500 | M86: =資金調達!E$12-資金調達!E$13 -> 1500 | N86: 0 | O86: =IF(I86=1,資金調達!E$11,IF(I86=4,資金調達!E$11,資金調達!E$14)) -> 3000 | P86: =IF(I86=1,0,IF(OR(F86="当初一括",F86="分割4回"),0,IF(OR(I86=4,I86=5),資金調達!M$11,IF(F86="分割3回",資金調達!M$15,IF(F86="分割2回",資金調達!M$14+資金調達!M$15,SUM(資金調達!M$11:M$15)))))) -> 0 | R86: =金利手数料一覧!U166 -> 220000 | T86: 220000 | U86: 0 | V86: =IFERROR(VLOOKUP(J86*10000,table!B$3:C$11,2,TRUE),0) -> 20000 | W86: =IF(OR(I86=1,0,中間処理!A86=2),0,VLOOKUP(I86,AR$3:AU$13,4,FALSE)) -> 135000 | X86: =IF(H86=1,IF(中間処理!A86=2,0,IF(I86=1,0,AO$7)),0) -> 100000 | Y86: =IF(H86=1,IF(中間処理!A86=2,0,VLOOKUP(I86,AR$3:AV$13,5,FALSE)),0) -> 22500 | Z86: 160000 | AA86: 0 | AB86: 3300 | AC86: =IF(J86=0,0,IF(中間処理!A$2=2,0,IF(L86>0,120000,0)+IF(AB86>0,1,0)*120000+IF(AND(P86>0,OR(AH86="東光商事",AH86="アプラス")),80000,0))) -> 240000 | AD86: 0 | AE86: =INT(IF(G86>0,IF(OR(I86=4,I86=5),資金調達!O$43,IF(F86="分割2回",資金調達!O$41,IF(F86="分割3回",資金調達!O$42,資金調達!O$40)))*10000*AI86/12,0)) -> 0 | AF86: =IF(AE86>0,VLOOKUP(P86*10000,table!B$3:C$11,2,TRUE),0) -> 0 | AG86: 900800
A87: 85 | B87: 手数料定額 | C87: 北陸ろうきん | E87: =当月!B779 -> まるっと500 | F87: 分割3回 | G87: =IF(資金調達!D$4=1,0,IF(金利手数料一覧!Y$1=2,0,IF(F87="当初一括",0,IF(F87="分割3回",1,IF(資金調達!M$20>0,1,0))))) -> 1 | H87: =資金調達!D$3 -> 1 | I87: =資金調達!D$4 -> 2 | J87: =J4 -> 4000 | K87: 35 | L87: =IF(OR(I87=2,I87=5),資金調達!E$12,IF(I87=4,資金調達!E$11,IF(I87=1,資金調達!E$11,0)))+IF(D87="フラット35",0,資金調達!E$16) -> 1500 | M87: =資金調達!E$12-資金調達!E$13 -> 1500 | N87: 0 | O87: =IF(I87=1,資金調達!E$11,IF(I87=4,資金調達!E$11,資金調達!E$14)) -> 3000 | P87: =IF(I87=1,0,IF(OR(F87="当初一括",F87="分割4回"),0,IF(OR(I87=4,I87=5),資金調達!M$11,IF(F87="分割3回",資金調達!M$15,IF(F87="分割2回",資金調達!M$14+資金調達!M$15,SUM(資金調達!M$11:M$15)))))) -> 900 | R87: =金利手数料一覧!U171 -> 165000 | T87: 165000 | U87: 0 | V87: =IFERROR(VLOOKUP(J87*10000,table!B$3:C$11,2,TRUE),0) -> 20000 | W87: =IF(OR(I87=1,0,中間処理!A87=2),0,VLOOKUP(I87,AR$3:AU$13,4,FALSE)) -> 135000 | X87: =IF(H87=1,IF(中間処理!A87=2,0,IF(I87=1,0,AO$7)),0) -> 100000 | Y87: =IF(H87=1,IF(中間処理!A87=2,0,VLOOKUP(I87,AR$3:AV$13,5,FALSE)),0) -> 22500 | Z87: 160000 | AA87: 1000 | AB87: 3300 | AC87: =IF(J87=0,0,IF(中間処理!A$2=2,0,IF(L87>0,120000,0)+IF(AB87>0,1,0)*120000+IF(AND(P87>0,OR(AH87="東光商事",AH87="アプラス")),80000,0))) -> 320000 | AD87: 110000 | AE87: =INT(IF(G87>0,IF(OR(I87=4,I87=5),資金調達!O$43,IF(F87="分割2回",資金調達!O$41,IF(F87="分割3回",資金調達!O$42,資金調達!O$40)))*10000*AI87/12,0)) -> 65250 | AF87: =IF(AE87>0,VLOOKUP(P87*10000,table!B$3:C$11,2,TRUE),0) -> 10000 | AG87: 1102050 | AH87: 東光商事 | AI87: =AI81 -> 0.029
A88: 108 | B88: 手数料定額 | C88: 北陸ろうきん | E88: =当月!B778 -> まるっと500α | F88: 分割3回 | G88: =IF(資金調達!D$4=1,0,IF(金利手数料一覧!Y$1=2,0,IF(F88="当初一括",0,IF(F88="分割3回",1,IF(資金調達!M$20>0,1,0))))) -> 1 | H88: =資金調達!D$3 -> 1 | I88: =資金調達!D$4 -> 2 | J88: =J5 -> 4000 | K88: 35 | L88: =IF(OR(I88=2,I88=5),資金調達!E$12,IF(I88=4,資金調達!E$11,IF(I88=1,資金調達!E$11,0)))+IF(D88="フラット35",0,資金調達!E$16) -> 1500 | M88: =資金調達!E$12-資金調達!E$13 -> 1500 | N88: 0 | O88: =IF(I88=1,資金調達!E$11,IF(I88=4,資金調達!E$11,資金調達!E$14)) -> 3000 | P88: =IF(I88=1,0,IF(OR(F88="当初一括",F88="分割4回"),0,IF(OR(I88=4,I88=5),資金調達!M$11,IF(F88="分割3回",資金調達!M$15,IF(F88="分割2回",資金調達!M$14+資金調達!M$15,SUM(資金調達!M$11:M$15)))))) -> 900 | R88: =R87 -> 165000 | T88: 165000 | U88: =IF(B88="保証料前払い",J88*10000*Q88,0) -> 0 | V88: =IFERROR(VLOOKUP(J88*10000,table!B$3:C$11,2,TRUE),0) -> 20000 | W88: =IF(OR(I88=1,0,中間処理!A88=2),0,VLOOKUP(I88,AR$3:AU$13,4,FALSE)) -> 135000 | X88: =IF(H88=1,IF(中間処理!A88=2,0,IF(I88=1,0,AO$7)),0) -> 100000 | Y88: =IF(H88=1,IF(中間処理!A88=2,0,VLOOKUP(I88,AR$3:AV$13,5,FALSE)),0) -> 22500 | Z88: 160000 | AA88: =IF(G88=0,0,1000) -> 1000 | AB88: 3300 | AC88: =IF(J88=0,0,IF(中間処理!A$2=2,0,IF(L88>0,120000,0)+IF(AB88>0,1,0)*120000+IF(AND(P88>0,OR(AH88="東光商事",AH88="アプラス")),80000,0))) -> 320000 | AD88: =IF(G88=0,0,110000) -> 110000 | AE88: =INT(IF(G88>0,IF(OR(I88=4,I88=5),資金調達!O$43,IF(F88="分割2回",資金調達!O$41,IF(F88="分割3回",資金調達!O$42,資金調達!O$40)))*10000*AI88/12,0)) -> 65250 | AF88: =IF(AE88>0,VLOOKUP(P88*10000,table!B$3:C$11,2,TRUE),0) -> 10000 | AG88: =SUM(S88:AE88) -> 1102050 | AH88: 東光商事 | AI88: =AI87 -> 0.029
A89: 86 | B89: 手数料定率 | C89: 中央ろうきん | E89: =当月!B787 -> 住宅ローン【手数料定率型】 | F89: 最終一括 | G89: =IF(資金調達!D$4=1,0,IF(金利手数料一覧!Y$1=2,0,IF(F89="当初一括",0,IF(F89="分割3回",1,IF(資金調達!M$20>0,1,0))))) -> 1 | H89: =資金調達!D$3 -> 1 | I89: =資金調達!D$4 -> 2 | J89: =J6 -> 4000 | K89: =K87 -> 35 | L89: =IF(OR(I89=2,I89=5),資金調達!E$12,IF(I89=4,資金調達!E$11,IF(I89=1,資金調達!E$11,0)))+IF(D89="フラット35",0,資金調達!E$16) -> 1500 | M89: =資金調達!E$12-資金調達!E$13 -> 1500 | N89: =N87 -> 0 | O89: =IF(I89=1,資金調達!E$11,IF(I89=4,資金調達!E$11,資金調達!E$14)) -> 3000 | P89: =IF(I89=1,0,IF(OR(F89="当初一括",F89="分割4回"),0,IF(OR(I89=4,I89=5),資金調達!M$11,IF(F89="分割3回",資金調達!M$15,IF(F89="分割2回",資金調達!M$14+資金調達!M$15,SUM(資金調達!M$11:M$15)))))) -> 3300 | Q89: =金利手数料一覧!U178 -> 0.022 | S89: =IF(AND(キャンペーン!F82=TRUE,キャンペーン!F84=TRUE),11000,33000) -> 33000 | T89: 880000 | U89: 0 | V89: =IFERROR(VLOOKUP(J89*10000,table!B$3:C$11,2,TRUE),0) -> 20000 | W89: =IF(OR(I89=1,0,中間処理!A89=2),0,VLOOKUP(I89,AR$3:AU$13,4,FALSE)) -> 135000 | X89: =IF(H89=1,IF(中間処理!A89=2,0,IF(I89=1,0,AO$7)),0) -> 100000 | Y89: =IF(H89=1,IF(中間処理!A88=2,0,VLOOKUP(I89,AR$3:AV$13,5,FALSE)),0) -> 22500 | Z89: 40000 | AA89: 1000 | AB89: 0 | AC89: =IF(J89=0,0,IF(中間処理!A$2=2,0,IF(L89>0,120000,0)+IF(AB89>0,1,0)*120000+IF(AND(P89>0,OR(AH89="東光商事",AH89="アプラス")),80000,0))) -> 120000 | AD89: 110000 | AE89: =INT(IF(G89>0,IF(OR(I89=4,I89=5),資金調達!O$43,IF(F89="分割2回",資金調達!O$41,IF(F89="分割3回",資金調達!O$42,資金調達!O$40)))*10000*AI89/12,0)) -> 70062 | AF89: =IF(AE89>0,VLOOKUP(P89*10000,table!B$3:C$11,2,TRUE),0) -> 20000 | AG89: 1531562 | AH89: プロパー | AI89: =当月!E787 -> 0.00475 | AJ89: 変動金利
A90: 87 | B90: 保証料前払い | C90: 中央ろうきん | E90: =当月!B788 -> 住宅ローン【手数料定額型】 | F90: 最終一括 | G90: =IF(資金調達!D$4=1,0,IF(金利手数料一覧!Y$1=2,0,IF(F90="当初一括",0,IF(F90="分割3回",1,IF(資金調達!M$20>0,1,0))))) -> 1 | H90: =資金調達!D$3 -> 1 | I90: =資金調達!D$4 -> 2 | J90: =J6 -> 4000 | K90: 35 | L90: =IF(OR(I90=2,I90=5),資金調達!E$12,IF(I90=4,資金調達!E$11,IF(I90=1,資金調達!E$11,0)))+IF(D90="フラット35",0,資金調達!E$16) -> 1500 | M90: =資金調達!E$12-資金調達!E$13 -> 1500 | N90: 0 | O90: =IF(I90=1,資金調達!E$11,IF(I90=4,資金調達!E$11,資金調達!E$14)) -> 3000 | P90: =IF(I90=1,0,IF(OR(F90="当初一括",F90="分割4回"),0,IF(OR(I90=4,I90=5),資金調達!M$11,IF(F90="分割3回",資金調達!M$15,IF(F90="分割2回",資金調達!M$14+資金調達!M$15,SUM(資金調達!M$11:M$15)))))) -> 3300 | Q90: =HLOOKUP(K90,table!$AO$2:$BX$11,IF(キャンペーン!F82=TRUE,5,IF(キャンペーン!F84=TRUE,6,IF(キャンペーン!F86=TRUE,7,"不可")))) ->  | S90: =IF(AND(キャンペーン!F82=TRUE,キャンペーン!F84=TRUE),11000,33000) -> 33000 | T90: 0 | V90: =IFERROR(VLOOKUP(J90*10000,table!B$3:C$11,2,TRUE),0) -> 20000 | W90: =IF(OR(I90=1,0,中間処理!A90=2),0,VLOOKUP(I90,AR$3:AU$13,4,FALSE)) -> 135000 | X90: =IF(H90=1,IF(中間処理!A90=2,0,IF(I90=1,0,AO$7)),0) -> 100000 | Y90: =IF(H90=1,IF(中間処理!A89=2,0,VLOOKUP(I90,AR$3:AV$13,5,FALSE)),0) -> 22500 | Z90: 40000 | AA90: 1000 | AB90: 0 | AC90: =IF(J90=0,0,IF(中間処理!A$2=2,0,IF(L90>0,120000,0)+IF(AB90>0,1,0)*120000+IF(AND(P90>0,OR(AH90="東光商事",AH90="アプラス")),80000,0))) -> 120000 | AD90: 110000 | AE90: =INT(IF(G90>0,IF(OR(I90=4,I90=5),資金調達!O$43,IF(F90="分割2回",資金調達!O$41,IF(F90="分割3回",資金調達!O$42,資金調達!O$40)))*10000*AI90/12,0)) -> 70062 | AF90: =IF(AE90>0,VLOOKUP(P90*10000,table!B$3:C$11,2,TRUE),0) -> 20000 | AH90: プロパー | AI90: =AI89 -> 0.00475 | AJ90: 変動金利
A91: 88 | B91: 保証料後払い | C91: 中央ろうきん | E91: =E90 -> 住宅ローン【手数料定額型】 | F91: 最終一括 | G91: =IF(資金調達!D$4=1,0,IF(金利手数料一覧!Y$1=2,0,IF(F91="当初一括",0,IF(F91="分割3回",1,IF(資金調達!M$20>0,1,0))))) -> 1 | H91: =資金調達!D$3 -> 1 | I91: =資金調達!D$4 -> 2 | J91: =J7 -> 4000 | K91: 35 | L91: =IF(OR(I91=2,I91=5),資金調達!E$12,IF(I91=4,資金調達!E$11,IF(I91=1,資金調達!E$11,0)))+IF(D91="フラット35",0,資金調達!E$16) -> 1500 | M91: =資金調達!E$12-資金調達!E$13 -> 1500 | N91: 0 | O91: =IF(I91=1,資金調達!E$11,IF(I91=4,資金調達!E$11,資金調達!E$14)) -> 3000 | P91: =IF(I91=1,0,IF(OR(F91="当初一括",F91="分割4回"),0,IF(OR(I91=4,I91=5),資金調達!M$11,IF(F91="分割3回",資金調達!M$15,IF(F91="分割2回",資金調達!M$14+資金調達!M$15,SUM(資金調達!M$11:M$15)))))) -> 3300 | S91: =IF(AND(キャンペーン!F83=TRUE,キャンペーン!F85=TRUE),11000,33000) -> 33000 | T91: 0 | U91: 0 | V91: =IFERROR(VLOOKUP(J91*10000,table!B$3:C$11,2,TRUE),0) -> 20000 | W91: =IF(OR(I91=1,0,中間処理!A91=2),0,VLOOKUP(I91,AR$3:AU$13,4,FALSE)) -> 135000 | X91: =IF(H91=1,IF(中間処理!A91=2,0,IF(I91=1,0,AO$7)),0) -> 100000 | Y91: =IF(H91=1,IF(中間処理!A90=2,0,VLOOKUP(I91,AR$3:AV$13,5,FALSE)),0) -> 22500 | Z91: 40000 | AA91: 1000 | AB91: 0 | AC91: =IF(J91=0,0,IF(中間処理!A$2=2,0,IF(L91>0,120000,0)+IF(AB91>0,1,0)*120000+IF(AND(P91>0,OR(AH91="東光商事",AH91="アプラス")),80000,0))) -> 120000 | AD91: 110000 | AE91: =INT(IF(G91>0,IF(OR(I91=4,I91=5),資金調達!O$43,IF(F91="分割2回",資金調達!O$41,IF(F91="分割3回",資金調達!O$42,資金調達!O$40)))*10000*AI91/12,0)) -> 70062 | AF91: =IF(AE91>0,VLOOKUP(P91*10000,table!B$3:C$11,2,TRUE),0) -> 20000 | AG91: 651562 | AH91: プロパー | AI91: =AI90 -> 0.00475 | AJ91: 変動金利
A92: 89 | B92: 保証料前払い | C92: 常陽銀行 | E92: =当月!B818 -> 常陽住宅ローン | F92: 当初一括 | G92: =IF(資金調達!D$4=1,0,IF(金利手数料一覧!Y$1=2,0,IF(F92="当初一括",0,IF(F92="分割3回",1,IF(資金調達!M$20>0,1,0))))) -> 0 | H92: =資金調達!D$3 -> 1 | I92: =資金調達!D$4 -> 2 | J92: =J2 -> 4000 | K92: =K81 -> 35 | L92: =IF(OR(I92=2,I92=5),資金調達!E$12,IF(I92=4,資金調達!E$11,IF(I92=1,資金調達!E$11,0)))+IF(D92="フラット35",0,資金調達!E$16) -> 1500 | M92: =資金調達!E$12-資金調達!E$13 -> 1500 | N92: 0 | O92: =IF(I92=1,資金調達!E$11,IF(I92=4,資金調達!E$11,資金調達!E$14)) -> 3000 | P92: =IF(I92=1,0,IF(OR(F92="当初一括",F92="分割4回"),0,IF(OR(I92=4,I92=5),資金調達!M$11,IF(F92="分割3回",資金調達!M$15,IF(F92="分割2回",資金調達!M$14+資金調達!M$15,SUM(資金調達!M$11:M$15)))))) -> 0 | Q92: =HLOOKUP(K92,table!$AO$2:$BX$4,3) -> 0.01029 | R92: =金利手数料一覧!U209 -> 55000 | T92: 0 | U92: =J92*10000*Q92 -> 411600 | V92: =IF(J92>1000,11000,IF(J92>500,5500,0)) -> 11000 | W92: =IF(OR(I92=1,0,中間処理!A92=2),0,VLOOKUP(I92,AR$3:AU$13,4,FALSE)) -> 135000 | X92: =IF(H92=1,IF(中間処理!A92=2,0,IF(I92=1,0,AO$7)),0) -> 100000 | Y92: =IF(H92=1,IF(中間処理!A91=2,0,VLOOKUP(I92,AR$3:AV$13,5,FALSE)),0) -> 22500 | Z92: 160000 | AA92: 0 | AB92: 3300 | AC92: =IF(J92=0,0,IF(中間処理!A$2=2,0,IF(L92>0,120000,0)+IF(AB92>0,1,0)*120000+IF(AND(P92>0,OR(AH92="東光商事",AH92="アプラス")),80000,0))) -> 240000 | AD92: 0 | AE92: =INT(IF(G92>0,IF(OR(I92=4,I92=5),資金調達!O$43,IF(F92="分割2回",資金調達!O$41,IF(F92="分割3回",資金調達!O$42,資金調達!O$40)))*10000*AI92/12,0)) -> 0 | AF92: =IF(AE92>0,VLOOKUP(P92*10000,table!B$3:C$11,2,TRUE),0) -> 0 | AG92: 1083400
A93: 90 | B93: 保証料後払い | C93: 常陽銀行 | E93: =E92 -> 常陽住宅ローン | F93: 当初一括 | G93: =IF(資金調達!D$4=1,0,IF(金利手数料一覧!Y$1=2,0,IF(F93="当初一括",0,IF(F93="分割3回",1,IF(資金調達!M$20>0,1,0))))) -> 0 | H93: =資金調達!D$3 -> 1 | I93: =資金調達!D$4 -> 2 | J93: =J3 -> 4000 | K93: =K82 -> 35 | L93: =IF(OR(I93=2,I93=5),資金調達!E$12,IF(I93=4,資金調達!E$11,IF(I93=1,資金調達!E$11,0)))+IF(D93="フラット35",0,資金調達!E$16) -> 1500 | M93: =資金調達!E$12-資金調達!E$13 -> 1500 | N93: 0 | O93: =IF(I93=1,資金調達!E$11,IF(I93=4,資金調達!E$11,資金調達!E$14)) -> 3000 | P93: =IF(I93=1,0,IF(OR(F93="当初一括",F93="分割4回"),0,IF(OR(I93=4,I93=5),資金調達!M$11,IF(F93="分割3回",資金調達!M$15,IF(F93="分割2回",資金調達!M$14+資金調達!M$15,SUM(資金調達!M$11:M$15)))))) -> 0 | Q93: 0 | R93: 55000 | T93: 0 | U93: =J93*10000*Q93 -> 0 | V93: =IF(J93>1000,11000,IF(J93>500,5500,0)) -> 11000 | W93: =IF(OR(I93=1,0,中間処理!A93=2),0,VLOOKUP(I93,AR$3:AU$13,4,FALSE)) -> 135000 | X93: =IF(H93=1,IF(中間処理!A93=2,0,IF(I93=1,0,AO$7)),0) -> 100000 | Y93: =IF(H93=1,IF(中間処理!A92=2,0,VLOOKUP(I93,AR$3:AV$13,5,FALSE)),0) -> 22500 | Z93: 160000 | AA93: 0 | AB93: 3300 | AC93: =IF(J93=0,0,IF(中間処理!A$2=2,0,IF(L93>0,120000,0)+IF(AB93>0,1,0)*120000+IF(AND(P93>0,OR(AH93="東光商事",AH93="アプラス")),80000,0))) -> 240000 | AD93: 0 | AE93: =INT(IF(G93>0,IF(OR(I93=4,I93=5),資金調達!O$43,IF(F93="分割2回",資金調達!O$41,IF(F93="分割3回",資金調達!O$42,資金調達!O$40)))*10000*AI93/12,0)) -> 0 | AF93: =IF(AE93>0,VLOOKUP(P93*10000,table!B$3:C$11,2,TRUE),0) -> 0 | AG93: 671800
A94: 104 | B94: 手数料定率 | C94: 常陽銀行 | E94: =E92 -> 常陽住宅ローン | F94: 当初一括 | G94: =IF(資金調達!D$4=1,0,IF(金利手数料一覧!Y$1=2,0,IF(F94="当初一括",0,IF(F94="分割3回",1,IF(資金調達!M$20>0,1,0))))) -> 0 | H94: =資金調達!D$3 -> 1 | I94: =資金調達!D$4 -> 2 | J94: =J4 -> 4000 | K94: =K83 -> 35 | L94: =IF(OR(I94=2,I94=5),資金調達!E$12,IF(I94=4,資金調達!E$11,IF(I94=1,資金調達!E$11,0)))+IF(D94="フラット35",0,資金調達!E$16) -> 1500 | M94: =資金調達!E$12-資金調達!E$13 -> 1500 | N94: 0 | O94: =IF(I94=1,資金調達!E$11,IF(I94=4,資金調達!E$11,資金調達!E$14)) -> 3000 | P94: =IF(I94=1,0,IF(OR(F94="当初一括",F94="分割4回"),0,IF(OR(I94=4,I94=5),資金調達!M$11,IF(F94="分割3回",資金調達!M$15,IF(F94="分割2回",資金調達!M$14+資金調達!M$15,SUM(資金調達!M$11:M$15)))))) -> 0 | Q94: 0.022 | R94: 0 | T94: 880000 | U94: 0 | V94: =IF(J94>1000,11000,IF(J94>500,5500,0)) -> 11000 | W94: =IF(OR(I94=1,0,中間処理!A94=2),0,VLOOKUP(I94,AR$3:AU$13,4,FALSE)) -> 135000 | X94: =IF(H94=1,IF(中間処理!A94=2,0,IF(I94=1,0,AO$7)),0) -> 100000 | Y94: =IF(H94=1,IF(中間処理!A93=2,0,VLOOKUP(I94,AR$3:AV$13,5,FALSE)),0) -> 22500 | Z94: 160000 | AA94: 0 | AB94: 3300 | AC94: =IF(J94=0,0,IF(中間処理!A$2=2,0,IF(L94>0,120000,0)+IF(AB94>0,1,0)*120000+IF(AND(P94>0,OR(AH94="東光商事",AH94="アプラス")),80000,0))) -> 240000 | AD94: 0 | AE94: =INT(IF(G94>0,IF(OR(I94=4,I94=5),資金調達!O$43,IF(F94="分割2回",資金調達!O$41,IF(F94="分割3回",資金調達!O$42,資金調達!O$40)))*10000*AI94/12,0)) -> 0 | AF94: =IF(AE94>0,VLOOKUP(P94*10000,table!B$3:C$11,2,TRUE),0) -> 0 | AG94: =SUM(S94:AE94) -> 1551800
A95: 91 | B95: 保証料前払い | C95: 横浜銀行 | E95: =table!V54 -> 標準型金利プラン+変動金利 | F95: 分割4回 | G95: =IF(資金調達!D$4=1,0,IF(金利手数料一覧!Y$1=2,0,IF(F95="当初一括",0,IF(F95="分割3回",1,IF(資金調達!M$20>0,1,0))))) -> 1 | H95: =資金調達!D$3 -> 1 | I95: =資金調達!D$4 -> 2 | J95: =J3 -> 4000 | K95: =K92 -> 35 | L95: =IF(OR(I95=2,I95=5),資金調達!E$12,IF(I95=4,資金調達!E$11,IF(I95=1,資金調達!E$11,0)))+IF(D95="フラット35",0,資金調達!E$16) -> 1500 | M95: =資金調達!E$12-資金調達!E$13 -> 1500 | N95: 0 | O95: =IF(I95=1,資金調達!E$11,IF(I95=4,資金調達!E$11,資金調達!E$14)) -> 3000 | P95: =IF(I95=1,0,IF(OR(F95="当初一括",F95="分割4回"),0,IF(OR(I95=4,I95=5),資金調達!M$11,IF(F95="分割3回",資金調達!M$15,IF(F95="分割2回",資金調達!M$14+資金調達!M$15,SUM(資金調達!M$11:M$15)))))) -> 0 | Q95: =HLOOKUP(K95,table!$AO$2:$BX$9,8) -> 0.020681 | S95: =金利手数料一覧!U214 -> 55000 | T95: 0 | U95: =IF(B95="保証料前払い",J95*10000*Q95,0) -> 827240 | V95: =IFERROR(VLOOKUP(J95*10000,table!B$3:C$11,2,TRUE),0) -> 20000 | W95: =IF(OR(I95=1,0,中間処理!A95=2),0,VLOOKUP(I95,AR$3:AU$13,4,FALSE)) -> 135000 | X95: =IF(H95=1,IF(中間処理!A95=2,0,IF(I95=1,0,AO$7)),0) -> 100000 | Y95: =IF(H95=1,IF(中間処理!A94=2,0,VLOOKUP(I95,AR$3:AV$13,5,FALSE)),0) -> 22500 | Z95: 160000 | AA95: 1000 | AB95: 3300 | AC95: =IF(J95=0,0,IF(中間処理!A$2=2,0,IF(L95>0,120000,0)+IF(AB95>0,1,0)*120000+IF(AND(P95>0,OR(AH95="東光商事",AH95="アプラス")),80000,0))) -> 240000 | AD95: 110000 | AE95: =INT(IF(G95>0,IF(OR(I95=4,I95=5),資金調達!O$43,IF(F95="分割2回",資金調達!O$41,IF(F95="分割3回",資金調達!O$42,資金調達!O$40)))*10000*AI95/12,0)) -> 427750 | AF95: =IF(AE95>0,IFERROR(VLOOKUP(P95*10000,table!B$3:C$11,2,TRUE),0),0) -> 0 | AG95: 2101790 | AH95: 東光商事 | AI95: =AI87 -> 0.029
A96: 92 | B96: =B95 -> 保証料前払い | C96: =C95 -> 横浜銀行 | E96: =当月!B823 -> 標準型金利プラン | F96: 最終一括 | G96: =IF(資金調達!D$4=1,0,IF(金利手数料一覧!Y$1=2,0,IF(F96="当初一括",0,IF(F96="分割3回",1,IF(資金調達!M$20>0,1,0))))) -> 1 | H96: =資金調達!D$3 -> 1 | I96: =資金調達!D$4 -> 2 | J96: =J95 -> 4000 | K96: 35 | L96: =IF(OR(I96=2,I96=5),資金調達!E$12,IF(I96=4,資金調達!E$11,IF(I96=1,資金調達!E$11,0)))+IF(D96="フラット35",0,資金調達!E$16) -> 1500 | M96: =資金調達!E$12-資金調達!E$13 -> 1500 | N96: 0 | O96: =IF(I96=1,資金調達!E$11,IF(I96=4,資金調達!E$11,資金調達!E$14)) -> 3000 | P96: =IF(I96=1,0,IF(OR(F96="当初一括",F96="分割4回"),0,IF(OR(I96=4,I96=5),資金調達!M$11,IF(F96="分割3回",資金調達!M$15,IF(F96="分割2回",資金調達!M$14+資金調達!M$15,SUM(資金調達!M$11:M$15)))))) -> 3300 | Q96: =Q95 -> 0.020681 | S96: =S95 -> 55000 | T96: 0 | U96: 827240 | V96: =IFERROR(VLOOKUP(J96*10000,table!B$3:C$11,2,TRUE),0) -> 20000 | W96: =IF(OR(I96=1,0,中間処理!A96=2),0,VLOOKUP(I96,AR$3:AU$13,4,FALSE)) -> 135000 | X96: =IF(H96=1,IF(中間処理!A96=2,0,IF(I96=1,0,AO$7)),0) -> 100000 | Y96: =IF(H96=1,IF(中間処理!A95=2,0,VLOOKUP(I96,AR$3:AV$13,5,FALSE)),0) -> 22500 | Z96: 40000 | AA96: 1000 | AB96: 0 | AC96: =IF(J96=0,0,IF(中間処理!A$2=2,0,IF(L96>0,120000,0)+IF(AB96>0,1,0)*120000+IF(AND(P96>0,OR(AH96="東光商事",AH96="アプラス")),80000,0))) -> 200000 | AD96: 110000 | AE96: =INT(IF(G96>0,IF(OR(I96=4,I96=5),資金調達!O$43,IF(F96="分割2回",資金調達!O$41,IF(F96="分割3回",資金調達!O$42,資金調達!O$40)))*10000*AI96/12,0)) -> 427750 | AF96: =IF(AE96>0,VLOOKUP(P96*10000,table!B$3:C$11,2,TRUE),0) -> 20000 | AG96: 1938490 | AH96: 東光商事 | AI96: 0.029
A97: 93 | B97: 保証料後払い | C97: =C95 -> 横浜銀行 | E97: =table!V56 -> 標準型金利プラン+変動金利 | F97: 分割4回 | G97: =IF(資金調達!D$4=1,0,IF(金利手数料一覧!Y$1=2,0,IF(F97="当初一括",0,IF(F97="分割3回",1,IF(資金調達!M$20>0,1,0))))) -> 1 | H97: =資金調達!D$3 -> 1 | I97: =資金調達!D$4 -> 2 | J97: 4000 | K97: 35 | L97: =IF(OR(I97=2,I97=5),資金調達!E$12,IF(I97=4,資金調達!E$11,IF(I97=1,資金調達!E$11,0)))+IF(D97="フラット35",0,資金調達!E$16) -> 1500 | M97: =資金調達!E$12-資金調達!E$13 -> 1500 | N97: 0 | O97: =IF(I97=1,資金調達!E$11,IF(I97=4,資金調達!E$11,資金調達!E$14)) -> 3000 | P97: =IF(I97=1,0,IF(OR(F97="当初一括",F97="分割4回"),0,IF(OR(I97=4,I97=5),資金調達!M$11,IF(F97="分割3回",資金調達!M$15,IF(F97="分割2回",資金調達!M$14+資金調達!M$15,SUM(資金調達!M$11:M$15)))))) -> 0 | S97: =S96 -> 55000 | T97: 0 | U97: 0 | V97: =IFERROR(VLOOKUP(J97*10000,table!B$3:C$11,2,TRUE),0) -> 20000 | W97: =IF(OR(I97=1,0,中間処理!A97=2),0,VLOOKUP(I97,AR$3:AU$13,4,FALSE)) -> 135000 | X97: =IF(H97=1,IF(中間処理!A97=2,0,IF(I97=1,0,AO$7)),0) -> 100000 | Y97: =IF(H97=1,IF(中間処理!A96=2,0,VLOOKUP(I97,AR$3:AV$13,5,FALSE)),0) -> 22500 | Z97: 160000 | AA97: 1000 | AB97: 3300 | AC97: =IF(J97=0,0,IF(中間処理!A$2=2,0,IF(L97>0,120000,0)+IF(AB97>0,1,0)*120000+IF(AND(P97>0,OR(AH97="東光商事",AH97="アプラス")),80000,0))) -> 240000 | AD97: 110000 | AE97: =INT(IF(G97>0,IF(OR(I97=4,I97=5),資金調達!O$43,IF(F97="分割2回",資金調達!O$41,IF(F97="分割3回",資金調達!O$42,資金調達!O$40)))*10000*AI97/12,0)) -> 427750 | AF97: =IF(AE97>0,IFERROR(VLOOKUP(P97*10000,table!B$3:C$11,2,TRUE),0),0) -> 0 | AG97: 1274550 | AH97: 東光商事 | AI97: =AI95 -> 0.029
A98: 94 | B98: 保証料後払い | C98: =C96 -> 横浜銀行 | E98: =当月!B823 -> 標準型金利プラン | F98: 最終一括 | G98: =IF(資金調達!D$4=1,0,IF(金利手数料一覧!Y$1=2,0,IF(F98="当初一括",0,IF(F98="分割3回",1,IF(資金調達!M$20>0,1,0))))) -> 1 | H98: =資金調達!D$3 -> 1 | I98: =資金調達!D$4 -> 2 | J98: 4000 | K98: 35 | L98: =IF(OR(I98=2,I98=5),資金調達!E$12,IF(I98=4,資金調達!E$11,IF(I98=1,資金調達!E$11,0)))+IF(D98="フラット35",0,資金調達!E$16) -> 1500 | M98: =資金調達!E$12-資金調達!E$13 -> 1500 | N98: 0 | O98: =IF(I98=1,資金調達!E$11,IF(I98=4,資金調達!E$11,資金調達!E$14)) -> 3000 | P98: =IF(I98=1,0,IF(OR(F98="当初一括",F98="分割4回"),0,IF(OR(I98=4,I98=5),資金調達!M$11,IF(F98="分割3回",資金調達!M$15,IF(F98="分割2回",資金調達!M$14+資金調達!M$15,SUM(資金調達!M$11:M$15)))))) -> 3300 | S98: =S97 -> 55000 | T98: 0 | U98: 0 | V98: =IFERROR(VLOOKUP(J98*10000,table!B$3:C$11,2,TRUE),0) -> 20000 | W98: =IF(OR(I98=1,0,中間処理!A98=2),0,VLOOKUP(I98,AR$3:AU$13,4,FALSE)) -> 135000 | X98: =IF(H98=1,IF(中間処理!A98=2,0,IF(I98=1,0,AO$7)),0) -> 100000 | Y98: =IF(H98=1,IF(中間処理!A97=2,0,VLOOKUP(I98,AR$3:AV$13,5,FALSE)),0) -> 22500 | Z98: =INT(IF(OR(I98=4,I98=5,F98="最終一括"),IF(OR(I98=4,I98=5),0.4%,0.1%),0.4%)*J98*10000) -> 40000 | AA98: 1000 | AB98: 0 | AC98: =IF(J98=0,0,IF(中間処理!A$2=2,0,IF(L98>0,120000,0)+IF(AB98>0,1,0)*120000+IF(AND(P98>0,OR(AH98="東光商事",AH98="アプラス")),80000,0))) -> 200000 | AD98: 110000 | AE98: =INT(IF(G98>0,IF(OR(I98=4,I98=5),資金調達!O$43,IF(F98="分割2回",資金調達!O$41,IF(F98="分割3回",資金調達!O$42,資金調達!O$40)))*10000*AI98/12,0)) -> 427750 | AF98: =IF(AE98>0,VLOOKUP(P98*10000,table!B$3:C$11,2,TRUE),0) -> 20000 | AG98: 1111250 | AH98: 東光商事 | AI98: =AI96 -> 0.029
A99: 95 | B99: 手数料定率 | C99: =C97 -> 横浜銀行 | E99: =table!V58 -> 融資手数料型金利プラン+変動金利 | F99: 分割4回 | G99: =IF(資金調達!D$4=1,0,IF(金利手数料一覧!Y$1=2,0,IF(F99="当初一括",0,IF(F99="分割3回",1,IF(資金調達!M$20>0,1,0))))) -> 1 | H99: =資金調達!D$3 -> 1 | I99: =資金調達!D$4 -> 2 | J99: =J98 -> 4000 | K99: =K97 -> 35 | L99: =IF(OR(I99=2,I99=5),資金調達!E$12,IF(I99=4,資金調達!E$11,IF(I99=1,資金調達!E$11,0)))+IF(D99="フラット35",0,資金調達!E$16) -> 1500 | M99: =資金調達!E$12-資金調達!E$13 -> 1500 | N99: 0 | O99: =IF(I99=1,資金調達!E$11,IF(I99=4,資金調達!E$11,資金調達!E$14)) -> 3000 | P99: =IF(I99=1,0,IF(OR(F99="当初一括",F99="分割4回"),0,IF(OR(I99=4,I99=5),資金調達!M$11,IF(F99="分割3回",資金調達!M$15,IF(F99="分割2回",資金調達!M$14+資金調達!M$15,SUM(資金調達!M$11:M$15)))))) -> 0 | Q99: =金利手数料一覧!U212 -> 0.022 | S99: =金利手数料一覧!V212 -> 33000 | T99: 880000 | U99: 0 | V99: =IFERROR(VLOOKUP(J99*10000,table!B$3:C$11,2,TRUE),0) -> 20000 | W99: =IF(OR(I99=1,0,中間処理!A99=2),0,VLOOKUP(I99,AR$3:AU$13,4,FALSE)) -> 135000 | X99: =IF(H99=1,IF(中間処理!A99=2,0,IF(I99=1,0,AO$7)),0) -> 100000 | Y99: =IF(H99=1,IF(中間処理!A98=2,0,VLOOKUP(I99,AR$3:AV$13,5,FALSE)),0) -> 22500 | Z99: 160000 | AA99: 1000 | AB99: 3300 | AC99: =IF(J99=0,0,IF(中間処理!A$2=2,0,IF(L99>0,120000,0)+IF(AB99>0,1,0)*120000+IF(AND(P99>0,OR(AH99="東光商事",AH99="アプラス")),80000,0))) -> 240000 | AD99: 110000 | AE99: =INT(IF(G99>0,IF(OR(I99=4,I99=5),資金調達!O$43,IF(F99="分割2回",資金調達!O$41,IF(F99="分割3回",資金調達!O$42,資金調達!O$40)))*10000*AI99/12,0)) -> 427750 | AF99: =IF(AE99>0,IFERROR(VLOOKUP(P99*10000,table!B$3:C$11,2,TRUE),0),0) -> 0 | AG99: =SUM(S99:AE99) -> 2132550 | AH99: 東光商事 | AI99: =AI97 -> 0.029
A100: 96 | B100: 手数料定率 | C100: =C99 -> 横浜銀行 | E100: =当月!B824 -> 融資手数料型金利プラン | F100: 最終一括 | G100: =IF(資金調達!D$4=1,0,IF(金利手数料一覧!Y$1=2,0,IF(F100="当初一括",0,IF(F100="分割3回",1,IF(資金調達!M$20>0,1,0))))) -> 1 | H100: =資金調達!D$3 -> 1 | I100: =資金調達!D$4 -> 2 | J100: 4000 | K100: =K99 -> 35 | L100: =IF(OR(I100=2,I100=5),資金調達!E$12,IF(I100=4,資金調達!E$11,IF(I100=1,資金調達!E$11,0)))+IF(D100="フラット35",0,資金調達!E$16) -> 1500 | M100: =資金調達!E$12-資金調達!E$13 -> 1500 | N100: 0 | O100: =IF(I100=1,資金調達!E$11,IF(I100=4,資金調達!E$11,資金調達!E$14)) -> 3000 | P100: =IF(I100=1,0,IF(OR(F100="当初一括",F100="分割4回"),0,IF(OR(I100=4,I100=5),資金調達!M$11,IF(F100="分割3回",資金調達!M$15,IF(F100="分割2回",資金調達!M$14+資金調達!M$15,SUM(資金調達!M$11:M$15)))))) -> 3300 | Q100: =金利手数料一覧!U212 -> 0.022 | S100: =S99 -> 33000 | T100: 880000 | U100: 0 | V100: =IFERROR(VLOOKUP(J100*10000,table!B$3:C$11,2,TRUE),0) -> 20000 | W100: =IF(OR(I100=1,0,中間処理!A100=2),0,VLOOKUP(I100,AR$3:AU$13,4,FALSE)) -> 135000 | X100: =IF(H100=1,IF(中間処理!A100=2,0,IF(I100=1,0,AO$7)),0) -> 100000 | Y100: =IF(H100=1,IF(中間処理!A99=2,0,VLOOKUP(I100,AR$3:AV$13,5,FALSE)),0) -> 22500 | Z100: 40000 | AA100: 1000 | AB100: 0 | AC100: =IF(J100=0,0,IF(中間処理!A$2=2,0,IF(L100>0,120000,0)+IF(AB100>0,1,0)*120000+IF(AND(P100>0,OR(AH100="東光商事",AH100="アプラス")),80000,0))) -> 200000 | AD100: 110000 | AE100: =INT(IF(G100>0,IF(OR(I100=4,I100=5),資金調達!O$43,IF(F100="分割2回",資金調達!O$41,IF(F100="分割3回",資金調達!O$42,資金調達!O$40)))*10000*AI100/12,0)) -> 427750 | AF100: =IF(AE100>0,VLOOKUP(P100*10000,table!B$3:C$11,2,TRUE),0) -> 20000 | AG100: 1969250 | AH100: 東光商事 | AI100: =AI98 -> 0.029
A101: 97 | B101: 手数料定率 | C101: 静岡銀行 | E101: =当月!B832 -> カスタムFLEX | F101: 分割4回 | G101: =IF(資金調達!D$4=1,0,IF(金利手数料一覧!Y$1=2,0,IF(F101="当初一括",0,IF(F101="分割3回",1,IF(資金調達!M$20>0,1,0))))) -> 1 | H101: =資金調達!D$3 -> 1 | I101: =資金調達!D$4 -> 2 | J101: 4000 | K101: =K89 -> 35 | L101: =IF(OR(I101=2,I101=5),資金調達!E$12,IF(I101=4,資金調達!E$11,IF(I101=1,資金調達!E$11,0)))+IF(D101="フラット35",0,資金調達!E$16) -> 1500 | M101: =資金調達!E$12-資金調達!E$13 -> 1500 | N101: 0 | O101: =IF(I101=1,資金調達!E$11,IF(I101=4,資金調達!E$11,資金調達!E$14)) -> 3000 | P101: =IF(I101=1,0,IF(OR(F101="当初一括",F101="分割4回"),0,IF(OR(I101=4,I101=5),資金調達!M$11,IF(F101="分割3回",資金調達!M$15,IF(F101="分割2回",資金調達!M$14+資金調達!M$15,SUM(資金調達!M$11:M$15)))))) -> 0 | Q101: =当月!U836 -> 0.0198 | S101: =当月!U833 -> 33000 | T101: 792000 | V101: =IF(J101>1000,11000,IF(J101>500,5500,0)) -> 11000 | W101: =IF(OR(I101=1,0,中間処理!A101=2),0,VLOOKUP(I101,AR$3:AU$13,4,FALSE)) -> 135000 | X101: =IF(H101=1,IF(中間処理!A101=2,0,IF(I101=1,0,AO$7)),0) -> 100000 | Y101: =IF(H101=1,IF(中間処理!A100=2,0,VLOOKUP(I101,AR$3:AV$13,5,FALSE)),0) -> 22500 | Z101: 160000 | AA101: 1000 | AB101: 3300 | AC101: =IF(J101=0,0,IF(中間処理!A$2=2,0,IF(L101>0,120000,0)+IF(AB101>0,1,0)*120000+IF(AND(P101>0,OR(AH101="東光商事",AH101="アプラス")),80000,0))) -> 240000 | AD101: 110000 | AE101: =INT(IF(G101>0,IF(OR(I101=4,I101=5),資金調達!O$43,IF(F101="分割2回",資金調達!O$41,IF(F101="分割3回",資金調達!O$42,資金調達!O$40)))*10000*AI101/12,0)) -> 0 | AF101: =IF(AE101>0,VLOOKUP(P101*10000,table!B$3:C$11,2,TRUE),0) -> 0 | AG101: 1607800
A102: 98 | B102: 手数料定額 | C102: 静岡銀行 | E102: =E101 -> カスタムFLEX | F102: 分割4回 | G102: =IF(資金調達!D$4=1,0,IF(金利手数料一覧!Y$1=2,0,IF(F102="当初一括",0,IF(F102="分割3回",1,IF(資金調達!M$20>0,1,0))))) -> 1 | H102: =資金調達!D$3 -> 1 | I102: =資金調達!D$4 -> 2 | J102: 4000 | K102: =K90 -> 35 | L102: =IF(OR(I102=2,I102=5),資金調達!E$12,IF(I102=4,資金調達!E$11,IF(I102=1,資金調達!E$11,0)))+IF(D102="フラット35",0,資金調達!E$16) -> 1500 | M102: =資金調達!E$12-資金調達!E$13 -> 1500 | N102: 0 | O102: =IF(I102=1,資金調達!E$11,IF(I102=4,資金調達!E$11,資金調達!E$14)) -> 3000 | P102: =IF(I102=1,0,IF(OR(F102="当初一括",F102="分割4回"),0,IF(OR(I102=4,I102=5),資金調達!M$11,IF(F102="分割3回",資金調達!M$15,IF(F102="分割2回",資金調達!M$14+資金調達!M$15,SUM(資金調達!M$11:M$15)))))) -> 0 | Q102: =HLOOKUP(K102,table!$AO$2:$BX$10,9) -> 0.020681 | R102: =当月!U834 -> 139700 | S102: =金利手数料一覧!U222 -> 0 | T102: 139700 | U102: =J102*10000*Q102 -> 827240 | V102: =IF(J102>1000,11000,IF(J102>500,5500,0)) -> 11000 | W102: =IF(OR(I102=1,0,中間処理!A102=2),0,VLOOKUP(I102,AR$3:AU$13,4,FALSE)) -> 135000 | X102: =IF(H102=1,IF(中間処理!A102=2,0,IF(I102=1,0,AO$7)),0) -> 100000 | Y102: =IF(H102=1,IF(中間処理!A101=2,0,VLOOKUP(I102,AR$3:AV$13,5,FALSE)),0) -> 22500 | Z102: 160000 | AA102: 1000 | AB102: 3300 | AC102: =IF(J102=0,0,IF(中間処理!A$2=2,0,IF(L102>0,120000,0)+IF(AB102>0,1,0)*120000+IF(AND(P102>0,OR(AH102="東光商事",AH102="アプラス")),80000,0))) -> 240000 | AD102: 110000 | AE102: =INT(IF(G102>0,IF(OR(I102=4,I102=5),資金調達!O$43,IF(F102="分割2回",資金調達!O$41,IF(F102="分割3回",資金調達!O$42,資金調達!O$40)))*10000*AI102/12,0)) -> 0 | AF102: =IF(AE102>0,VLOOKUP(P102*10000,table!B$3:C$11,2,TRUE),0) -> 0 | AG102: 1749740
A103: 109 | B103: 手数料定率 | C103: 静岡銀行 | E103: =当月!B833 -> 住宅新時代 | F103: 分割4回 | G103: =IF(資金調達!D$4=1,0,IF(金利手数料一覧!Y$1=2,0,IF(F103="当初一括",0,IF(F103="分割3回",1,IF(資金調達!M$20>0,1,0))))) -> 1 | H103: =資金調達!D$3 -> 1 | I103: =資金調達!D$4 -> 2 | J103: 4000 | K103: =K91 -> 35 | L103: =IF(OR(I103=2,I103=5),資金調達!E$12,IF(I103=4,資金調達!E$11,IF(I103=1,資金調達!E$11,0)))+IF(D103="フラット35",0,資金調達!E$16) -> 1500 | M103: =資金調達!E$12-資金調達!E$13 -> 1500 | N103: 0 | O103: =IF(I103=1,資金調達!E$11,IF(I103=4,資金調達!E$11,資金調達!E$14)) -> 3000 | P103: =IF(I103=1,0,IF(OR(F103="当初一括",F103="分割4回"),0,IF(OR(I103=4,I103=5),資金調達!M$11,IF(F103="分割3回",資金調達!M$15,IF(F103="分割2回",資金調達!M$14+資金調達!M$15,SUM(資金調達!M$11:M$15)))))) -> 0 | Q103: =当月!U838 -> 0.0198 | S103: =当月!U833 -> 33000 | T103: 792000 | V103: =IF(J103>1000,11000,IF(J103>500,5500,0)) -> 11000 | W103: =IF(OR(I103=1,0,中間処理!A103=2),0,VLOOKUP(I103,AR$3:AU$13,4,FALSE)) -> 135000 | X103: =IF(H103=1,IF(中間処理!A103=2,0,IF(I103=1,0,AO$7)),0) -> 100000 | Y103: =IF(H103=1,IF(中間処理!A102=2,0,VLOOKUP(I103,AR$3:AV$13,5,FALSE)),0) -> 22500 | Z103: 160000 | AA103: =IF(G103=0,0,1000) -> 1000 | AB103: 3300 | AC103: =IF(J103=0,0,IF(中間処理!A$2=2,0,IF(L103>0,120000,0)+IF(AB103>0,1,0)*120000+IF(AND(P103>0,OR(AH103="東光商事",AH103="アプラス")),80000,0))) -> 240000 | AD103: =IF(G103=0,0,110000) -> 110000 | AE103: =INT(IF(G103>0,IF(OR(I103=4,I103=5),資金調達!O$43,IF(F103="分割2回",資金調達!O$41,IF(F103="分割3回",資金調達!O$42,資金調達!O$40)))*10000*AI103/12,0)) -> 0 | AF103: =IF(AE103>0,VLOOKUP(P103*10000,table!B$3:C$11,2,TRUE),0) -> 0 | AG103: =SUM(S103:AE103) -> 1607800
A104: 110 | B104: 手数料定額 | C104: 静岡銀行 | E104: =E103 -> 住宅新時代 | F104: 分割4回 | G104: =IF(資金調達!D$4=1,0,IF(金利手数料一覧!Y$1=2,0,IF(F104="当初一括",0,IF(F104="分割3回",1,IF(資金調達!M$20>0,1,0))))) -> 1 | H104: =資金調達!D$3 -> 1 | I104: =資金調達!D$4 -> 2 | J104: 4000 | K104: =K92 -> 35 | L104: =IF(OR(I104=2,I104=5),資金調達!E$12,IF(I104=4,資金調達!E$11,IF(I104=1,資金調達!E$11,0)))+IF(D104="フラット35",0,資金調達!E$16) -> 1500 | M104: =資金調達!E$12-資金調達!E$13 -> 1500 | N104: 0 | O104: =IF(I104=1,資金調達!E$11,IF(I104=4,資金調達!E$11,資金調達!E$14)) -> 3000 | P104: =IF(I104=1,0,IF(OR(F104="当初一括",F104="分割4回"),0,IF(OR(I104=4,I104=5),資金調達!M$11,IF(F104="分割3回",資金調達!M$15,IF(F104="分割2回",資金調達!M$14+資金調達!M$15,SUM(資金調達!M$11:M$15)))))) -> 0 | Q104: =HLOOKUP(K104,table!$AO$2:$BX$10,9) -> 0.020681 | R104: =当月!U834 -> 139700 | S104: =金利手数料一覧!U222 -> 0 | T104: 139700 | U104: =J104*10000*Q104 -> 827240 | V104: =IF(J104>1000,11000,IF(J104>500,5500,0)) -> 11000 | W104: =IF(OR(I104=1,0,中間処理!A104=2),0,VLOOKUP(I104,AR$3:AU$13,4,FALSE)) -> 135000 | X104: =IF(H104=1,IF(中間処理!A104=2,0,IF(I104=1,0,AO$7)),0) -> 100000 | Y104: =IF(H104=1,IF(中間処理!A103=2,0,VLOOKUP(I104,AR$3:AV$13,5,FALSE)),0) -> 22500 | Z104: 160000 | AA104: 1000 | AB104: 3300 | AC104: =IF(J104=0,0,IF(中間処理!A$2=2,0,IF(L104>0,120000,0)+IF(AB104>0,1,0)*120000+IF(AND(P104>0,OR(AH104="東光商事",AH104="アプラス")),80000,0))) -> 240000 | AD104: 110000 | AE104: =INT(IF(G104>0,IF(OR(I104=4,I104=5),資金調達!O$43,IF(F104="分割2回",資金調達!O$41,IF(F104="分割3回",資金調達!O$42,資金調達!O$40)))*10000*AI104/12,0)) -> 0 | AF104: =IF(AE104>0,VLOOKUP(P104*10000,table!B$3:C$11,2,TRUE),0) -> 0 | AG104: 1749740
A105: 99 | B105: 手数料定額 | C105: 北洋銀行 | E105: =当月!B841 -> ほくようスペシャル住宅ローンα | F105: 最終一括 | G105: =IF(資金調達!D$4=1,0,IF(金利手数料一覧!Y$1=2,0,IF(F105="当初一括",0,IF(F105="分割3回",1,IF(資金調達!M$20>0,1,0))))) -> 1 | H105: =資金調達!D$3 -> 1 | I105: =資金調達!D$4 -> 2 | J105: =J102 -> 4000 | K105: =K91 -> 35 | L105: =IF(OR(I105=2,I105=5),資金調達!E$12,IF(I105=4,資金調達!E$11,IF(I105=1,資金調達!E$11,0)))+IF(D105="フラット35",0,資金調達!E$16) -> 1500 | M105: =資金調達!E$12-資金調達!E$13 -> 1500 | N105: =N102 -> 0 | O105: =IF(I105=1,資金調達!E$11,IF(I105=4,資金調達!E$11,資金調達!E$14)) -> 3000 | P105: =IF(I105=1,0,IF(OR(F105="当初一括",F105="分割4回"),0,IF(OR(I105=4,I105=5),資金調達!M$11,IF(F105="分割3回",資金調達!M$15,IF(F105="分割2回",資金調達!M$14+資金調達!M$15,SUM(資金調達!M$11:M$15)))))) -> 3300 | R105: 27500 | T105: 27500 | V105: 5500 | W105: =IF(OR(I105=1,0,中間処理!A105=2),0,VLOOKUP(I105,AR$3:AU$13,4,FALSE)) -> 135000 | X105: =IF(H105=1,IF(中間処理!A105=2,0,IF(I105=1,0,AO$7)),0) -> 100000 | Y105: =IF(H105=1,IF(中間処理!A102=2,0,VLOOKUP(I105,AR$3:AV$13,5,FALSE)),0) -> 22500 | Z105: 40000 | AA105: 1000 | AB105: 0 | AC105: =IF(J105=0,0,IF(中間処理!A$2=2,0,IF(L105>0,120000,0)+IF(AB105>0,1,0)*120000+IF(AND(P105>0,OR(AH105="東光商事",AH105="アプラス")),80000,0))) -> 120000 | AD105: 110000 | AE105: =INT(IF(G105>0,IF(OR(I105=4,I105=5),資金調達!O$43,IF(F105="分割2回",資金調達!O$41,IF(F105="分割3回",資金調達!O$42,資金調達!O$40)))*10000*AI105/12,0)) -> 516250 | AF105: =IF(AE105>0,VLOOKUP(P105*10000,table!B$3:C$11,2,TRUE),0) -> 20000 | AG105: 1077750 | AH105: プロパー | AI105: 0.035 | AJ105: 0.0285 | AK105: 業者により金利が異なる
A106: 100 | B106: 手数料定率 | C106: 北洋銀行 | D106: 3年固定 | E106: =当月!B842 -> ほくようスペシャル住宅ローンα定率型 | F106: 最終一括 | G106: =IF(資金調達!D$4=1,0,IF(金利手数料一覧!Y$1=2,0,IF(F106="当初一括",0,IF(F106="分割3回",1,IF(資金調達!M$20>0,1,0))))) -> 1 | H106: =資金調達!D$3 -> 1 | I106: =資金調達!D$4 -> 2 | J106: 4000 | K106: =K92 -> 35 | L106: =IF(OR(I106=2,I106=5),資金調達!E$12,IF(I106=4,資金調達!E$11,IF(I106=1,資金調達!E$11,0)))+IF(D106="フラット35",0,資金調達!E$16) -> 1500 | M106: =資金調達!E$12-資金調達!E$13 -> 1500 | N106: 0 | O106: =IF(I106=1,資金調達!E$11,IF(I106=4,資金調達!E$11,資金調達!E$14)) -> 3000 | P106: =IF(I106=1,0,IF(OR(F106="当初一括",F106="分割4回"),0,IF(OR(I106=4,I106=5),資金調達!M$11,IF(F106="分割3回",資金調達!M$15,IF(F106="分割2回",資金調達!M$14+資金調達!M$15,SUM(資金調達!M$11:M$15)))))) -> 3300 | Q106: 0.011 | T106: 440000 | V106: 5500 | W106: =IF(OR(I106=1,0,中間処理!A106=2),0,VLOOKUP(I106,AR$3:AU$13,4,FALSE)) -> 135000 | X106: =IF(H106=1,IF(中間処理!A106=2,0,IF(I106=1,0,AO$7)),0) -> 100000 | Y106: =IF(H106=1,IF(中間処理!A103=2,0,VLOOKUP(I106,AR$3:AV$13,5,FALSE)),0) -> 22500 | Z106: 40000 | AA106: 1000 | AB106: 0 | AC106: =IF(J106=0,0,IF(中間処理!A$2=2,0,IF(L106>0,120000,0)+IF(AB106>0,1,0)*120000+IF(AND(P106>0,OR(AH106="東光商事",AH106="アプラス")),80000,0))) -> 120000 | AD106: 110000 | AE106: =INT(IF(G106>0,IF(OR(I106=4,I106=5),資金調達!O$43,IF(F106="分割2回",資金調達!O$41,IF(F106="分割3回",資金調達!O$42,資金調達!O$40)))*10000*AI106/12,0)) -> 516250 | AF106: =IF(AE106>0,VLOOKUP(P106*10000,table!B$3:C$11,2,TRUE),0) -> 20000 | AG106: 1490250 | AH106: プロパー | AI106: 0.035
A107: 101 | B107: 手数料定率 | C107: 北洋銀行 | D107: 5年、10年固定 | E107: =E106 -> ほくようスペシャル住宅ローンα定率型 | F107: 最終一括 | G107: =IF(資金調達!D$4=1,0,IF(金利手数料一覧!Y$1=2,0,IF(F107="当初一括",0,IF(F107="分割3回",1,IF(資金調達!M$20>0,1,0))))) -> 1 | H107: =資金調達!D$3 -> 1 | I107: =資金調達!D$4 -> 2 | J107: 4000 | K107: =K93 -> 35 | L107: =IF(OR(I107=2,I107=5),資金調達!E$12,IF(I107=4,資金調達!E$11,IF(I107=1,資金調達!E$11,0)))+IF(D107="フラット35",0,資金調達!E$16) -> 1500 | M107: =資金調達!E$12-資金調達!E$13 -> 1500 | N107: 0 | O107: =IF(I107=1,資金調達!E$11,IF(I107=4,資金調達!E$11,資金調達!E$14)) -> 3000 | P107: =IF(I107=1,0,IF(OR(F107="当初一括",F107="分割4回"),0,IF(OR(I107=4,I107=5),資金調達!M$11,IF(F107="分割3回",資金調達!M$15,IF(F107="分割2回",資金調達!M$14+資金調達!M$15,SUM(資金調達!M$11:M$15)))))) -> 3300 | Q107: 0.022 | T107: 880000 | V107: 5500 | W107: =IF(OR(I107=1,0,中間処理!A107=2),0,VLOOKUP(I107,AR$3:AU$13,4,FALSE)) -> 135000 | X107: =IF(H107=1,IF(中間処理!A107=2,0,IF(I107=1,0,AO$7)),0) -> 100000 | Y107: =IF(H107=1,IF(中間処理!A104=2,0,VLOOKUP(I107,AR$3:AV$13,5,FALSE)),0) -> 22500 | Z107: 40000 | AA107: 1000 | AB107: 0 | AC107: =IF(J107=0,0,IF(中間処理!A$2=2,0,IF(L107>0,120000,0)+IF(AB107>0,1,0)*120000+IF(AND(P107>0,OR(AH107="東光商事",AH107="アプラス")),80000,0))) -> 120000 | AD107: 110000 | AE107: =INT(IF(G107>0,IF(OR(I107=4,I107=5),資金調達!O$43,IF(F107="分割2回",資金調達!O$41,IF(F107="分割3回",資金調達!O$42,資金調達!O$40)))*10000*AI107/12,0)) -> 516250 | AF107: =IF(AE107>0,VLOOKUP(P107*10000,table!B$3:C$11,2,TRUE),0) -> 20000 | AG107: 1930250 | AH107: プロパー | AI107: 0.035
A108: 102 | B108: 保証料前払い | C108: 群馬銀行 | E108: =当月!B848 -> 住宅ローン「金利選択プラン」 | F108: =IF(OR(L108>0,N108>0),"分割2回","最終一括") -> 分割2回 | G108: =IF(資金調達!D$4=1,0,IF(金利手数料一覧!Y$1=2,0,IF(F108="当初一括",0,IF(F108="分割3回",1,IF(資金調達!M$20>0,1,0))))) -> 1 | H108: =資金調達!D$3 -> 1 | I108: =資金調達!D$4 -> 2 | J108: =J106 -> 4000 | K108: =K93 -> 35 | L108: =IF(OR(I108=2,I108=5),資金調達!E$12,IF(I108=4,資金調達!E$11,IF(I108=1,資金調達!E$11,0)))+IF(D108="フラット35",0,資金調達!E$16) -> 1500 | M108: =資金調達!E$12-資金調達!E$13 -> 1500 | N108: 0 | O108: =IF(I108=1,資金調達!E$11,IF(I108=4,資金調達!E$11,資金調達!E$14)) -> 3000 | P108: =IF(I108=1,0,IF(OR(F108="当初一括",F108="分割4回"),0,IF(OR(I108=4,I108=5),資金調達!M$11,IF(F108="分割3回",資金調達!M$15,IF(F108="分割2回",資金調達!M$14+資金調達!M$15,SUM(資金調達!M$11:M$15)))))) -> 1800 | Q108: =HLOOKUP(K108,table!$AO$2:$BX$11,10) -> 0.010309 | S108: =金利手数料一覧!U235 -> 55000 | T108: 0 | U108: =J108*10000*Q108 -> 412360 | V108: 5500 | W108: =IF(OR(I108=1,0,中間処理!A108=2),0,VLOOKUP(I108,AR$3:AU$13,4,FALSE)) -> 135000 | X108: =IF(H108=1,IF(中間処理!A108=2,0,IF(I108=1,0,AO$7)),0) -> 100000 | Y108: =IF(H108=1,IF(中間処理!A105=2,0,VLOOKUP(I108,AR$3:AV$13,5,FALSE)),0) -> 22500 | Z108: 160000 | AA108: =IF(G108=0,0,1000) -> 1000 | AB108: 3300 | AC108: =IF(J108=0,0,IF(中間処理!A$2=2,0,IF(L108>0,120000,0)+IF(AB108>0,1,0)*120000+IF(AND(P108>0,OR(AH108="東光商事",AH108="アプラス")),80000,0))) -> 320000 | AD108: 110000 | AE108: =INT(IF(G108>0,IF(OR(I108=4,I108=5),資金調達!O$43,IF(F108="分割2回",資金調達!O$41,IF(F108="分割3回",資金調達!O$42,資金調達!O$40)))*10000*AI108/12,0)) -> 174000 | AF108: =IF(AE108>0,VLOOKUP(P108*10000,table!B$3:C$11,2,TRUE),0) -> 20000 | AG108: =SUM(S108:AE108) -> 1498660 | AH108: 東光商事 | AI108: =AI100 -> 0.029
A109: 103 | B109: 保証料後払い | C109: 群馬銀行 | E109: =E108 -> 住宅ローン「金利選択プラン」 | F109: =IF(OR(L109>0,N109>0),"分割2回","最終一括") -> 分割2回 | G109: =IF(資金調達!D$4=1,0,IF(金利手数料一覧!Y$1=2,0,IF(F109="当初一括",0,IF(F109="分割3回",1,IF(資金調達!M$20>0,1,0))))) -> 1 | H109: =資金調達!D$3 -> 1 | I109: =資金調達!D$4 -> 2 | J109: =J108 -> 4000 | K109: =K95 -> 35 | L109: =IF(OR(I109=2,I109=5),資金調達!E$12,IF(I109=4,資金調達!E$11,IF(I109=1,資金調達!E$11,0)))+IF(D109="フラット35",0,資金調達!E$16) -> 1500 | M109: =資金調達!E$12-資金調達!E$13 -> 1500 | N109: 0 | O109: =IF(I109=1,資金調達!E$11,IF(I109=4,資金調達!E$11,資金調達!E$14)) -> 3000 | P109: =IF(I109=1,0,IF(OR(F109="当初一括",F109="分割4回"),0,IF(OR(I109=4,I109=5),資金調達!M$11,IF(F109="分割3回",資金調達!M$15,IF(F109="分割2回",資金調達!M$14+資金調達!M$15,SUM(資金調達!M$11:M$15)))))) -> 1800 | S109: =S108 -> 55000 | T109: 0 | U109: =J109*10000*Q109 -> 0 | V109: 5500 | W109: =IF(OR(I109=1,0,中間処理!A109=2),0,VLOOKUP(I109,AR$3:AU$13,4,FALSE)) -> 135000 | X109: =IF(H109=1,IF(中間処理!A109=2,0,IF(I109=1,0,AO$7)),0) -> 100000 | Y109: =IF(H109=1,IF(中間処理!A106=2,0,VLOOKUP(I109,AR$3:AV$13,5,FALSE)),0) -> 22500 | Z109: 160000 | AA109: 1000 | AB109: 3300 | AC109: =IF(J109=0,0,IF(中間処理!A$2=2,0,IF(L109>0,120000,0)+IF(AB109>0,1,0)*120000+IF(AND(P109>0,OR(AH109="東光商事",AH109="アプラス")),80000,0))) -> 320000 | AD109: 110000 | AE109: =INT(IF(G109>0,IF(OR(I109=4,I109=5),資金調達!O$43,IF(F109="分割2回",資金調達!O$41,IF(F109="分割3回",資金調達!O$42,資金調達!O$40)))*10000*AI109/12,0)) -> 174000 | AF109: =IF(AE109>0,VLOOKUP(P109*10000,table!B$3:C$11,2,TRUE),0) -> 20000 | AG109: 1086300 | AH109: 東光商事 | AI109: =AI108 -> 0.029
A110: 111 | B110: 保証料前払い | C110: 群馬銀行 | E110: =当月!B849 -> 住宅ローン金利一覧 | 群馬銀行 | F110: =IF(OR(L110>0,N110>0),"分割2回","最終一括") -> 分割2回 | G110: =IF(資金調達!D$4=1,0,IF(金利手数料一覧!Y$1=2,0,IF(F110="当初一括",0,IF(F110="分割3回",1,IF(資金調達!M$20>0,1,0))))) -> 1 | H110: =資金調達!D$3 -> 1 | I110: =資金調達!D$4 -> 2 | J110: =J108 -> 4000 | K110: =K95 -> 35 | L110: =IF(OR(I110=2,I110=5),資金調達!E$12,IF(I110=4,資金調達!E$11,IF(I110=1,資金調達!E$11,0)))+IF(D110="フラット35",0,資金調達!E$16) -> 1500 | M110: =資金調達!E$12-資金調達!E$13 -> 1500 | N110: 0 | O110: =IF(I110=1,資金調達!E$11,IF(I110=4,資金調達!E$11,資金調達!E$14)) -> 3000 | P110: =IF(I110=1,0,IF(OR(F110="当初一括",F110="分割4回"),0,IF(OR(I110=4,I110=5),資金調達!M$11,IF(F110="分割3回",資金調達!M$15,IF(F110="分割2回",資金調達!M$14+資金調達!M$15,SUM(資金調達!M$11:M$15)))))) -> 1800 | Q110: =HLOOKUP(K110,table!$AO$2:$BX$11,10) -> 0.010309 | S110: =金利手数料一覧!U237 -> 55000 | T110: 0 | U110: =J110*10000*Q110 -> 412360 | V110: 5500 | W110: =IF(OR(I110=1,0,中間処理!A110=2),0,VLOOKUP(I110,AR$3:AU$13,4,FALSE)) -> 135000 | X110: =IF(H110=1,IF(中間処理!A110=2,0,IF(I110=1,0,AO$7)),0) -> 100000 | Y110: =IF(H110=1,IF(中間処理!A107=2,0,VLOOKUP(I110,AR$3:AV$13,5,FALSE)),0) -> 22500 | Z110: 160000 | AA110: =IF(G110=0,0,1000) -> 1000 | AB110: 3300 | AC110: =IF(J110=0,0,IF(中間処理!A$2=2,0,IF(L110>0,120000,0)+IF(AB110>0,1,0)*120000+IF(AND(P110>0,OR(AH110="東光商事",AH110="アプラス")),80000,0))) -> 320000 | AD110: =IF(G110=0,0,110000) -> 110000 | AE110: =INT(IF(G110>0,IF(OR(I110=4,I110=5),資金調達!O$43,IF(F110="分割2回",資金調達!O$41,IF(F110="分割3回",資金調達!O$42,資金調達!O$40)))*10000*AI110/12,0)) -> 174000 | AF110: =IF(AE110>0,VLOOKUP(P110*10000,table!B$3:C$11,2,TRUE),0) -> 20000 | AG110: =SUM(S110:AE110) -> 1498660 | AH110: 東光商事 | AI110: =AI108 -> 0.029
A111: 112 | B111: 保証料後払い | C111: 群馬銀行 | E111: =E110 -> 住宅ローン金利一覧 | 群馬銀行 | F111: =IF(OR(L111>0,N111>0),"分割2回","最終一括") -> 分割2回 | G111: =IF(資金調達!D$4=1,0,IF(金利手数料一覧!Y$1=2,0,IF(F111="当初一括",0,IF(F111="分割3回",1,IF(資金調達!M$20>0,1,0))))) -> 1 | H111: =資金調達!D$3 -> 1 | I111: =資金調達!D$4 -> 2 | J111: 4000 | K111: =K97 -> 35 | L111: =IF(OR(I111=2,I111=5),資金調達!E$12,IF(I111=4,資金調達!E$11,IF(I111=1,資金調達!E$11,0)))+IF(D111="フラット35",0,資金調達!E$16) -> 1500 | M111: =資金調達!E$12-資金調達!E$13 -> 1500 | N111: 0 | O111: =IF(I111=1,資金調達!E$11,IF(I111=4,資金調達!E$11,資金調達!E$14)) -> 3000 | P111: =IF(I111=1,0,IF(OR(F111="当初一括",F111="分割4回"),0,IF(OR(I111=4,I111=5),資金調達!M$11,IF(F111="分割3回",資金調達!M$15,IF(F111="分割2回",資金調達!M$14+資金調達!M$15,SUM(資金調達!M$11:M$15)))))) -> 1800 | S111: =S110 -> 55000 | T111: 0 | U111: =J111*10000*Q111 -> 0 | V111: 5500 | W111: =IF(OR(I111=1,0,中間処理!A111=2),0,VLOOKUP(I111,AR$3:AU$13,4,FALSE)) -> 135000 | X111: =IF(H111=1,IF(中間処理!A111=2,0,IF(I111=1,0,AO$7)),0) -> 100000 | Y111: =IF(H111=1,IF(中間処理!A108=2,0,VLOOKUP(I111,AR$3:AV$13,5,FALSE)),0) -> 22500 | Z111: 160000 | AA111: 1000 | AB111: 3300 | AC111: =IF(J111=0,0,IF(中間処理!A$2=2,0,IF(L111>0,120000,0)+IF(AB111>0,1,0)*120000+IF(AND(P111>0,OR(AH111="東光商事",AH111="アプラス")),80000,0))) -> 320000 | AD111: 110000 | AE111: =INT(IF(G111>0,IF(OR(I111=4,I111=5),資金調達!O$43,IF(F111="分割2回",資金調達!O$41,IF(F111="分割3回",資金調達!O$42,資金調達!O$40)))*10000*AI111/12,0)) -> 174000 | AF111: =IF(AE111>0,VLOOKUP(P111*10000,table!B$3:C$11,2,TRUE),0) -> 20000 | AG111: 1086300 | AH111: 東光商事 | AI111: =AI110 -> 0.029
A112: 105 | B112: 保証料前払い | C112: 筑波銀行 | E112: 「アトラク」逆段階金利型 | F112: 当初一括 | G112: =IF(資金調達!D$4=1,0,IF(金利手数料一覧!Y$1=2,0,IF(F112="当初一括",0,IF(F112="分割3回",1,IF(資金調達!M$20>0,1,0))))) -> 0 | H112: =資金調達!D$3 -> 1 | I112: =資金調達!D$4 -> 2 | J112: =J109 -> 4000 | K112: =K98 -> 35 | L112: =IF(OR(I112=2,I112=5),資金調達!E$12,IF(I112=4,資金調達!E$11,IF(I112=1,資金調達!E$11,0)))+IF(D112="フラット35",0,資金調達!E$16) -> 1500 | M112: =資金調達!E$12-資金調達!E$13 -> 1500 | N112: =N109 -> 0 | O112: =IF(I112=1,資金調達!E$11,IF(I112=4,資金調達!E$11,資金調達!E$14)) -> 3000 | P112: =IF(I112=1,0,IF(OR(F112="当初一括",F112="分割4回"),0,IF(OR(I112=4,I112=5),資金調達!M$11,IF(F112="分割3回",資金調達!M$15,IF(F112="分割2回",資金調達!M$14+資金調達!M$15,SUM(資金調達!M$11:M$15)))))) -> 0 | Q112: 0.011 | R112: 55000 | S112: 55000 | T112: 0 | U112: 437520 | V112: =IF(J112>1000,11000,IF(J112>500,5500,0)) -> 11000 | W112: =IF(OR(I112=1,0,中間処理!A112=2),0,VLOOKUP(I112,AR$3:AU$13,4,FALSE)) -> 135000 | X112: =IF(H112=1,IF(中間処理!A112=2,0,IF(I112=1,0,AO$7)),0) -> 100000 | Y112: =IF(H112=1,IF(中間処理!A107=2,0,VLOOKUP(I112,AR$3:AV$13,5,FALSE)),0) -> 22500 | Z112: 160000 | AA112: 0 | AB112: 3300 | AC112: =IF(J112=0,0,IF(中間処理!A$2=2,0,IF(L112>0,120000,0)+IF(AB112>0,1,0)*120000+IF(AND(P112>0,OR(AH112="東光商事",AH112="アプラス")),80000,0))) -> 240000 | AD112: 0 | AE112: =INT(IF(G112>0,IF(OR(I112=4,I112=5),資金調達!O$43,IF(F112="分割2回",資金調達!O$41,IF(F112="分割3回",資金調達!O$42,資金調達!O$40)))*10000*AI112/12,0)) -> 0 | AF112: =IF(AE112>0,VLOOKUP(P112*10000,table!B$3:C$11,2,TRUE),0) -> 0 | AG112: =SUM(S112:AE112) -> 1164320
A113: 106 | B113: 保証料後払い | C113: 筑波銀行 | E113: 「アトラク」逆段階金利型 | F113: 当初一括 | G113: =IF(資金調達!D$4=1,0,IF(金利手数料一覧!Y$1=2,0,IF(F113="当初一括",0,IF(F113="分割3回",1,IF(資金調達!M$20>0,1,0))))) -> 0 | H113: =資金調達!D$3 -> 1 | I113: =資金調達!D$4 -> 2 | J113: =J19 -> 4000 | K113: =K99 -> 35 | L113: =IF(OR(I113=2,I113=5),資金調達!E$12,IF(I113=4,資金調達!E$11,IF(I113=1,資金調達!E$11,0)))+IF(D113="フラット35",0,資金調達!E$16) -> 1500 | M113: =資金調達!E$12-資金調達!E$13 -> 1500 | N113: 0 | O113: =IF(I113=1,資金調達!E$11,IF(I113=4,資金調達!E$11,資金調達!E$14)) -> 3000 | P113: =IF(I113=1,0,IF(OR(F113="当初一括",F113="分割4回"),0,IF(OR(I113=4,I113=5),資金調達!M$11,IF(F113="分割3回",資金調達!M$15,IF(F113="分割2回",資金調達!M$14+資金調達!M$15,SUM(資金調達!M$11:M$15)))))) -> 0 | Q113: 0 | R113: 55000 | S113: 55000 | T113: 0 | U113: =J113*10000*Q113 -> 0 | V113: =IF(J113>1000,11000,IF(J113>500,5500,0)) -> 11000 | W113: =IF(OR(I113=1,0,中間処理!A113=2),0,VLOOKUP(I113,AR$3:AU$13,4,FALSE)) -> 135000 | X113: =IF(H113=1,IF(中間処理!A113=2,0,IF(I113=1,0,AO$7)),0) -> 100000 | Y113: =IF(H113=1,IF(中間処理!A108=2,0,VLOOKUP(I113,AR$3:AV$13,5,FALSE)),0) -> 22500 | Z113: 160000 | AA113: 0 | AB113: 3300 | AC113: =IF(J113=0,0,IF(中間処理!A$2=2,0,IF(L113>0,120000,0)+IF(AB113>0,1,0)*120000+IF(AND(P113>0,OR(AH113="東光商事",AH113="アプラス")),80000,0))) -> 240000 | AD113: 0 | AE113: =INT(IF(G113>0,IF(OR(I113=4,I113=5),資金調達!O$43,IF(F113="分割2回",資金調達!O$41,IF(F113="分割3回",資金調達!O$42,資金調達!O$40)))*10000*AI113/12,0)) -> 0 | AF113: =IF(AE113>0,VLOOKUP(P113*10000,table!B$3:C$11,2,TRUE),0) -> 0 | AG113: 726800
AF114: =IF(AE114>0,VLOOKUP(P114*10000,table!B$3:C$11,2,TRUE),0) -> 0

Sheet 諸費用並び替え (hidden)
A1: =COUNTIF(資金調達!M11:M16,">0") -> 3 | C1: 270 | D1: 271 | E1: 280 | F1: 281 | G1: 290 | H1: 291 | I1: 1070 | J1: 1071 | K1: 260 | L1: 261 | M1: 350 | N1: 351 | O1: 200 | P1: 201 | Q1: 210 | R1: 211 | S1: 220 | T1: 221 | U1: 790 | V1: 791 | W1: 10 | X1: 11 | Y1: 20 | Z1: 21 | AA1: 490 | AB1: 491 | AC1: 120 | AD1: 121 | AE1: 190 | AF1: 121 | AG1: 190 | AH1: 191 | AI1: 390 | AJ1: 391 | AK1: 400 | AL1: 401 | AM1: 890 | AN1: 891 | AO1: 900 | AP1: 901 | AQ1: 1040 | AR1: 1041 | AS1: 910 | AT1: 911 | AU1: 920 | AV1: 921 | AW1: 930 | AX1: 931 | AY1: 940 | AZ1: 941 | BA1: 950 | BB1: 951 | BC1: 960 | BD1: 961 | BE1: 800 | BF1: 801 | BG1: 810 | BH1: 811 | BI1: 820 | BJ1: 821 | BK1: 830 | BL1: 831 | BM1: 840 | BN1: 841 | BO1: 970 | BP1: 971 | BQ1: 980 | BR1: 981 | BS1: 30 | BT1: 31 | BU1: 40 | BV1: 41 | BW1: 50 | BX1: 51 | BY1: 60 | BZ1: 61 | CA1: 460 | CB1: 461 | CC1: 470 | CD1: 471 | CE1: 860 | CF1: 861 | CG1: 870 | CH1: 871 | CI1: 880 | CJ1: 881 | CK1: 850 | CL1: 851 | CM1: 990 | CN1: 991 | CO1: 1000 | CP1: 1001 | CQ1: 1020 | CR1: 1021 | CS1: 1030 | CT1: 1031 | CU1: 570 | CV1: 571 | CW1: 572 | CX1: 573 | CY1: 610 | CZ1: 611 | DA1: 612 | DB1: 613 | DC1: 660 | DD1: 661 | DE1: 662 | DF1: 663
C2: 金融機関名 | D2: =諸費用!C28 -> みずほ銀行 | E2: 金融機関名 | F2: =$D2 -> みずほ銀行 | G2: 金融機関名 | H2: =$D2 -> みずほ銀行 | I2: 金融機関名 | J2: =$D2 -> みずほ銀行 | K2: 金融機関名 | L2: =諸費用!C27 -> 三菱UFJ銀行 | M2: 金融機関名 | N2: =諸費用!C37 -> 三井住友銀行 | O2: 金融機関名 | P2: =諸費用!C21 -> りそな銀行 | Q2: 金融機関名 | R2: =諸費用!C22 -> りそな銀行 | S2: 金融機関名 | T2: =諸費用!C23 -> りそな銀行 | U2: 金融機関名 | V2: =諸費用!C81 -> PayPay銀行 | W2: 金融機関名 | X2: =諸費用!C2 -> ソニー銀行 | Y2: 金融機関名 | Z2: =諸費用!C3 -> ソニー銀行 | AA2: 金融機関名 | AB2: =諸費用!C51 -> 楽天銀行 | AC2: 金融機関名 | AD2: =諸費用!C13 -> 住信SBIネット銀行 | AE2: 金融機関名 | AF2: =諸費用!C5 -> 三井住友信託銀行 | AG2: 金融機関名 | AH2: =諸費用!C20 -> auじぶん銀行 | AI2: 金融機関名 | AJ2: =諸費用!C41 -> イオン銀行 | AK2: 金融機関名 | AL2: =諸費用!C42 -> イオン銀行 | AM2: 金融機関名 | AN2: =諸費用!C92 -> 常陽銀行 | AO2: 金融機関名 | AP2: =諸費用!C93 -> 常陽銀行 | AQ2: 金融機関名 | AR2: =諸費用!C94 -> 常陽銀行 | AS2: 金融機関名 | AT2: =諸費用!C95 -> 横浜銀行 | AU2: 金融機関名 | AV2: =諸費用!C96 -> 横浜銀行 | AW2: 金融機関名 | AX2: =諸費用!C97 -> 横浜銀行 | AY2: 金融機関名 | AZ2: =諸費用!C98 -> 横浜銀行 | BA2: 金融機関名 | BB2: =諸費用!C99 -> 横浜銀行 | BC2: 金融機関名 | BD2: =諸費用!C100 -> 横浜銀行 | BE2: 金融機関名 | BF2: =諸費用!C82 -> 北陸銀行 | BG2: 金融機関名 | BH2: =諸費用!C83 -> 北陸銀行 | BI2: 金融機関名 | BJ2: =諸費用!C84 -> 北陸銀行 | BK2: 金融機関名 | BL2: =諸費用!C85 -> 北陸銀行 | BM2: 金融機関名 | BN2: =諸費用!C86 -> 北國銀行 | BO2: 金融機関名 | BP2: =諸費用!C101 -> 静岡銀行 | BQ2: 金融機関名 | BR2: =諸費用!C102 -> 静岡銀行 | BS2: 金融機関名 | BT2: =諸費用!C4 -> 三菱UFJ信託銀行 | BU2: 金融機関名 | BV2: =諸費用!C5 -> 三井住友信託銀行 | BW2: 金融機関名 | BX2: =諸費用!C6 -> 三井住友信託銀行 | BY2: 金融機関名 | BZ2: =諸費用!C7 -> 三井住友信託銀行 | CA2: 金融機関名 | CB2: =諸費用!C48 -> SBI新生銀行 | CC2: 金融機関名 | CD2: =諸費用!C49 -> SBI新生銀行 | CE2: 金融機関名 | CF2: =諸費用!C89 -> 中央ろうきん | CG2: 金融機関名 | CH2: =諸費用!C90 -> 中央ろうきん | CI2: 金融機関名 | CJ2: =諸費用!C91 -> 中央ろうきん | CK2: 金融機関名 | CL2: =諸費用!C87 -> 北陸ろうきん | CM2: 金融機関名 | CN2: =諸費用!C105 -> 北洋銀行 | CO2: 金融機関名 | CP2: =諸費用!C106 -> 北洋銀行 | CQ2: 金融機関名 | CR2: =諸費用!C108 -> 群馬銀行 | CS2: 金融機関名 | CT2: =諸費用!C109 -> 群馬銀行 | CU2: 金融機関名 | CV2: =諸費用!C59 -> 優良住宅ローン | CW2: =CV2 -> 優良住宅ローン | CX2: =CW2 -> 優良住宅ローン | CY2: 金融機関名 | CZ2: =諸費用!C63 -> SBIアルヒ | DA2: =諸費用!C63 -> SBIアルヒ | DB2: =諸費用!D63 -> フラット35 | DC2: 金融機関名 | DD2: =諸費用!C68 -> カシワバラ・アシスト | DE2: =DD2 -> カシワバラ・アシスト | DF2: =DE2 -> カシワバラ・アシスト
C3: 商品名 | D3: =諸費用!E28 -> みずほネット住宅ローン | E3: 商品名 | F3: =諸費用!E28 -> みずほネット住宅ローン | G3: 商品名 | H3: =諸費用!E28 -> みずほネット住宅ローン | I3: 商品名 | J3: =諸費用!E31 -> みずほネット住宅ローン | K3: 商品名 | M3: 商品名 | N3: =諸費用!E37 -> WEB申込専用住宅ローン | O3: 商品名 | P3: =諸費用!E21 -> りそな住宅ローン | Q3: 商品名 | R3: =諸費用!E22 -> りそな住宅ローン | S3: 商品名 | T3: =諸費用!E23 -> りそな住宅ローン | U3: 商品名 | V3: =諸費用!E81 -> 住宅ローン | W3: 商品名 | X3: =諸費用!E2 -> 変動セレクト／固定セレクト | Y3: 商品名 | Z3: =諸費用!E3 -> 住宅ローン | AA3: 商品名 | AB3: =諸費用!E51 -> 楽天銀行住宅ローン（金利選択型） | AC3: 商品名 | AD3: =諸費用!E13 -> WEB申込コース | AE3: 商品名 | AF3: =諸費用!G13 -> 1 | AG3: 商品名 | AH3: =諸費用!E20 -> 住宅ローン | AI3: 商品名 | AJ3: =諸費用!E41 -> イオン銀行住宅ローン | AK3: 商品名 | AL3: =諸費用!E42 -> イオン銀行住宅ローン | AM3: 商品名 | AN3: =諸費用!E92 -> 常陽住宅ローン | AO3: 商品名 | AP3: =諸費用!E93 -> 常陽住宅ローン | AQ3: 商品名 | AR3: =諸費用!E94 -> 常陽住宅ローン | AS3: 商品名 | AT3: 標準型金利プラン+変動金利 | AU3: 商品名 | AV3: =諸費用!E96 -> 標準型金利プラン | AW3: 商品名 | AX3: 標準型金利プラン+変動金利 | AY3: 商品名 | AZ3: =諸費用!E97 -> 標準型金利プラン+変動金利 | BA3: 商品名 | BB3: =諸費用!E99 -> 融資手数料型金利プラン+変動金利 | BC3: 商品名 | BD3: 融資手数料型金利プラン＋変動金利 | BE3: 商品名 | BF3: =諸費用!E82 -> ほくぎん住宅ローン | BG3: 商品名 | BH3: =諸費用!E83 -> ほくぎん住宅ローン | BI3: 商品名 | BJ3: =諸費用!E84 -> 0 | BK3: 商品名 | BL3: =諸費用!E85 -> 0 | BM3: 商品名 | BN3: =諸費用!E86 -> 北國住宅ローン | BO3: 商品名 | BP3: =諸費用!E101 -> カスタムFLEX | BQ3: 商品名 | BR3: =諸費用!E102 -> カスタムFLEX | BS3: 商品名 | BT3: =諸費用!E4 -> 三菱UFJネット住宅ローン | BU3: 商品名 | BV3: =諸費用!E5 -> 住まいのアシスト | BW3: 商品名 | BX3: =諸費用!E6 -> 住まいのアシスト | BY3: 商品名 | BZ3: =諸費用!E7 -> 住まいのアシスト | CA3: 商品名 | CB3: =諸費用!E48 -> パワースマート住宅ローン | CC3: 商品名 | CD3: =諸費用!E49 -> パワースマート住宅ローン | CE3: 商品名 | CF3: =諸費用!E89 -> 住宅ローン【手数料定率型】 | CG3: 商品名 | CH3: =諸費用!E90 -> 住宅ローン【手数料定額型】 | CI3: 商品名 | CJ3: =諸費用!E91 -> 住宅ローン【手数料定額型】 | CK3: 商品名 | CL3: =諸費用!E87 -> まるっと500 | CM3: 商品名 | CN3: =諸費用!E105 -> ほくようスペシャル住宅ローンα | CO3: 商品名 | CP3: =諸費用!E106 -> ほくようスペシャル住宅ローンα定率型 | CQ3: 商品名 | CR3: =諸費用!E108 -> 住宅ローン「金利選択プラン」 | CS3: 商品名 | CT3: =諸費用!E109 -> 住宅ローン「金利選択プラン」 | CU3: 商品名 | CV3: =諸費用!E59 -> フラット35 | CW3: フラット35+ローン | CX3: フラット35+アプラス | CY3: 商品名 | CZ3: =諸費用!E63 -> フラット35 | DA3: フラット35+ローン | DB3: フラット35+アプラス | DC3: 商品名 | DD3: =諸費用!E68 -> フラット35 | DE3: フラット35+ローン | DF3: フラット35+アプラス
C4: 手数料タイプ | D4: =諸費用!B28 -> 手数料定率 | E4: 手数料タイプ | F4: =諸費用!B29 -> 保証料前払い | G4: 手数料タイプ | H4: =諸費用!B30 -> 保証料後払い | I4: 手数料タイプ | J4: 手数料定額 | K4: 手数料タイプ | L4: =諸費用!B27 -> 手数料定率 | M4: 手数料タイプ | N4: =諸費用!B37 -> 手数料定率 | O4: 手数料タイプ | P4: =諸費用!B21 -> 手数料定率 | Q4: 手数料タイプ | R4: =諸費用!B22 -> 保証料前払い | S4: 手数料タイプ | T4: =諸費用!B23 -> 保証料後払い | U4: 手数料タイプ | V4: =諸費用!B81 -> 手数料定率 | W4: 手数料タイプ | X4: =諸費用!B2 -> 手数料定率 | Y4: 手数料タイプ | Z4: =諸費用!B3 -> 手数料定額 | AA4: 手数料タイプ | AB4: =諸費用!B51 -> 手数料定額 | AC4: 手数料タイプ | AD4: =諸費用!B13 -> 手数料定率 | AE4: 手数料タイプ | AF4: =諸費用!D13 -> 0 | AG4: 手数料タイプ | AH4: =諸費用!B20 -> 手数料定率 | AI4: 手数料タイプ | AJ4: =諸費用!B41 -> 手数料定率 | AK4: 手数料タイプ | AL4: =諸費用!B42 -> 手数料定額 | AM4: 手数料タイプ | AN4: =諸費用!B92 -> 保証料前払い | AO4: 手数料タイプ | AP4: =諸費用!B93 -> 保証料後払い | AQ4: 手数料タイプ | AR4: =諸費用!B94 -> 手数料定率 | AS4: 手数料タイプ | AT4: =諸費用!B95 -> 保証料前払い | AU4: 手数料タイプ | AV4: =諸費用!B96 -> 保証料前払い | AW4: 手数料タイプ | AX4: =諸費用!B97 -> 保証料後払い | AY4: 手数料タイプ | AZ4: =諸費用!B98 -> 保証料後払い | BA4: 手数料タイプ | BB4: =諸費用!B99 -> 手数料定率 | BC4: 手数料タイプ | BD4: =諸費用!B100 -> 手数料定率 | BE4: 手数料タイプ | BF4: =諸費用!B82 -> 保証料前払い | BG4: 手数料タイプ | BH4: =諸費用!B83 -> 保証料後払い | BI4: 手数料タイプ | BJ4: =諸費用!B84 -> 手数料定率 | BK4: 手数料タイプ | BL4: =諸費用!B85 -> 手数料定率 | BM4: 手数料タイプ | BN4: =諸費用!B86 -> 手数料定額 | BO4: 手数料タイプ | BP4: =諸費用!B101 -> 手数料定率 | BQ4: 手数料タイプ | BR4: =諸費用!B102 -> 手数料定額 | BS4: 手数料タイプ | BT4: =諸費用!B4 -> 手数料定率 | BU4: 手数料タイプ | BV4: =諸費用!B5 -> 手数料定率 | BW4: 手数料タイプ | BX4: =諸費用!B6 -> 保証料前払い | BY4: 手数料タイプ | BZ4: =諸費用!B7 -> 保証料後払い | CA4: 手数料タイプ | CB4: =諸費用!B48 -> 手数料定率 | CC4: 手数料タイプ | CD4: =諸費用!B49 -> 手数料定額 | CE4: 手数料タイプ | CF4: =諸費用!B89 -> 手数料定率 | CG4: 手数料タイプ | CH4: =諸費用!B90 -> 保証料前払い | CI4: 手数料タイプ | CJ4: =諸費用!B91 -> 保証料後払い | CK4: 手数料タイプ | CL4: =諸費用!B87 -> 手数料定額 | CM4: 手数料タイプ | CN4: =諸費用!B105 -> 手数料定額 | CO4: 手数料タイプ | CP4: =諸費用!B106 -> 手数料定率 | CQ4: 手数料タイプ | CR4: =諸費用!B108 -> 保証料前払い | CS4: 手数料タイプ | CT4: =諸費用!B109 -> 保証料後払い | CU4: 手数料タイプ | CV4: =諸費用!B59 -> 手数料定率 | CW4: =CV4 -> 手数料定率 | CX4: =CW4 -> 手数料定率 | CY4: 手数料タイプ | CZ4: =諸費用!B63 -> 手数料定率 | DA4: =CZ4 -> 手数料定率 | DB4: =DA4 -> 手数料定率 | DC4: 手数料タイプ | DD4: =諸費用!B68 -> 手数料定率 | DE4: =DD4 -> 手数料定率 | DF4: =DE4 -> 手数料定率
C5: 融資タイプ | D5: =諸費用!F28 -> 分割4回 | E5: 融資タイプ | F5: =諸費用!F29 -> 分割4回 | G5: 融資タイプ | H5: =諸費用!F30 -> 分割4回 | I5: 融資タイプ | J5: =諸費用!F31 -> 分割4回 | K5: 融資タイプ | L5: =諸費用!F27 -> 分割2回 | M5: 融資タイプ | N5: 分割3回 | O5: 融資タイプ | P5: 分割3回 | Q5: 融資タイプ | R5: 分割3回 | S5: 融資タイプ | T5: 分割3回 | U5: 融資タイプ | V5: =諸費用!F81 -> 最終一括 | W5: 融資タイプ | X5: =諸費用!F2 -> 最終一括 | Y5: 融資タイプ | Z5: =諸費用!F3 -> 最終一括 | AA5: 融資タイプ | AB5: =諸費用!F51 -> 最終一括 | AC5: 融資タイプ | AD5: =諸費用!F13 -> 分割2回 | AE5: 融資タイプ | AF5: =諸費用!F13 -> 分割2回 | AG5: 融資タイプ | AH5: =諸費用!F20 -> 最終一括 | AI5: 融資タイプ | AJ5: =諸費用!F41 -> 分割2回 | AK5: 融資タイプ | AL5: =諸費用!F42 -> 分割2回 | AM5: 融資タイプ | AN5: =諸費用!F92 -> 当初一括 | AO5: 融資タイプ | AP5: =諸費用!F93 -> 当初一括 | AQ5: 融資タイプ | AR5: =諸費用!F94 -> 当初一括 | AS5: 融資タイプ | AT5: 分割4回 | AU5: 融資タイプ | AV5: =諸費用!F96 -> 最終一括 | AW5: 融資タイプ | AX5: 分割4回 | AY5: 融資タイプ | AZ5: =諸費用!F100 -> 最終一括 | BA5: 融資タイプ | BB5: 分割4回 | BC5: 融資タイプ | BD5: =諸費用!F100 -> 最終一括 | BE5: 融資タイプ | BF5: 当初一括 | BG5: 融資タイプ | BH5: 当初一括 | BI5: 融資タイプ | BJ5: 当初一括 | BK5: 融資タイプ | BL5: 当初一括 | BM5: 融資タイプ | BN5: =諸費用!F86 -> 当初一括 | BO5: 融資タイプ | BP5: 分割4回 | BQ5: 融資タイプ | BR5: 分割4回 | BS5: 融資タイプ | BT5: =諸費用!F4 -> 分割2回 | BU5: 融資タイプ | BV5: =諸費用!F5 -> 分割2回 | BW5: 融資タイプ | BX5: =諸費用!F6 -> 分割2回 | BY5: 融資タイプ | BZ5: =諸費用!F7 -> 分割2回 | CA5: 融資タイプ | CB5: =諸費用!F48 -> 最終一括 | CC5: 融資タイプ | CD5: =諸費用!F49 -> 最終一括 | CE5: 融資タイプ | CF5: =諸費用!F89 -> 最終一括 | CG5: 融資タイプ | CH5: =諸費用!F90 -> 最終一括 | CI5: 融資タイプ | CJ5: =諸費用!F91 -> 最終一括 | CK5: 融資タイプ | CL5: 分割3回 | CM5: 融資タイプ | CN5: =諸費用!F105 -> 最終一括 | CO5: 融資タイプ | CP5: =諸費用!F106 -> 最終一括 | CQ5: 融資タイプ | CR5: =諸費用!F108 -> 分割2回 | CS5: 融資タイプ | CT5: =諸費用!F109 -> 分割2回 | CU5: 融資タイプ | CV5: =諸費用!F59 -> 最終一括 | CW5: =CV5 -> 最終一括 | CX5: =CW5 -> 最終一括 | CY5: 融資タイプ | CZ5: =諸費用!F63 -> 最終一括 | DA5: =CZ5 -> 最終一括 | DB5: =DA5 -> 最終一括 | DC5: 融資タイプ | DD5: =諸費用!F68 -> 最終一括 | DE5: =DD5 -> 最終一括 | DF5: =DE5 -> 最終一括
C6: 総予算 | D6: =D7+D8+D9+D10 -> 4764.33 | E6: 総予算 | F6: =F7+F8+F9+F10 -> 4759.324 | G6: 総予算 | H6: =H7+H8+H9+H10 -> 4676.88 | I6: 総予算 | J6: =J7+J8+J9+J10 -> 4673.58 | K6: 総予算 | L6: =L7+L8+L9+L10 -> 4780.33 | M6: 総予算 | N6: =N7+N8+N9+N10 -> 4763.4862 | O6: 総予算 | P6: =P7+P8+P9+P10 -> 4769.055 | Q6: 総予算 | R6: =R7+R8+R9+R10 -> 4763.499 | S6: 総予算 | T6: =T7+T8+T9+T10 -> 4681.055 | U6: 総予算 | V6: =V7+V8+V9+V10 -> 4806.275 | W6: 総予算 | X6: =X7+X8+X9+X10 -> 4804.275 | Y6: 総予算 | Z6: =Z7+Z8+Z9+Z10 -> 4720.675 | AA6: 総予算 | AB6: =AB7+AB8+AB9+AB10 -> 4745.275 | AC6: 総予算 | AD6: =AD7+AD8+AD9+AD10 -> 4759.68 | AE6: 総予算 | AF6: =AF7+AF8+AF9+AF10 -> 4749.68 | AG6: 総予算 | AH6: =AH7+AH8+AH9+AH10 -> 4796.3437 | AI6: 総予算 | AJ6: =AJ7+AJ8+AJ9+AJ10 -> 4761.65 | AK6: 総予算 | AL6: =AL7+AL8+AL9+AL10 -> 4711.05 | AM6: 総予算 | AN6: =AN7+AN8+AN9+AN10 -> 4697.09 | AO6: 総予算 | AP6: =AP7+AP8+AP9+AP10 -> 4661.43 | AQ6: 総予算 | AR6: =AR7+AR8+AR9+AR10 -> 4743.93 | AS6: 総予算 | AT6: =AT7+AT8+AT9+AT10 -> 4762.054 | AU6: 総予算 | AV6: =AV7+AV8+AV9+AV10 -> 4802.999 | AW6: 総予算 | AX6: =AX7+AX8+AX9+AX10 -> 4679.33 | AY6: 総予算 | AZ6: =AZ7+AZ8+AZ9+AZ10 -> 4720.275 | BA6: 総予算 | BB6: =BB7+BB8+BB9+BB10 -> 4765.13 | BC6: 総予算 | BD6: =BD7+BD8+BD9+BD10 -> 4808.275 | BE6: 総予算 | BF6: =BF7+BF8+BF9+BF10 -> 4770.014 | BG6: 総予算 | BH6: =BH7+BH8+BH9+BH10 -> 4669.13 | BI6: 総予算 | BJ6: =BJ7+BJ8+BJ9+BJ10 -> 4713.13 | BK6: 総予算 | BL6: =BL7+BL8+BL9+BL10 -> 4757.13 | BM6: 総予算 | BN6: =BN7+BN8+BN9+BN10 -> 4655 | BO6: 総予算 | BP6: =BP7+BP8+BP9+BP10 -> 4797.1362 | BQ6: 総予算 | BR6: =BR7+BR8+BR9+BR10 -> 4707.3762 | BS6: 総予算 | BT6: =BT7+BT8+BT9+BT10 -> 4764.38 | BU6: 総予算 | BV6: =BV7+BV8+BV9+BV10 -> 4771.68 | BW6: 総予算 | BX6: =BX7+BX8+BX9+BX10 -> 4767.0963 | BY6: 総予算 | BZ6: =BZ7+BZ8+BZ9+BZ10 -> 4684.83 | CA6: 総予算 | CB6: =CB7+CB8+CB9+CB10 -> 4808.325 | CC6: 総予算 | CD6: =CD7+CD8+CD9+CD10 -> 4736.825 | CE6: 総予算 | CF6: =CF7+CF8+CF9+CF10 -> 4766.5062 | CG6: 総予算 | CH6: =CH7+CH8+CH9+CH10 ->  | CI6: 総予算 | CJ6: =CJ7+CJ8+CJ9+CJ10 -> 4678.5062 | CK6: 総予算 | CL6: =CL7+CL8+CL9+CL10 -> 4730.0362 | CM6: 総予算 | CN6: =CN7+CN8+CN9+CN10 -> 4728.425 | CO6: 総予算 | CP6: =CP7+CP8+CP9+CP10 -> 4727.0562 | CQ6: 総予算 | CR6: =CR7+CR8+CR9+CR10 -> 4732.9497 | CS6: 総予算 | CT6: =CT7+CT8+CT9+CT10 -> 4704.43 | CU6: 総予算 | CV6: =CV7+CV8+CV9+CV10 -> 4776.785 | CW6: =CW7+CW8+CW9+CW10 -> 4801.785 | CX6: =CX7+CX8+CX9+CX10 -> 4801.785 | CY6: 総予算 | CZ6: =CZ7+CZ8+CZ9+CZ10 -> 4838.5075 | DA6: =DA7+DA8+DA9+DA10 -> 4924.3 | DB6: =DB7+DB8+DB9+DB10 -> 4863.5075 | DC6: 総予算 | DD6: =DD7+DD8+DD9+DD10 -> 4793.6375 | DE6: =DE7+DE8+DE9+DE10 -> 4729.5375 | DF6: =DF7+DF8+DF9+DF10 -> 4823.0375
C7: 不動産 | D7: =資金調達!$E11+資金調達!$E12 -> 1500 | E7: 不動産 | F7: =資金調達!$E11+資金調達!$E12 -> 1500 | G7: 不動産 | H7: =資金調達!$E11+資金調達!$E12 -> 1500 | I7: 不動産 | J7: =資金調達!$E11+資金調達!$E12 -> 1500 | K7: 不動産 | L7: =資金調達!$E11+資金調達!$E12 -> 1500 | M7: 不動産 | N7: =資金調達!$E11+資金調達!$E12 -> 1500 | O7: 不動産 | P7: =資金調達!$E11+資金調達!$E12 -> 1500 | Q7: 不動産 | R7: =資金調達!$E11+資金調達!$E12 -> 1500 | S7: 不動産 | T7: =資金調達!$E11+資金調達!$E12 -> 1500 | U7: 不動産 | V7: =資金調達!$E11+資金調達!$E12 -> 1500 | W7: 不動産 | X7: =資金調達!$E11+資金調達!$E12 -> 1500 | Y7: 不動産 | Z7: =資金調達!$E11+資金調達!$E12 -> 1500 | AA7: 不動産 | AB7: =資金調達!$E11+資金調達!$E12 -> 1500 | AC7: 不動産 | AD7: =資金調達!$E11+資金調達!$E12 -> 1500 | AE7: 不動産 | AF7: =資金調達!$E11+資金調達!$E12 -> 1500 | AG7: 不動産 | AH7: =資金調達!$E11+資金調達!$E12 -> 1500 | AI7: 不動産 | AJ7: =資金調達!$E11+資金調達!$E12 -> 1500 | AK7: 不動産 | AL7: =資金調達!$E11+資金調達!$E12 -> 1500 | AM7: 不動産 | AN7: =資金調達!$E11+資金調達!$E12 -> 1500 | AO7: 不動産 | AP7: =資金調達!$E11+資金調達!$E12 -> 1500 | AQ7: 不動産 | AR7: =資金調達!$E11+資金調達!$E12 -> 1500 | AS7: 不動産 | AT7: =資金調達!$E11+資金調達!$E12 -> 1500 | AU7: 不動産 | AV7: =資金調達!$E11+資金調達!$E12 -> 1500 | AW7: 不動産 | AX7: =資金調達!$E11+資金調達!$E12 -> 1500 | AY7: 不動産 | AZ7: =資金調達!$E11+資金調達!$E12 -> 1500 | BA7: 不動産 | BB7: =資金調達!$E11+資金調達!$E12 -> 1500 | BC7: 不動産 | BD7: =資金調達!$E11+資金調達!$E12 -> 1500 | BE7: 不動産 | BF7: =資金調達!$E11+資金調達!$E12 -> 1500 | BG7: 不動産 | BH7: =資金調達!$E11+資金調達!$E12 -> 1500 | BI7: 不動産 | BJ7: =資金調達!$E11+資金調達!$E12 -> 1500 | BK7: 不動産 | BL7: =資金調達!$E11+資金調達!$E12 -> 1500 | BM7: 不動産 | BN7: =資金調達!$E11+資金調達!$E12 -> 1500 | BO7: 不動産 | BP7: =資金調達!$E11+資金調達!$E12 -> 1500 | BQ7: 不動産 | BR7: =資金調達!$E11+資金調達!$E12 -> 1500 | BS7: 不動産 | BT7: =資金調達!$E11+資金調達!$E12 -> 1500 | BU7: 不動産 | BV7: =資金調達!$E11+資金調達!$E12 -> 1500 | BW7: 不動産 | BX7: =資金調達!$E11+資金調達!$E12 -> 1500 | BY7: 不動産 | BZ7: =資金調達!$E11+資金調達!$E12 -> 1500 | CA7: 不動産 | CB7: =資金調達!$E11+資金調達!$E12 -> 1500 | CC7: 不動産 | CD7: =資金調達!$E11+資金調達!$E12 -> 1500 | CE7: 不動産 | CF7: =資金調達!$E11+資金調達!$E12 -> 1500 | CG7: 不動産 | CH7: =資金調達!$E11+資金調達!$E12 -> 1500 | CI7: 不動産 | CJ7: =資金調達!$E11+資金調達!$E12 -> 1500 | CK7: 不動産 | CL7: =資金調達!$E11+資金調達!$E12 -> 1500 | CM7: 不動産 | CN7: =資金調達!$E11+資金調達!$E12 -> 1500 | CO7: 不動産 | CP7: =資金調達!$E11+資金調達!$E12 -> 1500 | CQ7: 不動産 | CR7: =資金調達!$E11+資金調達!$E12 -> 1500 | CS7: 不動産 | CT7: =資金調達!$E11+資金調達!$E12 -> 1500 | CU7: 不動産 | CV7: =資金調達!$E11+資金調達!$E12 -> 1500 | CW7: =資金調達!$E11+資金調達!$E12 -> 1500 | CX7: =資金調達!$E11+資金調達!$E12 -> 1500 | CY7: 不動産 | CZ7: =資金調達!$E11+資金調達!$E12 -> 1500 | DA7: =資金調達!$E11+資金調達!$E12 -> 1500 | DB7: =資金調達!$E11+資金調達!$E12 -> 1500 | DC7: 不動産 | DD7: =資金調達!$E11+資金調達!$E12 -> 1500 | DE7: =資金調達!$E11+資金調達!$E12 -> 1500 | DF7: =資金調達!$E11+資金調達!$E12 -> 1500
C8: 工事費用 | D8: =資金調達!$E14+資金調達!$E15 -> 3000 | E8: 工事費用 | F8: =資金調達!$E14+資金調達!$E15 -> 3000 | G8: 工事費用 | H8: =資金調達!$E14+資金調達!$E15 -> 3000 | I8: 工事費用 | J8: =資金調達!$E14+資金調達!$E15 -> 3000 | K8: 工事費用 | L8: =資金調達!$E14+資金調達!$E15 -> 3000 | M8: 工事費用 | N8: =資金調達!$E14+資金調達!$E15 -> 3000 | O8: 工事費用 | P8: =資金調達!$E14+資金調達!$E15 -> 3000 | Q8: 工事費用 | R8: =資金調達!$E14+資金調達!$E15 -> 3000 | S8: 工事費用 | T8: =資金調達!$E14+資金調達!$E15 -> 3000 | U8: 工事費用 | V8: =資金調達!$E14+資金調達!$E15 -> 3000 | W8: 工事費用 | X8: =資金調達!$E14+資金調達!$E15 -> 3000 | Y8: 工事費用 | Z8: =資金調達!$E14+資金調達!$E15 -> 3000 | AA8: 工事費用 | AB8: =資金調達!$E14+資金調達!$E15 -> 3000 | AC8: 工事費用 | AD8: =資金調達!$E14+資金調達!$E15 -> 3000 | AE8: 工事費用 | AF8: =資金調達!$E14+資金調達!$E15 -> 3000 | AG8: 工事費用 | AH8: =資金調達!$E14+資金調達!$E15 -> 3000 | AI8: 工事費用 | AJ8: =資金調達!$E14+資金調達!$E15 -> 3000 | AK8: 工事費用 | AL8: =資金調達!$E14+資金調達!$E15 -> 3000 | AM8: 工事費用 | AN8: =資金調達!$E14+資金調達!$E15 -> 3000 | AO8: 工事費用 | AP8: =資金調達!$E14+資金調達!$E15 -> 3000 | AQ8: 工事費用 | AR8: =資金調達!$E14+資金調達!$E15 -> 3000 | AS8: 工事費用 | AT8: =資金調達!$E14+資金調達!$E15 -> 3000 | AU8: 工事費用 | AV8: =資金調達!$E14+資金調達!$E15 -> 3000 | AW8: 工事費用 | AX8: =資金調達!$E14+資金調達!$E15 -> 3000 | AY8: 工事費用 | AZ8: =資金調達!$E14+資金調達!$E15 -> 3000 | BA8: 工事費用 | BB8: =資金調達!$E14+資金調達!$E15 -> 3000 | BC8: 工事費用 | BD8: =資金調達!$E14+資金調達!$E15 -> 3000 | BE8: 工事費用 | BF8: =資金調達!$E14+資金調達!$E15 -> 3000 | BG8: 工事費用 | BH8: =資金調達!$E14+資金調達!$E15 -> 3000 | BI8: 工事費用 | BJ8: =資金調達!$E14+資金調達!$E15 -> 3000 | BK8: 工事費用 | BL8: =資金調達!$E14+資金調達!$E15 -> 3000 | BM8: 工事費用 | BN8: =資金調達!$E14+資金調達!$E15 -> 3000 | BO8: 工事費用 | BP8: =資金調達!$E14+資金調達!$E15 -> 3000 | BQ8: 工事費用 | BR8: =資金調達!$E14+資金調達!$E15 -> 3000 | BS8: 工事費用 | BT8: =資金調達!$E14+資金調達!$E15 -> 3000 | BU8: 工事費用 | BV8: =資金調達!$E14+資金調達!$E15 -> 3000 | BW8: 工事費用 | BX8: =資金調達!$E14+資金調達!$E15 -> 3000 | BY8: 工事費用 | BZ8: =資金調達!$E14+資金調達!$E15 -> 3000 | CA8: 工事費用 | CB8: =資金調達!$E14+資金調達!$E15 -> 3000 | CC8: 工事費用 | CD8: =資金調達!$E14+資金調達!$E15 -> 3000 | CE8: 工事費用 | CF8: =資金調達!$E14+資金調達!$E15 -> 3000 | CG8: 工事費用 | CH8: =資金調達!$E14+資金調達!$E15 -> 3000 | CI8: 工事費用 | CJ8: =資金調達!$E14+資金調達!$E15 -> 3000 | CK8: 工事費用 | CL8: =資金調達!$E14+資金調達!$E15 -> 3000 | CM8: 工事費用 | CN8: =資金調達!$E14+資金調達!$E15 -> 3000 | CO8: 工事費用 | CP8: =資金調達!$E14+資金調達!$E15 -> 3000 | CQ8: 工事費用 | CR8: =資金調達!$E14+資金調達!$E15 -> 3000 | CS8: 工事費用 | CT8: =資金調達!$E14+資金調達!$E15 -> 3000 | CU8: 工事費用 | CV8: =資金調達!$E14+資金調達!$E15 -> 3000 | CW8: =資金調達!$E14+資金調達!$E15 -> 3000 | CX8: =資金調達!$E14+資金調達!$E15 -> 3000 | CY8: 工事費用 | CZ8: =資金調達!$E14+資金調達!$E15 -> 3000 | DA8: =資金調達!$E14+資金調達!$E15 -> 3000 | DB8: =資金調達!$E14+資金調達!$E15 -> 3000 | DC8: 工事費用 | DD8: =資金調達!$E14+資金調達!$E15 -> 3000 | DE8: =資金調達!$E14+資金調達!$E15 -> 3000 | DF8: =資金調達!$E14+資金調達!$E15 -> 3000
C9: 残債 | D9: =資金調達!$E16 -> 0 | E9: 残債 | F9: =資金調達!$E16 -> 0 | G9: 残債 | H9: =資金調達!$E16 -> 0 | I9: 残債 | J9: =資金調達!$E16 -> 0 | K9: 残債 | L9: =資金調達!$E16 -> 0 | M9: 残債 | N9: =資金調達!$E16 -> 0 | O9: 残債 | P9: =資金調達!$E16 -> 0 | Q9: 残債 | R9: =資金調達!$E16 -> 0 | S9: 残債 | T9: =資金調達!$E16 -> 0 | U9: 残債 | V9: =資金調達!$E16 -> 0 | W9: 残債 | X9: =資金調達!$E16 -> 0 | Y9: 残債 | Z9: =資金調達!$E16 -> 0 | AA9: 残債 | AB9: =資金調達!$E16 -> 0 | AC9: 残債 | AD9: =資金調達!$E16 -> 0 | AE9: 残債 | AF9: =資金調達!$E16 -> 0 | AG9: 残債 | AH9: =資金調達!$E16 -> 0 | AI9: 残債 | AJ9: =資金調達!$E16 -> 0 | AK9: 残債 | AL9: =資金調達!$E16 -> 0 | AM9: 残債 | AN9: =資金調達!$E16 -> 0 | AO9: 残債 | AP9: =資金調達!$E16 -> 0 | AQ9: 残債 | AR9: =資金調達!$E16 -> 0 | AS9: 残債 | AT9: =資金調達!$E16 -> 0 | AU9: 残債 | AV9: =資金調達!$E16 -> 0 | AW9: 残債 | AX9: =資金調達!$E16 -> 0 | AY9: 残債 | AZ9: =資金調達!$E16 -> 0 | BA9: 残債 | BB9: =資金調達!$E16 -> 0 | BC9: 残債 | BD9: =資金調達!$E16 -> 0 | BE9: 残債 | BF9: =資金調達!$E16 -> 0 | BG9: 残債 | BH9: =資金調達!$E16 -> 0 | BI9: 残債 | BJ9: =資金調達!$E16 -> 0 | BK9: 残債 | BL9: =資金調達!$E16 -> 0 | BM9: 残債 | BN9: =資金調達!$E16 -> 0 | BO9: 残債 | BP9: =資金調達!$E16 -> 0 | BQ9: 残債 | BR9: =資金調達!$E16 -> 0 | BS9: 残債 | BT9: =資金調達!$E16 -> 0 | BU9: 残債 | BV9: =資金調達!$E16 -> 0 | BW9: 残債 | BX9: =資金調達!$E16 -> 0 | BY9: 残債 | BZ9: =資金調達!$E16 -> 0 | CA9: 残債 | CB9: =資金調達!$E16 -> 0 | CC9: 残債 | CD9: =資金調達!$E16 -> 0 | CE9: 残債 | CF9: =資金調達!$E16 -> 0 | CG9: 残債 | CH9: =資金調達!$E16 -> 0 | CI9: 残債 | CJ9: =資金調達!$E16 -> 0 | CK9: 残債 | CL9: =資金調達!$E16 -> 0 | CM9: 残債 | CN9: =資金調達!$E16 -> 0 | CO9: 残債 | CP9: =資金調達!$E16 -> 0 | CQ9: 残債 | CR9: =資金調達!$E16 -> 0 | CS9: 残債 | CT9: =資金調達!$E16 -> 0 | CU9: 残債 | CV9: =資金調達!$E16 -> 0 | CW9: =資金調達!$E16 -> 0 | CX9: =資金調達!$E16 -> 0 | CY9: その他 | CZ9: =資金調達!$E16 -> 0 | DA9: =資金調達!$E16 -> 0 | DB9: =資金調達!$E16 -> 0 | DC9: その他 | DD9: =資金調達!$E16 -> 0 | DE9: =資金調達!$E16 -> 0 | DF9: =資金調達!$E16 -> 0
C10: 諸費用 | D10: =D21+D29+D30+D31+D32+D40+D41+D50+D51+D52+D61+D62+D72+D73+D81+D82+D91+D92+D93+D94 -> 264.33 | E10: 諸費用 | F10: =F29+F21+F30+F31+F32+F40+F41+F50+F51+F52+F61+F62+F72+F73+F81+F82+F91+F92+F93+F94 -> 259.324 | G10: 諸費用 | H10: =H29+H21+H30+H31+H32+H40+H41+H50+H51+H52+H61+H62+H72+H73+H81+H82+H91+H92+H93+H94 -> 176.88 | I10: 諸費用 | J10: =J29+J21+J30+J31+J32+J40+J41+J50+J51+J52+J61+J62+J72+J73+J81+J82+J91+J92+J93+J94 -> 173.58 | K10: 諸費用 | L10: =L29+L21+L30+L31+L32+L40+L41+L50+L51+L52+L61+L62+L72+L73+L81+L82+L91+L92+L93+L94 -> 280.33 | M10: 諸費用 | N10: =N29+N21+N30+N31+N32+N40+N41+N50+N51+N52+N61+N62+N72+N73+N81+N82+N91+N92+N93+N94 -> 263.4862 | O10: 諸費用 | P10: =P29+P21+P30+P31+P32+P40+P41+P50+P51+P52+P61+P62+P72+P73+P81+P82+P91+P92+P93+P94 -> 269.055 | Q10: 諸費用 | R10: =R29+R21+R30+R31+R32+R40+R41+R50+R51+R52+R61+R62+R72+R73+R81+R82+R91+R92+R93+R94 -> 263.499 | S10: 諸費用 | T10: =T29+T21+T30+T31+T32+T40+T41+T50+T51+T52+T61+T62+T72+T73+T81+T82+T91+T92+T93+T94 -> 181.055 | U10: 諸費用 | V10: =V29+V21+V30+V31+V32+V40+V41+V50+V51+V52+V61+V62+V72+V73+V81+V82+V91+V92+V93+V94 -> 306.275 | W10: 諸費用 | X10: =X29+X21+X30+X31+X32+X40+X41+X50+X51+X52+X61+X62+X72+X73+X81+X82+X91+X92+X93+X94 -> 304.275 | Y10: 諸費用 | Z10: =Z29+Z21+Z30+Z31+Z32+Z40+Z41+Z50+Z51+Z52+Z61+Z62+Z72+Z73+Z81+Z82+Z91+Z92+Z93+Z94 -> 220.675 | AA10: 諸費用 | AB10: =AB29+AB21+AB30+AB31+AB32+AB40+AB41+AB50+AB51+AB52+AB61+AB62+AB72+AB73+AB81+AB82+AB91+AB92+AB93+AB94 -> 245.275 | AC10: 諸費用 | AD10: =AD29+AD21+AD30+AD31+AD32+AD40+AD41+AD50+AD51+AD52+AD61+AD62+AD72+AD73+AD81+AD82+AD91+AD92+AD93+AD94 -> 259.68 | AE10: 諸費用 | AF10: =AF29+AF21+AF30+AF31+AF32+AF40+AF41+AF50+AF51+AF52+AF61+AF62+AF72+AF73+AF81+AF82+AF91+AF92+AF93+AF94 -> 249.68 | AG10: 諸費用 | AH10: =AH29+AH21+AH30+AH31+AH32+AH40+AH41+AH50+AH51+AH52+AH61+AH62+AH72+AH73+AH81+AH82+AH91+AH92+AH93+AH94 -> 296.3437 | AI10: 諸費用 | AJ10: =AJ29+AJ21+AJ30+AJ31+AJ32+AJ40+AJ41+AJ50+AJ51+AJ52+AJ61+AJ62+AJ72+AJ73+AJ81+AJ82+AJ91+AJ92+AJ93+AJ94 -> 261.65 | AK10: 諸費用 | AL10: =AL29+AL21+AL30+AL31+AL32+AL40+AL41+AL50+AL51+AL52+AL61+AL62+AL72+AL73+AL81+AL82+AL91+AL92+AL93+AL94 -> 211.05 | AM10: 諸費用 | AN10: =AN29+AN21+AN30+AN31+AN32+AN40+AN41+AN50+AN51+AN52+AN61+AN62+AN72+AN73+AN81+AN82+AN91+AN92+AN93+AN94 -> 197.09 | AO10: 諸費用 | AP10: =AP29+AP21+AP30+AP31+AP32+AP40+AP41+AP50+AP51+AP52+AP61+AP62+AP72+AP73+AP81+AP82+AP91+AP92+AP93+AP94 -> 161.43 | AQ10: 諸費用 | AR10: =AR29+AR21+AR30+AR31+AR32+AR40+AR41+AR50+AR51+AR52+AR61+AR62+AR72+AR73+AR81+AR82+AR91+AR92+AR93+AR94 -> 243.93 | AS10: 諸費用 | AT10: =AT29+AT21+AT30+AT31+AT32+AT40+AT41+AT50+AT51+AT52+AT61+AT62+AT72+AT73+AT81+AT82+AT91+AT92+AT93+AT94 -> 262.054 | AU10: 諸費用 | AV10: =AV29+AV21+AV30+AV31+AV32+AV40+AV41+AV50+AV51+AV52+AV61+AV62+AV72+AV73+AV81+AV82+AV91+AV92+AV93+AV94 -> 302.999 | AW10: 諸費用 | AX10: =AX29+AX21+AX30+AX31+AX32+AX40+AX41+AX50+AX51+AX52+AX61+AX62+AX72+AX73+AX81+AX82+AX91+AX92+AX93+AX94 -> 179.33 | AY10: 諸費用 | AZ10: =AZ29+AZ21+AZ30+AZ31+AZ32+AZ40+AZ41+AZ50+AZ51+AZ52+AZ61+AZ62+AZ72+AZ73+AZ81+AZ82+AZ91+AZ92+AZ93+AZ94 -> 220.275 | BA10: 諸費用 | BB10: =BB29+BB21+BB30+BB31+BB32+BB40+BB41+BB50+BB51+BB52+BB61+BB62+BB72+BB73+BB81+BB82+BB91+BB92+BB93+BB94 -> 265.13 | BC10: 諸費用 | BD10: =BD29+BD21+BD30+BD31+BD32+BD40+BD41+BD50+BD51+BD52+BD61+BD62+BD72+BD73+BD81+BD82+BD91+BD92+BD93+BD94 -> 308.275 | BE10: 諸費用 | BF10: =BF29+BF21+BF30+BF31+BF32+BF40+BF41+BF50+BF51+BF52+BF61+BF62+BF72+BF73+BF81+BF82+BF91+BF92+BF93+BF94 -> 270.014 | BG10: 諸費用 | BH10: =BH29+BH21+BH30+BH31+BH32+BH40+BH41+BH50+BH51+BH52+BH61+BH62+BH72+BH73+BH81+BH82+BH91+BH92+BH93+BH94 -> 169.13 | BI10: 諸費用 | BJ10: =BJ29+BJ21+BJ30+BJ31+BJ32+BJ40+BJ41+BJ50+BJ51+BJ52+BJ61+BJ62+BJ72+BJ73+BJ81+BJ82+BJ91+BJ92+BJ93+BJ94 -> 213.13 | BK10: 諸費用 | BL10: =BL29+BL21+BL30+BL31+BL32+BL40+BL41+BL50+BL51+BL52+BL61+BL62+BL72+BL73+BL81+BL82+BL91+BL92+BL93+BL94 -> 257.13 | BM10: 諸費用 | BN10: =BN29+BN21+BN30+BN31+BN32+BN40+BN41+BN50+BN51+BN52+BN61+BN62+BN72+BN73+BN81+BN82+BN91+BN92+BN93+BN94 -> 155 | BO10: 諸費用 | BP10: =BP29+BP21+BP30+BP31+BP32+BP40+BP41+BP50+BP51+BP52+BP61+BP62+BP72+BP73+BP81+BP82+BP91+BP92+BP93+BP94 -> 297.1362 | BQ10: 諸費用 | BR10: =BR29+BR21+BR30+BR31+BR32+BR40+BR41+BR50+BR51+BR52+BR61+BR62+BR72+BR73+BR81+BR82+BR91+BR92+BR93+BR94 -> 207.3762 | BS10: 諸費用 | BT10: =BT29+BT21+BT30+BT31+BT32+BT40+BT41+BT50+BT51+BT52+BT61+BT62+BT72+BT73+BT81+BT82+BT91+BT92+BT93+BT94 -> 264.38 | BU10: 諸費用 | BV10: =BV29+BV21+BV30+BV31+BV32+BV40+BV41+BV50+BV51+BV52+BV61+BV62+BV72+BV73+BV81+BV82+BV91+BV92+BV93+BV94 -> 271.68 | BW10: 諸費用 | BX10: =BX29+BX21+BX30+BX31+BX32+BX40+BX41+BX50+BX51+BX52+BX61+BX62+BX72+BX73+BX81+BX82+BX91+BX92+BX93+BX94 -> 267.0963 | BY10: 諸費用 | BZ10: =BZ29+BZ21+BZ30+BZ31+BZ32+BZ40+BZ41+BZ50+BZ51+BZ52+BZ61+BZ62+BZ72+BZ73+BZ81+BZ82+BZ91+BZ92+BZ93+BZ94 -> 184.83 | CA10: 諸費用 | CB10: =CB29+CB21+CB30+CB31+CB32+CB40+CB41+CB50+CB51+CB52+CB61+CB62+CB72+CB73+CB81+CB82+CB91+CB92+CB93+CB94 -> 308.325 | CC10: 諸費用 | CD10: =CD29+CD21+CD30+CD31+CD32+CD40+CD41+CD50+CD51+CD52+CD61+CD62+CD72+CD73+CD81+CD82+CD91+CD92+CD93+CD94 -> 236.825 | CE10: 諸費用 | CF10: =CF29+CF21+CF30+CF31+CF32+CF40+CF41+CF50+CF51+CF52+CF61+CF62+CF72+CF73+CF81+CF82+CF91+CF92+CF93+CF94 -> 266.5062 | CG10: 諸費用 | CH10: =CH29+CH21+CH30+CH31+CH32+CH40+CH41+CH50+CH51+CH52+CH61+CH62+CH72+CH73+CH81+CH82+CH91+CH92+CH93+CH94 ->  | CI10: 諸費用 | CJ10: =CJ29+CJ21+CJ30+CJ31+CJ32+CJ40+CJ41+CJ50+CJ51+CJ52+CJ61+CJ62+CJ72+CJ73+CJ81+CJ82+CJ91+CJ92+CJ93+CJ94 -> 178.5062 | CK10: 諸費用 | CL10: =CL29+CL21+CL30+CL31+CL32+CL40+CL41+CL50+CL51+CL52+CL61+CL62+CL72+CL73+CL81+CL82+CL91+CL92+CL93+CL94 -> 230.0362 | CM10: 諸費用 | CN10: =CN29+CN21+CN30+CN31+CN32+CN40+CN41+CN50+CN51+CN52+CN61+CN62+CN72+CN73+CN81+CN82+CN91+CN92+CN93+CN94 -> 228.425 | CO10: 諸費用 | CP10: =CP29+CP21+CP30+CP31+CP32+CP40+CP41+CP50+CP51+CP52+CP61+CP62+CP72+CP73+CP81+CP82+CP91+CP92+CP93+CP94 -> 227.0562 | CQ10: 諸費用 | CR10: =CR29+CR21+CR30+CR31+CR32+CR40+CR41+CR50+CR51+CR52+CR61+CR62+CR72+CR73+CR81+CR82+CR91+CR92+CR93+CR94 -> 232.9497 | CS10: 諸費用 | CT10: =CT29+CT21+CT30+CT31+CT32+CT40+CT41+CT50+CT51+CT52+CT61+CT62+CT72+CT73+CT81+CT82+CT91+CT92+CT93+CT94 -> 204.43 | CU10: 諸費用 | CV10: =CV29+CV21+CV30+CV31+CV32+CV40+CV41+CV50+CV51+CV52+CV61+CV62+CV72+CV73+CV81+CV82+CV91+CV92+CV93+CV94 -> 276.785 | CW10: =CW29+CW21+CW30+CW31+CW32+CW40+CW41+CW50+CW51+CW52+CW61+CW62+CW72+CW73+CW81+CW82+CW91+CW92+CW93+CW94 -> 301.785 | CX10: =CX29+CX21+CX30+CX31+CX32+CX40+CX41+CX50+CX51+CX52+CX61+CX62+CX72+CX73+CX81+CX82+CX91+CX92+CX93+CX94 -> 301.785 | CY10: 諸費用 | CZ10: =CZ29+CZ21+CZ30+CZ31+CZ32+CZ40+CZ41+CZ50+CZ51+CZ52+CZ61+CZ62+CZ72+CZ73+CZ81+CZ82+CZ91+CZ92+CZ93+CZ94 -> 338.5075 | DA10: =DA29+DA21+DA30+DA31+DA32+DA40+DA41+DA50+DA51+DA52+DA61+DA62+DA72+DA73+DA81+DA82+DA91+DA92+DA93+DA94 -> 424.3 | DB10: =DB29+DB21+DB30+DB31+DB32+DB40+DB41+DB50+DB51+DB52+DB61+DB62+DB72+DB73+DB81+DB82+DB91+DB92+DB93+DB94 -> 363.5075 | DC10: 諸費用 | DD10: =DD29+DD21+DD30+DD31+DD32+DD40+DD41+DD50+DD51+DD52+DD61+DD62+DD72+DD73+DD81+DD82+DD91+DD92+DD93+DD94 -> 293.6375 | DE10: =DE29+DE21+DE30+DE31+DE32+DE40+DE41+DE50+DE51+DE52+DE61+DE62+DE72+DE73+DE81+DE82+DE91+DE92+DE93+DE94 -> 229.5375 | DF10: =DF29+DF21+DF30+DF31+DF32+DF40+DF41+DF50+DF51+DF52+DF61+DF62+DF72+DF73+DF81+DF82+DF91+DF92+DF93+DF94 -> 323.0375
C11: 住宅ローン | D11: =資金調達!$F18 -> 4000 | E11: 住宅ローン | F11: =資金調達!$F18 -> 4000 | G11: 住宅ローン | H11: =資金調達!$F18 -> 4000 | I11: 住宅ローン | J11: =資金調達!$F18 -> 4000 | K11: 住宅ローン | L11: =資金調達!$F18 -> 4000 | M11: 住宅ローン | N11: =資金調達!$F18 -> 4000 | O11: 住宅ローン | P11: =資金調達!$F18 -> 4000 | Q11: 住宅ローン | R11: =資金調達!$F18 -> 4000 | S11: 住宅ローン | T11: =資金調達!$F18 -> 4000 | U11: 住宅ローン | V11: =資金調達!$F18 -> 4000 | W11: 住宅ローン | X11: =資金調達!$F18 -> 4000 | Y11: 住宅ローン | Z11: =資金調達!$F18 -> 4000 | AA11: 住宅ローン | AB11: =資金調達!$F18 -> 4000 | AC11: 住宅ローン | AD11: =資金調達!$F18 -> 4000 | AE11: 住宅ローン | AF11: =資金調達!$F18 -> 4000 | AG11: 住宅ローン | AH11: =資金調達!$F18 -> 4000 | AI11: 住宅ローン | AJ11: =資金調達!$F18 -> 4000 | AK11: 住宅ローン | AL11: =資金調達!$F18 -> 4000 | AM11: 住宅ローン | AN11: =資金調達!$F18 -> 4000 | AO11: 住宅ローン | AP11: =資金調達!$F18 -> 4000 | AQ11: 住宅ローン | AR11: =資金調達!$F18 -> 4000 | AS11: 住宅ローン | AT11: =資金調達!$F18 -> 4000 | AU11: 住宅ローン | AV11: =資金調達!$F18 -> 4000 | AW11: 住宅ローン | AX11: =資金調達!$F18 -> 4000 | AY11: 住宅ローン | AZ11: =資金調達!$F18 -> 4000 | BA11: 住宅ローン | BB11: =資金調達!$F18 -> 4000 | BC11: 住宅ローン | BD11: =資金調達!$F18 -> 4000 | BE11: 住宅ローン | BF11: =資金調達!$F18 -> 4000 | BG11: 住宅ローン | BH11: =資金調達!$F18 -> 4000 | BI11: 住宅ローン | BJ11: =資金調達!$F18 -> 4000 | BK11: 住宅ローン | BL11: =資金調達!$F18 -> 4000 | BM11: 住宅ローン | BN11: =資金調達!$F18 -> 4000 | BO11: 住宅ローン | BP11: =資金調達!$F18 -> 4000 | BQ11: 住宅ローン | BR11: =資金調達!$F18 -> 4000 | BS11: 住宅ローン | BT11: =資金調達!$F18 -> 4000 | BU11: 住宅ローン | BV11: =資金調達!$F18 -> 4000 | BW11: 住宅ローン | BX11: =資金調達!$F18 -> 4000 | BY11: 住宅ローン | BZ11: =資金調達!$F18 -> 4000 | CA11: 住宅ローン | CB11: =資金調達!$F18 -> 4000 | CC11: 住宅ローン | CD11: =資金調達!$F18 -> 4000 | CE11: 住宅ローン | CF11: =資金調達!$F18 -> 4000 | CG11: 住宅ローン | CH11: =資金調達!$F18 -> 4000 | CI11: 住宅ローン | CJ11: =資金調達!$F18 -> 4000 | CK11: 住宅ローン | CL11: =資金調達!$F18 -> 4000 | CM11: 住宅ローン | CN11: =資金調達!$F18 -> 4000 | CO11: 住宅ローン | CP11: =資金調達!$F18 -> 4000 | CQ11: 住宅ローン | CR11: =資金調達!$F18 -> 4000 | CS11: 住宅ローン | CT11: =資金調達!$F18 -> 4000 | CU11: 住宅ローン | CV11: =資金調達!$F18 -> 4000 | CW11: =資金調達!$F18 -> 4000 | CX11: =資金調達!$F18 -> 4000 | CY11: 住宅ローン | CZ11: =資金調達!$F18 -> 4000 | DA11: =資金調達!$F18 -> 4000 | DB11: =資金調達!$F18 -> 4000 | DC11: 住宅ローン | DD11: =資金調達!$F18 -> 4000 | DE11: =資金調達!$F18 -> 4000 | DF11: =資金調達!$F18 -> 4000
C12: つなぎ融資 | D12: 0 | E12: つなぎ融資 | F12: 0 | G12: つなぎ融資 | H12: 0 | I12: つなぎ融資 | J12: 0 | K12: つなぎ融資 | L12: =資金調達!$M14+資金調達!$M15 -> 1800 | M12: つなぎ融資 | N12: =IF(資金調達!$N21>2,N68,0) -> 900 | O12: つなぎ融資 | P12: =IF(資金調達!$N21>2,P68,0) -> 900 | Q12: つなぎ融資 | R12: =IF(資金調達!$N21>2,R68,0) -> 900 | S12: つなぎ融資 | T12: =IF(資金調達!$N21>2,T68,0) -> 900 | U12: つなぎ融資 | V12: =IF(資金調達!$D4=1,0,資金調達!$M11+資金調達!$M14+資金調達!$M15) -> 3300 | W12: つなぎ融資 | X12: =IF(資金調達!$D4=1,0,資金調達!$M11+資金調達!$M14+資金調達!$M15) -> 3300 | Y12: つなぎ融資 | Z12: =IF(資金調達!$D4=1,0,資金調達!$M11+資金調達!$M14+資金調達!$M15) -> 3300 | AA12: つなぎ融資 | AB12: =IF(資金調達!$D4=1,0,資金調達!$M11+資金調達!$M14+資金調達!$M15) -> 3300 | AC12: つなぎ融資 | AD12: =資金調達!$M14+資金調達!$M15 -> 1800 | AE12: つなぎ融資 | AF12: =資金調達!$M14+資金調達!$M15 -> 1800 | AG12: つなぎ融資 | AH12: =IF(資金調達!$D4=1,0,資金調達!$M11+資金調達!$M14+資金調達!$M15) -> 3300 | AI12: つなぎ融資 | AJ12: =資金調達!$M14+資金調達!$M15 -> 1800 | AK12: つなぎ融資 | AL12: =資金調達!$M14+資金調達!$M15 -> 1800 | AM12: つなぎ融資 | AN12: 0 | AO12: つなぎ融資 | AP12: 0 | AQ12: つなぎ融資 | AR12: 0 | AS12: つなぎ融資 | AT12: 0 | AU12: つなぎ融資 | AV12: =IF(資金調達!$D4=1,0,資金調達!$M11+資金調達!$M14+資金調達!$M15) -> 3300 | AW12: つなぎ融資 | AX12: 0 | AY12: つなぎ融資 | AZ12: =IF(資金調達!$D4=1,0,資金調達!$M11+資金調達!$M14+資金調達!$M15) -> 3300 | BA12: つなぎ融資 | BB12: 0 | BC12: つなぎ融資 | BD12: =IF(資金調達!$D4=1,0,資金調達!$M11+資金調達!$M14+資金調達!$M15) -> 3300 | BE12: つなぎ融資 | BF12: 0 | BG12: つなぎ融資 | BH12: 0 | BI12: つなぎ融資 | BJ12: 0 | BK12: つなぎ融資 | BL12: 0 | BM12: つなぎ融資 | BN12: 0 | BO12: つなぎ融資 | BP12: =IF(資金調達!$N21>2,BP68,0) -> 900 | BQ12: つなぎ融資 | BR12: =IF(資金調達!$N21>2,BR68,0) -> 900 | BS12: つなぎ融資 | BT12: =資金調達!$M14+資金調達!$M15 -> 1800 | BU12: つなぎ融資 | BV12: =資金調達!$M14+資金調達!$M15 -> 1800 | BW12: つなぎ融資 | BX12: =資金調達!$M14+資金調達!$M15 -> 1800 | BY12: つなぎ融資 | BZ12: =資金調達!$M14+資金調達!$M15 -> 1800 | CA12: つなぎ融資 | CB12: =IF(資金調達!$D4=1,0,資金調達!$M11+資金調達!$M14+資金調達!$M15) -> 3300 | CC12: つなぎ融資 | CD12: =IF(資金調達!$D4=1,0,資金調達!$M11+資金調達!$M14+資金調達!$M15) -> 3300 | CE12: つなぎ融資 | CF12: =IF(資金調達!$D4=1,0,資金調達!$M11+資金調達!$M14+資金調達!$M15) -> 3300 | CG12: つなぎ融資 | CH12: =IF(資金調達!$D4=1,0,資金調達!$M11+資金調達!$M14+資金調達!$M15) -> 3300 | CI12: つなぎ融資 | CJ12: =IF(資金調達!$D4=1,0,資金調達!$M11+資金調達!$M14+資金調達!$M15) -> 3300 | CK12: つなぎ融資 | CL12: =IF(資金調達!$N21>2,CL68,0) -> 900 | CM12: つなぎ融資 | CN12: =IF(資金調達!$D4=1,0,資金調達!$M11+資金調達!$M14+資金調達!$M15) -> 3300 | CO12: つなぎ融資 | CP12: =IF(資金調達!$D4=1,0,資金調達!$M11+資金調達!$M14+資金調達!$M15) -> 3300 | CQ12: つなぎ融資 | CR12: =資金調達!$M14+資金調達!$M15 -> 1800 | CS12: つなぎ融資 | CT12: =資金調達!$M14+資金調達!$M15 -> 1800 | CU12: つなぎ融資 | CV12: =IF(資金調達!$D4=1,0,資金調達!$M11+資金調達!$M14+資金調達!$M15) -> 3300 | CW12: =IF(資金調達!$D4=1,0,資金調達!$M11+資金調達!$M14+資金調達!$M15) -> 3300 | CX12: =IF(資金調達!$D4=1,0,資金調達!$M11+資金調達!$M14+資金調達!$M15) -> 3300 | CY12: つなぎ融資 | CZ12: =IF(資金調達!$D4=1,0,資金調達!$M11+資金調達!$M14+資金調達!$M15) -> 3300 | DA12: =IF(資金調達!$D4=1,0,資金調達!$M11+資金調達!$M14+資金調達!$M15) -> 3300 | DB12: =IF(資金調達!$D4=1,0,資金調達!$M11+資金調達!$M14+資金調達!$M15) -> 3300 | DC12: つなぎ融資 | DD12: =IF(資金調達!$D4=1,0,資金調達!$M11+資金調達!$M14+資金調達!$M15) -> 3300 | DE12: =IF(資金調達!$D4=1,0,資金調達!$M11+資金調達!$M14+資金調達!$M15) -> 3300 | DF12: =IF(資金調達!$D4=1,0,資金調達!$M11+資金調達!$M14+資金調達!$M15) -> 3300
C13: 自己資金 | D13: =D6-D11 -> 764.33 | E13: 自己資金 | F13: =F6-F11 -> 759.324 | G13: 自己資金 | H13: =H6-H11 -> 676.88 | I13: 自己資金 | J13: =J6-J11 -> 673.58 | K13: 自己資金 | L13: =L6-L11 -> 780.33 | M13: 自己資金 | N13: =N6-N11 -> 763.4862 | O13: 自己資金 | P13: =P6-P11 -> 769.055 | Q13: 自己資金 | R13: =R6-R11 -> 763.499 | S13: 自己資金 | T13: =T6-T11 -> 681.055 | U13: 自己資金 | V13: =V6-V11 -> 806.275 | W13: 自己資金 | X13: =X6-X11 -> 804.275 | Y13: 自己資金 | Z13: =Z6-Z11 -> 720.675 | AA13: 自己資金 | AB13: =AB6-AB11 -> 745.275 | AC13: 自己資金 | AD13: =AD6-AD11 -> 759.68 | AE13: 自己資金 | AF13: =AF6-AF11 -> 749.68 | AG13: 自己資金 | AH13: =AH6-AH11 -> 796.3437 | AI13: 自己資金 | AJ13: =AJ6-AJ11 -> 761.65 | AK13: 自己資金 | AL13: =AL6-AL11 -> 711.05 | AM13: 自己資金 | AN13: =AN6-AN11 -> 697.09 | AO13: 自己資金 | AP13: =AP6-AP11 -> 661.43 | AQ13: 自己資金 | AR13: =AR6-AR11 -> 743.93 | AS13: 自己資金 | AT13: =AT6-AT11 -> 762.054 | AU13: 自己資金 | AV13: =AV6-AV11 -> 802.999 | AW13: 自己資金 | AX13: =AX6-AX11 -> 679.33 | AY13: 自己資金 | AZ13: =AZ6-AZ11 -> 720.275 | BA13: 自己資金 | BB13: =BB6-BB11 -> 765.13 | BC13: 自己資金 | BD13: =BD6-BD11 -> 808.275 | BE13: 自己資金 | BF13: =BF6-BF11 -> 770.014 | BG13: 自己資金 | BH13: =BH6-BH11 -> 669.13 | BI13: 自己資金 | BJ13: =BJ6-BJ11 -> 713.13 | BK13: 自己資金 | BL13: =BL6-BL11 -> 757.13 | BM13: 自己資金 | BN13: =BN6-BN11 -> 655 | BO13: 自己資金 | BP13: =BP6-BP11 -> 797.1362 | BQ13: 自己資金 | BR13: =BR6-BR11 -> 707.3762 | BS13: 自己資金 | BT13: =BT6-BT11 -> 764.38 | BU13: 自己資金 | BV13: =BV6-BV11 -> 771.68 | BW13: 自己資金 | BX13: =BX6-BX11 -> 767.0963 | BY13: 自己資金 | BZ13: =BZ6-BZ11 -> 684.83 | CA13: 自己資金 | CB13: =CB6-CB11 -> 808.325 | CC13: 自己資金 | CD13: =CD6-CD11 -> 736.825 | CE13: 自己資金 | CF13: =CF6-CF11 -> 766.5062 | CG13: 自己資金 | CH13: =CH6-CH11 ->  | CI13: 自己資金 | CJ13: =CJ6-CJ11 -> 678.5062 | CK13: 自己資金 | CL13: =CL6-CL11 -> 730.0362 | CM13: 自己資金 | CN13: =CN6-CN11 -> 728.425 | CO13: 自己資金 | CP13: =CP6-CP11 -> 727.0562 | CQ13: 自己資金 | CR13: =CR6-CR11 -> 732.9497 | CS13: 自己資金 | CT13: =CT6-CT11 -> 704.43 | CU13: 自己資金 | CV13: =CV6-CV11 -> 776.785 | CW13: =CW6-CW11 -> 801.785 | CX13: =CX6-CX11 -> 801.785 | CY13: 自己資金 | CZ13: =CZ6-CZ11 -> 838.5075 | DA13: =DA6-DA11 -> 924.3 | DB13: =DB6-DB11 -> 863.5075 | DC13: 自己資金 | DD13: =DD6-DD11 -> 793.6375 | DE13: =DE6-DE11 -> 729.5375 | DF13: =DF6-DF11 -> 823.0375
